Workbook

Sheet Premissas
A1: Informações Relevantes sobre os combustíveis utilizados no modelo
A2: Combustível | B2: Unidade comercial (S.I.) | C2: Densidade (kg/m³) | D2: Poder calorífico inferior (kcal/kg) | E2: Poder calorífico inferior (kcal/S.I.) | F2: Intensidade de Carbono Emissões da Cadeia de Suprimento (gCO2eq/MJ) | G2: Intensidade de Carbono Emissões Biogênicas da Queima (gCO2eq/MJ) | H2: Intensidade de Carbono Emissões não-Biogênicas da Queima (gCO2eq/MJ) | I2: Intensidade de Carbono Emissões totais (gCO2eq/MJ) | J2: Intensidade de Carbono Emissões totais (gCO2eq/S.I)
A3: Hidrogênio | B3: kg | C3: 0.0837520938 | D3: 28632.1392 | E3: =D3 -> 28632.1392 | F3: =E26 -> 33.41195316 | G3: 0 | H3: 0 | I3: =F3+H3+G3 -> 33.41195316 | J3: =I3*(E3*D14/10^3) -> 4005.326059
A4: Etanol | B4: Litros | C4: 791 | D4: 6750 | E4: =D4*C4/10^3 -> 5339.25 | F4: 21.95 | G4: 68.26 | H4: 0.44 | I4: =F4+H4+G4 -> 90.65 | J4: =I4*(E4*$D$14/10^3) -> 2026.423813
A5: Gás Natural | B5: m³ | C5: 0.74 | D5: 11891.89189 | E5: =D5*C5 -> 8800 | F5: 19.04 | G5: 0 | H5: 57.81 | I5: =F5+H5+G5 -> 76.85 | J5: =I5*(E5*$D$14/10^3) -> 2831.449104
A6: Óleo combustível | B6: kg | C6: 1000 | D6: 9590 | E6: =D6 -> 9590 | F6: 12.07 | G6: 0 | H6: 77.796 | I6: =F6+H6+G6 -> 89.866 | J6: =I6*(E6*$D$14/10^3) -> 3608.246791
A7: GLP | B7: kg | C7: 552 | D7: 11100 | E7: =D7 -> 11100 | F7: 15.6 | G7: 0 | H7: 64.6 | I7: 80.2 | J7: =I7*(E7*$D$14/10^3) -> 3727.173096
A8: Diesel B (B15) | B8: Litros | C8: 846 | D8: 9928.368794 | E8: =D8*C8/10^3 -> 8399.4 | F8: 13.20336039 | G8: 0 | H8: 63.96594399 | I8: 77.16930437 | J8: =I8*(E8*$D$14/10^3) -> 2713.78267
A9: Eletricidade | B9: kWh | C9: =NA() ->  | D9: =NA() ->  | E9: =NA() ->  | F9: 20.85 | G9: 0 | H9: 0 | I9: 20.85 | J9: =I9*D16/10^6 -> 75.06
A11: Tabela de Fatores de Conversão para Energia
B12: British Thermal Unit | C12: Caloria | D12: Joule | E12: Quilowatt-hora
A13: British Thermal Unit | B13: 1 | C13: 252 | D13: 1055 | E13: =1/B16 -> 0.0002930832356
A14: Caloria | B14: =1/C13 -> 0.003968253968 | C14: 1 | D14: 4.1868 | E14: =1/C16 -> 1.162790698e-06
A15: Joule | B15: =1/D13 -> 0.0009478672986 | C15: =1/D14 -> 0.2388458966 | D15: 1 | E15: =1/D16 -> 2.777777778e-07
A16: Quilowatt-hora (kWh) | B16: 3412 | C16: 860000 | D16: 3600000 | E16: 1
A18: Intensidade de Carbono da Produção do Hidrogênio Musgo (gCO2eq/MJ)
B19: Etanol | C19: Gás Natural | D19: Eletricidade | E19: Total
A20: Emissão da Reforma a Vapor do Etanol | B20: ='Dados de Entrada'!$B$30*10^3*'Dados de Entrada'!B44*(E4*D14/10^3)*($F$4+$H$4)/('Dados de Entrada'!$B$30*10^3*$D$3*($D$14/10^3)) -> 31.94052044 | C20: 0 | D20: ='Dados de Entrada'!$B$30*10^3*'Dados de Entrada'!B42*(D16/10^6)*$I$9/('Dados de Entrada'!$B$30*10^3*$D$3*($D$14/10^3)) -> 1.471432723 | E20: =SUM(B20:D20) -> 33.41195316
A21: Emissão do CCS (sem estocagem) | B21: 0 | C21: ='Dados de Entrada'!$B$57*'Dados de Entrada'!B64*(C5*D5*D14/10^3)*$I$5/('Dados de Entrada'!$B$30*10^3*$D$3*($D$14/10^3)) -> 0 | D21: =('Dados de Entrada'!$B$57*'Dados de Entrada'!B65+'Dados de Entrada'!B90)*(D16/10^6)*$I$9/('Dados de Entrada'!$B$30*10^3*$D$3*($D$14/10^3)) -> 0 | E21: =SUM(B21:D21) -> 0
A22: Emissão Total | B22: =SUM(B20:B21) -> 31.94052044 | C22: =SUM(C20:C21) -> 0 | D22: 1.471432723 | E22: =SUM(B22:D22) -> 33.41195316
A24: Emissão Total | E24: =E22 -> 33.41195316
A25: Emissão evitada com a Captura de CO2 | E25: ='Dados de Entrada'!B57*10^6/('Dados de Entrada'!$B$30*10^3*$D$3*($D$14/10^3)) -> 0
A26: Emissão efetiva | E26: =E22-E25 -> 33.41195316
A28: Tabela de constantes dos modelos de vazão de gasodutos
A29: Escolha do modelo | C29: Panhandle-B
A30: Variável | B30: Valor | C30: Unidade
A31: η | B31: =IF($C$29="Panhandle-B",1,1) -> 1 | C31: Constante
A32: C1 | B32: =IF($C$29="Panhandle-B",137.24,88.06) -> 137.24 | C32: Constante
A33: C2 | B33: =IF($C$29="Panhandle-B",1,1) -> 1 | C33: Constante
A34: a | B34: =IF($C$29="Panhandle-B",0.9608,0.8) -> 0.9608 | C34: Constante
A35: b | B35: =IF($C$29="Panhandle-B",0.51,0.5555) -> 0.51 | C35: Constante
A36: c | B36: =IF($C$29="Panhandle-B",2.53,2.6667) -> 2.53 | C36: Constante
A38: Tabela de propriedades físicas do CO2
A39: Variável | B39: Valor | C39: Unidade
A40: Viscosidade (31ºC a 74 bar) | B40: 4.0738e-05 | C40: Pa*s
A41: Densidade (31°C a 74 bar) | B41: 565.95 | C41: kg/m³
A42: Massa molar | B42: 0.0440095 | C42: kg/mol
A44: Tabela de propriedades físicas de outros componentes
A45: Variável | B45: Valor | C45: Unidade
A46: Constante dos gases ideais (R_gases ideais) | B46: 8.314 | C46: J/(K·mol)
A47: Massa molar do ar (M_ar) | B47: 0.028965 | C47: kg/mol
A48: Constante do ar (R_ar) | B48: =B46/B47 -> 287.036078 | C48: J/(kg.K)
A49: Temperatura padrão (31ºC) | B49: =31+273.15 -> 304.15 | C49: Kelvin
A50: Pressão Padrão | B50: 74 | C50: bar
A51: Constante Gravitacional Universal (G) | B51: 9.80665 | C51: m/s²
A52: exponente politrópico/isentrópico (k) | B52: =SUMIFS('Densidade e Viscosidade do CO2'!$G:$G,'Densidade e Viscosidade do CO2'!$A:$A,'Dados de Entrada'!$B$74,'Densidade e Viscosidade do CO2'!$B:$B,'Dados de Entrada'!$B$72) -> 3.290883385 | C52: Adimensional
A53: n_stage | B53: 1 | C53: Unidades
A54: Polegadas por Metro | B54: 39.3701 | C54: polegadas/metro
A55: Pressão inicial do duto máxima permitida | B55: 200 | C55: Bars

Sheet Densidade e Viscosidade do CO2
A1: Temperature (Celsus) | B1: Pressure (bar) | C1: Density (kg/m3) | D1: Viscosity (Pa*s) | E1: Cv (J/g*K) | F1: Cp (J/g*K) | G1: K = Cp/Cv
A2: 31 | B2: 74 | C2: 565.95 | D2: 4.0738e-05 | E2: 1.4588 | F2: 47.393 | G2: =F2/E2 -> 32.48766109
A3: 31 | B3: 75 | C3: 614.17 | D3: 4.5671e-05 | E3: 1.1909 | F3: 14.737 | G3: =F3/E3 -> 12.37467462
A4: 31 | B4: 76 | C4: 635.51 | D4: 4.8051e-05 | E4: 1.1336 | F4: 10.419 | G4: =F4/E4 -> 9.191072689
A5: 31 | B5: 77 | C5: 650.31 | D5: 4.9779e-05 | E5: 1.1036 | F5: 8.5046 | G5: =F5/E5 -> 7.706234143
A6: 31 | B6: 78 | C6: 661.88 | D6: 5.1175e-05 | E6: 1.0832 | F6: 7.3833 | G6: 6.816192762
A7: 31 | B7: 79 | C7: 671.47 | D7: 5.2365e-05 | E7: 1.0676 | F7: 6.6329 | G7: 6.212907456
A8: 31 | B8: 80 | C8: 679.73 | D8: 5.3413e-05 | E8: 1.055 | F8: 6.0894 | G8: 5.771943128
A9: 31 | B9: 81 | C9: 687 | D9: 5.4354e-05 | E9: 1.0444 | F9: 5.6744 | G9: 5.433167369
A10: 31 | B10: 82 | C10: 693.52 | D10: 5.5214e-05 | E10: 1.0353 | F10: 5.3454 | G10: 5.163141119
A11: 31 | B11: 83 | C11: 699.45 | D11: 5.6008e-05 | E11: 1.0273 | F11: 5.077 | G11: 4.942081184
A12: 31 | B12: 84 | C12: 704.9 | D12: 5.6749e-05 | E12: 1.0203 | F12: 4.853 | G12: 4.756444183
A13: 31 | B13: 85 | C13: 709.94 | D13: 5.7445e-05 | E13: 1.014 | F13: 4.6627 | G13: 4.598323471
A14: 31 | B14: 86 | C14: 714.65 | D14: 5.8102e-05 | E14: 1.0084 | F14: 4.4986 | G14: 4.461126537
A15: 31 | B15: 87 | C15: 719.06 | D15: 5.8727e-05 | E15: 1.0033 | F15: 4.3553 | G15: 4.340974783
A16: 31 | B16: 88 | C16: 723.23 | D16: 5.9322e-05 | E16: 0.99866 | F16: 4.2288 | G16: 4.234474195
A17: 31 | B17: 89 | C17: 727.17 | D17: 5.9892e-05 | E17: 0.99444 | F17: 4.1162 | G17: 4.13921403
A18: 31 | B18: 90 | C18: 730.91 | D18: 6.044e-05 | E18: 0.99058 | F18: 4.015 | G18: 4.053180965
A19: 31 | B19: 91 | C19: 734.49 | D19: 6.0967e-05 | E19: 0.98702 | F19: 3.9236 | G19: 3.975198071
A20: 31 | B20: 92 | C20: 737.9 | D20: 6.1476e-05 | E20: 0.98374 | F20: 3.8404 | G20: 3.903877041
A21: 31 | B21: 93 | C21: 741.17 | D21: 6.1968e-05 | E21: 0.98069 | F21: 3.7643 | G21: 3.838419888
A22: 31 | B22: 94 | C22: 744.32 | D22: 6.2445e-05 | E22: 0.97787 | F22: 3.6944 | G22: 3.778007302
A23: 31 | B23: 95 | C23: 747.34 | D23: 6.2909e-05 | E23: 0.97523 | F23: 3.6298 | G23: 3.721993786
A24: 31 | B24: 96 | C24: 750.26 | D24: 6.3359e-05 | E24: 0.97277 | F24: 3.57 | G24: 3.669932255
A25: 31 | B25: 97 | C25: 753.08 | D25: 6.3798e-05 | E25: 0.97047 | F25: 3.5143 | G25: 3.621235072
A26: 31 | B26: 98 | C26: 755.81 | D26: 6.4225e-05 | E26: 0.96831 | F26: 3.4623 | G26: 3.575611116
A27: 31 | B27: 99 | C27: 758.45 | D27: 6.4642e-05 | E27: 0.96627 | F27: 3.4136 | G27: 3.532759995
A28: 31 | B28: 100 | C28: 761.01 | D28: 6.505e-05 | E28: 0.96436 | F28: 3.3679 | G28: 3.492367995
A29: 31 | B29: 101 | C29: 763.5 | D29: 6.5448e-05 | E29: 0.96255 | F29: 3.3249 | G29: 3.454262116
A30: 31 | B30: 102 | C30: 765.91 | D30: 6.5839e-05 | E30: 0.96084 | F30: 3.2843 | G30: 3.418154948
A31: 31 | B31: 103 | C31: 768.27 | D31: 6.6221e-05 | E31: 0.95923 | F31: 3.2459 | G31: 3.383859971
A32: 31 | B32: 104 | C32: 770.56 | D32: 6.6596e-05 | E32: 0.95769 | F32: 3.2096 | G32: 3.351397634
A33: 31 | B33: 105 | C33: 772.79 | D33: 6.6963e-05 | E33: 0.95623 | F33: 3.1751 | G33: 3.32043546
A34: 31 | B34: 106 | C34: 774.97 | D34: 6.7324e-05 | E34: 0.95485 | F34: 3.1423 | G34: 3.290883385
A35: 31 | B35: 107 | C35: 777.1 | D35: 6.7679e-05 | E35: 0.95353 | F35: 3.111 | G35: 3.262613657
A36: 31 | B36: 108 | C36: 779.17 | D36: 6.8027e-05 | E36: 0.95227 | F36: 3.0812 | G36: 3.235636952
A37: 31 | B37: 109 | C37: 781.2 | D37: 6.837e-05 | E37: 0.95107 | F37: 3.0528 | G37: 3.20985837
A38: 31 | B38: 110 | C38: 783.19 | D38: 6.8707e-05 | E38: 0.94992 | F38: 3.0255 | G38: 3.185005053
A39: 31 | B39: 111 | C39: 785.14 | D39: 6.9039e-05 | E39: 0.94882 | F39: 2.9994 | G39: 3.161189688
A40: 31 | B40: 112 | C40: 787.04 | D40: 6.9366e-05 | E40: 0.94777 | F40: 2.9744 | G40: 3.138314148
A41: 31 | B41: 113 | C41: 788.91 | D41: 6.9689e-05 | E41: 0.94676 | F41: 2.9504 | G41: 3.116312476
A42: 31 | B42: 114 | C42: 790.74 | D42: 7.0006e-05 | E42: 0.9458 | F42: 2.9274 | G42: 3.095157539
A43: 31 | B43: 115 | C43: 792.53 | D43: 7.032e-05 | E43: 0.94487 | F43: 2.9052 | G43: 3.07470869
A44: 31 | B44: 116 | C44: 794.3 | D44: 7.0629e-05 | E44: 0.94398 | F44: 2.8838 | G44: 3.054937605
A45: 31 | B45: 117 | C45: 796.03 | D45: 7.0934e-05 | E45: 0.94312 | F45: 2.8632 | G45: 3.035880906
A46: 31 | B46: 118 | C46: 797.73 | D46: 7.1235e-05 | E46: 0.94229 | F46: 2.8434 | G46: 3.01754237
A47: 31 | B47: 119 | C47: 799.39 | D47: 7.1532e-05 | E47: 0.9415 | F47: 2.8242 | G47: 2.99968136
A48: 31 | B48: 120 | C48: 801.04 | D48: 7.1826e-05 | E48: 0.94073 | F48: 2.8057 | G48: 2.98247106
A49: 31 | B49: 121 | C49: 802.65 | D49: 7.2116e-05 | E49: 0.93999 | F49: 2.7878 | G49: 2.965776232
A50: 31 | B50: 122 | C50: 804.24 | D50: 7.2403e-05 | E50: 0.93928 | F50: 2.7705 | G50: 2.949599693
A51: 31 | B51: 123 | C51: 805.8 | D51: 7.2686e-05 | E51: 0.93859 | F51: 2.7538 | G51: 2.933975431
A52: 31 | B52: 124 | C52: 807.33 | D52: 7.2966e-05 | E52: 0.93793 | F52: 2.7375 | G52: 2.918661307
A53: 31 | B53: 125 | C53: 808.85 | D53: 7.3244e-05 | E53: 0.93729 | F53: 2.7218 | G53: 2.903903808
A54: 31 | B54: 126 | C54: 810.34 | D54: 7.3518e-05 | E54: 0.93667 | F54: 2.7065 | G54: 2.889491496
A55: 31 | B55: 127 | C55: 811.81 | D55: 7.379e-05 | E55: 0.93607 | F55: 2.6917 | G55: 2.875532813
A56: 31 | B56: 128 | C56: 813.25 | D56: 7.4059e-05 | E56: 0.93548 | F56: 2.6773 | G56: 2.861953222
A57: 31 | B57: 129 | C57: 814.68 | D57: 7.4325e-05 | E57: 0.93492 | F57: 2.6633 | G57: 2.848692936
A58: 31 | B58: 130 | C58: 816.09 | D58: 7.4588e-05 | E58: 0.93438 | F58: 2.6498 | G58: 2.835891179
A59: 31 | B59: 131 | C59: 817.47 | D59: 7.4849e-05 | E59: 0.93385 | F59: 2.6365 | G59: 2.823258553
A60: 31 | B60: 132 | C60: 818.84 | D60: 7.5108e-05 | E60: 0.93334 | F60: 2.6237 | G60: 2.811087064
A61: 31 | B61: 133 | C61: 820.19 | D61: 7.5364e-05 | E61: 0.93284 | F61: 2.6112 | G61: 2.79919386
A62: 31 | B62: 134 | C62: 821.53 | D62: 7.5618e-05 | E62: 0.93236 | F62: 2.599 | G62: 2.787549873
A63: 31 | B63: 135 | C63: 822.84 | D63: 7.587e-05 | E63: 0.93189 | F63: 2.5871 | G63: 2.776186031
A64: 31 | B64: 136 | C64: 824.14 | D64: 7.6119e-05 | E64: 0.93144 | F64: 2.5756 | G64: 2.765180795
A65: 31 | B65: 137 | C65: 825.42 | D65: 7.6367e-05 | E65: 0.931 | F65: 2.5643 | G65: 2.754350161
A66: 31 | B66: 138 | C66: 826.69 | D66: 7.6612e-05 | E66: 0.93057 | F66: 2.5533 | G66: 2.743802186
A67: 31 | B67: 139 | C67: 827.94 | D67: 7.6855e-05 | E67: 0.93015 | F67: 2.5425 | G67: =F67/E67 -> 2.733430092
A68: 31 | B68: 140 | C68: 829.18 | D68: 7.7096e-05 | E68: 0.92975 | F68: 2.5321 | G68: 2.723420274
A69: 31 | B69: 141 | C69: 830.4 | D69: 7.7336e-05 | E69: 0.92936 | F69: 2.5218 | G69: 2.713480244
A70: 31 | B70: 142 | C70: 831.61 | D70: 7.7573e-05 | E70: 0.92898 | F70: 2.5118 | G70: 2.703825701
A71: 31 | B71: 143 | C71: 832.8 | D71: 7.7809e-05 | E71: 0.9286 | F71: 2.5021 | G71: 2.694486323
A72: 31 | B72: 144 | C72: 833.98 | D72: 7.8043e-05 | E72: 0.92824 | F72: 2.4925 | G72: 2.685189175
A73: 31 | B73: 145 | C73: 835.15 | D73: 7.8275e-05 | E73: 0.92789 | F73: 2.4832 | G73: 2.676179288
A74: 31 | B74: 146 | C74: 836.31 | D74: 7.8506e-05 | E74: 0.92755 | F74: 2.474 | G74: 2.667241658
A75: 31 | B75: 147 | C75: 837.45 | D75: 7.8735e-05 | E75: 0.92722 | F75: 2.4651 | G75: 2.658592351
A76: 31 | B76: 148 | C76: 838.58 | D76: 7.8962e-05 | E76: 0.92689 | F76: 2.4564 | G76: 2.650152661
A77: 31 | B77: 149 | C77: 839.7 | D77: 7.9188e-05 | E77: 0.92658 | F77: 2.4478 | G77: 2.641757862
A78: 31 | B78: 150 | C78: 840.81 | D78: 7.9412e-05 | E78: 0.92627 | F78: 2.4394 | G78: 2.633573364
A79: 31 | B79: 151 | C79: 841.9 | D79: 7.9635e-05 | E79: 0.92597 | F79: 2.4312 | G79: 2.625571023
A80: 31 | B80: 152 | C80: 842.99 | D80: 7.9856e-05 | E80: 0.92568 | F80: 2.4231 | G80: 2.617643246
A81: 31 | B81: 153 | C81: 844.06 | D81: 8.0076e-05 | E81: 0.9254 | F81: 2.4153 | G81: 2.610006484
A82: 31 | B82: 154 | C82: 845.13 | D82: 8.0294e-05 | E82: 0.92512 | F82: 2.4075 | G82: 2.602365099
A83: 31 | B83: 155 | C83: 846.18 | D83: 8.0511e-05 | E83: 0.92485 | F83: 2.4 | G83: 2.595015408
A84: 31 | B84: 156 | C84: 847.22 | D84: 8.0727e-05 | E84: 0.92459 | F84: 2.3925 | G84: 2.587633438
A85: 31 | B85: 157 | C85: 848.26 | D85: 8.0941e-05 | E85: 0.92433 | F85: 2.3852 | G85: 2.580463687
A86: 31 | B86: 158 | C86: 849.28 | D86: 8.1154e-05 | E86: 0.92408 | F86: 2.3781 | G86: 2.573478487
A87: 31 | B87: 159 | C87: 850.3 | D87: 8.1366e-05 | E87: 0.92384 | F87: 2.3711 | G87: 2.566569969
A88: 31 | B88: 160 | C88: 851.3 | D88: 8.1576e-05 | E88: 0.9236 | F88: 2.3642 | G88: 2.559766133
A89: 31 | B89: 161 | C89: 852.3 | D89: 8.1785e-05 | E89: 0.92337 | F89: 2.3574 | G89: 2.55303941
A90: 31 | B90: 162 | C90: 853.28 | D90: 8.1994e-05 | E90: 0.92314 | F90: 2.3508 | G90: 2.546525987
A91: 31 | B91: 163 | C91: 854.26 | D91: 8.22e-05 | E91: 0.92292 | F91: 2.3442 | G91: 2.539981797
A92: 31 | B92: 164 | C92: 855.23 | D92: 8.2406e-05 | E92: 0.92271 | F92: 2.3378 | G92: 2.533623782
A93: 31 | B93: 165 | C93: 856.2 | D93: 8.2611e-05 | E93: 0.9225 | F93: 2.3315 | G93: 2.527371274
A94: 31 | B94: 166 | C94: 857.15 | D94: 8.2814e-05 | E94: 0.92229 | F94: 2.3253 | G94: 2.521224344
A95: 31 | B95: 167 | C95: 858.1 | D95: 8.3017e-05 | E95: 0.92209 | F95: 2.3192 | G95: 2.515155787
A96: 31 | B96: 168 | C96: 859.03 | D96: 8.3218e-05 | E96: 0.9219 | F96: 2.3133 | G96: 2.509274325
A97: 31 | B97: 169 | C97: 859.96 | D97: 8.3419e-05 | E97: 0.92171 | F97: 2.3074 | G97: 2.503390437
A98: 31 | B98: 170 | C98: 860.89 | D98: 8.3618e-05 | E98: 0.92152 | F98: 2.3016 | G98: 2.49761264
A99: 31 | B99: 171 | C99: 861.8 | D99: 8.3816e-05 | E99: 0.92134 | F99: 2.2959 | G99: 2.491913951
A100: 31 | B100: 172 | C100: 862.71 | D100: 8.4013e-05 | E100: 0.92116 | F100: 2.2903 | G100: 2.486321595
A101: 31 | B101: 173 | C101: 863.61 | D101: 8.421e-05 | E101: 0.92099 | F101: 2.2848 | G101: 2.480808695
A102: 31 | B102: 174 | C102: 864.51 | D102: 8.4405e-05 | E102: 0.92082 | F102: 2.2794 | G102: 2.475402359
A103: 31 | B103: 175 | C103: 865.39 | D103: 8.46e-05 | E103: 0.92066 | F103: 2.274 | G103: 2.469967197
A104: 31 | B104: 176 | C104: 866.27 | D104: 8.4793e-05 | E104: 0.9205 | F104: 2.2688 | G104: 2.46474742
A105: 31 | B105: 177 | C105: 867.15 | D105: 8.4986e-05 | E105: 0.92034 | F105: 2.2636 | G105: 2.459525827
A106: 31 | B106: 178 | C106: 868.01 | D106: 8.5177e-05 | E106: 0.92019 | F106: 2.2585 | G106: 2.454384421
A107: 31 | B107: 179 | C107: 868.87 | D107: 8.5368e-05 | E107: 0.92004 | F107: 2.2535 | G107: 2.449350028
A108: 31 | B108: 180 | C108: 869.73 | D108: 8.5558e-05 | E108: 0.91989 | F108: 2.2485 | G108: 2.444313994
A109: 31 | B109: 181 | C109: 870.58 | D109: 8.5747e-05 | E109: 0.91975 | F109: 2.2437 | G109: 2.439467247
A110: 31 | B110: 182 | C110: 871.42 | D110: 8.5935e-05 | E110: 0.91961 | F110: 2.2389 | G110: 2.434619023
A111: 31 | B111: 183 | C111: 872.25 | D111: 8.6123e-05 | E111: 0.91948 | F111: 2.2341 | G111: 2.429742898
A112: 31 | B112: 184 | C112: 873.08 | D112: 8.6309e-05 | E112: 0.91934 | F112: 2.2295 | G112: 2.425109318
A113: 31 | B113: 185 | C113: 873.91 | D113: 8.6495e-05 | E113: 0.91921 | F113: 2.2249 | G113: 2.420447993
A114: 31 | B114: 186 | C114: 874.73 | D114: 8.668e-05 | E114: 0.91909 | F114: 2.2204 | G114: 2.415867869
A115: 31 | B115: 187 | C115: 875.54 | D115: 8.6865e-05 | E115: 0.91896 | F115: 2.2159 | G115: 2.411312788
A116: 31 | B116: 188 | C116: 876.35 | D116: 8.7048e-05 | E116: 0.91884 | F116: 2.2115 | G116: 2.406839058
A117: 31 | B117: 189 | C117: 877.15 | D117: 8.7231e-05 | E117: 0.91873 | F117: 2.2071 | G117: 2.40233801
A118: 31 | B118: 190 | C118: 877.94 | D118: 8.7413e-05 | E118: 0.91861 | F118: 2.2029 | G118: 2.398079707
A119: 31 | B119: 191 | C119: 878.73 | D119: 8.7594e-05 | E119: 0.9185 | F119: 2.1986 | G119: 2.393685357
A120: 31 | B120: 192 | C120: 879.52 | D120: 8.7775e-05 | E120: 0.91839 | F120: 2.1945 | G120: 2.389507725
A121: 31 | B121: 193 | C121: 880.3 | D121: 8.7955e-05 | E121: 0.91828 | F121: 2.1903 | G121: 2.385220194
A122: 31 | B122: 194 | C122: 881.08 | D122: 8.8134e-05 | E122: 0.91818 | F122: 2.1863 | G122: 2.381123527
A123: 31 | B123: 195 | C123: 881.85 | D123: 8.8312e-05 | E123: 0.91808 | F123: 2.1823 | G123: 2.377025967
A124: 31 | B124: 196 | C124: 882.61 | D124: 8.849e-05 | E124: 0.91798 | F124: 2.1783 | G124: 2.372927515
A125: 31 | B125: 197 | C125: 883.37 | D125: 8.8667e-05 | E125: 0.91788 | F125: 2.1744 | G125: 2.368937116
A126: 31 | B126: 198 | C126: 884.13 | D126: 8.8844e-05 | E126: 0.91779 | F126: 2.1706 | G126: 2.365029037
A127: 31 | B127: 199 | C127: 884.88 | D127: 8.9019e-05 | E127: 0.91769 | F127: 2.1668 | G127: 2.361145921
A128: 31 | B128: 200 | C128: 885.63 | D128: 8.9195e-05 | E128: 0.9176 | F128: 2.163 | G128: 2.357236269
A129: 32 | B129: 74 | C129: 314.99 | D129: 2.3137e-05 | E129: 1.2449 | F129: 14.313 | G129: 11.49730902
A130: 32 | B130: 75 | C130: 365.93 | D130: 2.5773e-05 | E130: 1.4159 | F130: 37.606 | G130: 26.5597853
A131: 32 | B131: 76 | C131: 557.5 | D131: 3.998e-05 | E131: 1.3429 | F131: 34.664 | G131: =F131/E131 -> 25.81279321
A132: 32 | B132: 77 | C132: 601.73 | D132: 4.4386e-05 | E132: 1.1876 | F132: 15.078 | G132: 12.696194
A133: 32 | B133: 78 | C133: 624.18 | D133: 4.6815e-05 | E133: 1.1373 | F133: 10.785 | G133: 9.48298602
A134: 32 | B134: 79 | C134: 639.87 | D134: 4.8596e-05 | E134: 1.1085 | F134: 8.7905 | G134: 7.930085701
A135: 32 | B135: 80 | C135: 652.12 | D135: 5.0036e-05 | E135: 1.088 | F135: 7.6094 | G135: 6.993933824
A136: 32 | B136: 81 | C136: 662.26 | D136: 5.1262e-05 | E136: 1.072 | F136: 6.8169 | G136: 6.359048507
A137: 32 | B137: 82 | C137: 670.95 | D137: 5.2339e-05 | E137: 1.0589 | F137: 6.243 | G137: 5.895740863
A138: 32 | B138: 83 | C138: 678.59 | D138: 5.3306e-05 | E138: 1.0478 | F138: 5.8051 | G138: 5.540274862
A139: 32 | B139: 84 | C139: 685.42 | D139: 5.4187e-05 | E139: 1.0383 | F139: 5.4584 | G139: 5.257054801
A140: 32 | B140: 85 | C140: 691.62 | D140: 5.4999e-05 | E140: 1.0299 | F140: 5.1759 | G140: 5.025633557
A141: 32 | B141: 86 | C141: 697.31 | D141: 5.5756e-05 | E141: 1.0226 | F141: 4.9404 | G141: 4.831214551
A142: 32 | B142: 87 | C142: 702.56 | D142: 5.6466e-05 | E142: 1.016 | F142: 4.7407 | G142: 4.666043307
A143: 32 | B143: 88 | C143: 707.45 | D143: 5.7136e-05 | E143: 1.0102 | F143: 4.5687 | G143: 4.522569788
A144: 32 | B144: 89 | C144: 712.04 | D144: 5.7772e-05 | E144: 1.0049 | F144: 4.4188 | G144: 4.397253458
A145: 32 | B145: 90 | C145: 716.36 | D145: 5.8378e-05 | E145: 1.0001 | F145: 4.2866 | G145: 4.286171383
A146: 32 | B146: 91 | C146: 720.44 | D146: 5.8957e-05 | E146: 0.99572 | F146: 4.1691 | G146: 4.187020448
A147: 32 | B147: 92 | C147: 724.32 | D147: 5.9513e-05 | E147: 0.99173 | F147: 4.0637 | G147: 4.097587045
A148: 32 | B148: 93 | C148: 728.01 | D148: 6.0048e-05 | E148: 0.98806 | F148: 3.9685 | G148: 4.01645649
A149: 32 | B149: 94 | C149: 731.53 | D149: 6.0564e-05 | E149: 0.98468 | F149: 3.8821 | G149: 3.942499086
A150: 32 | B150: 95 | C150: 734.91 | D150: 6.1063e-05 | E150: 0.98155 | F150: 3.8031 | G150: 3.874586114
A151: 32 | B151: 96 | C151: 738.15 | D151: 6.1547e-05 | E151: 0.97865 | F151: 3.7306 | G151: 3.811985899
A152: 32 | B152: 97 | C152: 741.27 | D152: 6.2015e-05 | E152: 0.97596 | F152: 3.6637 | G152: 3.753944834
A153: 32 | B153: 98 | C153: 744.28 | D153: 6.2471e-05 | E153: 0.97344 | F153: 3.6018 | G153: 3.700073964
A154: 32 | B154: 99 | C154: 747.18 | D154: 6.2915e-05 | E154: 0.97109 | F154: 3.5442 | G154: 3.649713209
A155: 32 | B155: 100 | C155: 749.98 | D155: 6.3347e-05 | E155: 0.96888 | F155: 3.4905 | G155: 3.602613327
A156: 32 | B156: 101 | C156: 752.7 | D156: 6.3768e-05 | E156: 0.96681 | F156: 3.4403 | G156: 3.558403409
A157: 32 | B157: 102 | C157: 755.33 | D157: 6.418e-05 | E157: 0.96486 | F157: 3.3932 | G157: 3.516779636
A158: 32 | B158: 103 | C158: 757.88 | D158: 6.4582e-05 | E158: 0.96302 | F158: 3.3489 | G158: 3.477497871
A159: 32 | B159: 104 | C159: 760.36 | D159: 6.4976e-05 | E159: 0.96129 | F159: 3.3072 | G159: 3.440376993
A160: 32 | B160: 105 | C160: 762.78 | D160: 6.5362e-05 | E160: 0.95965 | F160: 3.2677 | G160: 3.405095608
A161: 32 | B161: 106 | C161: 765.12 | D161: 6.574e-05 | E161: 0.95809 | F161: 3.2304 | G161: 3.371708295
A162: 32 | B162: 107 | C162: 767.41 | D162: 6.6111e-05 | E162: 0.95661 | F162: 3.195 | G162: 3.339919089
A163: 32 | B163: 108 | C163: 769.65 | D163: 6.6475e-05 | E163: 0.95521 | F163: 3.1613 | G163: 3.309534029
A164: 32 | B164: 109 | C164: 771.82 | D164: 6.6832e-05 | E164: 0.95387 | F164: 3.1293 | G164: 3.280635726
A165: 32 | B165: 110 | C165: 773.95 | D165: 6.7184e-05 | E165: 0.9526 | F165: 3.0987 | G165: 3.252886836
A166: 32 | B166: 111 | C166: 776.03 | D166: 6.7529e-05 | E166: 0.95138 | F166: 3.0695 | G166: 3.226365911
A167: 32 | B167: 112 | C167: 778.07 | D167: 6.7869e-05 | E167: 0.95022 | F167: 3.0417 | G167: 3.201048178
A168: 32 | B168: 113 | C168: 780.06 | D168: 6.8203e-05 | E168: 0.94911 | F168: 3.015 | G168: 3.17666024
A169: 32 | B169: 114 | C169: 782 | D169: 6.8532e-05 | E169: 0.94804 | F169: 2.9894 | G169: 3.153242479
A170: 32 | B170: 115 | C170: 783.91 | D170: 6.8857e-05 | E170: 0.94703 | F170: 2.9649 | G170: 3.130735035
A171: 32 | B171: 116 | C171: 785.78 | D171: 6.9176e-05 | E171: 0.94605 | F171: 2.9413 | G171: 3.109032292
A172: 32 | B172: 117 | C172: 787.62 | D172: 6.9492e-05 | E172: 0.94511 | F172: 2.9186 | G172: 3.088106146
A173: 32 | B173: 118 | C173: 789.42 | D173: 6.9803e-05 | E173: 0.94421 | F173: 2.8968 | G173: 3.067961576
A174: 32 | B174: 119 | C174: 791.19 | D174: 7.0109e-05 | E174: 0.94334 | F174: 2.8758 | G174: 3.048529692
A175: 32 | B175: 120 | C175: 792.92 | D175: 7.0412e-05 | E175: 0.94251 | F175: 2.8555 | G175: 3.029676078
A176: 32 | B176: 121 | C176: 794.62 | D176: 7.0711e-05 | E176: 0.94171 | F176: 2.836 | G176: 3.011542832
A177: 32 | B177: 122 | C177: 796.3 | D177: 7.1006e-05 | E177: 0.94093 | F177: 2.8171 | G177: 2.993952791
A178: 32 | B178: 123 | C178: 797.95 | D178: 7.1298e-05 | E178: 0.94019 | F178: 2.7989 | G178: 2.976951467
A179: 32 | B179: 124 | C179: 799.56 | D179: 7.1586e-05 | E179: 0.93947 | F179: 2.7812 | G179: 2.960392562
A180: 32 | B180: 125 | C180: 801.16 | D180: 7.1871e-05 | E180: 0.93877 | F180: 2.7641 | G180: 2.944384674
A181: 32 | B181: 126 | C181: 802.73 | D181: 7.2153e-05 | E181: 0.9381 | F181: 2.7476 | G181: 2.928898838
A182: 32 | B182: 127 | C182: 804.27 | D182: 7.2432e-05 | E182: 0.93745 | F182: 2.7316 | G182: 2.913862073
A183: 32 | B183: 128 | C183: 805.79 | D183: 7.2708e-05 | E183: 0.93682 | F183: 2.716 | G183: 2.899169531
A184: 32 | B184: 129 | C184: 807.29 | D184: 7.298e-05 | E184: 0.93622 | F184: 2.7009 | G184: 2.884898849
A185: 32 | B185: 130 | C185: 808.76 | D185: 7.325e-05 | E185: 0.93563 | F185: 2.6863 | G185: 2.871113581
A186: 32 | B186: 131 | C186: 810.21 | D186: 7.3518e-05 | E186: 0.93506 | F186: 2.6721 | G186: 2.857677582
A187: 32 | B187: 132 | C187: 811.65 | D187: 7.3782e-05 | E187: 0.93451 | F187: 2.6583 | G187: 2.844592353
A188: 32 | B188: 133 | C188: 813.06 | D188: 7.4044e-05 | E188: 0.93398 | F188: 2.6448 | G188: 2.831752286
A189: 32 | B189: 134 | C189: 814.45 | D189: 7.4304e-05 | E189: 0.93346 | F189: 2.6317 | G189: 2.819295953
A190: 32 | B190: 135 | C190: 815.83 | D190: 7.4561e-05 | E190: 0.93296 | F190: 2.619 | G190: 2.807194306
A191: 32 | B191: 136 | C191: 817.18 | D191: 7.4816e-05 | E191: 0.93247 | F191: 2.6066 | G191: 2.795371433
A192: 32 | B192: 137 | C192: 818.52 | D192: 7.5069e-05 | E192: 0.932 | F192: 2.5946 | G192: 2.783905579
A193: 32 | B193: 138 | C193: 819.85 | D193: 7.5319e-05 | E193: 0.93154 | F193: 2.5828 | G193: 2.772613092
A194: 32 | B194: 139 | C194: 821.15 | D194: 7.5567e-05 | E194: 0.93109 | F194: 2.5713 | G194: 2.761601993
A195: 32 | B195: 140 | C195: 822.44 | D195: 7.5813e-05 | E195: 0.93066 | F195: 2.5602 | G195: =F195/E195 -> 2.750950938
A196: 32 | B196: 141 | C196: 823.71 | D196: 7.6057e-05 | E196: 0.93024 | F196: 2.5493 | G196: 2.740475576
A197: 32 | B197: 142 | C197: 824.97 | D197: 7.6299e-05 | E197: 0.92983 | F197: 2.5386 | G197: 2.730176484
A198: 32 | B198: 143 | C198: 826.21 | D198: 7.6539e-05 | E198: 0.92943 | F198: 2.5282 | G198: 2.72016182
A199: 32 | B199: 144 | C199: 827.44 | D199: 7.6778e-05 | E199: 0.92904 | F199: 2.5181 | G199: 2.710432274
A200: 32 | B200: 145 | C200: 828.66 | D200: 7.7014e-05 | E200: 0.92867 | F200: 2.5081 | G200: 2.700744075
... 2341 more rows

Sheet Dados de Entrada
A1: Variável | B1: Valor | C1: Unidade
A2: Tipo de Cálculo do Modelo
A3: Tipo de Hidrogênio | B3: Musgo | C3: "Musgo com CCS" ou "Musgo"
A4: Tipo de cálculo | B4: Cálculo Individual | C4: "Análise de Sensibilidade" ou "Cálculo Individual"
A5: Variável 1 da análise de Sensibilidade | B5: Custo da Tonelada de Carbono
A6: Valor Inicial | B6: 0 | C6: =VLOOKUP($B$5,$A:$C,3,0) -> US$/Toneladas de CO2eq
A7: Valor Final | B7: 100 | C7: =VLOOKUP($B$5,$A:$C,3,0) -> US$/Toneladas de CO2eq
A8: Espaçamento entre os valores | B8: 10 | C8: =VLOOKUP($B$5,$A:$C,3,0) -> US$/Toneladas de CO2eq
A9: Variável 2 da análise de Sensibilidade | B9: Custo do Etanol
A10: Valor Inicial | B10: 0.1 | C10: =VLOOKUP($B$9,$A:$C,3,0) -> US$/Litro
A11: Valor Final | B11: 1 | C11: =VLOOKUP($B$9,$A:$C,3,0) -> US$/Litro
A12: Espaçamento entre os valores | B12: 0.1 | C12: =VLOOKUP($B$9,$A:$C,3,0) -> US$/Litro
A13: Unidade do Preço do Hidrogênio
A14: Unidade Monetária | B14: Dólares | C14: "Reais" ou "Dólares"
A15: Taxa de Câmbio | B15: 5.5 | C15: R$/US$
A16: Unidade Volumétrica do Hidrogênio | B16: kg | C16: "kg" ou "MMBtu" ou "m³ eq. de Gás Natural" ou "Litro eq. de Etanol" ou "Litro eq. de Diesel" ou "kg eq. de GLP" ou "kg eq. de Óleo Combustível"
A17: Vida Útil do Projeto
A18: Ano de Início do projeto | B18: 2026 | C18: ano
A19: PerÍodo de Investimento | B19: 2 | C19: número de anos
A20: Período de operação | B20: 20 | C20: número de anos
A21: Ano Final do Fluxo de caixa | B21: =B18+B19+B20-1 -> 2047 | C21: ="Maximo possivel"&" "&B18+40-1 -> Maximo possivel 2065
A22: Imposto de Renda
A23: Imposto de Renda de Pessoa Juridica | B23: 0 | C23: percentual
A24: Contribuição Social sobre Lucro Líquido | B24: 0 | C24: percentual
A25: Remuneração do Capital
A26: Custo Médio Ponderado de Capital (WACC) | B26: 0.1 | C26: percentual
A27: Produção de Hidrogênio
A28: Capacidade instalada de Produção de Hidrogênio | B28: 900 | C28: Toneladas de H2 por ano
A29: Utilização da capacidade instalada (fator de operação médio) | B29: 0.9 | C29: percentual
A30: Produção efetiva de Hidrogênio | B30: =B28*B29 -> 810 | C30: Toneladas de H2 por ano
A31: CAPEX do Sistema de Reforma a Vapor do Etanol
A32: Tipo de Capex utilizado no modelo | B32: Capex Sugerido pelo Modelo | C32: "Capex Sugerido pelo Modelo" ou "Capex inserido pelo Usuário"
A33: Capex Sugerido pelo Modelo | B33: =(38314*($B$28)^0.7678) -> 7105994.936 | C33: US$
A34: Capex Inserido Manualmente pelo Usuário (Reforma a Vapor do Etanol) | B34: 0 | C34: US$
A35: Capex utilizado no modelo | B35: =IF(B32="Capex inserido pelo Usuário",B34,B33) -> 7105994.936 | C35: US$
A36: Custo dos Principais Insumos
A37: Custo do Gás Natural | B37: 0.307 | C37: US$/m³
A38: Custo da Energia Elétrica | B38: 0.034 | C38: US$/kWh
A39: Custo da Água | B39: 0.001 | C39: US$/Litro
A40: Custo do Etanol | B40: 0.554 | C40: US$/Litro
A41: OPEX do Sistema de Reforma a Vapor do Etanol
A42: Consumo Específico de Energia Elétrica do sistema de Reforma a Vapor | B42: 2.35 | C42: kWh/kg H2
A43: Consumo Específico de Água do sistema de Reforma a Vapor | B43: 30 | C43: Litro/kg H2
A44: Consumo Específico de Etanol do sistema de Reforma a Vapor | B44: 7.65 | C44: Litro Etanol/kg H2
A45: Outros custos operacionais do sistema de Reforma a Vapor do Etanol | B45: 0.04 | C45: Percentual do Capex
A46: OPEX total do sistema de Reforma a Vapor do Etanol | B46: =(B30*10^3)*SUMPRODUCT(B42:B44,B38:B40)+B35*B45 -> 3806119.797 | C46: US$ por ano
A47: Custo do Carbono
A48: Custo da Tonelada de Carbono | B48: 9.09 | C48: US$/Toneladas de CO2eq
A49: Combustível a ser substituido | B49: Gás Natural | C49: "Gás Natural" ou "Óleo combustível" ou "GLP" ou "Diesel B (B15)" ou "Eletricidade"
A50: Imposto incidente sobre as receitas com a venda de créditos de carbono | B50: 0.15 | C50: percentual
A51: Receitas com a venda de créditos de carbono | B51: =(VLOOKUP($B$49,Premissas!$A$2:$J$9,8,0)-Premissas!$I$3)/10^6*(Premissas!E3*Premissas!D14/10^3)*(B30*10^3)*B48 -> 21534.75698 | C51: US$ por ano
A52: Capacidade de Captura de Carbono
A53: CO2 dísponivel para Captura | B53: =$B$30*$B$44*Premissas!$E$4*Premissas!$D$14*(Premissas!$G$4+Premissas!$H$4)/10^6 -> 9516.246058 | C53: Toneladas de CO2eq por ano
A54: Meta de Captura de CO2 | B54: 0 | C54: percentual
A55: Capacidade instalada de Captura de CO2 | B55: =B53*B54 -> 0 | C55: Toneladas de CO2eq por ano
A56: Capacidade de utilização da Captura de CO2 | B56: 0.95 | C56: percentual
A57: Captura Efetiva de CO2 | B57: =B55*B56 -> 0 | C57: Toneladas de CO2eq por ano
A58: CAPEX do Sistema de Captura de Carbono
A59: Tipo de CAPEX do sistema de Captura de Carbono utilizado no modelo | B59: Capex Sugerido pelo Modelo | C59: "Capex Sugerido pelo Modelo" ou "Capex inserido pelo Usuário"
A60: CAPEX do sistema de Captura de Carbono Sugerido pelo Modelo | B60: =(238836*($B$55)^0.6) -> 0 | C60: US$
A61: Capex Inserido Manualmente pelo Usuário (Captura de Carbono) | B61: 0 | C61: US$
A62: CAPEX do sistema de Captura de Carbono utilizado no modelo | B62: =IF(B59="Capex inserido pelo Usuário",B61,B60) -> 0 | C62: US$
A63: OPEX do Sistema de Captura de Carbono
A64: Consumo Específico de Gás Natural do sistema de Captura de Carbono | B64: 35.31 | C64: m³ GN/Toneladas de CO2eq
A65: Consumo Específico de Energia Elétrica do sistema de Captura de Carbono | B65: 155 | C65: kWh/Toneladas de CO2eq
A66: Outros custos operacionais do sistema de Captura de Carbono | B66: 0.025 | C66: Percentual do Capex do CCS
A67: OPEX total do sistema de Captura de Carbono | B67: =(B57)*SUMPRODUCT(B64:B65,B37:B38)+B62*B66 -> 0 | C67: US$
A68: Transporte de CO2
A69: Gradiente de perda de pressão do duto | B69: 0.1 | C69: Bars/km
A70: Pressão final do duto no ponto de saída | B70: 100 | C70: =_xlfn.CONCAT("Bars (Pressão deve estar entre ",Premissas!B50-B69*B73/2," e ",Premissas!B55-B69*B73," Bars)") -> Bars (Pressão deve estar entre 68 e 188 Bars)
A71: Pressão inicial do duto no ponto de entrada | B71: =B70+B69*B73 -> 112 | C71: Bars
A72: Pressão média de operação do Duto | B72: =ROUND(B70+(B69*B73/2),0) -> 106 | C72: Bars
A73: Distância do Gasoduto | B73: 120 | C73: =_xlfn.CONCAT("km (Distância máxima permitida de ",(Premissas!B55-B70)/B69," km)") -> km (Distância máxima permitida de 1000 km)
A74: Temperatura média de operação do gasoduto | B74: 31 | C74: Celsus
A75: Diferença de elevação (cotas) entre os pontos de entrada e saída | B75: 0 | C75: Metros
A76: Comprimento equivalente de perdas de carga localizadas | B76: 0 | C76: Metros
A77: Diametro do gasoduto recomendado | B77: =(Premissas!B54*( (B55*10^3/Premissas!$B$41/365/24/60/60) / (Premissas!B31*Premissas!B32*Premissas!B33*Premissas!B49/(Premissas!B50*10^5)* ((((B71^2-B70^2)*10^10)-((((Premissas!$B$42/Premissas!$B$47)*($B$72*10^5)^2)/((($B$72*10^5*Premissas!B42)/(Premissas!B46*Premissas!B49* (SUMIFS('Densidade e Viscosidade do CO2'!$C:$C,'Densidade e Viscosidade do CO2'!$A:$A,$B$74,'Densidade e Viscosidade do CO2'!$B:$B,$B$72)))) *Premissas!B48*(B74+273.15)))*2*Premissas!B51*(B75)))/((((Premissas!$B$42/Premissas!$B$47)^Premissas!B34)*(B73*10^3+B76)*(($B$72*10^5*Premissas!B42)/(Premissas!B46*Premissas!B49* (SUMIFS('Densidade e Viscosidade do CO2'!$C:$C,'Densidade e Viscosidade do CO2'!$A:$A,$B$74,'Densidade e Viscosidade do CO2'!$B:$B,$B$72)) ))*(B74+273.15)))) ^Premissas!B35) )^(1/Premissas!B36)) -> 0 | C77: Polegadas
A78: Diametro do gasoduto utilizado | B78: =EVEN(B77) -> 0 | C78: Polegadas
A79: Velocidade do fluido | B79: =(4* ((B55*10^3/365/24/60/60)/ (SUMIFS('Densidade e Viscosidade do CO2'!$C:$C,'Densidade e Viscosidade do CO2'!$A:$A,$B$74,'Densidade e Viscosidade do CO2'!$B:$B,$B$72)))) /(PI()*((B78/Premissas!B54)^2)) ->  | C79: m/s
A80: Velocidade de erosao | B80: =(120/SQRT(SUMIFS('Densidade e Viscosidade do CO2'!$C:$C,'Densidade e Viscosidade do CO2'!$A:$A,$B$74,'Densidade e Viscosidade do CO2'!$B:$B,$B$72))) -> 4.310610681 | C80: m/s
A81: Validação da Velocidade do fluido | B81: =B79/B80 ->  | C81: =IF(B81<=50%,_xlfn.CONCAT("Validado: a velocidade do fluido é ",ROUND(B81*100,2),"% da velocidade de erosão, estando dentro da faixa recomendada (limite ≤ 50%, alvo ≤ 40%)"),_xlfn.CONCAT("Atenção risco de erosão: a velocidade do fluido é ",ROUND(B81*100,2),"% da velocidade de erosão, estando acima do limite de 50%")) -> 
A82: Reynolds (Re) | B82: =((SUMIFS('Densidade e Viscosidade do CO2'!$C:$C,'Densidade e Viscosidade do CO2'!$A:$A,$B$74,'Densidade e Viscosidade do CO2'!$B:$B,$B$72))*B79*(B78/Premissas!B54))/(SUMIFS('Densidade e Viscosidade do CO2'!$D:$D,'Densidade e Viscosidade do CO2'!$A:$A,$B$74,'Densidade e Viscosidade do CO2'!$B:$B,$B$72)) ->  | C82: =IF(AND(B82>=IF(Premissas!C29="Panhandle-B",4,0.04)*10^6,B82<=IF(Premissas!C29="Panhandle-B",40,10^10)*10^6),_xlfn.CONCAT(Premissas!$C$29," validado: Re = ",ROUND(B82/10^6,2),"×10^6 está dentro da faixa recomendada (",IF(Premissas!C29="Panhandle-B","entre 4 e 40 ×10^6)","maior do que 0,04 ×10^6)")),_xlfn.CONCAT("Atenção: Re = ",ROUND(B82/10^6,2),"×10^6 está fora da faixa recomendada (",,IF(Premissas!C29="Panhandle-B","entre 4 e 40 ×10^6)","maior do que 0,04 ×10^6)"),", podendo tornar o modelo ",Premissas!$C$29," inadequado para representar o escoamento")) -> 
A83: CAPEX do Gasoduto de CO2
A84: Custo do duto por metro-polegada | B84: 100 | C84: US$/(metro.pol)
A85: Capex do total do Gasoduto | B85: =B78*B84*(B73*10^3) -> 0 | C85: US$
A86: OPEX do Gasoduto de CO2
A87: Pressão disponível do CO2 a montante do ponto de entrada do Gasoduto | B87: 60 | C87: =_xlfn.CONCAT("Bars (Pressão máxima permitida de ",B71," Bars)") -> Bars (Pressão máxima permitida de 112 Bars)
A88: Potência teórica do compressor | B88: =MAX(0, (B57*10^3/365/24/60/60/Premissas!B42)* ((($B$72*10^5*Premissas!B42)/(Premissas!B46*Premissas!B49* (SUMIFS('Densidade e Viscosidade do CO2'!$C:$C,'Densidade e Viscosidade do CO2'!$A:$A,$B$74,'Densidade e Viscosidade do CO2'!$B:$B,$B$72)))))* Premissas!B46*(273.15+B74)* Premissas!B53* (Premissas!B52/(Premissas!B52-1)) * ((B71/B87)^((Premissas!B52-1)/(Premissas!B52*Premissas!B53))-1) /10^3 ) -> 0 | C88: kW
A89: Rendimento energético de compresssão a eletricidade | B89: 0.85 | C89: Percentual
A90: Consumo anual de energia do compressor | B90: =B88*365*24/B89 -> 0 | C90: kWh/ano
A91: Custo operacional do compressor | B91: =B90*B38 -> 0 | C91: US$ por ano
A92: Outros custos operacionais do Gasoduto por percentual do Capex | B92: 0.01 | C92: Percentual do Capex
A93: Outros custos operacionais do Gasoduto | B93: =B85*B92 -> 0 | C93: US$ por ano
A94: OPEX total do Gasoduto | B94: =B91+B93 -> 0 | C94: US$ por ano
A95: Estocagem de CO2
A96: Capacidade de Estocagem necessária para a vida útil do projeto | B96: =MIN(MAX($B$57*$B$20/10^6,15),200) -> 15 | C96: Milhões de Toneladas de CO2eq (limitado entre 15 e 200 Mt de CO2)
A97: Localização da Estocagem | B97: Terra | C97: "Terra" ou "Mar"
A98: Tipo de Formação Geológica | B98: Campo Depletado de Óleo e Gás | C98: "Campo Depletado de Óleo e Gás" ou "Aquífero Salino"
A99: Infraestrutura Prévia | B99: Com poços legados | C99: "Com poços legados" ou "Sem poços legados"
A100: Custo adicional de break-even da Estocagem de CO2 | B100: =IFERROR(_xlfn.IFS(AND($B$97="Terra",$B$98="Campo Depletado de Óleo e Gás",$B$99="Com poços legados"),715.0548*$B$96^-1.1729, AND($B$97="Terra",$B$98="Campo Depletado de Óleo e Gás",$B$99="Sem poços legados"),2411.6869*$B$96^-1.4008, AND($B$97="Mar",$B$98="Campo Depletado de Óleo e Gás",$B$99="Com poços legados"),451.2798*$B$96^-0.9439, AND($B$97="Mar",$B$98="Campo Depletado de Óleo e Gás",$B$99="Sem poços legados"),826.1094*$B$96^-0.9785, AND($B$97="Terra",$B$98="Aquífero Salino"),798.4847*$B$96^-1.0658, AND($B$97="Mar",$B$98="Aquífero Salino"),482.3333*$B$96^-0.7507),0) *($B$57/($B$30*10^3)) -> 0 | C100: US$ por kg de H2

Sheet Fluxo de Caixa
A1: Fluxo de Caixa em Dólares | B1: ='Dados de Entrada'!$B$18 -> 2026 | C1: =IFERROR(IF(B$1+1<'Dados de Entrada'!$B$18+'Dados de Entrada'!$B$20+'Dados de Entrada'!$B$19,B$1+1,""),"") -> 2027 | D1: =IFERROR(IF(C$1+1<'Dados de Entrada'!$B$18+'Dados de Entrada'!$B$20+'Dados de Entrada'!$B$19,C$1+1,""),"") -> 2028 | E1: =IFERROR(IF(D$1+1<'Dados de Entrada'!$B$18+'Dados de Entrada'!$B$20+'Dados de Entrada'!$B$19,D$1+1,""),"") -> 2029 | F1: =IFERROR(IF(E$1+1<'Dados de Entrada'!$B$18+'Dados de Entrada'!$B$20+'Dados de Entrada'!$B$19,E$1+1,""),"") -> 2030 | G1: =IFERROR(IF(F$1+1<'Dados de Entrada'!$B$18+'Dados de Entrada'!$B$20+'Dados de Entrada'!$B$19,F$1+1,""),"") -> 2031 | H1: =IFERROR(IF(G$1+1<'Dados de Entrada'!$B$18+'Dados de Entrada'!$B$20+'Dados de Entrada'!$B$19,G$1+1,""),"") -> 2032 | I1: =IFERROR(IF(H$1+1<'Dados de Entrada'!$B$18+'Dados de Entrada'!$B$20+'Dados de Entrada'!$B$19,H$1+1,""),"") -> 2033 | J1: =IFERROR(IF(I$1+1<'Dados de Entrada'!$B$18+'Dados de Entrada'!$B$20+'Dados de Entrada'!$B$19,I$1+1,""),"") -> 2034 | K1: =IFERROR(IF(J$1+1<'Dados de Entrada'!$B$18+'Dados de Entrada'!$B$20+'Dados de Entrada'!$B$19,J$1+1,""),"") -> 2035 | L1: =IFERROR(IF(K$1+1<'Dados de Entrada'!$B$18+'Dados de Entrada'!$B$20+'Dados de Entrada'!$B$19,K$1+1,""),"") -> 2036 | M1: =IFERROR(IF(L$1+1<'Dados de Entrada'!$B$18+'Dados de Entrada'!$B$20+'Dados de Entrada'!$B$19,L$1+1,""),"") -> 2037 | N1: =IFERROR(IF(M$1+1<'Dados de Entrada'!$B$18+'Dados de Entrada'!$B$20+'Dados de Entrada'!$B$19,M$1+1,""),"") -> 2038 | O1: =IFERROR(IF(N$1+1<'Dados de Entrada'!$B$18+'Dados de Entrada'!$B$20+'Dados de Entrada'!$B$19,N$1+1,""),"") -> 2039 | P1: =IFERROR(IF(O$1+1<'Dados de Entrada'!$B$18+'Dados de Entrada'!$B$20+'Dados de Entrada'!$B$19,O$1+1,""),"") -> 2040 | Q1: =IFERROR(IF(P$1+1<'Dados de Entrada'!$B$18+'Dados de Entrada'!$B$20+'Dados de Entrada'!$B$19,P$1+1,""),"") -> 2041 | R1: =IFERROR(IF(Q$1+1<'Dados de Entrada'!$B$18+'Dados de Entrada'!$B$20+'Dados de Entrada'!$B$19,Q$1+1,""),"") -> 2042 | S1: =IFERROR(IF(R$1+1<'Dados de Entrada'!$B$18+'Dados de Entrada'!$B$20+'Dados de Entrada'!$B$19,R$1+1,""),"") -> 2043 | T1: =IFERROR(IF(S$1+1<'Dados de Entrada'!$B$18+'Dados de Entrada'!$B$20+'Dados de Entrada'!$B$19,S$1+1,""),"") -> 2044 | U1: =IFERROR(IF(T$1+1<'Dados de Entrada'!$B$18+'Dados de Entrada'!$B$20+'Dados de Entrada'!$B$19,T$1+1,""),"") -> 2045 | V1: =IFERROR(IF(U$1+1<'Dados de Entrada'!$B$18+'Dados de Entrada'!$B$20+'Dados de Entrada'!$B$19,U$1+1,""),"") -> 2046 | W1: =IFERROR(IF(V$1+1<'Dados de Entrada'!$B$18+'Dados de Entrada'!$B$20+'Dados de Entrada'!$B$19,V$1+1,""),"") -> 2047 | X1: =IFERROR(IF(W$1+1<'Dados de Entrada'!$B$18+'Dados de Entrada'!$B$20+'Dados de Entrada'!$B$19,W$1+1,""),"") ->  | Y1: =IFERROR(IF(X$1+1<'Dados de Entrada'!$B$18+'Dados de Entrada'!$B$20+'Dados de Entrada'!$B$19,X$1+1,""),"") ->  | Z1: =IFERROR(IF(Y$1+1<'Dados de Entrada'!$B$18+'Dados de Entrada'!$B$20+'Dados de Entrada'!$B$19,Y$1+1,""),"") ->  | AA1: =IFERROR(IF(Z$1+1<'Dados de Entrada'!$B$18+'Dados de Entrada'!$B$20+'Dados de Entrada'!$B$19,Z$1+1,""),"") ->  | AB1: =IFERROR(IF(AA$1+1<'Dados de Entrada'!$B$18+'Dados de Entrada'!$B$20+'Dados de Entrada'!$B$19,AA$1+1,""),"") ->  | AC1: =IFERROR(IF(AB$1+1<'Dados de Entrada'!$B$18+'Dados de Entrada'!$B$20+'Dados de Entrada'!$B$19,AB$1+1,""),"") ->  | AD1: =IFERROR(IF(AC$1+1<'Dados de Entrada'!$B$18+'Dados de Entrada'!$B$20+'Dados de Entrada'!$B$19,AC$1+1,""),"") ->  | AE1: =IFERROR(IF(AD$1+1<'Dados de Entrada'!$B$18+'Dados de Entrada'!$B$20+'Dados de Entrada'!$B$19,AD$1+1,""),"") ->  | AF1: =IFERROR(IF(AE$1+1<'Dados de Entrada'!$B$18+'Dados de Entrada'!$B$20+'Dados de Entrada'!$B$19,AE$1+1,""),"") ->  | AG1: =IFERROR(IF(AF$1+1<'Dados de Entrada'!$B$18+'Dados de Entrada'!$B$20+'Dados de Entrada'!$B$19,AF$1+1,""),"") ->  | AH1: =IFERROR(IF(AG$1+1<'Dados de Entrada'!$B$18+'Dados de Entrada'!$B$20+'Dados de Entrada'!$B$19,AG$1+1,""),"") ->  | AI1: =IFERROR(IF(AH$1+1<'Dados de Entrada'!$B$18+'Dados de Entrada'!$B$20+'Dados de Entrada'!$B$19,AH$1+1,""),"") ->  | AJ1: =IFERROR(IF(AI$1+1<'Dados de Entrada'!$B$18+'Dados de Entrada'!$B$20+'Dados de Entrada'!$B$19,AI$1+1,""),"") ->  | AK1: =IFERROR(IF(AJ$1+1<'Dados de Entrada'!$B$18+'Dados de Entrada'!$B$20+'Dados de Entrada'!$B$19,AJ$1+1,""),"") ->  | AL1: =IFERROR(IF(AK$1+1<'Dados de Entrada'!$B$18+'Dados de Entrada'!$B$20+'Dados de Entrada'!$B$19,AK$1+1,""),"") ->  | AM1: =IFERROR(IF(AL$1+1<'Dados de Entrada'!$B$18+'Dados de Entrada'!$B$20+'Dados de Entrada'!$B$19,AL$1+1,""),"") ->  | AN1: =IFERROR(IF(AM$1+1<'Dados de Entrada'!$B$18+'Dados de Entrada'!$B$20+'Dados de Entrada'!$B$19,AM$1+1,""),"") ->  | AO1: =IFERROR(IF(AN$1+1<'Dados de Entrada'!$B$18+'Dados de Entrada'!$B$20+'Dados de Entrada'!$B$19,AN$1+1,""),"") -> 
A2: Quantidade Produzida em quilos (0) | B2: =IF(AND(B$1>='Dados de Entrada'!$B$19+'Dados de Entrada'!$B$18,B$1<='Dados de Entrada'!$B$21),'Dados de Entrada'!$B$30*1000,IF(B$1<'Dados de Entrada'!$B$19+'Dados de Entrada'!$B$18,0,"")) -> 0 | C2: =IF(AND(C$1>='Dados de Entrada'!$B$19+'Dados de Entrada'!$B$18,C$1<='Dados de Entrada'!$B$21),'Dados de Entrada'!$B$30*1000,IF(C$1<'Dados de Entrada'!$B$19+'Dados de Entrada'!$B$18,0,"")) -> 0 | D2: =IF(AND(D$1>='Dados de Entrada'!$B$19+'Dados de Entrada'!$B$18,D$1<='Dados de Entrada'!$B$21),'Dados de Entrada'!$B$30*1000,IF(D$1<'Dados de Entrada'!$B$19+'Dados de Entrada'!$B$18,0,"")) -> 810000 | E2: =IF(AND(E$1>='Dados de Entrada'!$B$19+'Dados de Entrada'!$B$18,E$1<='Dados de Entrada'!$B$21),'Dados de Entrada'!$B$30*1000,IF(E$1<'Dados de Entrada'!$B$19+'Dados de Entrada'!$B$18,0,"")) -> 810000 | F2: =IF(AND(F$1>='Dados de Entrada'!$B$19+'Dados de Entrada'!$B$18,F$1<='Dados de Entrada'!$B$21),'Dados de Entrada'!$B$30*1000,IF(F$1<'Dados de Entrada'!$B$19+'Dados de Entrada'!$B$18,0,"")) -> 810000 | G2: =IF(AND(G$1>='Dados de Entrada'!$B$19+'Dados de Entrada'!$B$18,G$1<='Dados de Entrada'!$B$21),'Dados de Entrada'!$B$30*1000,IF(G$1<'Dados de Entrada'!$B$19+'Dados de Entrada'!$B$18,0,"")) -> 810000 | H2: =IF(AND(H$1>='Dados de Entrada'!$B$19+'Dados de Entrada'!$B$18,H$1<='Dados de Entrada'!$B$21),'Dados de Entrada'!$B$30*1000,IF(H$1<'Dados de Entrada'!$B$19+'Dados de Entrada'!$B$18,0,"")) -> 810000 | I2: =IF(AND(I$1>='Dados de Entrada'!$B$19+'Dados de Entrada'!$B$18,I$1<='Dados de Entrada'!$B$21),'Dados de Entrada'!$B$30*1000,IF(I$1<'Dados de Entrada'!$B$19+'Dados de Entrada'!$B$18,0,"")) -> 810000 | J2: =IF(AND(J$1>='Dados de Entrada'!$B$19+'Dados de Entrada'!$B$18,J$1<='Dados de Entrada'!$B$21),'Dados de Entrada'!$B$30*1000,IF(J$1<'Dados de Entrada'!$B$19+'Dados de Entrada'!$B$18,0,"")) -> 810000 | K2: =IF(AND(K$1>='Dados de Entrada'!$B$19+'Dados de Entrada'!$B$18,K$1<='Dados de Entrada'!$B$21),'Dados de Entrada'!$B$30*1000,IF(K$1<'Dados de Entrada'!$B$19+'Dados de Entrada'!$B$18,0,"")) -> 810000 | L2: =IF(AND(L$1>='Dados de Entrada'!$B$19+'Dados de Entrada'!$B$18,L$1<='Dados de Entrada'!$B$21),'Dados de Entrada'!$B$30*1000,IF(L$1<'Dados de Entrada'!$B$19+'Dados de Entrada'!$B$18,0,"")) -> 810000 | M2: =IF(AND(M$1>='Dados de Entrada'!$B$19+'Dados de Entrada'!$B$18,M$1<='Dados de Entrada'!$B$21),'Dados de Entrada'!$B$30*1000,IF(M$1<'Dados de Entrada'!$B$19+'Dados de Entrada'!$B$18,0,"")) -> 810000 | N2: =IF(AND(N$1>='Dados de Entrada'!$B$19+'Dados de Entrada'!$B$18,N$1<='Dados de Entrada'!$B$21),'Dados de Entrada'!$B$30*1000,IF(N$1<'Dados de Entrada'!$B$19+'Dados de Entrada'!$B$18,0,"")) -> 810000 | O2: =IF(AND(O$1>='Dados de Entrada'!$B$19+'Dados de Entrada'!$B$18,O$1<='Dados de Entrada'!$B$21),'Dados de Entrada'!$B$30*1000,IF(O$1<'Dados de Entrada'!$B$19+'Dados de Entrada'!$B$18,0,"")) -> 810000 | P2: =IF(AND(P$1>='Dados de Entrada'!$B$19+'Dados de Entrada'!$B$18,P$1<='Dados de Entrada'!$B$21),'Dados de Entrada'!$B$30*1000,IF(P$1<'Dados de Entrada'!$B$19+'Dados de Entrada'!$B$18,0,"")) -> 810000 | Q2: =IF(AND(Q$1>='Dados de Entrada'!$B$19+'Dados de Entrada'!$B$18,Q$1<='Dados de Entrada'!$B$21),'Dados de Entrada'!$B$30*1000,IF(Q$1<'Dados de Entrada'!$B$19+'Dados de Entrada'!$B$18,0,"")) -> 810000 | R2: =IF(AND(R$1>='Dados de Entrada'!$B$19+'Dados de Entrada'!$B$18,R$1<='Dados de Entrada'!$B$21),'Dados de Entrada'!$B$30*1000,IF(R$1<'Dados de Entrada'!$B$19+'Dados de Entrada'!$B$18,0,"")) -> 810000 | S2: =IF(AND(S$1>='Dados de Entrada'!$B$19+'Dados de Entrada'!$B$18,S$1<='Dados de Entrada'!$B$21),'Dados de Entrada'!$B$30*1000,IF(S$1<'Dados de Entrada'!$B$19+'Dados de Entrada'!$B$18,0,"")) -> 810000 | T2: =IF(AND(T$1>='Dados de Entrada'!$B$19+'Dados de Entrada'!$B$18,T$1<='Dados de Entrada'!$B$21),'Dados de Entrada'!$B$30*1000,IF(T$1<'Dados de Entrada'!$B$19+'Dados de Entrada'!$B$18,0,"")) -> 810000 | U2: =IF(AND(U$1>='Dados de Entrada'!$B$19+'Dados de Entrada'!$B$18,U$1<='Dados de Entrada'!$B$21),'Dados de Entrada'!$B$30*1000,IF(U$1<'Dados de Entrada'!$B$19+'Dados de Entrada'!$B$18,0,"")) -> 810000 | V2: =IF(AND(V$1>='Dados de Entrada'!$B$19+'Dados de Entrada'!$B$18,V$1<='Dados de Entrada'!$B$21),'Dados de Entrada'!$B$30*1000,IF(V$1<'Dados de Entrada'!$B$19+'Dados de Entrada'!$B$18,0,"")) -> 810000 | W2: =IF(AND(W$1>='Dados de Entrada'!$B$19+'Dados de Entrada'!$B$18,W$1<='Dados de Entrada'!$B$21),'Dados de Entrada'!$B$30*1000,IF(W$1<'Dados de Entrada'!$B$19+'Dados de Entrada'!$B$18,0,"")) -> 810000 | X2: =IF(AND(X$1>='Dados de Entrada'!$B$19+'Dados de Entrada'!$B$18,X$1<='Dados de Entrada'!$B$21),'Dados de Entrada'!$B$30*1000,IF(X$1<'Dados de Entrada'!$B$19+'Dados de Entrada'!$B$18,0,"")) ->  | Y2: =IF(AND(Y$1>='Dados de Entrada'!$B$19+'Dados de Entrada'!$B$18,Y$1<='Dados de Entrada'!$B$21),'Dados de Entrada'!$B$30*1000,IF(Y$1<'Dados de Entrada'!$B$19+'Dados de Entrada'!$B$18,0,"")) ->  | Z2: =IF(AND(Z$1>='Dados de Entrada'!$B$19+'Dados de Entrada'!$B$18,Z$1<='Dados de Entrada'!$B$21),'Dados de Entrada'!$B$30*1000,IF(Z$1<'Dados de Entrada'!$B$19+'Dados de Entrada'!$B$18,0,"")) ->  | AA2: =IF(AND(AA$1>='Dados de Entrada'!$B$19+'Dados de Entrada'!$B$18,AA$1<='Dados de Entrada'!$B$21),'Dados de Entrada'!$B$30*1000,IF(AA$1<'Dados de Entrada'!$B$19+'Dados de Entrada'!$B$18,0,"")) ->  | AB2: =IF(AND(AB$1>='Dados de Entrada'!$B$19+'Dados de Entrada'!$B$18,AB$1<='Dados de Entrada'!$B$21),'Dados de Entrada'!$B$30*1000,IF(AB$1<'Dados de Entrada'!$B$19+'Dados de Entrada'!$B$18,0,"")) ->  | AC2: =IF(AND(AC$1>='Dados de Entrada'!$B$19+'Dados de Entrada'!$B$18,AC$1<='Dados de Entrada'!$B$21),'Dados de Entrada'!$B$30*1000,IF(AC$1<'Dados de Entrada'!$B$19+'Dados de Entrada'!$B$18,0,"")) ->  | AD2: =IF(AND(AD$1>='Dados de Entrada'!$B$19+'Dados de Entrada'!$B$18,AD$1<='Dados de Entrada'!$B$21),'Dados de Entrada'!$B$30*1000,IF(AD$1<'Dados de Entrada'!$B$19+'Dados de Entrada'!$B$18,0,"")) ->  | AE2: =IF(AND(AE$1>='Dados de Entrada'!$B$19+'Dados de Entrada'!$B$18,AE$1<='Dados de Entrada'!$B$21),'Dados de Entrada'!$B$30*1000,IF(AE$1<'Dados de Entrada'!$B$19+'Dados de Entrada'!$B$18,0,"")) ->  | AF2: =IF(AND(AF$1>='Dados de Entrada'!$B$19+'Dados de Entrada'!$B$18,AF$1<='Dados de Entrada'!$B$21),'Dados de Entrada'!$B$30*1000,IF(AF$1<'Dados de Entrada'!$B$19+'Dados de Entrada'!$B$18,0,"")) ->  | AG2: =IF(AND(AG$1>='Dados de Entrada'!$B$19+'Dados de Entrada'!$B$18,AG$1<='Dados de Entrada'!$B$21),'Dados de Entrada'!$B$30*1000,IF(AG$1<'Dados de Entrada'!$B$19+'Dados de Entrada'!$B$18,0,"")) ->  | AH2: =IF(AND(AH$1>='Dados de Entrada'!$B$19+'Dados de Entrada'!$B$18,AH$1<='Dados de Entrada'!$B$21),'Dados de Entrada'!$B$30*1000,IF(AH$1<'Dados de Entrada'!$B$19+'Dados de Entrada'!$B$18,0,"")) ->  | AI2: =IF(AND(AI$1>='Dados de Entrada'!$B$19+'Dados de Entrada'!$B$18,AI$1<='Dados de Entrada'!$B$21),'Dados de Entrada'!$B$30*1000,IF(AI$1<'Dados de Entrada'!$B$19+'Dados de Entrada'!$B$18,0,"")) ->  | AJ2: =IF(AND(AJ$1>='Dados de Entrada'!$B$19+'Dados de Entrada'!$B$18,AJ$1<='Dados de Entrada'!$B$21),'Dados de Entrada'!$B$30*1000,IF(AJ$1<'Dados de Entrada'!$B$19+'Dados de Entrada'!$B$18,0,"")) ->  | AK2: =IF(AND(AK$1>='Dados de Entrada'!$B$19+'Dados de Entrada'!$B$18,AK$1<='Dados de Entrada'!$B$21),'Dados de Entrada'!$B$30*1000,IF(AK$1<'Dados de Entrada'!$B$19+'Dados de Entrada'!$B$18,0,"")) ->  | AL2: =IF(AND(AL$1>='Dados de Entrada'!$B$19+'Dados de Entrada'!$B$18,AL$1<='Dados de Entrada'!$B$21),'Dados de Entrada'!$B$30*1000,IF(AL$1<'Dados de Entrada'!$B$19+'Dados de Entrada'!$B$18,0,"")) ->  | AM2: =IF(AND(AM$1>='Dados de Entrada'!$B$19+'Dados de Entrada'!$B$18,AM$1<='Dados de Entrada'!$B$21),'Dados de Entrada'!$B$30*1000,IF(AM$1<'Dados de Entrada'!$B$19+'Dados de Entrada'!$B$18,0,"")) ->  | AN2: =IF(AND(AN$1>='Dados de Entrada'!$B$19+'Dados de Entrada'!$B$18,AN$1<='Dados de Entrada'!$B$21),'Dados de Entrada'!$B$30*1000,IF(AN$1<'Dados de Entrada'!$B$19+'Dados de Entrada'!$B$18,0,"")) ->  | AO2: =IF(AND(AO$1>='Dados de Entrada'!$B$19+'Dados de Entrada'!$B$18,AO$1<='Dados de Entrada'!$B$21),'Dados de Entrada'!$B$30*1000,IF(AO$1<'Dados de Entrada'!$B$19+'Dados de Entrada'!$B$18,0,"")) -> 
A3: Receita Bruta (1) = (0) * Preço | B3: =IF(AND(B$1>='Dados de Entrada'!$B$19+'Dados de Entrada'!$B$18,B$1<='Dados de Entrada'!$B$21),$B$40*B2,IF(B$1<'Dados de Entrada'!$B$19+'Dados de Entrada'!$B$18,0,"")) -> 0 | C3: =IF(AND(C$1>='Dados de Entrada'!$B$19+'Dados de Entrada'!$B$18,C$1<='Dados de Entrada'!$B$21),$B$40*C2,IF(C$1<'Dados de Entrada'!$B$19+'Dados de Entrada'!$B$18,0,"")) -> 0 | D3: =IF(AND(D$1>='Dados de Entrada'!$B$19+'Dados de Entrada'!$B$18,D$1<='Dados de Entrada'!$B$21),$B$40*D2,IF(D$1<'Dados de Entrada'!$B$19+'Dados de Entrada'!$B$18,0,"")) -> 4664216.128 | E3: =IF(AND(E$1>='Dados de Entrada'!$B$19+'Dados de Entrada'!$B$18,E$1<='Dados de Entrada'!$B$21),$B$40*E2,IF(E$1<'Dados de Entrada'!$B$19+'Dados de Entrada'!$B$18,0,"")) -> 4664216.128 | F3: =IF(AND(F$1>='Dados de Entrada'!$B$19+'Dados de Entrada'!$B$18,F$1<='Dados de Entrada'!$B$21),$B$40*F2,IF(F$1<'Dados de Entrada'!$B$19+'Dados de Entrada'!$B$18,0,"")) -> 4664216.128 | G3: =IF(AND(G$1>='Dados de Entrada'!$B$19+'Dados de Entrada'!$B$18,G$1<='Dados de Entrada'!$B$21),$B$40*G2,IF(G$1<'Dados de Entrada'!$B$19+'Dados de Entrada'!$B$18,0,"")) -> 4664216.128 | H3: =IF(AND(H$1>='Dados de Entrada'!$B$19+'Dados de Entrada'!$B$18,H$1<='Dados de Entrada'!$B$21),$B$40*H2,IF(H$1<'Dados de Entrada'!$B$19+'Dados de Entrada'!$B$18,0,"")) -> 4664216.128 | I3: =IF(AND(I$1>='Dados de Entrada'!$B$19+'Dados de Entrada'!$B$18,I$1<='Dados de Entrada'!$B$21),$B$40*I2,IF(I$1<'Dados de Entrada'!$B$19+'Dados de Entrada'!$B$18,0,"")) -> 4664216.128 | J3: =IF(AND(J$1>='Dados de Entrada'!$B$19+'Dados de Entrada'!$B$18,J$1<='Dados de Entrada'!$B$21),$B$40*J2,IF(J$1<'Dados de Entrada'!$B$19+'Dados de Entrada'!$B$18,0,"")) -> 4664216.128 | K3: =IF(AND(K$1>='Dados de Entrada'!$B$19+'Dados de Entrada'!$B$18,K$1<='Dados de Entrada'!$B$21),$B$40*K2,IF(K$1<'Dados de Entrada'!$B$19+'Dados de Entrada'!$B$18,0,"")) -> 4664216.128 | L3: =IF(AND(L$1>='Dados de Entrada'!$B$19+'Dados de Entrada'!$B$18,L$1<='Dados de Entrada'!$B$21),$B$40*L2,IF(L$1<'Dados de Entrada'!$B$19+'Dados de Entrada'!$B$18,0,"")) -> 4664216.128 | M3: =IF(AND(M$1>='Dados de Entrada'!$B$19+'Dados de Entrada'!$B$18,M$1<='Dados de Entrada'!$B$21),$B$40*M2,IF(M$1<'Dados de Entrada'!$B$19+'Dados de Entrada'!$B$18,0,"")) -> 4664216.128 | N3: =IF(AND(N$1>='Dados de Entrada'!$B$19+'Dados de Entrada'!$B$18,N$1<='Dados de Entrada'!$B$21),$B$40*N2,IF(N$1<'Dados de Entrada'!$B$19+'Dados de Entrada'!$B$18,0,"")) -> 4664216.128 | O3: =IF(AND(O$1>='Dados de Entrada'!$B$19+'Dados de Entrada'!$B$18,O$1<='Dados de Entrada'!$B$21),$B$40*O2,IF(O$1<'Dados de Entrada'!$B$19+'Dados de Entrada'!$B$18,0,"")) -> 4664216.128 | P3: =IF(AND(P$1>='Dados de Entrada'!$B$19+'Dados de Entrada'!$B$18,P$1<='Dados de Entrada'!$B$21),$B$40*P2,IF(P$1<'Dados de Entrada'!$B$19+'Dados de Entrada'!$B$18,0,"")) -> 4664216.128 | Q3: =IF(AND(Q$1>='Dados de Entrada'!$B$19+'Dados de Entrada'!$B$18,Q$1<='Dados de Entrada'!$B$21),$B$40*Q2,IF(Q$1<'Dados de Entrada'!$B$19+'Dados de Entrada'!$B$18,0,"")) -> 4664216.128 | R3: =IF(AND(R$1>='Dados de Entrada'!$B$19+'Dados de Entrada'!$B$18,R$1<='Dados de Entrada'!$B$21),$B$40*R2,IF(R$1<'Dados de Entrada'!$B$19+'Dados de Entrada'!$B$18,0,"")) -> 4664216.128 | S3: =IF(AND(S$1>='Dados de Entrada'!$B$19+'Dados de Entrada'!$B$18,S$1<='Dados de Entrada'!$B$21),$B$40*S2,IF(S$1<'Dados de Entrada'!$B$19+'Dados de Entrada'!$B$18,0,"")) -> 4664216.128 | T3: =IF(AND(T$1>='Dados de Entrada'!$B$19+'Dados de Entrada'!$B$18,T$1<='Dados de Entrada'!$B$21),$B$40*T2,IF(T$1<'Dados de Entrada'!$B$19+'Dados de Entrada'!$B$18,0,"")) -> 4664216.128 | U3: =IF(AND(U$1>='Dados de Entrada'!$B$19+'Dados de Entrada'!$B$18,U$1<='Dados de Entrada'!$B$21),$B$40*U2,IF(U$1<'Dados de Entrada'!$B$19+'Dados de Entrada'!$B$18,0,"")) -> 4664216.128 | V3: =IF(AND(V$1>='Dados de Entrada'!$B$19+'Dados de Entrada'!$B$18,V$1<='Dados de Entrada'!$B$21),$B$40*V2,IF(V$1<'Dados de Entrada'!$B$19+'Dados de Entrada'!$B$18,0,"")) -> 4664216.128 | W3: =IF(AND(W$1>='Dados de Entrada'!$B$19+'Dados de Entrada'!$B$18,W$1<='Dados de Entrada'!$B$21),$B$40*W2,IF(W$1<'Dados de Entrada'!$B$19+'Dados de Entrada'!$B$18,0,"")) -> 4664216.128 | X3: =IF(AND(X$1>='Dados de Entrada'!$B$19+'Dados de Entrada'!$B$18,X$1<='Dados de Entrada'!$B$21),$B$40*X2,IF(X$1<'Dados de Entrada'!$B$19+'Dados de Entrada'!$B$18,0,"")) ->  | Y3: =IF(AND(Y$1>='Dados de Entrada'!$B$19+'Dados de Entrada'!$B$18,Y$1<='Dados de Entrada'!$B$21),$B$40*Y2,IF(Y$1<'Dados de Entrada'!$B$19+'Dados de Entrada'!$B$18,0,"")) ->  | Z3: =IF(AND(Z$1>='Dados de Entrada'!$B$19+'Dados de Entrada'!$B$18,Z$1<='Dados de Entrada'!$B$21),$B$40*Z2,IF(Z$1<'Dados de Entrada'!$B$19+'Dados de Entrada'!$B$18,0,"")) ->  | AA3: =IF(AND(AA$1>='Dados de Entrada'!$B$19+'Dados de Entrada'!$B$18,AA$1<='Dados de Entrada'!$B$21),$B$40*AA2,IF(AA$1<'Dados de Entrada'!$B$19+'Dados de Entrada'!$B$18,0,"")) ->  | AB3: =IF(AND(AB$1>='Dados de Entrada'!$B$19+'Dados de Entrada'!$B$18,AB$1<='Dados de Entrada'!$B$21),$B$40*AB2,IF(AB$1<'Dados de Entrada'!$B$19+'Dados de Entrada'!$B$18,0,"")) ->  | AC3: =IF(AND(AC$1>='Dados de Entrada'!$B$19+'Dados de Entrada'!$B$18,AC$1<='Dados de Entrada'!$B$21),$B$40*AC2,IF(AC$1<'Dados de Entrada'!$B$19+'Dados de Entrada'!$B$18,0,"")) ->  | AD3: =IF(AND(AD$1>='Dados de Entrada'!$B$19+'Dados de Entrada'!$B$18,AD$1<='Dados de Entrada'!$B$21),$B$40*AD2,IF(AD$1<'Dados de Entrada'!$B$19+'Dados de Entrada'!$B$18,0,"")) ->  | AE3: =IF(AND(AE$1>='Dados de Entrada'!$B$19+'Dados de Entrada'!$B$18,AE$1<='Dados de Entrada'!$B$21),$B$40*AE2,IF(AE$1<'Dados de Entrada'!$B$19+'Dados de Entrada'!$B$18,0,"")) ->  | AF3: =IF(AND(AF$1>='Dados de Entrada'!$B$19+'Dados de Entrada'!$B$18,AF$1<='Dados de Entrada'!$B$21),$B$40*AF2,IF(AF$1<'Dados de Entrada'!$B$19+'Dados de Entrada'!$B$18,0,"")) ->  | AG3: =IF(AND(AG$1>='Dados de Entrada'!$B$19+'Dados de Entrada'!$B$18,AG$1<='Dados de Entrada'!$B$21),$B$40*AG2,IF(AG$1<'Dados de Entrada'!$B$19+'Dados de Entrada'!$B$18,0,"")) ->  | AH3: =IF(AND(AH$1>='Dados de Entrada'!$B$19+'Dados de Entrada'!$B$18,AH$1<='Dados de Entrada'!$B$21),$B$40*AH2,IF(AH$1<'Dados de Entrada'!$B$19+'Dados de Entrada'!$B$18,0,"")) ->  | AI3: =IF(AND(AI$1>='Dados de Entrada'!$B$19+'Dados de Entrada'!$B$18,AI$1<='Dados de Entrada'!$B$21),$B$40*AI2,IF(AI$1<'Dados de Entrada'!$B$19+'Dados de Entrada'!$B$18,0,"")) ->  | AJ3: =IF(AND(AJ$1>='Dados de Entrada'!$B$19+'Dados de Entrada'!$B$18,AJ$1<='Dados de Entrada'!$B$21),$B$40*AJ2,IF(AJ$1<'Dados de Entrada'!$B$19+'Dados de Entrada'!$B$18,0,"")) ->  | AK3: =IF(AND(AK$1>='Dados de Entrada'!$B$19+'Dados de Entrada'!$B$18,AK$1<='Dados de Entrada'!$B$21),$B$40*AK2,IF(AK$1<'Dados de Entrada'!$B$19+'Dados de Entrada'!$B$18,0,"")) ->  | AL3: =IF(AND(AL$1>='Dados de Entrada'!$B$19+'Dados de Entrada'!$B$18,AL$1<='Dados de Entrada'!$B$21),$B$40*AL2,IF(AL$1<'Dados de Entrada'!$B$19+'Dados de Entrada'!$B$18,0,"")) ->  | AM3: =IF(AND(AM$1>='Dados de Entrada'!$B$19+'Dados de Entrada'!$B$18,AM$1<='Dados de Entrada'!$B$21),$B$40*AM2,IF(AM$1<'Dados de Entrada'!$B$19+'Dados de Entrada'!$B$18,0,"")) ->  | AN3: =IF(AND(AN$1>='Dados de Entrada'!$B$19+'Dados de Entrada'!$B$18,AN$1<='Dados de Entrada'!$B$21),$B$40*AN2,IF(AN$1<'Dados de Entrada'!$B$19+'Dados de Entrada'!$B$18,0,"")) ->  | AO3: =IF(AND(AO$1>='Dados de Entrada'!$B$19+'Dados de Entrada'!$B$18,AO$1<='Dados de Entrada'!$B$21),$B$40*AO2,IF(AO$1<'Dados de Entrada'!$B$19+'Dados de Entrada'!$B$18,0,"")) -> 
A4: Opex Total (2) = (2.1) + (2.2) + (2.3) | B4: =IF(AND(B$1>='Dados de Entrada'!$B$19+'Dados de Entrada'!$B$18,B$1<='Dados de Entrada'!$B$21),B5+B10,IF(B$1<'Dados de Entrada'!$B$19+'Dados de Entrada'!$B$18,0,"")) -> 0 | C4: =IF(AND(C$1>='Dados de Entrada'!$B$19+'Dados de Entrada'!$B$18,C$1<='Dados de Entrada'!$B$21),C5+C10,IF(C$1<'Dados de Entrada'!$B$19+'Dados de Entrada'!$B$18,0,"")) -> 0 | D4: =IF(AND(D$1>='Dados de Entrada'!$B$19+'Dados de Entrada'!$B$18,D$1<='Dados de Entrada'!$B$21),D5+D10,IF(D$1<'Dados de Entrada'!$B$19+'Dados de Entrada'!$B$18,0,"")) -> 3806119.797 | E4: =IF(AND(E$1>='Dados de Entrada'!$B$19+'Dados de Entrada'!$B$18,E$1<='Dados de Entrada'!$B$21),E5+E10,IF(E$1<'Dados de Entrada'!$B$19+'Dados de Entrada'!$B$18,0,"")) -> 3806119.797 | F4: =IF(AND(F$1>='Dados de Entrada'!$B$19+'Dados de Entrada'!$B$18,F$1<='Dados de Entrada'!$B$21),F5+F10,IF(F$1<'Dados de Entrada'!$B$19+'Dados de Entrada'!$B$18,0,"")) -> 3806119.797 | G4: =IF(AND(G$1>='Dados de Entrada'!$B$19+'Dados de Entrada'!$B$18,G$1<='Dados de Entrada'!$B$21),G5+G10,IF(G$1<'Dados de Entrada'!$B$19+'Dados de Entrada'!$B$18,0,"")) -> 3806119.797 | H4: =IF(AND(H$1>='Dados de Entrada'!$B$19+'Dados de Entrada'!$B$18,H$1<='Dados de Entrada'!$B$21),H5+H10,IF(H$1<'Dados de Entrada'!$B$19+'Dados de Entrada'!$B$18,0,"")) -> 3806119.797 | I4: =IF(AND(I$1>='Dados de Entrada'!$B$19+'Dados de Entrada'!$B$18,I$1<='Dados de Entrada'!$B$21),I5+I10,IF(I$1<'Dados de Entrada'!$B$19+'Dados de Entrada'!$B$18,0,"")) -> 3806119.797 | J4: =IF(AND(J$1>='Dados de Entrada'!$B$19+'Dados de Entrada'!$B$18,J$1<='Dados de Entrada'!$B$21),J5+J10,IF(J$1<'Dados de Entrada'!$B$19+'Dados de Entrada'!$B$18,0,"")) -> 3806119.797 | K4: =IF(AND(K$1>='Dados de Entrada'!$B$19+'Dados de Entrada'!$B$18,K$1<='Dados de Entrada'!$B$21),K5+K10,IF(K$1<'Dados de Entrada'!$B$19+'Dados de Entrada'!$B$18,0,"")) -> 3806119.797 | L4: =IF(AND(L$1>='Dados de Entrada'!$B$19+'Dados de Entrada'!$B$18,L$1<='Dados de Entrada'!$B$21),L5+L10,IF(L$1<'Dados de Entrada'!$B$19+'Dados de Entrada'!$B$18,0,"")) -> 3806119.797 | M4: =IF(AND(M$1>='Dados de Entrada'!$B$19+'Dados de Entrada'!$B$18,M$1<='Dados de Entrada'!$B$21),M5+M10,IF(M$1<'Dados de Entrada'!$B$19+'Dados de Entrada'!$B$18,0,"")) -> 3806119.797 | N4: =IF(AND(N$1>='Dados de Entrada'!$B$19+'Dados de Entrada'!$B$18,N$1<='Dados de Entrada'!$B$21),N5+N10,IF(N$1<'Dados de Entrada'!$B$19+'Dados de Entrada'!$B$18,0,"")) -> 3806119.797 | O4: =IF(AND(O$1>='Dados de Entrada'!$B$19+'Dados de Entrada'!$B$18,O$1<='Dados de Entrada'!$B$21),O5+O10,IF(O$1<'Dados de Entrada'!$B$19+'Dados de Entrada'!$B$18,0,"")) -> 3806119.797 | P4: =IF(AND(P$1>='Dados de Entrada'!$B$19+'Dados de Entrada'!$B$18,P$1<='Dados de Entrada'!$B$21),P5+P10,IF(P$1<'Dados de Entrada'!$B$19+'Dados de Entrada'!$B$18,0,"")) -> 3806119.797 | Q4: =IF(AND(Q$1>='Dados de Entrada'!$B$19+'Dados de Entrada'!$B$18,Q$1<='Dados de Entrada'!$B$21),Q5+Q10,IF(Q$1<'Dados de Entrada'!$B$19+'Dados de Entrada'!$B$18,0,"")) -> 3806119.797 | R4: =IF(AND(R$1>='Dados de Entrada'!$B$19+'Dados de Entrada'!$B$18,R$1<='Dados de Entrada'!$B$21),R5+R10,IF(R$1<'Dados de Entrada'!$B$19+'Dados de Entrada'!$B$18,0,"")) -> 3806119.797 | S4: =IF(AND(S$1>='Dados de Entrada'!$B$19+'Dados de Entrada'!$B$18,S$1<='Dados de Entrada'!$B$21),S5+S10,IF(S$1<'Dados de Entrada'!$B$19+'Dados de Entrada'!$B$18,0,"")) -> 3806119.797 | T4: =IF(AND(T$1>='Dados de Entrada'!$B$19+'Dados de Entrada'!$B$18,T$1<='Dados de Entrada'!$B$21),T5+T10,IF(T$1<'Dados de Entrada'!$B$19+'Dados de Entrada'!$B$18,0,"")) -> 3806119.797 | U4: =IF(AND(U$1>='Dados de Entrada'!$B$19+'Dados de Entrada'!$B$18,U$1<='Dados de Entrada'!$B$21),U5+U10,IF(U$1<'Dados de Entrada'!$B$19+'Dados de Entrada'!$B$18,0,"")) -> 3806119.797 | V4: =IF(AND(V$1>='Dados de Entrada'!$B$19+'Dados de Entrada'!$B$18,V$1<='Dados de Entrada'!$B$21),V5+V10,IF(V$1<'Dados de Entrada'!$B$19+'Dados de Entrada'!$B$18,0,"")) -> 3806119.797 | W4: =IF(AND(W$1>='Dados de Entrada'!$B$19+'Dados de Entrada'!$B$18,W$1<='Dados de Entrada'!$B$21),W5+W10,IF(W$1<'Dados de Entrada'!$B$19+'Dados de Entrada'!$B$18,0,"")) -> 3806119.797 | X4: =IF(AND(X$1>='Dados de Entrada'!$B$19+'Dados de Entrada'!$B$18,X$1<='Dados de Entrada'!$B$21),X5+X10,IF(X$1<'Dados de Entrada'!$B$19+'Dados de Entrada'!$B$18,0,"")) ->  | Y4: =IF(AND(Y$1>='Dados de Entrada'!$B$19+'Dados de Entrada'!$B$18,Y$1<='Dados de Entrada'!$B$21),Y5+Y10,IF(Y$1<'Dados de Entrada'!$B$19+'Dados de Entrada'!$B$18,0,"")) ->  | Z4: =IF(AND(Z$1>='Dados de Entrada'!$B$19+'Dados de Entrada'!$B$18,Z$1<='Dados de Entrada'!$B$21),Z5+Z10,IF(Z$1<'Dados de Entrada'!$B$19+'Dados de Entrada'!$B$18,0,"")) ->  | AA4: =IF(AND(AA$1>='Dados de Entrada'!$B$19+'Dados de Entrada'!$B$18,AA$1<='Dados de Entrada'!$B$21),AA5+AA10,IF(AA$1<'Dados de Entrada'!$B$19+'Dados de Entrada'!$B$18,0,"")) ->  | AB4: =IF(AND(AB$1>='Dados de Entrada'!$B$19+'Dados de Entrada'!$B$18,AB$1<='Dados de Entrada'!$B$21),AB5+AB10,IF(AB$1<'Dados de Entrada'!$B$19+'Dados de Entrada'!$B$18,0,"")) ->  | AC4: =IF(AND(AC$1>='Dados de Entrada'!$B$19+'Dados de Entrada'!$B$18,AC$1<='Dados de Entrada'!$B$21),AC5+AC10,IF(AC$1<'Dados de Entrada'!$B$19+'Dados de Entrada'!$B$18,0,"")) ->  | AD4: =IF(AND(AD$1>='Dados de Entrada'!$B$19+'Dados de Entrada'!$B$18,AD$1<='Dados de Entrada'!$B$21),AD5+AD10,IF(AD$1<'Dados de Entrada'!$B$19+'Dados de Entrada'!$B$18,0,"")) ->  | AE4: =IF(AND(AE$1>='Dados de Entrada'!$B$19+'Dados de Entrada'!$B$18,AE$1<='Dados de Entrada'!$B$21),AE5+AE10,IF(AE$1<'Dados de Entrada'!$B$19+'Dados de Entrada'!$B$18,0,"")) ->  | AF4: =IF(AND(AF$1>='Dados de Entrada'!$B$19+'Dados de Entrada'!$B$18,AF$1<='Dados de Entrada'!$B$21),AF5+AF10,IF(AF$1<'Dados de Entrada'!$B$19+'Dados de Entrada'!$B$18,0,"")) ->  | AG4: =IF(AND(AG$1>='Dados de Entrada'!$B$19+'Dados de Entrada'!$B$18,AG$1<='Dados de Entrada'!$B$21),AG5+AG10,IF(AG$1<'Dados de Entrada'!$B$19+'Dados de Entrada'!$B$18,0,"")) ->  | AH4: =IF(AND(AH$1>='Dados de Entrada'!$B$19+'Dados de Entrada'!$B$18,AH$1<='Dados de Entrada'!$B$21),AH5+AH10,IF(AH$1<'Dados de Entrada'!$B$19+'Dados de Entrada'!$B$18,0,"")) ->  | AI4: =IF(AND(AI$1>='Dados de Entrada'!$B$19+'Dados de Entrada'!$B$18,AI$1<='Dados de Entrada'!$B$21),AI5+AI10,IF(AI$1<'Dados de Entrada'!$B$19+'Dados de Entrada'!$B$18,0,"")) ->  | AJ4: =IF(AND(AJ$1>='Dados de Entrada'!$B$19+'Dados de Entrada'!$B$18,AJ$1<='Dados de Entrada'!$B$21),AJ5+AJ10,IF(AJ$1<'Dados de Entrada'!$B$19+'Dados de Entrada'!$B$18,0,"")) ->  | AK4: =IF(AND(AK$1>='Dados de Entrada'!$B$19+'Dados de Entrada'!$B$18,AK$1<='Dados de Entrada'!$B$21),AK5+AK10,IF(AK$1<'Dados de Entrada'!$B$19+'Dados de Entrada'!$B$18,0,"")) ->  | AL4: =IF(AND(AL$1>='Dados de Entrada'!$B$19+'Dados de Entrada'!$B$18,AL$1<='Dados de Entrada'!$B$21),AL5+AL10,IF(AL$1<'Dados de Entrada'!$B$19+'Dados de Entrada'!$B$18,0,"")) ->  | AM4: =IF(AND(AM$1>='Dados de Entrada'!$B$19+'Dados de Entrada'!$B$18,AM$1<='Dados de Entrada'!$B$21),AM5+AM10,IF(AM$1<'Dados de Entrada'!$B$19+'Dados de Entrada'!$B$18,0,"")) ->  | AN4: =IF(AND(AN$1>='Dados de Entrada'!$B$19+'Dados de Entrada'!$B$18,AN$1<='Dados de Entrada'!$B$21),AN5+AN10,IF(AN$1<'Dados de Entrada'!$B$19+'Dados de Entrada'!$B$18,0,"")) ->  | AO4: =IF(AND(AO$1>='Dados de Entrada'!$B$19+'Dados de Entrada'!$B$18,AO$1<='Dados de Entrada'!$B$21),AO5+AO10,IF(AO$1<'Dados de Entrada'!$B$19+'Dados de Entrada'!$B$18,0,"")) -> 
A5: Opex da Produção (2.1) = (2.1.1) + (2.1.2) + (2.1.3) + (2.1.4) | B5: =IF(AND(B$1>='Dados de Entrada'!$B$19+'Dados de Entrada'!$B$18,B$1<='Dados de Entrada'!$B$21),SUM(B6:B9),IF(B$1<'Dados de Entrada'!$B$19+'Dados de Entrada'!$B$18,0,"")) -> 0 | C5: =IF(AND(C$1>='Dados de Entrada'!$B$19+'Dados de Entrada'!$B$18,C$1<='Dados de Entrada'!$B$21),SUM(C6:C9),IF(C$1<'Dados de Entrada'!$B$19+'Dados de Entrada'!$B$18,0,"")) -> 0 | D5: =IF(AND(D$1>='Dados de Entrada'!$B$19+'Dados de Entrada'!$B$18,D$1<='Dados de Entrada'!$B$21),SUM(D6:D9),IF(D$1<'Dados de Entrada'!$B$19+'Dados de Entrada'!$B$18,0,"")) -> 3806119.797 | E5: =IF(AND(E$1>='Dados de Entrada'!$B$19+'Dados de Entrada'!$B$18,E$1<='Dados de Entrada'!$B$21),SUM(E6:E9),IF(E$1<'Dados de Entrada'!$B$19+'Dados de Entrada'!$B$18,0,"")) -> 3806119.797 | F5: =IF(AND(F$1>='Dados de Entrada'!$B$19+'Dados de Entrada'!$B$18,F$1<='Dados de Entrada'!$B$21),SUM(F6:F9),IF(F$1<'Dados de Entrada'!$B$19+'Dados de Entrada'!$B$18,0,"")) -> 3806119.797 | G5: =IF(AND(G$1>='Dados de Entrada'!$B$19+'Dados de Entrada'!$B$18,G$1<='Dados de Entrada'!$B$21),SUM(G6:G9),IF(G$1<'Dados de Entrada'!$B$19+'Dados de Entrada'!$B$18,0,"")) -> 3806119.797 | H5: =IF(AND(H$1>='Dados de Entrada'!$B$19+'Dados de Entrada'!$B$18,H$1<='Dados de Entrada'!$B$21),SUM(H6:H9),IF(H$1<'Dados de Entrada'!$B$19+'Dados de Entrada'!$B$18,0,"")) -> 3806119.797 | I5: =IF(AND(I$1>='Dados de Entrada'!$B$19+'Dados de Entrada'!$B$18,I$1<='Dados de Entrada'!$B$21),SUM(I6:I9),IF(I$1<'Dados de Entrada'!$B$19+'Dados de Entrada'!$B$18,0,"")) -> 3806119.797 | J5: =IF(AND(J$1>='Dados de Entrada'!$B$19+'Dados de Entrada'!$B$18,J$1<='Dados de Entrada'!$B$21),SUM(J6:J9),IF(J$1<'Dados de Entrada'!$B$19+'Dados de Entrada'!$B$18,0,"")) -> 3806119.797 | K5: =IF(AND(K$1>='Dados de Entrada'!$B$19+'Dados de Entrada'!$B$18,K$1<='Dados de Entrada'!$B$21),SUM(K6:K9),IF(K$1<'Dados de Entrada'!$B$19+'Dados de Entrada'!$B$18,0,"")) -> 3806119.797 | L5: =IF(AND(L$1>='Dados de Entrada'!$B$19+'Dados de Entrada'!$B$18,L$1<='Dados de Entrada'!$B$21),SUM(L6:L9),IF(L$1<'Dados de Entrada'!$B$19+'Dados de Entrada'!$B$18,0,"")) -> 3806119.797 | M5: =IF(AND(M$1>='Dados de Entrada'!$B$19+'Dados de Entrada'!$B$18,M$1<='Dados de Entrada'!$B$21),SUM(M6:M9),IF(M$1<'Dados de Entrada'!$B$19+'Dados de Entrada'!$B$18,0,"")) -> 3806119.797 | N5: =IF(AND(N$1>='Dados de Entrada'!$B$19+'Dados de Entrada'!$B$18,N$1<='Dados de Entrada'!$B$21),SUM(N6:N9),IF(N$1<'Dados de Entrada'!$B$19+'Dados de Entrada'!$B$18,0,"")) -> 3806119.797 | O5: =IF(AND(O$1>='Dados de Entrada'!$B$19+'Dados de Entrada'!$B$18,O$1<='Dados de Entrada'!$B$21),SUM(O6:O9),IF(O$1<'Dados de Entrada'!$B$19+'Dados de Entrada'!$B$18,0,"")) -> 3806119.797 | P5: =IF(AND(P$1>='Dados de Entrada'!$B$19+'Dados de Entrada'!$B$18,P$1<='Dados de Entrada'!$B$21),SUM(P6:P9),IF(P$1<'Dados de Entrada'!$B$19+'Dados de Entrada'!$B$18,0,"")) -> 3806119.797 | Q5: =IF(AND(Q$1>='Dados de Entrada'!$B$19+'Dados de Entrada'!$B$18,Q$1<='Dados de Entrada'!$B$21),SUM(Q6:Q9),IF(Q$1<'Dados de Entrada'!$B$19+'Dados de Entrada'!$B$18,0,"")) -> 3806119.797 | R5: =IF(AND(R$1>='Dados de Entrada'!$B$19+'Dados de Entrada'!$B$18,R$1<='Dados de Entrada'!$B$21),SUM(R6:R9),IF(R$1<'Dados de Entrada'!$B$19+'Dados de Entrada'!$B$18,0,"")) -> 3806119.797 | S5: =IF(AND(S$1>='Dados de Entrada'!$B$19+'Dados de Entrada'!$B$18,S$1<='Dados de Entrada'!$B$21),SUM(S6:S9),IF(S$1<'Dados de Entrada'!$B$19+'Dados de Entrada'!$B$18,0,"")) -> 3806119.797 | T5: =IF(AND(T$1>='Dados de Entrada'!$B$19+'Dados de Entrada'!$B$18,T$1<='Dados de Entrada'!$B$21),SUM(T6:T9),IF(T$1<'Dados de Entrada'!$B$19+'Dados de Entrada'!$B$18,0,"")) -> 3806119.797 | U5: =IF(AND(U$1>='Dados de Entrada'!$B$19+'Dados de Entrada'!$B$18,U$1<='Dados de Entrada'!$B$21),SUM(U6:U9),IF(U$1<'Dados de Entrada'!$B$19+'Dados de Entrada'!$B$18,0,"")) -> 3806119.797 | V5: =IF(AND(V$1>='Dados de Entrada'!$B$19+'Dados de Entrada'!$B$18,V$1<='Dados de Entrada'!$B$21),SUM(V6:V9),IF(V$1<'Dados de Entrada'!$B$19+'Dados de Entrada'!$B$18,0,"")) -> 3806119.797 | W5: =IF(AND(W$1>='Dados de Entrada'!$B$19+'Dados de Entrada'!$B$18,W$1<='Dados de Entrada'!$B$21),SUM(W6:W9),IF(W$1<'Dados de Entrada'!$B$19+'Dados de Entrada'!$B$18,0,"")) -> 3806119.797 | X5: =IF(AND(X$1>='Dados de Entrada'!$B$19+'Dados de Entrada'!$B$18,X$1<='Dados de Entrada'!$B$21),SUM(X6:X9),IF(X$1<'Dados de Entrada'!$B$19+'Dados de Entrada'!$B$18,0,"")) ->  | Y5: =IF(AND(Y$1>='Dados de Entrada'!$B$19+'Dados de Entrada'!$B$18,Y$1<='Dados de Entrada'!$B$21),SUM(Y6:Y9),IF(Y$1<'Dados de Entrada'!$B$19+'Dados de Entrada'!$B$18,0,"")) ->  | Z5: =IF(AND(Z$1>='Dados de Entrada'!$B$19+'Dados de Entrada'!$B$18,Z$1<='Dados de Entrada'!$B$21),SUM(Z6:Z9),IF(Z$1<'Dados de Entrada'!$B$19+'Dados de Entrada'!$B$18,0,"")) ->  | AA5: =IF(AND(AA$1>='Dados de Entrada'!$B$19+'Dados de Entrada'!$B$18,AA$1<='Dados de Entrada'!$B$21),SUM(AA6:AA9),IF(AA$1<'Dados de Entrada'!$B$19+'Dados de Entrada'!$B$18,0,"")) ->  | AB5: =IF(AND(AB$1>='Dados de Entrada'!$B$19+'Dados de Entrada'!$B$18,AB$1<='Dados de Entrada'!$B$21),SUM(AB6:AB9),IF(AB$1<'Dados de Entrada'!$B$19+'Dados de Entrada'!$B$18,0,"")) ->  | AC5: =IF(AND(AC$1>='Dados de Entrada'!$B$19+'Dados de Entrada'!$B$18,AC$1<='Dados de Entrada'!$B$21),SUM(AC6:AC9),IF(AC$1<'Dados de Entrada'!$B$19+'Dados de Entrada'!$B$18,0,"")) ->  | AD5: =IF(AND(AD$1>='Dados de Entrada'!$B$19+'Dados de Entrada'!$B$18,AD$1<='Dados de Entrada'!$B$21),SUM(AD6:AD9),IF(AD$1<'Dados de Entrada'!$B$19+'Dados de Entrada'!$B$18,0,"")) ->  | AE5: =IF(AND(AE$1>='Dados de Entrada'!$B$19+'Dados de Entrada'!$B$18,AE$1<='Dados de Entrada'!$B$21),SUM(AE6:AE9),IF(AE$1<'Dados de Entrada'!$B$19+'Dados de Entrada'!$B$18,0,"")) ->  | AF5: =IF(AND(AF$1>='Dados de Entrada'!$B$19+'Dados de Entrada'!$B$18,AF$1<='Dados de Entrada'!$B$21),SUM(AF6:AF9),IF(AF$1<'Dados de Entrada'!$B$19+'Dados de Entrada'!$B$18,0,"")) ->  | AG5: =IF(AND(AG$1>='Dados de Entrada'!$B$19+'Dados de Entrada'!$B$18,AG$1<='Dados de Entrada'!$B$21),SUM(AG6:AG9),IF(AG$1<'Dados de Entrada'!$B$19+'Dados de Entrada'!$B$18,0,"")) ->  | AH5: =IF(AND(AH$1>='Dados de Entrada'!$B$19+'Dados de Entrada'!$B$18,AH$1<='Dados de Entrada'!$B$21),SUM(AH6:AH9),IF(AH$1<'Dados de Entrada'!$B$19+'Dados de Entrada'!$B$18,0,"")) ->  | AI5: =IF(AND(AI$1>='Dados de Entrada'!$B$19+'Dados de Entrada'!$B$18,AI$1<='Dados de Entrada'!$B$21),SUM(AI6:AI9),IF(AI$1<'Dados de Entrada'!$B$19+'Dados de Entrada'!$B$18,0,"")) ->  | AJ5: =IF(AND(AJ$1>='Dados de Entrada'!$B$19+'Dados de Entrada'!$B$18,AJ$1<='Dados de Entrada'!$B$21),SUM(AJ6:AJ9),IF(AJ$1<'Dados de Entrada'!$B$19+'Dados de Entrada'!$B$18,0,"")) ->  | AK5: =IF(AND(AK$1>='Dados de Entrada'!$B$19+'Dados de Entrada'!$B$18,AK$1<='Dados de Entrada'!$B$21),SUM(AK6:AK9),IF(AK$1<'Dados de Entrada'!$B$19+'Dados de Entrada'!$B$18,0,"")) ->  | AL5: =IF(AND(AL$1>='Dados de Entrada'!$B$19+'Dados de Entrada'!$B$18,AL$1<='Dados de Entrada'!$B$21),SUM(AL6:AL9),IF(AL$1<'Dados de Entrada'!$B$19+'Dados de Entrada'!$B$18,0,"")) ->  | AM5: =IF(AND(AM$1>='Dados de Entrada'!$B$19+'Dados de Entrada'!$B$18,AM$1<='Dados de Entrada'!$B$21),SUM(AM6:AM9),IF(AM$1<'Dados de Entrada'!$B$19+'Dados de Entrada'!$B$18,0,"")) ->  | AN5: =IF(AND(AN$1>='Dados de Entrada'!$B$19+'Dados de Entrada'!$B$18,AN$1<='Dados de Entrada'!$B$21),SUM(AN6:AN9),IF(AN$1<'Dados de Entrada'!$B$19+'Dados de Entrada'!$B$18,0,"")) ->  | AO5: =IF(AND(AO$1>='Dados de Entrada'!$B$19+'Dados de Entrada'!$B$18,AO$1<='Dados de Entrada'!$B$21),SUM(AO6:AO9),IF(AO$1<'Dados de Entrada'!$B$19+'Dados de Entrada'!$B$18,0,"")) -> 
A6: Opex associado ao Etanol (2.1.1) | B6: =IF(AND(B$1>='Dados de Entrada'!$B$19+'Dados de Entrada'!$B$18,B$1<='Dados de Entrada'!$B$21),('Dados de Entrada'!$B$30*10^3)*'Dados de Entrada'!$B$44*'Dados de Entrada'!$B$40,IF(B$1<'Dados de Entrada'!$B$19+'Dados de Entrada'!$B$18,0,"")) -> 0 | C6: =IF(AND(C$1>='Dados de Entrada'!$B$19+'Dados de Entrada'!$B$18,C$1<='Dados de Entrada'!$B$21),('Dados de Entrada'!$B$30*10^3)*'Dados de Entrada'!$B$44*'Dados de Entrada'!$B$40,IF(C$1<'Dados de Entrada'!$B$19+'Dados de Entrada'!$B$18,0,"")) -> 0 | D6: =IF(AND(D$1>='Dados de Entrada'!$B$19+'Dados de Entrada'!$B$18,D$1<='Dados de Entrada'!$B$21),('Dados de Entrada'!$B$30*10^3)*'Dados de Entrada'!$B$44*'Dados de Entrada'!$B$40,IF(D$1<'Dados de Entrada'!$B$19+'Dados de Entrada'!$B$18,0,"")) -> 3432861 | E6: =IF(AND(E$1>='Dados de Entrada'!$B$19+'Dados de Entrada'!$B$18,E$1<='Dados de Entrada'!$B$21),('Dados de Entrada'!$B$30*10^3)*'Dados de Entrada'!$B$44*'Dados de Entrada'!$B$40,IF(E$1<'Dados de Entrada'!$B$19+'Dados de Entrada'!$B$18,0,"")) -> 3432861 | F6: =IF(AND(F$1>='Dados de Entrada'!$B$19+'Dados de Entrada'!$B$18,F$1<='Dados de Entrada'!$B$21),('Dados de Entrada'!$B$30*10^3)*'Dados de Entrada'!$B$44*'Dados de Entrada'!$B$40,IF(F$1<'Dados de Entrada'!$B$19+'Dados de Entrada'!$B$18,0,"")) -> 3432861 | G6: =IF(AND(G$1>='Dados de Entrada'!$B$19+'Dados de Entrada'!$B$18,G$1<='Dados de Entrada'!$B$21),('Dados de Entrada'!$B$30*10^3)*'Dados de Entrada'!$B$44*'Dados de Entrada'!$B$40,IF(G$1<'Dados de Entrada'!$B$19+'Dados de Entrada'!$B$18,0,"")) -> 3432861 | H6: =IF(AND(H$1>='Dados de Entrada'!$B$19+'Dados de Entrada'!$B$18,H$1<='Dados de Entrada'!$B$21),('Dados de Entrada'!$B$30*10^3)*'Dados de Entrada'!$B$44*'Dados de Entrada'!$B$40,IF(H$1<'Dados de Entrada'!$B$19+'Dados de Entrada'!$B$18,0,"")) -> 3432861 | I6: =IF(AND(I$1>='Dados de Entrada'!$B$19+'Dados de Entrada'!$B$18,I$1<='Dados de Entrada'!$B$21),('Dados de Entrada'!$B$30*10^3)*'Dados de Entrada'!$B$44*'Dados de Entrada'!$B$40,IF(I$1<'Dados de Entrada'!$B$19+'Dados de Entrada'!$B$18,0,"")) -> 3432861 | J6: =IF(AND(J$1>='Dados de Entrada'!$B$19+'Dados de Entrada'!$B$18,J$1<='Dados de Entrada'!$B$21),('Dados de Entrada'!$B$30*10^3)*'Dados de Entrada'!$B$44*'Dados de Entrada'!$B$40,IF(J$1<'Dados de Entrada'!$B$19+'Dados de Entrada'!$B$18,0,"")) -> 3432861 | K6: =IF(AND(K$1>='Dados de Entrada'!$B$19+'Dados de Entrada'!$B$18,K$1<='Dados de Entrada'!$B$21),('Dados de Entrada'!$B$30*10^3)*'Dados de Entrada'!$B$44*'Dados de Entrada'!$B$40,IF(K$1<'Dados de Entrada'!$B$19+'Dados de Entrada'!$B$18,0,"")) -> 3432861 | L6: =IF(AND(L$1>='Dados de Entrada'!$B$19+'Dados de Entrada'!$B$18,L$1<='Dados de Entrada'!$B$21),('Dados de Entrada'!$B$30*10^3)*'Dados de Entrada'!$B$44*'Dados de Entrada'!$B$40,IF(L$1<'Dados de Entrada'!$B$19+'Dados de Entrada'!$B$18,0,"")) -> 3432861 | M6: =IF(AND(M$1>='Dados de Entrada'!$B$19+'Dados de Entrada'!$B$18,M$1<='Dados de Entrada'!$B$21),('Dados de Entrada'!$B$30*10^3)*'Dados de Entrada'!$B$44*'Dados de Entrada'!$B$40,IF(M$1<'Dados de Entrada'!$B$19+'Dados de Entrada'!$B$18,0,"")) -> 3432861 | N6: =IF(AND(N$1>='Dados de Entrada'!$B$19+'Dados de Entrada'!$B$18,N$1<='Dados de Entrada'!$B$21),('Dados de Entrada'!$B$30*10^3)*'Dados de Entrada'!$B$44*'Dados de Entrada'!$B$40,IF(N$1<'Dados de Entrada'!$B$19+'Dados de Entrada'!$B$18,0,"")) -> 3432861 | O6: =IF(AND(O$1>='Dados de Entrada'!$B$19+'Dados de Entrada'!$B$18,O$1<='Dados de Entrada'!$B$21),('Dados de Entrada'!$B$30*10^3)*'Dados de Entrada'!$B$44*'Dados de Entrada'!$B$40,IF(O$1<'Dados de Entrada'!$B$19+'Dados de Entrada'!$B$18,0,"")) -> 3432861 | P6: =IF(AND(P$1>='Dados de Entrada'!$B$19+'Dados de Entrada'!$B$18,P$1<='Dados de Entrada'!$B$21),('Dados de Entrada'!$B$30*10^3)*'Dados de Entrada'!$B$44*'Dados de Entrada'!$B$40,IF(P$1<'Dados de Entrada'!$B$19+'Dados de Entrada'!$B$18,0,"")) -> 3432861 | Q6: =IF(AND(Q$1>='Dados de Entrada'!$B$19+'Dados de Entrada'!$B$18,Q$1<='Dados de Entrada'!$B$21),('Dados de Entrada'!$B$30*10^3)*'Dados de Entrada'!$B$44*'Dados de Entrada'!$B$40,IF(Q$1<'Dados de Entrada'!$B$19+'Dados de Entrada'!$B$18,0,"")) -> 3432861 | R6: =IF(AND(R$1>='Dados de Entrada'!$B$19+'Dados de Entrada'!$B$18,R$1<='Dados de Entrada'!$B$21),('Dados de Entrada'!$B$30*10^3)*'Dados de Entrada'!$B$44*'Dados de Entrada'!$B$40,IF(R$1<'Dados de Entrada'!$B$19+'Dados de Entrada'!$B$18,0,"")) -> 3432861 | S6: =IF(AND(S$1>='Dados de Entrada'!$B$19+'Dados de Entrada'!$B$18,S$1<='Dados de Entrada'!$B$21),('Dados de Entrada'!$B$30*10^3)*'Dados de Entrada'!$B$44*'Dados de Entrada'!$B$40,IF(S$1<'Dados de Entrada'!$B$19+'Dados de Entrada'!$B$18,0,"")) -> 3432861 | T6: =IF(AND(T$1>='Dados de Entrada'!$B$19+'Dados de Entrada'!$B$18,T$1<='Dados de Entrada'!$B$21),('Dados de Entrada'!$B$30*10^3)*'Dados de Entrada'!$B$44*'Dados de Entrada'!$B$40,IF(T$1<'Dados de Entrada'!$B$19+'Dados de Entrada'!$B$18,0,"")) -> 3432861 | U6: =IF(AND(U$1>='Dados de Entrada'!$B$19+'Dados de Entrada'!$B$18,U$1<='Dados de Entrada'!$B$21),('Dados de Entrada'!$B$30*10^3)*'Dados de Entrada'!$B$44*'Dados de Entrada'!$B$40,IF(U$1<'Dados de Entrada'!$B$19+'Dados de Entrada'!$B$18,0,"")) -> 3432861 | V6: =IF(AND(V$1>='Dados de Entrada'!$B$19+'Dados de Entrada'!$B$18,V$1<='Dados de Entrada'!$B$21),('Dados de Entrada'!$B$30*10^3)*'Dados de Entrada'!$B$44*'Dados de Entrada'!$B$40,IF(V$1<'Dados de Entrada'!$B$19+'Dados de Entrada'!$B$18,0,"")) -> 3432861 | W6: =IF(AND(W$1>='Dados de Entrada'!$B$19+'Dados de Entrada'!$B$18,W$1<='Dados de Entrada'!$B$21),('Dados de Entrada'!$B$30*10^3)*'Dados de Entrada'!$B$44*'Dados de Entrada'!$B$40,IF(W$1<'Dados de Entrada'!$B$19+'Dados de Entrada'!$B$18,0,"")) -> 3432861 | X6: =IF(AND(X$1>='Dados de Entrada'!$B$19+'Dados de Entrada'!$B$18,X$1<='Dados de Entrada'!$B$21),('Dados de Entrada'!$B$30*10^3)*'Dados de Entrada'!$B$44*'Dados de Entrada'!$B$40,IF(X$1<'Dados de Entrada'!$B$19+'Dados de Entrada'!$B$18,0,"")) ->  | Y6: =IF(AND(Y$1>='Dados de Entrada'!$B$19+'Dados de Entrada'!$B$18,Y$1<='Dados de Entrada'!$B$21),('Dados de Entrada'!$B$30*10^3)*'Dados de Entrada'!$B$44*'Dados de Entrada'!$B$40,IF(Y$1<'Dados de Entrada'!$B$19+'Dados de Entrada'!$B$18,0,"")) ->  | Z6: =IF(AND(Z$1>='Dados de Entrada'!$B$19+'Dados de Entrada'!$B$18,Z$1<='Dados de Entrada'!$B$21),('Dados de Entrada'!$B$30*10^3)*'Dados de Entrada'!$B$44*'Dados de Entrada'!$B$40,IF(Z$1<'Dados de Entrada'!$B$19+'Dados de Entrada'!$B$18,0,"")) ->  | AA6: =IF(AND(AA$1>='Dados de Entrada'!$B$19+'Dados de Entrada'!$B$18,AA$1<='Dados de Entrada'!$B$21),('Dados de Entrada'!$B$30*10^3)*'Dados de Entrada'!$B$44*'Dados de Entrada'!$B$40,IF(AA$1<'Dados de Entrada'!$B$19+'Dados de Entrada'!$B$18,0,"")) ->  | AB6: =IF(AND(AB$1>='Dados de Entrada'!$B$19+'Dados de Entrada'!$B$18,AB$1<='Dados de Entrada'!$B$21),('Dados de Entrada'!$B$30*10^3)*'Dados de Entrada'!$B$44*'Dados de Entrada'!$B$40,IF(AB$1<'Dados de Entrada'!$B$19+'Dados de Entrada'!$B$18,0,"")) ->  | AC6: =IF(AND(AC$1>='Dados de Entrada'!$B$19+'Dados de Entrada'!$B$18,AC$1<='Dados de Entrada'!$B$21),('Dados de Entrada'!$B$30*10^3)*'Dados de Entrada'!$B$44*'Dados de Entrada'!$B$40,IF(AC$1<'Dados de Entrada'!$B$19+'Dados de Entrada'!$B$18,0,"")) ->  | AD6: =IF(AND(AD$1>='Dados de Entrada'!$B$19+'Dados de Entrada'!$B$18,AD$1<='Dados de Entrada'!$B$21),('Dados de Entrada'!$B$30*10^3)*'Dados de Entrada'!$B$44*'Dados de Entrada'!$B$40,IF(AD$1<'Dados de Entrada'!$B$19+'Dados de Entrada'!$B$18,0,"")) ->  | AE6: =IF(AND(AE$1>='Dados de Entrada'!$B$19+'Dados de Entrada'!$B$18,AE$1<='Dados de Entrada'!$B$21),('Dados de Entrada'!$B$30*10^3)*'Dados de Entrada'!$B$44*'Dados de Entrada'!$B$40,IF(AE$1<'Dados de Entrada'!$B$19+'Dados de Entrada'!$B$18,0,"")) ->  | AF6: =IF(AND(AF$1>='Dados de Entrada'!$B$19+'Dados de Entrada'!$B$18,AF$1<='Dados de Entrada'!$B$21),('Dados de Entrada'!$B$30*10^3)*'Dados de Entrada'!$B$44*'Dados de Entrada'!$B$40,IF(AF$1<'Dados de Entrada'!$B$19+'Dados de Entrada'!$B$18,0,"")) ->  | AG6: =IF(AND(AG$1>='Dados de Entrada'!$B$19+'Dados de Entrada'!$B$18,AG$1<='Dados de Entrada'!$B$21),('Dados de Entrada'!$B$30*10^3)*'Dados de Entrada'!$B$44*'Dados de Entrada'!$B$40,IF(AG$1<'Dados de Entrada'!$B$19+'Dados de Entrada'!$B$18,0,"")) ->  | AH6: =IF(AND(AH$1>='Dados de Entrada'!$B$19+'Dados de Entrada'!$B$18,AH$1<='Dados de Entrada'!$B$21),('Dados de Entrada'!$B$30*10^3)*'Dados de Entrada'!$B$44*'Dados de Entrada'!$B$40,IF(AH$1<'Dados de Entrada'!$B$19+'Dados de Entrada'!$B$18,0,"")) ->  | AI6: =IF(AND(AI$1>='Dados de Entrada'!$B$19+'Dados de Entrada'!$B$18,AI$1<='Dados de Entrada'!$B$21),('Dados de Entrada'!$B$30*10^3)*'Dados de Entrada'!$B$44*'Dados de Entrada'!$B$40,IF(AI$1<'Dados de Entrada'!$B$19+'Dados de Entrada'!$B$18,0,"")) ->  | AJ6: =IF(AND(AJ$1>='Dados de Entrada'!$B$19+'Dados de Entrada'!$B$18,AJ$1<='Dados de Entrada'!$B$21),('Dados de Entrada'!$B$30*10^3)*'Dados de Entrada'!$B$44*'Dados de Entrada'!$B$40,IF(AJ$1<'Dados de Entrada'!$B$19+'Dados de Entrada'!$B$18,0,"")) ->  | AK6: =IF(AND(AK$1>='Dados de Entrada'!$B$19+'Dados de Entrada'!$B$18,AK$1<='Dados de Entrada'!$B$21),('Dados de Entrada'!$B$30*10^3)*'Dados de Entrada'!$B$44*'Dados de Entrada'!$B$40,IF(AK$1<'Dados de Entrada'!$B$19+'Dados de Entrada'!$B$18,0,"")) ->  | AL6: =IF(AND(AL$1>='Dados de Entrada'!$B$19+'Dados de Entrada'!$B$18,AL$1<='Dados de Entrada'!$B$21),('Dados de Entrada'!$B$30*10^3)*'Dados de Entrada'!$B$44*'Dados de Entrada'!$B$40,IF(AL$1<'Dados de Entrada'!$B$19+'Dados de Entrada'!$B$18,0,"")) ->  | AM6: =IF(AND(AM$1>='Dados de Entrada'!$B$19+'Dados de Entrada'!$B$18,AM$1<='Dados de Entrada'!$B$21),('Dados de Entrada'!$B$30*10^3)*'Dados de Entrada'!$B$44*'Dados de Entrada'!$B$40,IF(AM$1<'Dados de Entrada'!$B$19+'Dados de Entrada'!$B$18,0,"")) ->  | AN6: =IF(AND(AN$1>='Dados de Entrada'!$B$19+'Dados de Entrada'!$B$18,AN$1<='Dados de Entrada'!$B$21),('Dados de Entrada'!$B$30*10^3)*'Dados de Entrada'!$B$44*'Dados de Entrada'!$B$40,IF(AN$1<'Dados de Entrada'!$B$19+'Dados de Entrada'!$B$18,0,"")) ->  | AO6: =IF(AND(AO$1>='Dados de Entrada'!$B$19+'Dados de Entrada'!$B$18,AO$1<='Dados de Entrada'!$B$21),('Dados de Entrada'!$B$30*10^3)*'Dados de Entrada'!$B$44*'Dados de Entrada'!$B$40,IF(AO$1<'Dados de Entrada'!$B$19+'Dados de Entrada'!$B$18,0,"")) -> 
A7: Opex associado à Energia Elétrica (2.1.2) | B7: =IF(AND(B$1>='Dados de Entrada'!$B$19+'Dados de Entrada'!$B$18,B$1<='Dados de Entrada'!$B$21),('Dados de Entrada'!$B$30*10^3)*'Dados de Entrada'!$B$42*'Dados de Entrada'!$B$38,IF(B$1<'Dados de Entrada'!$B$19+'Dados de Entrada'!$B$18,0,"")) -> 0 | C7: =IF(AND(C$1>='Dados de Entrada'!$B$19+'Dados de Entrada'!$B$18,C$1<='Dados de Entrada'!$B$21),('Dados de Entrada'!$B$30*10^3)*'Dados de Entrada'!$B$42*'Dados de Entrada'!$B$38,IF(C$1<'Dados de Entrada'!$B$19+'Dados de Entrada'!$B$18,0,"")) -> 0 | D7: =IF(AND(D$1>='Dados de Entrada'!$B$19+'Dados de Entrada'!$B$18,D$1<='Dados de Entrada'!$B$21),('Dados de Entrada'!$B$30*10^3)*'Dados de Entrada'!$B$42*'Dados de Entrada'!$B$38,IF(D$1<'Dados de Entrada'!$B$19+'Dados de Entrada'!$B$18,0,"")) -> 64719 | E7: =IF(AND(E$1>='Dados de Entrada'!$B$19+'Dados de Entrada'!$B$18,E$1<='Dados de Entrada'!$B$21),('Dados de Entrada'!$B$30*10^3)*'Dados de Entrada'!$B$42*'Dados de Entrada'!$B$38,IF(E$1<'Dados de Entrada'!$B$19+'Dados de Entrada'!$B$18,0,"")) -> 64719 | F7: =IF(AND(F$1>='Dados de Entrada'!$B$19+'Dados de Entrada'!$B$18,F$1<='Dados de Entrada'!$B$21),('Dados de Entrada'!$B$30*10^3)*'Dados de Entrada'!$B$42*'Dados de Entrada'!$B$38,IF(F$1<'Dados de Entrada'!$B$19+'Dados de Entrada'!$B$18,0,"")) -> 64719 | G7: =IF(AND(G$1>='Dados de Entrada'!$B$19+'Dados de Entrada'!$B$18,G$1<='Dados de Entrada'!$B$21),('Dados de Entrada'!$B$30*10^3)*'Dados de Entrada'!$B$42*'Dados de Entrada'!$B$38,IF(G$1<'Dados de Entrada'!$B$19+'Dados de Entrada'!$B$18,0,"")) -> 64719 | H7: =IF(AND(H$1>='Dados de Entrada'!$B$19+'Dados de Entrada'!$B$18,H$1<='Dados de Entrada'!$B$21),('Dados de Entrada'!$B$30*10^3)*'Dados de Entrada'!$B$42*'Dados de Entrada'!$B$38,IF(H$1<'Dados de Entrada'!$B$19+'Dados de Entrada'!$B$18,0,"")) -> 64719 | I7: =IF(AND(I$1>='Dados de Entrada'!$B$19+'Dados de Entrada'!$B$18,I$1<='Dados de Entrada'!$B$21),('Dados de Entrada'!$B$30*10^3)*'Dados de Entrada'!$B$42*'Dados de Entrada'!$B$38,IF(I$1<'Dados de Entrada'!$B$19+'Dados de Entrada'!$B$18,0,"")) -> 64719 | J7: =IF(AND(J$1>='Dados de Entrada'!$B$19+'Dados de Entrada'!$B$18,J$1<='Dados de Entrada'!$B$21),('Dados de Entrada'!$B$30*10^3)*'Dados de Entrada'!$B$42*'Dados de Entrada'!$B$38,IF(J$1<'Dados de Entrada'!$B$19+'Dados de Entrada'!$B$18,0,"")) -> 64719 | K7: =IF(AND(K$1>='Dados de Entrada'!$B$19+'Dados de Entrada'!$B$18,K$1<='Dados de Entrada'!$B$21),('Dados de Entrada'!$B$30*10^3)*'Dados de Entrada'!$B$42*'Dados de Entrada'!$B$38,IF(K$1<'Dados de Entrada'!$B$19+'Dados de Entrada'!$B$18,0,"")) -> 64719 | L7: =IF(AND(L$1>='Dados de Entrada'!$B$19+'Dados de Entrada'!$B$18,L$1<='Dados de Entrada'!$B$21),('Dados de Entrada'!$B$30*10^3)*'Dados de Entrada'!$B$42*'Dados de Entrada'!$B$38,IF(L$1<'Dados de Entrada'!$B$19+'Dados de Entrada'!$B$18,0,"")) -> 64719 | M7: =IF(AND(M$1>='Dados de Entrada'!$B$19+'Dados de Entrada'!$B$18,M$1<='Dados de Entrada'!$B$21),('Dados de Entrada'!$B$30*10^3)*'Dados de Entrada'!$B$42*'Dados de Entrada'!$B$38,IF(M$1<'Dados de Entrada'!$B$19+'Dados de Entrada'!$B$18,0,"")) -> 64719 | N7: =IF(AND(N$1>='Dados de Entrada'!$B$19+'Dados de Entrada'!$B$18,N$1<='Dados de Entrada'!$B$21),('Dados de Entrada'!$B$30*10^3)*'Dados de Entrada'!$B$42*'Dados de Entrada'!$B$38,IF(N$1<'Dados de Entrada'!$B$19+'Dados de Entrada'!$B$18,0,"")) -> 64719 | O7: =IF(AND(O$1>='Dados de Entrada'!$B$19+'Dados de Entrada'!$B$18,O$1<='Dados de Entrada'!$B$21),('Dados de Entrada'!$B$30*10^3)*'Dados de Entrada'!$B$42*'Dados de Entrada'!$B$38,IF(O$1<'Dados de Entrada'!$B$19+'Dados de Entrada'!$B$18,0,"")) -> 64719 | P7: =IF(AND(P$1>='Dados de Entrada'!$B$19+'Dados de Entrada'!$B$18,P$1<='Dados de Entrada'!$B$21),('Dados de Entrada'!$B$30*10^3)*'Dados de Entrada'!$B$42*'Dados de Entrada'!$B$38,IF(P$1<'Dados de Entrada'!$B$19+'Dados de Entrada'!$B$18,0,"")) -> 64719 | Q7: =IF(AND(Q$1>='Dados de Entrada'!$B$19+'Dados de Entrada'!$B$18,Q$1<='Dados de Entrada'!$B$21),('Dados de Entrada'!$B$30*10^3)*'Dados de Entrada'!$B$42*'Dados de Entrada'!$B$38,IF(Q$1<'Dados de Entrada'!$B$19+'Dados de Entrada'!$B$18,0,"")) -> 64719 | R7: =IF(AND(R$1>='Dados de Entrada'!$B$19+'Dados de Entrada'!$B$18,R$1<='Dados de Entrada'!$B$21),('Dados de Entrada'!$B$30*10^3)*'Dados de Entrada'!$B$42*'Dados de Entrada'!$B$38,IF(R$1<'Dados de Entrada'!$B$19+'Dados de Entrada'!$B$18,0,"")) -> 64719 | S7: =IF(AND(S$1>='Dados de Entrada'!$B$19+'Dados de Entrada'!$B$18,S$1<='Dados de Entrada'!$B$21),('Dados de Entrada'!$B$30*10^3)*'Dados de Entrada'!$B$42*'Dados de Entrada'!$B$38,IF(S$1<'Dados de Entrada'!$B$19+'Dados de Entrada'!$B$18,0,"")) -> 64719 | T7: =IF(AND(T$1>='Dados de Entrada'!$B$19+'Dados de Entrada'!$B$18,T$1<='Dados de Entrada'!$B$21),('Dados de Entrada'!$B$30*10^3)*'Dados de Entrada'!$B$42*'Dados de Entrada'!$B$38,IF(T$1<'Dados de Entrada'!$B$19+'Dados de Entrada'!$B$18,0,"")) -> 64719 | U7: =IF(AND(U$1>='Dados de Entrada'!$B$19+'Dados de Entrada'!$B$18,U$1<='Dados de Entrada'!$B$21),('Dados de Entrada'!$B$30*10^3)*'Dados de Entrada'!$B$42*'Dados de Entrada'!$B$38,IF(U$1<'Dados de Entrada'!$B$19+'Dados de Entrada'!$B$18,0,"")) -> 64719 | V7: =IF(AND(V$1>='Dados de Entrada'!$B$19+'Dados de Entrada'!$B$18,V$1<='Dados de Entrada'!$B$21),('Dados de Entrada'!$B$30*10^3)*'Dados de Entrada'!$B$42*'Dados de Entrada'!$B$38,IF(V$1<'Dados de Entrada'!$B$19+'Dados de Entrada'!$B$18,0,"")) -> 64719 | W7: =IF(AND(W$1>='Dados de Entrada'!$B$19+'Dados de Entrada'!$B$18,W$1<='Dados de Entrada'!$B$21),('Dados de Entrada'!$B$30*10^3)*'Dados de Entrada'!$B$42*'Dados de Entrada'!$B$38,IF(W$1<'Dados de Entrada'!$B$19+'Dados de Entrada'!$B$18,0,"")) -> 64719 | X7: =IF(AND(X$1>='Dados de Entrada'!$B$19+'Dados de Entrada'!$B$18,X$1<='Dados de Entrada'!$B$21),('Dados de Entrada'!$B$30*10^3)*'Dados de Entrada'!$B$42*'Dados de Entrada'!$B$38,IF(X$1<'Dados de Entrada'!$B$19+'Dados de Entrada'!$B$18,0,"")) ->  | Y7: =IF(AND(Y$1>='Dados de Entrada'!$B$19+'Dados de Entrada'!$B$18,Y$1<='Dados de Entrada'!$B$21),('Dados de Entrada'!$B$30*10^3)*'Dados de Entrada'!$B$42*'Dados de Entrada'!$B$38,IF(Y$1<'Dados de Entrada'!$B$19+'Dados de Entrada'!$B$18,0,"")) ->  | Z7: =IF(AND(Z$1>='Dados de Entrada'!$B$19+'Dados de Entrada'!$B$18,Z$1<='Dados de Entrada'!$B$21),('Dados de Entrada'!$B$30*10^3)*'Dados de Entrada'!$B$42*'Dados de Entrada'!$B$38,IF(Z$1<'Dados de Entrada'!$B$19+'Dados de Entrada'!$B$18,0,"")) ->  | AA7: =IF(AND(AA$1>='Dados de Entrada'!$B$19+'Dados de Entrada'!$B$18,AA$1<='Dados de Entrada'!$B$21),('Dados de Entrada'!$B$30*10^3)*'Dados de Entrada'!$B$42*'Dados de Entrada'!$B$38,IF(AA$1<'Dados de Entrada'!$B$19+'Dados de Entrada'!$B$18,0,"")) ->  | AB7: =IF(AND(AB$1>='Dados de Entrada'!$B$19+'Dados de Entrada'!$B$18,AB$1<='Dados de Entrada'!$B$21),('Dados de Entrada'!$B$30*10^3)*'Dados de Entrada'!$B$42*'Dados de Entrada'!$B$38,IF(AB$1<'Dados de Entrada'!$B$19+'Dados de Entrada'!$B$18,0,"")) ->  | AC7: =IF(AND(AC$1>='Dados de Entrada'!$B$19+'Dados de Entrada'!$B$18,AC$1<='Dados de Entrada'!$B$21),('Dados de Entrada'!$B$30*10^3)*'Dados de Entrada'!$B$42*'Dados de Entrada'!$B$38,IF(AC$1<'Dados de Entrada'!$B$19+'Dados de Entrada'!$B$18,0,"")) ->  | AD7: =IF(AND(AD$1>='Dados de Entrada'!$B$19+'Dados de Entrada'!$B$18,AD$1<='Dados de Entrada'!$B$21),('Dados de Entrada'!$B$30*10^3)*'Dados de Entrada'!$B$42*'Dados de Entrada'!$B$38,IF(AD$1<'Dados de Entrada'!$B$19+'Dados de Entrada'!$B$18,0,"")) ->  | AE7: =IF(AND(AE$1>='Dados de Entrada'!$B$19+'Dados de Entrada'!$B$18,AE$1<='Dados de Entrada'!$B$21),('Dados de Entrada'!$B$30*10^3)*'Dados de Entrada'!$B$42*'Dados de Entrada'!$B$38,IF(AE$1<'Dados de Entrada'!$B$19+'Dados de Entrada'!$B$18,0,"")) ->  | AF7: =IF(AND(AF$1>='Dados de Entrada'!$B$19+'Dados de Entrada'!$B$18,AF$1<='Dados de Entrada'!$B$21),('Dados de Entrada'!$B$30*10^3)*'Dados de Entrada'!$B$42*'Dados de Entrada'!$B$38,IF(AF$1<'Dados de Entrada'!$B$19+'Dados de Entrada'!$B$18,0,"")) ->  | AG7: =IF(AND(AG$1>='Dados de Entrada'!$B$19+'Dados de Entrada'!$B$18,AG$1<='Dados de Entrada'!$B$21),('Dados de Entrada'!$B$30*10^3)*'Dados de Entrada'!$B$42*'Dados de Entrada'!$B$38,IF(AG$1<'Dados de Entrada'!$B$19+'Dados de Entrada'!$B$18,0,"")) ->  | AH7: =IF(AND(AH$1>='Dados de Entrada'!$B$19+'Dados de Entrada'!$B$18,AH$1<='Dados de Entrada'!$B$21),('Dados de Entrada'!$B$30*10^3)*'Dados de Entrada'!$B$42*'Dados de Entrada'!$B$38,IF(AH$1<'Dados de Entrada'!$B$19+'Dados de Entrada'!$B$18,0,"")) ->  | AI7: =IF(AND(AI$1>='Dados de Entrada'!$B$19+'Dados de Entrada'!$B$18,AI$1<='Dados de Entrada'!$B$21),('Dados de Entrada'!$B$30*10^3)*'Dados de Entrada'!$B$42*'Dados de Entrada'!$B$38,IF(AI$1<'Dados de Entrada'!$B$19+'Dados de Entrada'!$B$18,0,"")) ->  | AJ7: =IF(AND(AJ$1>='Dados de Entrada'!$B$19+'Dados de Entrada'!$B$18,AJ$1<='Dados de Entrada'!$B$21),('Dados de Entrada'!$B$30*10^3)*'Dados de Entrada'!$B$42*'Dados de Entrada'!$B$38,IF(AJ$1<'Dados de Entrada'!$B$19+'Dados de Entrada'!$B$18,0,"")) ->  | AK7: =IF(AND(AK$1>='Dados de Entrada'!$B$19+'Dados de Entrada'!$B$18,AK$1<='Dados de Entrada'!$B$21),('Dados de Entrada'!$B$30*10^3)*'Dados de Entrada'!$B$42*'Dados de Entrada'!$B$38,IF(AK$1<'Dados de Entrada'!$B$19+'Dados de Entrada'!$B$18,0,"")) ->  | AL7: =IF(AND(AL$1>='Dados de Entrada'!$B$19+'Dados de Entrada'!$B$18,AL$1<='Dados de Entrada'!$B$21),('Dados de Entrada'!$B$30*10^3)*'Dados de Entrada'!$B$42*'Dados de Entrada'!$B$38,IF(AL$1<'Dados de Entrada'!$B$19+'Dados de Entrada'!$B$18,0,"")) ->  | AM7: =IF(AND(AM$1>='Dados de Entrada'!$B$19+'Dados de Entrada'!$B$18,AM$1<='Dados de Entrada'!$B$21),('Dados de Entrada'!$B$30*10^3)*'Dados de Entrada'!$B$42*'Dados de Entrada'!$B$38,IF(AM$1<'Dados de Entrada'!$B$19+'Dados de Entrada'!$B$18,0,"")) ->  | AN7: =IF(AND(AN$1>='Dados de Entrada'!$B$19+'Dados de Entrada'!$B$18,AN$1<='Dados de Entrada'!$B$21),('Dados de Entrada'!$B$30*10^3)*'Dados de Entrada'!$B$42*'Dados de Entrada'!$B$38,IF(AN$1<'Dados de Entrada'!$B$19+'Dados de Entrada'!$B$18,0,"")) ->  | AO7: =IF(AND(AO$1>='Dados de Entrada'!$B$19+'Dados de Entrada'!$B$18,AO$1<='Dados de Entrada'!$B$21),('Dados de Entrada'!$B$30*10^3)*'Dados de Entrada'!$B$42*'Dados de Entrada'!$B$38,IF(AO$1<'Dados de Entrada'!$B$19+'Dados de Entrada'!$B$18,0,"")) -> 
A8: Opex associado à Água (2.1.3) | B8: =IF(AND(B$1>='Dados de Entrada'!$B$19+'Dados de Entrada'!$B$18,B$1<='Dados de Entrada'!$B$21),('Dados de Entrada'!$B$30*10^3)*'Dados de Entrada'!$B$43*'Dados de Entrada'!$B$39,IF(B$1<'Dados de Entrada'!$B$19+'Dados de Entrada'!$B$18,0,"")) -> 0 | C8: =IF(AND(C$1>='Dados de Entrada'!$B$19+'Dados de Entrada'!$B$18,C$1<='Dados de Entrada'!$B$21),('Dados de Entrada'!$B$30*10^3)*'Dados de Entrada'!$B$43*'Dados de Entrada'!$B$39,IF(C$1<'Dados de Entrada'!$B$19+'Dados de Entrada'!$B$18,0,"")) -> 0 | D8: =IF(AND(D$1>='Dados de Entrada'!$B$19+'Dados de Entrada'!$B$18,D$1<='Dados de Entrada'!$B$21),('Dados de Entrada'!$B$30*10^3)*'Dados de Entrada'!$B$43*'Dados de Entrada'!$B$39,IF(D$1<'Dados de Entrada'!$B$19+'Dados de Entrada'!$B$18,0,"")) -> 24300 | E8: =IF(AND(E$1>='Dados de Entrada'!$B$19+'Dados de Entrada'!$B$18,E$1<='Dados de Entrada'!$B$21),('Dados de Entrada'!$B$30*10^3)*'Dados de Entrada'!$B$43*'Dados de Entrada'!$B$39,IF(E$1<'Dados de Entrada'!$B$19+'Dados de Entrada'!$B$18,0,"")) -> 24300 | F8: =IF(AND(F$1>='Dados de Entrada'!$B$19+'Dados de Entrada'!$B$18,F$1<='Dados de Entrada'!$B$21),('Dados de Entrada'!$B$30*10^3)*'Dados de Entrada'!$B$43*'Dados de Entrada'!$B$39,IF(F$1<'Dados de Entrada'!$B$19+'Dados de Entrada'!$B$18,0,"")) -> 24300 | G8: =IF(AND(G$1>='Dados de Entrada'!$B$19+'Dados de Entrada'!$B$18,G$1<='Dados de Entrada'!$B$21),('Dados de Entrada'!$B$30*10^3)*'Dados de Entrada'!$B$43*'Dados de Entrada'!$B$39,IF(G$1<'Dados de Entrada'!$B$19+'Dados de Entrada'!$B$18,0,"")) -> 24300 | H8: =IF(AND(H$1>='Dados de Entrada'!$B$19+'Dados de Entrada'!$B$18,H$1<='Dados de Entrada'!$B$21),('Dados de Entrada'!$B$30*10^3)*'Dados de Entrada'!$B$43*'Dados de Entrada'!$B$39,IF(H$1<'Dados de Entrada'!$B$19+'Dados de Entrada'!$B$18,0,"")) -> 24300 | I8: =IF(AND(I$1>='Dados de Entrada'!$B$19+'Dados de Entrada'!$B$18,I$1<='Dados de Entrada'!$B$21),('Dados de Entrada'!$B$30*10^3)*'Dados de Entrada'!$B$43*'Dados de Entrada'!$B$39,IF(I$1<'Dados de Entrada'!$B$19+'Dados de Entrada'!$B$18,0,"")) -> 24300 | J8: =IF(AND(J$1>='Dados de Entrada'!$B$19+'Dados de Entrada'!$B$18,J$1<='Dados de Entrada'!$B$21),('Dados de Entrada'!$B$30*10^3)*'Dados de Entrada'!$B$43*'Dados de Entrada'!$B$39,IF(J$1<'Dados de Entrada'!$B$19+'Dados de Entrada'!$B$18,0,"")) -> 24300 | K8: =IF(AND(K$1>='Dados de Entrada'!$B$19+'Dados de Entrada'!$B$18,K$1<='Dados de Entrada'!$B$21),('Dados de Entrada'!$B$30*10^3)*'Dados de Entrada'!$B$43*'Dados de Entrada'!$B$39,IF(K$1<'Dados de Entrada'!$B$19+'Dados de Entrada'!$B$18,0,"")) -> 24300 | L8: =IF(AND(L$1>='Dados de Entrada'!$B$19+'Dados de Entrada'!$B$18,L$1<='Dados de Entrada'!$B$21),('Dados de Entrada'!$B$30*10^3)*'Dados de Entrada'!$B$43*'Dados de Entrada'!$B$39,IF(L$1<'Dados de Entrada'!$B$19+'Dados de Entrada'!$B$18,0,"")) -> 24300 | M8: =IF(AND(M$1>='Dados de Entrada'!$B$19+'Dados de Entrada'!$B$18,M$1<='Dados de Entrada'!$B$21),('Dados de Entrada'!$B$30*10^3)*'Dados de Entrada'!$B$43*'Dados de Entrada'!$B$39,IF(M$1<'Dados de Entrada'!$B$19+'Dados de Entrada'!$B$18,0,"")) -> 24300 | N8: =IF(AND(N$1>='Dados de Entrada'!$B$19+'Dados de Entrada'!$B$18,N$1<='Dados de Entrada'!$B$21),('Dados de Entrada'!$B$30*10^3)*'Dados de Entrada'!$B$43*'Dados de Entrada'!$B$39,IF(N$1<'Dados de Entrada'!$B$19+'Dados de Entrada'!$B$18,0,"")) -> 24300 | O8: =IF(AND(O$1>='Dados de Entrada'!$B$19+'Dados de Entrada'!$B$18,O$1<='Dados de Entrada'!$B$21),('Dados de Entrada'!$B$30*10^3)*'Dados de Entrada'!$B$43*'Dados de Entrada'!$B$39,IF(O$1<'Dados de Entrada'!$B$19+'Dados de Entrada'!$B$18,0,"")) -> 24300 | P8: =IF(AND(P$1>='Dados de Entrada'!$B$19+'Dados de Entrada'!$B$18,P$1<='Dados de Entrada'!$B$21),('Dados de Entrada'!$B$30*10^3)*'Dados de Entrada'!$B$43*'Dados de Entrada'!$B$39,IF(P$1<'Dados de Entrada'!$B$19+'Dados de Entrada'!$B$18,0,"")) -> 24300 | Q8: =IF(AND(Q$1>='Dados de Entrada'!$B$19+'Dados de Entrada'!$B$18,Q$1<='Dados de Entrada'!$B$21),('Dados de Entrada'!$B$30*10^3)*'Dados de Entrada'!$B$43*'Dados de Entrada'!$B$39,IF(Q$1<'Dados de Entrada'!$B$19+'Dados de Entrada'!$B$18,0,"")) -> 24300 | R8: =IF(AND(R$1>='Dados de Entrada'!$B$19+'Dados de Entrada'!$B$18,R$1<='Dados de Entrada'!$B$21),('Dados de Entrada'!$B$30*10^3)*'Dados de Entrada'!$B$43*'Dados de Entrada'!$B$39,IF(R$1<'Dados de Entrada'!$B$19+'Dados de Entrada'!$B$18,0,"")) -> 24300 | S8: =IF(AND(S$1>='Dados de Entrada'!$B$19+'Dados de Entrada'!$B$18,S$1<='Dados de Entrada'!$B$21),('Dados de Entrada'!$B$30*10^3)*'Dados de Entrada'!$B$43*'Dados de Entrada'!$B$39,IF(S$1<'Dados de Entrada'!$B$19+'Dados de Entrada'!$B$18,0,"")) -> 24300 | T8: =IF(AND(T$1>='Dados de Entrada'!$B$19+'Dados de Entrada'!$B$18,T$1<='Dados de Entrada'!$B$21),('Dados de Entrada'!$B$30*10^3)*'Dados de Entrada'!$B$43*'Dados de Entrada'!$B$39,IF(T$1<'Dados de Entrada'!$B$19+'Dados de Entrada'!$B$18,0,"")) -> 24300 | U8: =IF(AND(U$1>='Dados de Entrada'!$B$19+'Dados de Entrada'!$B$18,U$1<='Dados de Entrada'!$B$21),('Dados de Entrada'!$B$30*10^3)*'Dados de Entrada'!$B$43*'Dados de Entrada'!$B$39,IF(U$1<'Dados de Entrada'!$B$19+'Dados de Entrada'!$B$18,0,"")) -> 24300 | V8: =IF(AND(V$1>='Dados de Entrada'!$B$19+'Dados de Entrada'!$B$18,V$1<='Dados de Entrada'!$B$21),('Dados de Entrada'!$B$30*10^3)*'Dados de Entrada'!$B$43*'Dados de Entrada'!$B$39,IF(V$1<'Dados de Entrada'!$B$19+'Dados de Entrada'!$B$18,0,"")) -> 24300 | W8: =IF(AND(W$1>='Dados de Entrada'!$B$19+'Dados de Entrada'!$B$18,W$1<='Dados de Entrada'!$B$21),('Dados de Entrada'!$B$30*10^3)*'Dados de Entrada'!$B$43*'Dados de Entrada'!$B$39,IF(W$1<'Dados de Entrada'!$B$19+'Dados de Entrada'!$B$18,0,"")) -> 24300 | X8: =IF(AND(X$1>='Dados de Entrada'!$B$19+'Dados de Entrada'!$B$18,X$1<='Dados de Entrada'!$B$21),('Dados de Entrada'!$B$30*10^3)*'Dados de Entrada'!$B$43*'Dados de Entrada'!$B$39,IF(X$1<'Dados de Entrada'!$B$19+'Dados de Entrada'!$B$18,0,"")) ->  | Y8: =IF(AND(Y$1>='Dados de Entrada'!$B$19+'Dados de Entrada'!$B$18,Y$1<='Dados de Entrada'!$B$21),('Dados de Entrada'!$B$30*10^3)*'Dados de Entrada'!$B$43*'Dados de Entrada'!$B$39,IF(Y$1<'Dados de Entrada'!$B$19+'Dados de Entrada'!$B$18,0,"")) ->  | Z8: =IF(AND(Z$1>='Dados de Entrada'!$B$19+'Dados de Entrada'!$B$18,Z$1<='Dados de Entrada'!$B$21),('Dados de Entrada'!$B$30*10^3)*'Dados de Entrada'!$B$43*'Dados de Entrada'!$B$39,IF(Z$1<'Dados de Entrada'!$B$19+'Dados de Entrada'!$B$18,0,"")) ->  | AA8: =IF(AND(AA$1>='Dados de Entrada'!$B$19+'Dados de Entrada'!$B$18,AA$1<='Dados de Entrada'!$B$21),('Dados de Entrada'!$B$30*10^3)*'Dados de Entrada'!$B$43*'Dados de Entrada'!$B$39,IF(AA$1<'Dados de Entrada'!$B$19+'Dados de Entrada'!$B$18,0,"")) ->  | AB8: =IF(AND(AB$1>='Dados de Entrada'!$B$19+'Dados de Entrada'!$B$18,AB$1<='Dados de Entrada'!$B$21),('Dados de Entrada'!$B$30*10^3)*'Dados de Entrada'!$B$43*'Dados de Entrada'!$B$39,IF(AB$1<'Dados de Entrada'!$B$19+'Dados de Entrada'!$B$18,0,"")) ->  | AC8: =IF(AND(AC$1>='Dados de Entrada'!$B$19+'Dados de Entrada'!$B$18,AC$1<='Dados de Entrada'!$B$21),('Dados de Entrada'!$B$30*10^3)*'Dados de Entrada'!$B$43*'Dados de Entrada'!$B$39,IF(AC$1<'Dados de Entrada'!$B$19+'Dados de Entrada'!$B$18,0,"")) ->  | AD8: =IF(AND(AD$1>='Dados de Entrada'!$B$19+'Dados de Entrada'!$B$18,AD$1<='Dados de Entrada'!$B$21),('Dados de Entrada'!$B$30*10^3)*'Dados de Entrada'!$B$43*'Dados de Entrada'!$B$39,IF(AD$1<'Dados de Entrada'!$B$19+'Dados de Entrada'!$B$18,0,"")) ->  | AE8: =IF(AND(AE$1>='Dados de Entrada'!$B$19+'Dados de Entrada'!$B$18,AE$1<='Dados de Entrada'!$B$21),('Dados de Entrada'!$B$30*10^3)*'Dados de Entrada'!$B$43*'Dados de Entrada'!$B$39,IF(AE$1<'Dados de Entrada'!$B$19+'Dados de Entrada'!$B$18,0,"")) ->  | AF8: =IF(AND(AF$1>='Dados de Entrada'!$B$19+'Dados de Entrada'!$B$18,AF$1<='Dados de Entrada'!$B$21),('Dados de Entrada'!$B$30*10^3)*'Dados de Entrada'!$B$43*'Dados de Entrada'!$B$39,IF(AF$1<'Dados de Entrada'!$B$19+'Dados de Entrada'!$B$18,0,"")) ->  | AG8: =IF(AND(AG$1>='Dados de Entrada'!$B$19+'Dados de Entrada'!$B$18,AG$1<='Dados de Entrada'!$B$21),('Dados de Entrada'!$B$30*10^3)*'Dados de Entrada'!$B$43*'Dados de Entrada'!$B$39,IF(AG$1<'Dados de Entrada'!$B$19+'Dados de Entrada'!$B$18,0,"")) ->  | AH8: =IF(AND(AH$1>='Dados de Entrada'!$B$19+'Dados de Entrada'!$B$18,AH$1<='Dados de Entrada'!$B$21),('Dados de Entrada'!$B$30*10^3)*'Dados de Entrada'!$B$43*'Dados de Entrada'!$B$39,IF(AH$1<'Dados de Entrada'!$B$19+'Dados de Entrada'!$B$18,0,"")) ->  | AI8: =IF(AND(AI$1>='Dados de Entrada'!$B$19+'Dados de Entrada'!$B$18,AI$1<='Dados de Entrada'!$B$21),('Dados de Entrada'!$B$30*10^3)*'Dados de Entrada'!$B$43*'Dados de Entrada'!$B$39,IF(AI$1<'Dados de Entrada'!$B$19+'Dados de Entrada'!$B$18,0,"")) ->  | AJ8: =IF(AND(AJ$1>='Dados de Entrada'!$B$19+'Dados de Entrada'!$B$18,AJ$1<='Dados de Entrada'!$B$21),('Dados de Entrada'!$B$30*10^3)*'Dados de Entrada'!$B$43*'Dados de Entrada'!$B$39,IF(AJ$1<'Dados de Entrada'!$B$19+'Dados de Entrada'!$B$18,0,"")) ->  | AK8: =IF(AND(AK$1>='Dados de Entrada'!$B$19+'Dados de Entrada'!$B$18,AK$1<='Dados de Entrada'!$B$21),('Dados de Entrada'!$B$30*10^3)*'Dados de Entrada'!$B$43*'Dados de Entrada'!$B$39,IF(AK$1<'Dados de Entrada'!$B$19+'Dados de Entrada'!$B$18,0,"")) ->  | AL8: =IF(AND(AL$1>='Dados de Entrada'!$B$19+'Dados de Entrada'!$B$18,AL$1<='Dados de Entrada'!$B$21),('Dados de Entrada'!$B$30*10^3)*'Dados de Entrada'!$B$43*'Dados de Entrada'!$B$39,IF(AL$1<'Dados de Entrada'!$B$19+'Dados de Entrada'!$B$18,0,"")) ->  | AM8: =IF(AND(AM$1>='Dados de Entrada'!$B$19+'Dados de Entrada'!$B$18,AM$1<='Dados de Entrada'!$B$21),('Dados de Entrada'!$B$30*10^3)*'Dados de Entrada'!$B$43*'Dados de Entrada'!$B$39,IF(AM$1<'Dados de Entrada'!$B$19+'Dados de Entrada'!$B$18,0,"")) ->  | AN8: =IF(AND(AN$1>='Dados de Entrada'!$B$19+'Dados de Entrada'!$B$18,AN$1<='Dados de Entrada'!$B$21),('Dados de Entrada'!$B$30*10^3)*'Dados de Entrada'!$B$43*'Dados de Entrada'!$B$39,IF(AN$1<'Dados de Entrada'!$B$19+'Dados de Entrada'!$B$18,0,"")) ->  | AO8: =IF(AND(AO$1>='Dados de Entrada'!$B$19+'Dados de Entrada'!$B$18,AO$1<='Dados de Entrada'!$B$21),('Dados de Entrada'!$B$30*10^3)*'Dados de Entrada'!$B$43*'Dados de Entrada'!$B$39,IF(AO$1<'Dados de Entrada'!$B$19+'Dados de Entrada'!$B$18,0,"")) -> 
A9: Opex associado a Outros custos operacionais (2.1.4) | B9: =IF(AND(B$1>='Dados de Entrada'!$B$19+'Dados de Entrada'!$B$18,B$1<='Dados de Entrada'!$B$21),'Dados de Entrada'!$B$45*'Dados de Entrada'!$B$35,IF(B$1<'Dados de Entrada'!$B$19+'Dados de Entrada'!$B$18,0,"")) -> 0 | C9: =IF(AND(C$1>='Dados de Entrada'!$B$19+'Dados de Entrada'!$B$18,C$1<='Dados de Entrada'!$B$21),'Dados de Entrada'!$B$45*'Dados de Entrada'!$B$35,IF(C$1<'Dados de Entrada'!$B$19+'Dados de Entrada'!$B$18,0,"")) -> 0 | D9: =IF(AND(D$1>='Dados de Entrada'!$B$19+'Dados de Entrada'!$B$18,D$1<='Dados de Entrada'!$B$21),'Dados de Entrada'!$B$45*'Dados de Entrada'!$B$35,IF(D$1<'Dados de Entrada'!$B$19+'Dados de Entrada'!$B$18,0,"")) -> 284239.7974 | E9: =IF(AND(E$1>='Dados de Entrada'!$B$19+'Dados de Entrada'!$B$18,E$1<='Dados de Entrada'!$B$21),'Dados de Entrada'!$B$45*'Dados de Entrada'!$B$35,IF(E$1<'Dados de Entrada'!$B$19+'Dados de Entrada'!$B$18,0,"")) -> 284239.7974 | F9: =IF(AND(F$1>='Dados de Entrada'!$B$19+'Dados de Entrada'!$B$18,F$1<='Dados de Entrada'!$B$21),'Dados de Entrada'!$B$45*'Dados de Entrada'!$B$35,IF(F$1<'Dados de Entrada'!$B$19+'Dados de Entrada'!$B$18,0,"")) -> 284239.7974 | G9: =IF(AND(G$1>='Dados de Entrada'!$B$19+'Dados de Entrada'!$B$18,G$1<='Dados de Entrada'!$B$21),'Dados de Entrada'!$B$45*'Dados de Entrada'!$B$35,IF(G$1<'Dados de Entrada'!$B$19+'Dados de Entrada'!$B$18,0,"")) -> 284239.7974 | H9: =IF(AND(H$1>='Dados de Entrada'!$B$19+'Dados de Entrada'!$B$18,H$1<='Dados de Entrada'!$B$21),'Dados de Entrada'!$B$45*'Dados de Entrada'!$B$35,IF(H$1<'Dados de Entrada'!$B$19+'Dados de Entrada'!$B$18,0,"")) -> 284239.7974 | I9: =IF(AND(I$1>='Dados de Entrada'!$B$19+'Dados de Entrada'!$B$18,I$1<='Dados de Entrada'!$B$21),'Dados de Entrada'!$B$45*'Dados de Entrada'!$B$35,IF(I$1<'Dados de Entrada'!$B$19+'Dados de Entrada'!$B$18,0,"")) -> 284239.7974 | J9: =IF(AND(J$1>='Dados de Entrada'!$B$19+'Dados de Entrada'!$B$18,J$1<='Dados de Entrada'!$B$21),'Dados de Entrada'!$B$45*'Dados de Entrada'!$B$35,IF(J$1<'Dados de Entrada'!$B$19+'Dados de Entrada'!$B$18,0,"")) -> 284239.7974 | K9: =IF(AND(K$1>='Dados de Entrada'!$B$19+'Dados de Entrada'!$B$18,K$1<='Dados de Entrada'!$B$21),'Dados de Entrada'!$B$45*'Dados de Entrada'!$B$35,IF(K$1<'Dados de Entrada'!$B$19+'Dados de Entrada'!$B$18,0,"")) -> 284239.7974 | L9: =IF(AND(L$1>='Dados de Entrada'!$B$19+'Dados de Entrada'!$B$18,L$1<='Dados de Entrada'!$B$21),'Dados de Entrada'!$B$45*'Dados de Entrada'!$B$35,IF(L$1<'Dados de Entrada'!$B$19+'Dados de Entrada'!$B$18,0,"")) -> 284239.7974 | M9: =IF(AND(M$1>='Dados de Entrada'!$B$19+'Dados de Entrada'!$B$18,M$1<='Dados de Entrada'!$B$21),'Dados de Entrada'!$B$45*'Dados de Entrada'!$B$35,IF(M$1<'Dados de Entrada'!$B$19+'Dados de Entrada'!$B$18,0,"")) -> 284239.7974 | N9: =IF(AND(N$1>='Dados de Entrada'!$B$19+'Dados de Entrada'!$B$18,N$1<='Dados de Entrada'!$B$21),'Dados de Entrada'!$B$45*'Dados de Entrada'!$B$35,IF(N$1<'Dados de Entrada'!$B$19+'Dados de Entrada'!$B$18,0,"")) -> 284239.7974 | O9: =IF(AND(O$1>='Dados de Entrada'!$B$19+'Dados de Entrada'!$B$18,O$1<='Dados de Entrada'!$B$21),'Dados de Entrada'!$B$45*'Dados de Entrada'!$B$35,IF(O$1<'Dados de Entrada'!$B$19+'Dados de Entrada'!$B$18,0,"")) -> 284239.7974 | P9: =IF(AND(P$1>='Dados de Entrada'!$B$19+'Dados de Entrada'!$B$18,P$1<='Dados de Entrada'!$B$21),'Dados de Entrada'!$B$45*'Dados de Entrada'!$B$35,IF(P$1<'Dados de Entrada'!$B$19+'Dados de Entrada'!$B$18,0,"")) -> 284239.7974 | Q9: =IF(AND(Q$1>='Dados de Entrada'!$B$19+'Dados de Entrada'!$B$18,Q$1<='Dados de Entrada'!$B$21),'Dados de Entrada'!$B$45*'Dados de Entrada'!$B$35,IF(Q$1<'Dados de Entrada'!$B$19+'Dados de Entrada'!$B$18,0,"")) -> 284239.7974 | R9: =IF(AND(R$1>='Dados de Entrada'!$B$19+'Dados de Entrada'!$B$18,R$1<='Dados de Entrada'!$B$21),'Dados de Entrada'!$B$45*'Dados de Entrada'!$B$35,IF(R$1<'Dados de Entrada'!$B$19+'Dados de Entrada'!$B$18,0,"")) -> 284239.7974 | S9: =IF(AND(S$1>='Dados de Entrada'!$B$19+'Dados de Entrada'!$B$18,S$1<='Dados de Entrada'!$B$21),'Dados de Entrada'!$B$45*'Dados de Entrada'!$B$35,IF(S$1<'Dados de Entrada'!$B$19+'Dados de Entrada'!$B$18,0,"")) -> 284239.7974 | T9: =IF(AND(T$1>='Dados de Entrada'!$B$19+'Dados de Entrada'!$B$18,T$1<='Dados de Entrada'!$B$21),'Dados de Entrada'!$B$45*'Dados de Entrada'!$B$35,IF(T$1<'Dados de Entrada'!$B$19+'Dados de Entrada'!$B$18,0,"")) -> 284239.7974 | U9: =IF(AND(U$1>='Dados de Entrada'!$B$19+'Dados de Entrada'!$B$18,U$1<='Dados de Entrada'!$B$21),'Dados de Entrada'!$B$45*'Dados de Entrada'!$B$35,IF(U$1<'Dados de Entrada'!$B$19+'Dados de Entrada'!$B$18,0,"")) -> 284239.7974 | V9: =IF(AND(V$1>='Dados de Entrada'!$B$19+'Dados de Entrada'!$B$18,V$1<='Dados de Entrada'!$B$21),'Dados de Entrada'!$B$45*'Dados de Entrada'!$B$35,IF(V$1<'Dados de Entrada'!$B$19+'Dados de Entrada'!$B$18,0,"")) -> 284239.7974 | W9: =IF(AND(W$1>='Dados de Entrada'!$B$19+'Dados de Entrada'!$B$18,W$1<='Dados de Entrada'!$B$21),'Dados de Entrada'!$B$45*'Dados de Entrada'!$B$35,IF(W$1<'Dados de Entrada'!$B$19+'Dados de Entrada'!$B$18,0,"")) -> 284239.7974 | X9: =IF(AND(X$1>='Dados de Entrada'!$B$19+'Dados de Entrada'!$B$18,X$1<='Dados de Entrada'!$B$21),'Dados de Entrada'!$B$45*'Dados de Entrada'!$B$35,IF(X$1<'Dados de Entrada'!$B$19+'Dados de Entrada'!$B$18,0,"")) ->  | Y9: =IF(AND(Y$1>='Dados de Entrada'!$B$19+'Dados de Entrada'!$B$18,Y$1<='Dados de Entrada'!$B$21),'Dados de Entrada'!$B$45*'Dados de Entrada'!$B$35,IF(Y$1<'Dados de Entrada'!$B$19+'Dados de Entrada'!$B$18,0,"")) ->  | Z9: =IF(AND(Z$1>='Dados de Entrada'!$B$19+'Dados de Entrada'!$B$18,Z$1<='Dados de Entrada'!$B$21),'Dados de Entrada'!$B$45*'Dados de Entrada'!$B$35,IF(Z$1<'Dados de Entrada'!$B$19+'Dados de Entrada'!$B$18,0,"")) ->  | AA9: =IF(AND(AA$1>='Dados de Entrada'!$B$19+'Dados de Entrada'!$B$18,AA$1<='Dados de Entrada'!$B$21),'Dados de Entrada'!$B$45*'Dados de Entrada'!$B$35,IF(AA$1<'Dados de Entrada'!$B$19+'Dados de Entrada'!$B$18,0,"")) ->  | AB9: =IF(AND(AB$1>='Dados de Entrada'!$B$19+'Dados de Entrada'!$B$18,AB$1<='Dados de Entrada'!$B$21),'Dados de Entrada'!$B$45*'Dados de Entrada'!$B$35,IF(AB$1<'Dados de Entrada'!$B$19+'Dados de Entrada'!$B$18,0,"")) ->  | AC9: =IF(AND(AC$1>='Dados de Entrada'!$B$19+'Dados de Entrada'!$B$18,AC$1<='Dados de Entrada'!$B$21),'Dados de Entrada'!$B$45*'Dados de Entrada'!$B$35,IF(AC$1<'Dados de Entrada'!$B$19+'Dados de Entrada'!$B$18,0,"")) ->  | AD9: =IF(AND(AD$1>='Dados de Entrada'!$B$19+'Dados de Entrada'!$B$18,AD$1<='Dados de Entrada'!$B$21),'Dados de Entrada'!$B$45*'Dados de Entrada'!$B$35,IF(AD$1<'Dados de Entrada'!$B$19+'Dados de Entrada'!$B$18,0,"")) ->  | AE9: =IF(AND(AE$1>='Dados de Entrada'!$B$19+'Dados de Entrada'!$B$18,AE$1<='Dados de Entrada'!$B$21),'Dados de Entrada'!$B$45*'Dados de Entrada'!$B$35,IF(AE$1<'Dados de Entrada'!$B$19+'Dados de Entrada'!$B$18,0,"")) ->  | AF9: =IF(AND(AF$1>='Dados de Entrada'!$B$19+'Dados de Entrada'!$B$18,AF$1<='Dados de Entrada'!$B$21),'Dados de Entrada'!$B$45*'Dados de Entrada'!$B$35,IF(AF$1<'Dados de Entrada'!$B$19+'Dados de Entrada'!$B$18,0,"")) ->  | AG9: =IF(AND(AG$1>='Dados de Entrada'!$B$19+'Dados de Entrada'!$B$18,AG$1<='Dados de Entrada'!$B$21),'Dados de Entrada'!$B$45*'Dados de Entrada'!$B$35,IF(AG$1<'Dados de Entrada'!$B$19+'Dados de Entrada'!$B$18,0,"")) ->  | AH9: =IF(AND(AH$1>='Dados de Entrada'!$B$19+'Dados de Entrada'!$B$18,AH$1<='Dados de Entrada'!$B$21),'Dados de Entrada'!$B$45*'Dados de Entrada'!$B$35,IF(AH$1<'Dados de Entrada'!$B$19+'Dados de Entrada'!$B$18,0,"")) ->  | AI9: =IF(AND(AI$1>='Dados de Entrada'!$B$19+'Dados de Entrada'!$B$18,AI$1<='Dados de Entrada'!$B$21),'Dados de Entrada'!$B$45*'Dados de Entrada'!$B$35,IF(AI$1<'Dados de Entrada'!$B$19+'Dados de Entrada'!$B$18,0,"")) ->  | AJ9: =IF(AND(AJ$1>='Dados de Entrada'!$B$19+'Dados de Entrada'!$B$18,AJ$1<='Dados de Entrada'!$B$21),'Dados de Entrada'!$B$45*'Dados de Entrada'!$B$35,IF(AJ$1<'Dados de Entrada'!$B$19+'Dados de Entrada'!$B$18,0,"")) ->  | AK9: =IF(AND(AK$1>='Dados de Entrada'!$B$19+'Dados de Entrada'!$B$18,AK$1<='Dados de Entrada'!$B$21),'Dados de Entrada'!$B$45*'Dados de Entrada'!$B$35,IF(AK$1<'Dados de Entrada'!$B$19+'Dados de Entrada'!$B$18,0,"")) ->  | AL9: =IF(AND(AL$1>='Dados de Entrada'!$B$19+'Dados de Entrada'!$B$18,AL$1<='Dados de Entrada'!$B$21),'Dados de Entrada'!$B$45*'Dados de Entrada'!$B$35,IF(AL$1<'Dados de Entrada'!$B$19+'Dados de Entrada'!$B$18,0,"")) ->  | AM9: =IF(AND(AM$1>='Dados de Entrada'!$B$19+'Dados de Entrada'!$B$18,AM$1<='Dados de Entrada'!$B$21),'Dados de Entrada'!$B$45*'Dados de Entrada'!$B$35,IF(AM$1<'Dados de Entrada'!$B$19+'Dados de Entrada'!$B$18,0,"")) ->  | AN9: =IF(AND(AN$1>='Dados de Entrada'!$B$19+'Dados de Entrada'!$B$18,AN$1<='Dados de Entrada'!$B$21),'Dados de Entrada'!$B$45*'Dados de Entrada'!$B$35,IF(AN$1<'Dados de Entrada'!$B$19+'Dados de Entrada'!$B$18,0,"")) ->  | AO9: =IF(AND(AO$1>='Dados de Entrada'!$B$19+'Dados de Entrada'!$B$18,AO$1<='Dados de Entrada'!$B$21),'Dados de Entrada'!$B$45*'Dados de Entrada'!$B$35,IF(AO$1<'Dados de Entrada'!$B$19+'Dados de Entrada'!$B$18,0,"")) -> 
A10: Opex do CCS (2.2) = (2.2.1) + (2.2.2) + (2.2.3) | B10: =IF(AND(B$1>='Dados de Entrada'!$B$19+'Dados de Entrada'!$B$18,B$1<='Dados de Entrada'!$B$21),B11+B15,IF(B$1<'Dados de Entrada'!$B$19+'Dados de Entrada'!$B$18,0,"")) -> 0 | C10: =IF(AND(C$1>='Dados de Entrada'!$B$19+'Dados de Entrada'!$B$18,C$1<='Dados de Entrada'!$B$21),C11+C15,IF(C$1<'Dados de Entrada'!$B$19+'Dados de Entrada'!$B$18,0,"")) -> 0 | D10: =IF(AND(D$1>='Dados de Entrada'!$B$19+'Dados de Entrada'!$B$18,D$1<='Dados de Entrada'!$B$21),D11+D15,IF(D$1<'Dados de Entrada'!$B$19+'Dados de Entrada'!$B$18,0,"")) -> 0 | E10: =IF(AND(E$1>='Dados de Entrada'!$B$19+'Dados de Entrada'!$B$18,E$1<='Dados de Entrada'!$B$21),E11+E15,IF(E$1<'Dados de Entrada'!$B$19+'Dados de Entrada'!$B$18,0,"")) -> 0 | F10: =IF(AND(F$1>='Dados de Entrada'!$B$19+'Dados de Entrada'!$B$18,F$1<='Dados de Entrada'!$B$21),F11+F15,IF(F$1<'Dados de Entrada'!$B$19+'Dados de Entrada'!$B$18,0,"")) -> 0 | G10: =IF(AND(G$1>='Dados de Entrada'!$B$19+'Dados de Entrada'!$B$18,G$1<='Dados de Entrada'!$B$21),G11+G15,IF(G$1<'Dados de Entrada'!$B$19+'Dados de Entrada'!$B$18,0,"")) -> 0 | H10: =IF(AND(H$1>='Dados de Entrada'!$B$19+'Dados de Entrada'!$B$18,H$1<='Dados de Entrada'!$B$21),H11+H15,IF(H$1<'Dados de Entrada'!$B$19+'Dados de Entrada'!$B$18,0,"")) -> 0 | I10: =IF(AND(I$1>='Dados de Entrada'!$B$19+'Dados de Entrada'!$B$18,I$1<='Dados de Entrada'!$B$21),I11+I15,IF(I$1<'Dados de Entrada'!$B$19+'Dados de Entrada'!$B$18,0,"")) -> 0 | J10: =IF(AND(J$1>='Dados de Entrada'!$B$19+'Dados de Entrada'!$B$18,J$1<='Dados de Entrada'!$B$21),J11+J15,IF(J$1<'Dados de Entrada'!$B$19+'Dados de Entrada'!$B$18,0,"")) -> 0 | K10: =IF(AND(K$1>='Dados de Entrada'!$B$19+'Dados de Entrada'!$B$18,K$1<='Dados de Entrada'!$B$21),K11+K15,IF(K$1<'Dados de Entrada'!$B$19+'Dados de Entrada'!$B$18,0,"")) -> 0 | L10: =IF(AND(L$1>='Dados de Entrada'!$B$19+'Dados de Entrada'!$B$18,L$1<='Dados de Entrada'!$B$21),L11+L15,IF(L$1<'Dados de Entrada'!$B$19+'Dados de Entrada'!$B$18,0,"")) -> 0 | M10: =IF(AND(M$1>='Dados de Entrada'!$B$19+'Dados de Entrada'!$B$18,M$1<='Dados de Entrada'!$B$21),M11+M15,IF(M$1<'Dados de Entrada'!$B$19+'Dados de Entrada'!$B$18,0,"")) -> 0 | N10: =IF(AND(N$1>='Dados de Entrada'!$B$19+'Dados de Entrada'!$B$18,N$1<='Dados de Entrada'!$B$21),N11+N15,IF(N$1<'Dados de Entrada'!$B$19+'Dados de Entrada'!$B$18,0,"")) -> 0 | O10: =IF(AND(O$1>='Dados de Entrada'!$B$19+'Dados de Entrada'!$B$18,O$1<='Dados de Entrada'!$B$21),O11+O15,IF(O$1<'Dados de Entrada'!$B$19+'Dados de Entrada'!$B$18,0,"")) -> 0 | P10: =IF(AND(P$1>='Dados de Entrada'!$B$19+'Dados de Entrada'!$B$18,P$1<='Dados de Entrada'!$B$21),P11+P15,IF(P$1<'Dados de Entrada'!$B$19+'Dados de Entrada'!$B$18,0,"")) -> 0 | Q10: =IF(AND(Q$1>='Dados de Entrada'!$B$19+'Dados de Entrada'!$B$18,Q$1<='Dados de Entrada'!$B$21),Q11+Q15,IF(Q$1<'Dados de Entrada'!$B$19+'Dados de Entrada'!$B$18,0,"")) -> 0 | R10: =IF(AND(R$1>='Dados de Entrada'!$B$19+'Dados de Entrada'!$B$18,R$1<='Dados de Entrada'!$B$21),R11+R15,IF(R$1<'Dados de Entrada'!$B$19+'Dados de Entrada'!$B$18,0,"")) -> 0 | S10: =IF(AND(S$1>='Dados de Entrada'!$B$19+'Dados de Entrada'!$B$18,S$1<='Dados de Entrada'!$B$21),S11+S15,IF(S$1<'Dados de Entrada'!$B$19+'Dados de Entrada'!$B$18,0,"")) -> 0 | T10: =IF(AND(T$1>='Dados de Entrada'!$B$19+'Dados de Entrada'!$B$18,T$1<='Dados de Entrada'!$B$21),T11+T15,IF(T$1<'Dados de Entrada'!$B$19+'Dados de Entrada'!$B$18,0,"")) -> 0 | U10: =IF(AND(U$1>='Dados de Entrada'!$B$19+'Dados de Entrada'!$B$18,U$1<='Dados de Entrada'!$B$21),U11+U15,IF(U$1<'Dados de Entrada'!$B$19+'Dados de Entrada'!$B$18,0,"")) -> 0 | V10: =IF(AND(V$1>='Dados de Entrada'!$B$19+'Dados de Entrada'!$B$18,V$1<='Dados de Entrada'!$B$21),V11+V15,IF(V$1<'Dados de Entrada'!$B$19+'Dados de Entrada'!$B$18,0,"")) -> 0 | W10: =IF(AND(W$1>='Dados de Entrada'!$B$19+'Dados de Entrada'!$B$18,W$1<='Dados de Entrada'!$B$21),W11+W15,IF(W$1<'Dados de Entrada'!$B$19+'Dados de Entrada'!$B$18,0,"")) -> 0 | X10: =IF(AND(X$1>='Dados de Entrada'!$B$19+'Dados de Entrada'!$B$18,X$1<='Dados de Entrada'!$B$21),X11+X15,IF(X$1<'Dados de Entrada'!$B$19+'Dados de Entrada'!$B$18,0,"")) ->  | Y10: =IF(AND(Y$1>='Dados de Entrada'!$B$19+'Dados de Entrada'!$B$18,Y$1<='Dados de Entrada'!$B$21),Y11+Y15,IF(Y$1<'Dados de Entrada'!$B$19+'Dados de Entrada'!$B$18,0,"")) ->  | Z10: =IF(AND(Z$1>='Dados de Entrada'!$B$19+'Dados de Entrada'!$B$18,Z$1<='Dados de Entrada'!$B$21),Z11+Z15,IF(Z$1<'Dados de Entrada'!$B$19+'Dados de Entrada'!$B$18,0,"")) ->  | AA10: =IF(AND(AA$1>='Dados de Entrada'!$B$19+'Dados de Entrada'!$B$18,AA$1<='Dados de Entrada'!$B$21),AA11+AA15,IF(AA$1<'Dados de Entrada'!$B$19+'Dados de Entrada'!$B$18,0,"")) ->  | AB10: =IF(AND(AB$1>='Dados de Entrada'!$B$19+'Dados de Entrada'!$B$18,AB$1<='Dados de Entrada'!$B$21),AB11+AB15,IF(AB$1<'Dados de Entrada'!$B$19+'Dados de Entrada'!$B$18,0,"")) ->  | AC10: =IF(AND(AC$1>='Dados de Entrada'!$B$19+'Dados de Entrada'!$B$18,AC$1<='Dados de Entrada'!$B$21),AC11+AC15,IF(AC$1<'Dados de Entrada'!$B$19+'Dados de Entrada'!$B$18,0,"")) ->  | AD10: =IF(AND(AD$1>='Dados de Entrada'!$B$19+'Dados de Entrada'!$B$18,AD$1<='Dados de Entrada'!$B$21),AD11+AD15,IF(AD$1<'Dados de Entrada'!$B$19+'Dados de Entrada'!$B$18,0,"")) ->  | AE10: =IF(AND(AE$1>='Dados de Entrada'!$B$19+'Dados de Entrada'!$B$18,AE$1<='Dados de Entrada'!$B$21),AE11+AE15,IF(AE$1<'Dados de Entrada'!$B$19+'Dados de Entrada'!$B$18,0,"")) ->  | AF10: =IF(AND(AF$1>='Dados de Entrada'!$B$19+'Dados de Entrada'!$B$18,AF$1<='Dados de Entrada'!$B$21),AF11+AF15,IF(AF$1<'Dados de Entrada'!$B$19+'Dados de Entrada'!$B$18,0,"")) ->  | AG10: =IF(AND(AG$1>='Dados de Entrada'!$B$19+'Dados de Entrada'!$B$18,AG$1<='Dados de Entrada'!$B$21),AG11+AG15,IF(AG$1<'Dados de Entrada'!$B$19+'Dados de Entrada'!$B$18,0,"")) ->  | AH10: =IF(AND(AH$1>='Dados de Entrada'!$B$19+'Dados de Entrada'!$B$18,AH$1<='Dados de Entrada'!$B$21),AH11+AH15,IF(AH$1<'Dados de Entrada'!$B$19+'Dados de Entrada'!$B$18,0,"")) ->  | AI10: =IF(AND(AI$1>='Dados de Entrada'!$B$19+'Dados de Entrada'!$B$18,AI$1<='Dados de Entrada'!$B$21),AI11+AI15,IF(AI$1<'Dados de Entrada'!$B$19+'Dados de Entrada'!$B$18,0,"")) ->  | AJ10: =IF(AND(AJ$1>='Dados de Entrada'!$B$19+'Dados de Entrada'!$B$18,AJ$1<='Dados de Entrada'!$B$21),AJ11+AJ15,IF(AJ$1<'Dados de Entrada'!$B$19+'Dados de Entrada'!$B$18,0,"")) ->  | AK10: =IF(AND(AK$1>='Dados de Entrada'!$B$19+'Dados de Entrada'!$B$18,AK$1<='Dados de Entrada'!$B$21),AK11+AK15,IF(AK$1<'Dados de Entrada'!$B$19+'Dados de Entrada'!$B$18,0,"")) ->  | AL10: =IF(AND(AL$1>='Dados de Entrada'!$B$19+'Dados de Entrada'!$B$18,AL$1<='Dados de Entrada'!$B$21),AL11+AL15,IF(AL$1<'Dados de Entrada'!$B$19+'Dados de Entrada'!$B$18,0,"")) ->  | AM10: =IF(AND(AM$1>='Dados de Entrada'!$B$19+'Dados de Entrada'!$B$18,AM$1<='Dados de Entrada'!$B$21),AM11+AM15,IF(AM$1<'Dados de Entrada'!$B$19+'Dados de Entrada'!$B$18,0,"")) ->  | AN10: =IF(AND(AN$1>='Dados de Entrada'!$B$19+'Dados de Entrada'!$B$18,AN$1<='Dados de Entrada'!$B$21),AN11+AN15,IF(AN$1<'Dados de Entrada'!$B$19+'Dados de Entrada'!$B$18,0,"")) ->  | AO10: =IF(AND(AO$1>='Dados de Entrada'!$B$19+'Dados de Entrada'!$B$18,AO$1<='Dados de Entrada'!$B$21),AO11+AO15,IF(AO$1<'Dados de Entrada'!$B$19+'Dados de Entrada'!$B$18,0,"")) -> 
A11: Opex da Captura de CO2 (2.2.1) = (2.2.1.1) + (2.2.1.2) + (2.2.1.3) | B11: =IF(AND(B$1>='Dados de Entrada'!$B$19+'Dados de Entrada'!$B$18,B$1<='Dados de Entrada'!$B$21),SUM(B12:B14),IF(B$1<'Dados de Entrada'!$B$19+'Dados de Entrada'!$B$18,0,"")) -> 0 | C11: =IF(AND(C$1>='Dados de Entrada'!$B$19+'Dados de Entrada'!$B$18,C$1<='Dados de Entrada'!$B$21),SUM(C12:C14),IF(C$1<'Dados de Entrada'!$B$19+'Dados de Entrada'!$B$18,0,"")) -> 0 | D11: =IF(AND(D$1>='Dados de Entrada'!$B$19+'Dados de Entrada'!$B$18,D$1<='Dados de Entrada'!$B$21),SUM(D12:D14),IF(D$1<'Dados de Entrada'!$B$19+'Dados de Entrada'!$B$18,0,"")) -> 0 | E11: =IF(AND(E$1>='Dados de Entrada'!$B$19+'Dados de Entrada'!$B$18,E$1<='Dados de Entrada'!$B$21),SUM(E12:E14),IF(E$1<'Dados de Entrada'!$B$19+'Dados de Entrada'!$B$18,0,"")) -> 0 | F11: =IF(AND(F$1>='Dados de Entrada'!$B$19+'Dados de Entrada'!$B$18,F$1<='Dados de Entrada'!$B$21),SUM(F12:F14),IF(F$1<'Dados de Entrada'!$B$19+'Dados de Entrada'!$B$18,0,"")) -> 0 | G11: =IF(AND(G$1>='Dados de Entrada'!$B$19+'Dados de Entrada'!$B$18,G$1<='Dados de Entrada'!$B$21),SUM(G12:G14),IF(G$1<'Dados de Entrada'!$B$19+'Dados de Entrada'!$B$18,0,"")) -> 0 | H11: =IF(AND(H$1>='Dados de Entrada'!$B$19+'Dados de Entrada'!$B$18,H$1<='Dados de Entrada'!$B$21),SUM(H12:H14),IF(H$1<'Dados de Entrada'!$B$19+'Dados de Entrada'!$B$18,0,"")) -> 0 | I11: =IF(AND(I$1>='Dados de Entrada'!$B$19+'Dados de Entrada'!$B$18,I$1<='Dados de Entrada'!$B$21),SUM(I12:I14),IF(I$1<'Dados de Entrada'!$B$19+'Dados de Entrada'!$B$18,0,"")) -> 0 | J11: =IF(AND(J$1>='Dados de Entrada'!$B$19+'Dados de Entrada'!$B$18,J$1<='Dados de Entrada'!$B$21),SUM(J12:J14),IF(J$1<'Dados de Entrada'!$B$19+'Dados de Entrada'!$B$18,0,"")) -> 0 | K11: =IF(AND(K$1>='Dados de Entrada'!$B$19+'Dados de Entrada'!$B$18,K$1<='Dados de Entrada'!$B$21),SUM(K12:K14),IF(K$1<'Dados de Entrada'!$B$19+'Dados de Entrada'!$B$18,0,"")) -> 0 | L11: =IF(AND(L$1>='Dados de Entrada'!$B$19+'Dados de Entrada'!$B$18,L$1<='Dados de Entrada'!$B$21),SUM(L12:L14),IF(L$1<'Dados de Entrada'!$B$19+'Dados de Entrada'!$B$18,0,"")) -> 0 | M11: =IF(AND(M$1>='Dados de Entrada'!$B$19+'Dados de Entrada'!$B$18,M$1<='Dados de Entrada'!$B$21),SUM(M12:M14),IF(M$1<'Dados de Entrada'!$B$19+'Dados de Entrada'!$B$18,0,"")) -> 0 | N11: =IF(AND(N$1>='Dados de Entrada'!$B$19+'Dados de Entrada'!$B$18,N$1<='Dados de Entrada'!$B$21),SUM(N12:N14),IF(N$1<'Dados de Entrada'!$B$19+'Dados de Entrada'!$B$18,0,"")) -> 0 | O11: =IF(AND(O$1>='Dados de Entrada'!$B$19+'Dados de Entrada'!$B$18,O$1<='Dados de Entrada'!$B$21),SUM(O12:O14),IF(O$1<'Dados de Entrada'!$B$19+'Dados de Entrada'!$B$18,0,"")) -> 0 | P11: =IF(AND(P$1>='Dados de Entrada'!$B$19+'Dados de Entrada'!$B$18,P$1<='Dados de Entrada'!$B$21),SUM(P12:P14),IF(P$1<'Dados de Entrada'!$B$19+'Dados de Entrada'!$B$18,0,"")) -> 0 | Q11: =IF(AND(Q$1>='Dados de Entrada'!$B$19+'Dados de Entrada'!$B$18,Q$1<='Dados de Entrada'!$B$21),SUM(Q12:Q14),IF(Q$1<'Dados de Entrada'!$B$19+'Dados de Entrada'!$B$18,0,"")) -> 0 | R11: =IF(AND(R$1>='Dados de Entrada'!$B$19+'Dados de Entrada'!$B$18,R$1<='Dados de Entrada'!$B$21),SUM(R12:R14),IF(R$1<'Dados de Entrada'!$B$19+'Dados de Entrada'!$B$18,0,"")) -> 0 | S11: =IF(AND(S$1>='Dados de Entrada'!$B$19+'Dados de Entrada'!$B$18,S$1<='Dados de Entrada'!$B$21),SUM(S12:S14),IF(S$1<'Dados de Entrada'!$B$19+'Dados de Entrada'!$B$18,0,"")) -> 0 | T11: =IF(AND(T$1>='Dados de Entrada'!$B$19+'Dados de Entrada'!$B$18,T$1<='Dados de Entrada'!$B$21),SUM(T12:T14),IF(T$1<'Dados de Entrada'!$B$19+'Dados de Entrada'!$B$18,0,"")) -> 0 | U11: =IF(AND(U$1>='Dados de Entrada'!$B$19+'Dados de Entrada'!$B$18,U$1<='Dados de Entrada'!$B$21),SUM(U12:U14),IF(U$1<'Dados de Entrada'!$B$19+'Dados de Entrada'!$B$18,0,"")) -> 0 | V11: =IF(AND(V$1>='Dados de Entrada'!$B$19+'Dados de Entrada'!$B$18,V$1<='Dados de Entrada'!$B$21),SUM(V12:V14),IF(V$1<'Dados de Entrada'!$B$19+'Dados de Entrada'!$B$18,0,"")) -> 0 | W11: =IF(AND(W$1>='Dados de Entrada'!$B$19+'Dados de Entrada'!$B$18,W$1<='Dados de Entrada'!$B$21),SUM(W12:W14),IF(W$1<'Dados de Entrada'!$B$19+'Dados de Entrada'!$B$18,0,"")) -> 0 | X11: =IF(AND(X$1>='Dados de Entrada'!$B$19+'Dados de Entrada'!$B$18,X$1<='Dados de Entrada'!$B$21),SUM(X12:X14),IF(X$1<'Dados de Entrada'!$B$19+'Dados de Entrada'!$B$18,0,"")) ->  | Y11: =IF(AND(Y$1>='Dados de Entrada'!$B$19+'Dados de Entrada'!$B$18,Y$1<='Dados de Entrada'!$B$21),SUM(Y12:Y14),IF(Y$1<'Dados de Entrada'!$B$19+'Dados de Entrada'!$B$18,0,"")) ->  | Z11: =IF(AND(Z$1>='Dados de Entrada'!$B$19+'Dados de Entrada'!$B$18,Z$1<='Dados de Entrada'!$B$21),SUM(Z12:Z14),IF(Z$1<'Dados de Entrada'!$B$19+'Dados de Entrada'!$B$18,0,"")) ->  | AA11: =IF(AND(AA$1>='Dados de Entrada'!$B$19+'Dados de Entrada'!$B$18,AA$1<='Dados de Entrada'!$B$21),SUM(AA12:AA14),IF(AA$1<'Dados de Entrada'!$B$19+'Dados de Entrada'!$B$18,0,"")) ->  | AB11: =IF(AND(AB$1>='Dados de Entrada'!$B$19+'Dados de Entrada'!$B$18,AB$1<='Dados de Entrada'!$B$21),SUM(AB12:AB14),IF(AB$1<'Dados de Entrada'!$B$19+'Dados de Entrada'!$B$18,0,"")) ->  | AC11: =IF(AND(AC$1>='Dados de Entrada'!$B$19+'Dados de Entrada'!$B$18,AC$1<='Dados de Entrada'!$B$21),SUM(AC12:AC14),IF(AC$1<'Dados de Entrada'!$B$19+'Dados de Entrada'!$B$18,0,"")) ->  | AD11: =IF(AND(AD$1>='Dados de Entrada'!$B$19+'Dados de Entrada'!$B$18,AD$1<='Dados de Entrada'!$B$21),SUM(AD12:AD14),IF(AD$1<'Dados de Entrada'!$B$19+'Dados de Entrada'!$B$18,0,"")) ->  | AE11: =IF(AND(AE$1>='Dados de Entrada'!$B$19+'Dados de Entrada'!$B$18,AE$1<='Dados de Entrada'!$B$21),SUM(AE12:AE14),IF(AE$1<'Dados de Entrada'!$B$19+'Dados de Entrada'!$B$18,0,"")) ->  | AF11: =IF(AND(AF$1>='Dados de Entrada'!$B$19+'Dados de Entrada'!$B$18,AF$1<='Dados de Entrada'!$B$21),SUM(AF12:AF14),IF(AF$1<'Dados de Entrada'!$B$19+'Dados de Entrada'!$B$18,0,"")) ->  | AG11: =IF(AND(AG$1>='Dados de Entrada'!$B$19+'Dados de Entrada'!$B$18,AG$1<='Dados de Entrada'!$B$21),SUM(AG12:AG14),IF(AG$1<'Dados de Entrada'!$B$19+'Dados de Entrada'!$B$18,0,"")) ->  | AH11: =IF(AND(AH$1>='Dados de Entrada'!$B$19+'Dados de Entrada'!$B$18,AH$1<='Dados de Entrada'!$B$21),SUM(AH12:AH14),IF(AH$1<'Dados de Entrada'!$B$19+'Dados de Entrada'!$B$18,0,"")) ->  | AI11: =IF(AND(AI$1>='Dados de Entrada'!$B$19+'Dados de Entrada'!$B$18,AI$1<='Dados de Entrada'!$B$21),SUM(AI12:AI14),IF(AI$1<'Dados de Entrada'!$B$19+'Dados de Entrada'!$B$18,0,"")) ->  | AJ11: =IF(AND(AJ$1>='Dados de Entrada'!$B$19+'Dados de Entrada'!$B$18,AJ$1<='Dados de Entrada'!$B$21),SUM(AJ12:AJ14),IF(AJ$1<'Dados de Entrada'!$B$19+'Dados de Entrada'!$B$18,0,"")) ->  | AK11: =IF(AND(AK$1>='Dados de Entrada'!$B$19+'Dados de Entrada'!$B$18,AK$1<='Dados de Entrada'!$B$21),SUM(AK12:AK14),IF(AK$1<'Dados de Entrada'!$B$19+'Dados de Entrada'!$B$18,0,"")) ->  | AL11: =IF(AND(AL$1>='Dados de Entrada'!$B$19+'Dados de Entrada'!$B$18,AL$1<='Dados de Entrada'!$B$21),SUM(AL12:AL14),IF(AL$1<'Dados de Entrada'!$B$19+'Dados de Entrada'!$B$18,0,"")) ->  | AM11: =IF(AND(AM$1>='Dados de Entrada'!$B$19+'Dados de Entrada'!$B$18,AM$1<='Dados de Entrada'!$B$21),SUM(AM12:AM14),IF(AM$1<'Dados de Entrada'!$B$19+'Dados de Entrada'!$B$18,0,"")) ->  | AN11: =IF(AND(AN$1>='Dados de Entrada'!$B$19+'Dados de Entrada'!$B$18,AN$1<='Dados de Entrada'!$B$21),SUM(AN12:AN14),IF(AN$1<'Dados de Entrada'!$B$19+'Dados de Entrada'!$B$18,0,"")) ->  | AO11: =IF(AND(AO$1>='Dados de Entrada'!$B$19+'Dados de Entrada'!$B$18,AO$1<='Dados de Entrada'!$B$21),SUM(AO12:AO14),IF(AO$1<'Dados de Entrada'!$B$19+'Dados de Entrada'!$B$18,0,"")) -> 
A12: Opex associado ao Gás Natural (2.2.1.1) | B12: =IF(AND(B$1>='Dados de Entrada'!$B$19+'Dados de Entrada'!$B$18,B$1<='Dados de Entrada'!$B$21),'Dados de Entrada'!$B$55*'Dados de Entrada'!$B$64*'Dados de Entrada'!$B$37,IF(B$1<'Dados de Entrada'!$B$19+'Dados de Entrada'!$B$18,0,"")) -> 0 | C12: =IF(AND(C$1>='Dados de Entrada'!$B$19+'Dados de Entrada'!$B$18,C$1<='Dados de Entrada'!$B$21),'Dados de Entrada'!$B$55*'Dados de Entrada'!$B$64*'Dados de Entrada'!$B$37,IF(C$1<'Dados de Entrada'!$B$19+'Dados de Entrada'!$B$18,0,"")) -> 0 | D12: =IF(AND(D$1>='Dados de Entrada'!$B$19+'Dados de Entrada'!$B$18,D$1<='Dados de Entrada'!$B$21),'Dados de Entrada'!$B$55*'Dados de Entrada'!$B$64*'Dados de Entrada'!$B$37,IF(D$1<'Dados de Entrada'!$B$19+'Dados de Entrada'!$B$18,0,"")) -> 0 | E12: =IF(AND(E$1>='Dados de Entrada'!$B$19+'Dados de Entrada'!$B$18,E$1<='Dados de Entrada'!$B$21),'Dados de Entrada'!$B$55*'Dados de Entrada'!$B$64*'Dados de Entrada'!$B$37,IF(E$1<'Dados de Entrada'!$B$19+'Dados de Entrada'!$B$18,0,"")) -> 0 | F12: =IF(AND(F$1>='Dados de Entrada'!$B$19+'Dados de Entrada'!$B$18,F$1<='Dados de Entrada'!$B$21),'Dados de Entrada'!$B$55*'Dados de Entrada'!$B$64*'Dados de Entrada'!$B$37,IF(F$1<'Dados de Entrada'!$B$19+'Dados de Entrada'!$B$18,0,"")) -> 0 | G12: =IF(AND(G$1>='Dados de Entrada'!$B$19+'Dados de Entrada'!$B$18,G$1<='Dados de Entrada'!$B$21),'Dados de Entrada'!$B$55*'Dados de Entrada'!$B$64*'Dados de Entrada'!$B$37,IF(G$1<'Dados de Entrada'!$B$19+'Dados de Entrada'!$B$18,0,"")) -> 0 | H12: =IF(AND(H$1>='Dados de Entrada'!$B$19+'Dados de Entrada'!$B$18,H$1<='Dados de Entrada'!$B$21),'Dados de Entrada'!$B$55*'Dados de Entrada'!$B$64*'Dados de Entrada'!$B$37,IF(H$1<'Dados de Entrada'!$B$19+'Dados de Entrada'!$B$18,0,"")) -> 0 | I12: =IF(AND(I$1>='Dados de Entrada'!$B$19+'Dados de Entrada'!$B$18,I$1<='Dados de Entrada'!$B$21),'Dados de Entrada'!$B$55*'Dados de Entrada'!$B$64*'Dados de Entrada'!$B$37,IF(I$1<'Dados de Entrada'!$B$19+'Dados de Entrada'!$B$18,0,"")) -> 0 | J12: =IF(AND(J$1>='Dados de Entrada'!$B$19+'Dados de Entrada'!$B$18,J$1<='Dados de Entrada'!$B$21),'Dados de Entrada'!$B$55*'Dados de Entrada'!$B$64*'Dados de Entrada'!$B$37,IF(J$1<'Dados de Entrada'!$B$19+'Dados de Entrada'!$B$18,0,"")) -> 0 | K12: =IF(AND(K$1>='Dados de Entrada'!$B$19+'Dados de Entrada'!$B$18,K$1<='Dados de Entrada'!$B$21),'Dados de Entrada'!$B$55*'Dados de Entrada'!$B$64*'Dados de Entrada'!$B$37,IF(K$1<'Dados de Entrada'!$B$19+'Dados de Entrada'!$B$18,0,"")) -> 0 | L12: =IF(AND(L$1>='Dados de Entrada'!$B$19+'Dados de Entrada'!$B$18,L$1<='Dados de Entrada'!$B$21),'Dados de Entrada'!$B$55*'Dados de Entrada'!$B$64*'Dados de Entrada'!$B$37,IF(L$1<'Dados de Entrada'!$B$19+'Dados de Entrada'!$B$18,0,"")) -> 0 | M12: =IF(AND(M$1>='Dados de Entrada'!$B$19+'Dados de Entrada'!$B$18,M$1<='Dados de Entrada'!$B$21),'Dados de Entrada'!$B$55*'Dados de Entrada'!$B$64*'Dados de Entrada'!$B$37,IF(M$1<'Dados de Entrada'!$B$19+'Dados de Entrada'!$B$18,0,"")) -> 0 | N12: =IF(AND(N$1>='Dados de Entrada'!$B$19+'Dados de Entrada'!$B$18,N$1<='Dados de Entrada'!$B$21),'Dados de Entrada'!$B$55*'Dados de Entrada'!$B$64*'Dados de Entrada'!$B$37,IF(N$1<'Dados de Entrada'!$B$19+'Dados de Entrada'!$B$18,0,"")) -> 0 | O12: =IF(AND(O$1>='Dados de Entrada'!$B$19+'Dados de Entrada'!$B$18,O$1<='Dados de Entrada'!$B$21),'Dados de Entrada'!$B$55*'Dados de Entrada'!$B$64*'Dados de Entrada'!$B$37,IF(O$1<'Dados de Entrada'!$B$19+'Dados de Entrada'!$B$18,0,"")) -> 0 | P12: =IF(AND(P$1>='Dados de Entrada'!$B$19+'Dados de Entrada'!$B$18,P$1<='Dados de Entrada'!$B$21),'Dados de Entrada'!$B$55*'Dados de Entrada'!$B$64*'Dados de Entrada'!$B$37,IF(P$1<'Dados de Entrada'!$B$19+'Dados de Entrada'!$B$18,0,"")) -> 0 | Q12: =IF(AND(Q$1>='Dados de Entrada'!$B$19+'Dados de Entrada'!$B$18,Q$1<='Dados de Entrada'!$B$21),'Dados de Entrada'!$B$55*'Dados de Entrada'!$B$64*'Dados de Entrada'!$B$37,IF(Q$1<'Dados de Entrada'!$B$19+'Dados de Entrada'!$B$18,0,"")) -> 0 | R12: =IF(AND(R$1>='Dados de Entrada'!$B$19+'Dados de Entrada'!$B$18,R$1<='Dados de Entrada'!$B$21),'Dados de Entrada'!$B$55*'Dados de Entrada'!$B$64*'Dados de Entrada'!$B$37,IF(R$1<'Dados de Entrada'!$B$19+'Dados de Entrada'!$B$18,0,"")) -> 0 | S12: =IF(AND(S$1>='Dados de Entrada'!$B$19+'Dados de Entrada'!$B$18,S$1<='Dados de Entrada'!$B$21),'Dados de Entrada'!$B$55*'Dados de Entrada'!$B$64*'Dados de Entrada'!$B$37,IF(S$1<'Dados de Entrada'!$B$19+'Dados de Entrada'!$B$18,0,"")) -> 0 | T12: =IF(AND(T$1>='Dados de Entrada'!$B$19+'Dados de Entrada'!$B$18,T$1<='Dados de Entrada'!$B$21),'Dados de Entrada'!$B$55*'Dados de Entrada'!$B$64*'Dados de Entrada'!$B$37,IF(T$1<'Dados de Entrada'!$B$19+'Dados de Entrada'!$B$18,0,"")) -> 0 | U12: =IF(AND(U$1>='Dados de Entrada'!$B$19+'Dados de Entrada'!$B$18,U$1<='Dados de Entrada'!$B$21),'Dados de Entrada'!$B$55*'Dados de Entrada'!$B$64*'Dados de Entrada'!$B$37,IF(U$1<'Dados de Entrada'!$B$19+'Dados de Entrada'!$B$18,0,"")) -> 0 | V12: =IF(AND(V$1>='Dados de Entrada'!$B$19+'Dados de Entrada'!$B$18,V$1<='Dados de Entrada'!$B$21),'Dados de Entrada'!$B$55*'Dados de Entrada'!$B$64*'Dados de Entrada'!$B$37,IF(V$1<'Dados de Entrada'!$B$19+'Dados de Entrada'!$B$18,0,"")) -> 0 | W12: =IF(AND(W$1>='Dados de Entrada'!$B$19+'Dados de Entrada'!$B$18,W$1<='Dados de Entrada'!$B$21),'Dados de Entrada'!$B$55*'Dados de Entrada'!$B$64*'Dados de Entrada'!$B$37,IF(W$1<'Dados de Entrada'!$B$19+'Dados de Entrada'!$B$18,0,"")) -> 0 | X12: =IF(AND(X$1>='Dados de Entrada'!$B$19+'Dados de Entrada'!$B$18,X$1<='Dados de Entrada'!$B$21),'Dados de Entrada'!$B$55*'Dados de Entrada'!$B$64*'Dados de Entrada'!$B$37,IF(X$1<'Dados de Entrada'!$B$19+'Dados de Entrada'!$B$18,0,"")) ->  | Y12: =IF(AND(Y$1>='Dados de Entrada'!$B$19+'Dados de Entrada'!$B$18,Y$1<='Dados de Entrada'!$B$21),'Dados de Entrada'!$B$55*'Dados de Entrada'!$B$64*'Dados de Entrada'!$B$37,IF(Y$1<'Dados de Entrada'!$B$19+'Dados de Entrada'!$B$18,0,"")) ->  | Z12: =IF(AND(Z$1>='Dados de Entrada'!$B$19+'Dados de Entrada'!$B$18,Z$1<='Dados de Entrada'!$B$21),'Dados de Entrada'!$B$55*'Dados de Entrada'!$B$64*'Dados de Entrada'!$B$37,IF(Z$1<'Dados de Entrada'!$B$19+'Dados de Entrada'!$B$18,0,"")) ->  | AA12: =IF(AND(AA$1>='Dados de Entrada'!$B$19+'Dados de Entrada'!$B$18,AA$1<='Dados de Entrada'!$B$21),'Dados de Entrada'!$B$55*'Dados de Entrada'!$B$64*'Dados de Entrada'!$B$37,IF(AA$1<'Dados de Entrada'!$B$19+'Dados de Entrada'!$B$18,0,"")) ->  | AB12: =IF(AND(AB$1>='Dados de Entrada'!$B$19+'Dados de Entrada'!$B$18,AB$1<='Dados de Entrada'!$B$21),'Dados de Entrada'!$B$55*'Dados de Entrada'!$B$64*'Dados de Entrada'!$B$37,IF(AB$1<'Dados de Entrada'!$B$19+'Dados de Entrada'!$B$18,0,"")) ->  | AC12: =IF(AND(AC$1>='Dados de Entrada'!$B$19+'Dados de Entrada'!$B$18,AC$1<='Dados de Entrada'!$B$21),'Dados de Entrada'!$B$55*'Dados de Entrada'!$B$64*'Dados de Entrada'!$B$37,IF(AC$1<'Dados de Entrada'!$B$19+'Dados de Entrada'!$B$18,0,"")) ->  | AD12: =IF(AND(AD$1>='Dados de Entrada'!$B$19+'Dados de Entrada'!$B$18,AD$1<='Dados de Entrada'!$B$21),'Dados de Entrada'!$B$55*'Dados de Entrada'!$B$64*'Dados de Entrada'!$B$37,IF(AD$1<'Dados de Entrada'!$B$19+'Dados de Entrada'!$B$18,0,"")) ->  | AE12: =IF(AND(AE$1>='Dados de Entrada'!$B$19+'Dados de Entrada'!$B$18,AE$1<='Dados de Entrada'!$B$21),'Dados de Entrada'!$B$55*'Dados de Entrada'!$B$64*'Dados de Entrada'!$B$37,IF(AE$1<'Dados de Entrada'!$B$19+'Dados de Entrada'!$B$18,0,"")) ->  | AF12: =IF(AND(AF$1>='Dados de Entrada'!$B$19+'Dados de Entrada'!$B$18,AF$1<='Dados de Entrada'!$B$21),'Dados de Entrada'!$B$55*'Dados de Entrada'!$B$64*'Dados de Entrada'!$B$37,IF(AF$1<'Dados de Entrada'!$B$19+'Dados de Entrada'!$B$18,0,"")) ->  | AG12: =IF(AND(AG$1>='Dados de Entrada'!$B$19+'Dados de Entrada'!$B$18,AG$1<='Dados de Entrada'!$B$21),'Dados de Entrada'!$B$55*'Dados de Entrada'!$B$64*'Dados de Entrada'!$B$37,IF(AG$1<'Dados de Entrada'!$B$19+'Dados de Entrada'!$B$18,0,"")) ->  | AH12: =IF(AND(AH$1>='Dados de Entrada'!$B$19+'Dados de Entrada'!$B$18,AH$1<='Dados de Entrada'!$B$21),'Dados de Entrada'!$B$55*'Dados de Entrada'!$B$64*'Dados de Entrada'!$B$37,IF(AH$1<'Dados de Entrada'!$B$19+'Dados de Entrada'!$B$18,0,"")) ->  | AI12: =IF(AND(AI$1>='Dados de Entrada'!$B$19+'Dados de Entrada'!$B$18,AI$1<='Dados de Entrada'!$B$21),'Dados de Entrada'!$B$55*'Dados de Entrada'!$B$64*'Dados de Entrada'!$B$37,IF(AI$1<'Dados de Entrada'!$B$19+'Dados de Entrada'!$B$18,0,"")) ->  | AJ12: =IF(AND(AJ$1>='Dados de Entrada'!$B$19+'Dados de Entrada'!$B$18,AJ$1<='Dados de Entrada'!$B$21),'Dados de Entrada'!$B$55*'Dados de Entrada'!$B$64*'Dados de Entrada'!$B$37,IF(AJ$1<'Dados de Entrada'!$B$19+'Dados de Entrada'!$B$18,0,"")) ->  | AK12: =IF(AND(AK$1>='Dados de Entrada'!$B$19+'Dados de Entrada'!$B$18,AK$1<='Dados de Entrada'!$B$21),'Dados de Entrada'!$B$55*'Dados de Entrada'!$B$64*'Dados de Entrada'!$B$37,IF(AK$1<'Dados de Entrada'!$B$19+'Dados de Entrada'!$B$18,0,"")) ->  | AL12: =IF(AND(AL$1>='Dados de Entrada'!$B$19+'Dados de Entrada'!$B$18,AL$1<='Dados de Entrada'!$B$21),'Dados de Entrada'!$B$55*'Dados de Entrada'!$B$64*'Dados de Entrada'!$B$37,IF(AL$1<'Dados de Entrada'!$B$19+'Dados de Entrada'!$B$18,0,"")) ->  | AM12: =IF(AND(AM$1>='Dados de Entrada'!$B$19+'Dados de Entrada'!$B$18,AM$1<='Dados de Entrada'!$B$21),'Dados de Entrada'!$B$55*'Dados de Entrada'!$B$64*'Dados de Entrada'!$B$37,IF(AM$1<'Dados de Entrada'!$B$19+'Dados de Entrada'!$B$18,0,"")) ->  | AN12: =IF(AND(AN$1>='Dados de Entrada'!$B$19+'Dados de Entrada'!$B$18,AN$1<='Dados de Entrada'!$B$21),'Dados de Entrada'!$B$55*'Dados de Entrada'!$B$64*'Dados de Entrada'!$B$37,IF(AN$1<'Dados de Entrada'!$B$19+'Dados de Entrada'!$B$18,0,"")) ->  | AO12: =IF(AND(AO$1>='Dados de Entrada'!$B$19+'Dados de Entrada'!$B$18,AO$1<='Dados de Entrada'!$B$21),'Dados de Entrada'!$B$55*'Dados de Entrada'!$B$64*'Dados de Entrada'!$B$37,IF(AO$1<'Dados de Entrada'!$B$19+'Dados de Entrada'!$B$18,0,"")) -> 
A13: Opex associado à Energia Elétrica (2.2.1.2) | B13: =IF(AND(B$1>='Dados de Entrada'!$B$19+'Dados de Entrada'!$B$18,B$1<='Dados de Entrada'!$B$21),'Dados de Entrada'!$B$55*'Dados de Entrada'!$B$65*'Dados de Entrada'!$B$38,IF(B$1<'Dados de Entrada'!$B$19+'Dados de Entrada'!$B$18,0,"")) -> 0 | C13: =IF(AND(C$1>='Dados de Entrada'!$B$19+'Dados de Entrada'!$B$18,C$1<='Dados de Entrada'!$B$21),'Dados de Entrada'!$B$55*'Dados de Entrada'!$B$65*'Dados de Entrada'!$B$38,IF(C$1<'Dados de Entrada'!$B$19+'Dados de Entrada'!$B$18,0,"")) -> 0 | D13: =IF(AND(D$1>='Dados de Entrada'!$B$19+'Dados de Entrada'!$B$18,D$1<='Dados de Entrada'!$B$21),'Dados de Entrada'!$B$55*'Dados de Entrada'!$B$65*'Dados de Entrada'!$B$38,IF(D$1<'Dados de Entrada'!$B$19+'Dados de Entrada'!$B$18,0,"")) -> 0 | E13: =IF(AND(E$1>='Dados de Entrada'!$B$19+'Dados de Entrada'!$B$18,E$1<='Dados de Entrada'!$B$21),'Dados de Entrada'!$B$55*'Dados de Entrada'!$B$65*'Dados de Entrada'!$B$38,IF(E$1<'Dados de Entrada'!$B$19+'Dados de Entrada'!$B$18,0,"")) -> 0 | F13: =IF(AND(F$1>='Dados de Entrada'!$B$19+'Dados de Entrada'!$B$18,F$1<='Dados de Entrada'!$B$21),'Dados de Entrada'!$B$55*'Dados de Entrada'!$B$65*'Dados de Entrada'!$B$38,IF(F$1<'Dados de Entrada'!$B$19+'Dados de Entrada'!$B$18,0,"")) -> 0 | G13: =IF(AND(G$1>='Dados de Entrada'!$B$19+'Dados de Entrada'!$B$18,G$1<='Dados de Entrada'!$B$21),'Dados de Entrada'!$B$55*'Dados de Entrada'!$B$65*'Dados de Entrada'!$B$38,IF(G$1<'Dados de Entrada'!$B$19+'Dados de Entrada'!$B$18,0,"")) -> 0 | H13: =IF(AND(H$1>='Dados de Entrada'!$B$19+'Dados de Entrada'!$B$18,H$1<='Dados de Entrada'!$B$21),'Dados de Entrada'!$B$55*'Dados de Entrada'!$B$65*'Dados de Entrada'!$B$38,IF(H$1<'Dados de Entrada'!$B$19+'Dados de Entrada'!$B$18,0,"")) -> 0 | I13: =IF(AND(I$1>='Dados de Entrada'!$B$19+'Dados de Entrada'!$B$18,I$1<='Dados de Entrada'!$B$21),'Dados de Entrada'!$B$55*'Dados de Entrada'!$B$65*'Dados de Entrada'!$B$38,IF(I$1<'Dados de Entrada'!$B$19+'Dados de Entrada'!$B$18,0,"")) -> 0 | J13: =IF(AND(J$1>='Dados de Entrada'!$B$19+'Dados de Entrada'!$B$18,J$1<='Dados de Entrada'!$B$21),'Dados de Entrada'!$B$55*'Dados de Entrada'!$B$65*'Dados de Entrada'!$B$38,IF(J$1<'Dados de Entrada'!$B$19+'Dados de Entrada'!$B$18,0,"")) -> 0 | K13: =IF(AND(K$1>='Dados de Entrada'!$B$19+'Dados de Entrada'!$B$18,K$1<='Dados de Entrada'!$B$21),'Dados de Entrada'!$B$55*'Dados de Entrada'!$B$65*'Dados de Entrada'!$B$38,IF(K$1<'Dados de Entrada'!$B$19+'Dados de Entrada'!$B$18,0,"")) -> 0 | L13: =IF(AND(L$1>='Dados de Entrada'!$B$19+'Dados de Entrada'!$B$18,L$1<='Dados de Entrada'!$B$21),'Dados de Entrada'!$B$55*'Dados de Entrada'!$B$65*'Dados de Entrada'!$B$38,IF(L$1<'Dados de Entrada'!$B$19+'Dados de Entrada'!$B$18,0,"")) -> 0 | M13: =IF(AND(M$1>='Dados de Entrada'!$B$19+'Dados de Entrada'!$B$18,M$1<='Dados de Entrada'!$B$21),'Dados de Entrada'!$B$55*'Dados de Entrada'!$B$65*'Dados de Entrada'!$B$38,IF(M$1<'Dados de Entrada'!$B$19+'Dados de Entrada'!$B$18,0,"")) -> 0 | N13: =IF(AND(N$1>='Dados de Entrada'!$B$19+'Dados de Entrada'!$B$18,N$1<='Dados de Entrada'!$B$21),'Dados de Entrada'!$B$55*'Dados de Entrada'!$B$65*'Dados de Entrada'!$B$38,IF(N$1<'Dados de Entrada'!$B$19+'Dados de Entrada'!$B$18,0,"")) -> 0 | O13: =IF(AND(O$1>='Dados de Entrada'!$B$19+'Dados de Entrada'!$B$18,O$1<='Dados de Entrada'!$B$21),'Dados de Entrada'!$B$55*'Dados de Entrada'!$B$65*'Dados de Entrada'!$B$38,IF(O$1<'Dados de Entrada'!$B$19+'Dados de Entrada'!$B$18,0,"")) -> 0 | P13: =IF(AND(P$1>='Dados de Entrada'!$B$19+'Dados de Entrada'!$B$18,P$1<='Dados de Entrada'!$B$21),'Dados de Entrada'!$B$55*'Dados de Entrada'!$B$65*'Dados de Entrada'!$B$38,IF(P$1<'Dados de Entrada'!$B$19+'Dados de Entrada'!$B$18,0,"")) -> 0 | Q13: =IF(AND(Q$1>='Dados de Entrada'!$B$19+'Dados de Entrada'!$B$18,Q$1<='Dados de Entrada'!$B$21),'Dados de Entrada'!$B$55*'Dados de Entrada'!$B$65*'Dados de Entrada'!$B$38,IF(Q$1<'Dados de Entrada'!$B$19+'Dados de Entrada'!$B$18,0,"")) -> 0 | R13: =IF(AND(R$1>='Dados de Entrada'!$B$19+'Dados de Entrada'!$B$18,R$1<='Dados de Entrada'!$B$21),'Dados de Entrada'!$B$55*'Dados de Entrada'!$B$65*'Dados de Entrada'!$B$38,IF(R$1<'Dados de Entrada'!$B$19+'Dados de Entrada'!$B$18,0,"")) -> 0 | S13: =IF(AND(S$1>='Dados de Entrada'!$B$19+'Dados de Entrada'!$B$18,S$1<='Dados de Entrada'!$B$21),'Dados de Entrada'!$B$55*'Dados de Entrada'!$B$65*'Dados de Entrada'!$B$38,IF(S$1<'Dados de Entrada'!$B$19+'Dados de Entrada'!$B$18,0,"")) -> 0 | T13: =IF(AND(T$1>='Dados de Entrada'!$B$19+'Dados de Entrada'!$B$18,T$1<='Dados de Entrada'!$B$21),'Dados de Entrada'!$B$55*'Dados de Entrada'!$B$65*'Dados de Entrada'!$B$38,IF(T$1<'Dados de Entrada'!$B$19+'Dados de Entrada'!$B$18,0,"")) -> 0 | U13: =IF(AND(U$1>='Dados de Entrada'!$B$19+'Dados de Entrada'!$B$18,U$1<='Dados de Entrada'!$B$21),'Dados de Entrada'!$B$55*'Dados de Entrada'!$B$65*'Dados de Entrada'!$B$38,IF(U$1<'Dados de Entrada'!$B$19+'Dados de Entrada'!$B$18,0,"")) -> 0 | V13: =IF(AND(V$1>='Dados de Entrada'!$B$19+'Dados de Entrada'!$B$18,V$1<='Dados de Entrada'!$B$21),'Dados de Entrada'!$B$55*'Dados de Entrada'!$B$65*'Dados de Entrada'!$B$38,IF(V$1<'Dados de Entrada'!$B$19+'Dados de Entrada'!$B$18,0,"")) -> 0 | W13: =IF(AND(W$1>='Dados de Entrada'!$B$19+'Dados de Entrada'!$B$18,W$1<='Dados de Entrada'!$B$21),'Dados de Entrada'!$B$55*'Dados de Entrada'!$B$65*'Dados de Entrada'!$B$38,IF(W$1<'Dados de Entrada'!$B$19+'Dados de Entrada'!$B$18,0,"")) -> 0 | X13: =IF(AND(X$1>='Dados de Entrada'!$B$19+'Dados de Entrada'!$B$18,X$1<='Dados de Entrada'!$B$21),'Dados de Entrada'!$B$55*'Dados de Entrada'!$B$65*'Dados de Entrada'!$B$38,IF(X$1<'Dados de Entrada'!$B$19+'Dados de Entrada'!$B$18,0,"")) ->  | Y13: =IF(AND(Y$1>='Dados de Entrada'!$B$19+'Dados de Entrada'!$B$18,Y$1<='Dados de Entrada'!$B$21),'Dados de Entrada'!$B$55*'Dados de Entrada'!$B$65*'Dados de Entrada'!$B$38,IF(Y$1<'Dados de Entrada'!$B$19+'Dados de Entrada'!$B$18,0,"")) ->  | Z13: =IF(AND(Z$1>='Dados de Entrada'!$B$19+'Dados de Entrada'!$B$18,Z$1<='Dados de Entrada'!$B$21),'Dados de Entrada'!$B$55*'Dados de Entrada'!$B$65*'Dados de Entrada'!$B$38,IF(Z$1<'Dados de Entrada'!$B$19+'Dados de Entrada'!$B$18,0,"")) ->  | AA13: =IF(AND(AA$1>='Dados de Entrada'!$B$19+'Dados de Entrada'!$B$18,AA$1<='Dados de Entrada'!$B$21),'Dados de Entrada'!$B$55*'Dados de Entrada'!$B$65*'Dados de Entrada'!$B$38,IF(AA$1<'Dados de Entrada'!$B$19+'Dados de Entrada'!$B$18,0,"")) ->  | AB13: =IF(AND(AB$1>='Dados de Entrada'!$B$19+'Dados de Entrada'!$B$18,AB$1<='Dados de Entrada'!$B$21),'Dados de Entrada'!$B$55*'Dados de Entrada'!$B$65*'Dados de Entrada'!$B$38,IF(AB$1<'Dados de Entrada'!$B$19+'Dados de Entrada'!$B$18,0,"")) ->  | AC13: =IF(AND(AC$1>='Dados de Entrada'!$B$19+'Dados de Entrada'!$B$18,AC$1<='Dados de Entrada'!$B$21),'Dados de Entrada'!$B$55*'Dados de Entrada'!$B$65*'Dados de Entrada'!$B$38,IF(AC$1<'Dados de Entrada'!$B$19+'Dados de Entrada'!$B$18,0,"")) ->  | AD13: =IF(AND(AD$1>='Dados de Entrada'!$B$19+'Dados de Entrada'!$B$18,AD$1<='Dados de Entrada'!$B$21),'Dados de Entrada'!$B$55*'Dados de Entrada'!$B$65*'Dados de Entrada'!$B$38,IF(AD$1<'Dados de Entrada'!$B$19+'Dados de Entrada'!$B$18,0,"")) ->  | AE13: =IF(AND(AE$1>='Dados de Entrada'!$B$19+'Dados de Entrada'!$B$18,AE$1<='Dados de Entrada'!$B$21),'Dados de Entrada'!$B$55*'Dados de Entrada'!$B$65*'Dados de Entrada'!$B$38,IF(AE$1<'Dados de Entrada'!$B$19+'Dados de Entrada'!$B$18,0,"")) ->  | AF13: =IF(AND(AF$1>='Dados de Entrada'!$B$19+'Dados de Entrada'!$B$18,AF$1<='Dados de Entrada'!$B$21),'Dados de Entrada'!$B$55*'Dados de Entrada'!$B$65*'Dados de Entrada'!$B$38,IF(AF$1<'Dados de Entrada'!$B$19+'Dados de Entrada'!$B$18,0,"")) ->  | AG13: =IF(AND(AG$1>='Dados de Entrada'!$B$19+'Dados de Entrada'!$B$18,AG$1<='Dados de Entrada'!$B$21),'Dados de Entrada'!$B$55*'Dados de Entrada'!$B$65*'Dados de Entrada'!$B$38,IF(AG$1<'Dados de Entrada'!$B$19+'Dados de Entrada'!$B$18,0,"")) ->  | AH13: =IF(AND(AH$1>='Dados de Entrada'!$B$19+'Dados de Entrada'!$B$18,AH$1<='Dados de Entrada'!$B$21),'Dados de Entrada'!$B$55*'Dados de Entrada'!$B$65*'Dados de Entrada'!$B$38,IF(AH$1<'Dados de Entrada'!$B$19+'Dados de Entrada'!$B$18,0,"")) ->  | AI13: =IF(AND(AI$1>='Dados de Entrada'!$B$19+'Dados de Entrada'!$B$18,AI$1<='Dados de Entrada'!$B$21),'Dados de Entrada'!$B$55*'Dados de Entrada'!$B$65*'Dados de Entrada'!$B$38,IF(AI$1<'Dados de Entrada'!$B$19+'Dados de Entrada'!$B$18,0,"")) ->  | AJ13: =IF(AND(AJ$1>='Dados de Entrada'!$B$19+'Dados de Entrada'!$B$18,AJ$1<='Dados de Entrada'!$B$21),'Dados de Entrada'!$B$55*'Dados de Entrada'!$B$65*'Dados de Entrada'!$B$38,IF(AJ$1<'Dados de Entrada'!$B$19+'Dados de Entrada'!$B$18,0,"")) ->  | AK13: =IF(AND(AK$1>='Dados de Entrada'!$B$19+'Dados de Entrada'!$B$18,AK$1<='Dados de Entrada'!$B$21),'Dados de Entrada'!$B$55*'Dados de Entrada'!$B$65*'Dados de Entrada'!$B$38,IF(AK$1<'Dados de Entrada'!$B$19+'Dados de Entrada'!$B$18,0,"")) ->  | AL13: =IF(AND(AL$1>='Dados de Entrada'!$B$19+'Dados de Entrada'!$B$18,AL$1<='Dados de Entrada'!$B$21),'Dados de Entrada'!$B$55*'Dados de Entrada'!$B$65*'Dados de Entrada'!$B$38,IF(AL$1<'Dados de Entrada'!$B$19+'Dados de Entrada'!$B$18,0,"")) ->  | AM13: =IF(AND(AM$1>='Dados de Entrada'!$B$19+'Dados de Entrada'!$B$18,AM$1<='Dados de Entrada'!$B$21),'Dados de Entrada'!$B$55*'Dados de Entrada'!$B$65*'Dados de Entrada'!$B$38,IF(AM$1<'Dados de Entrada'!$B$19+'Dados de Entrada'!$B$18,0,"")) ->  | AN13: =IF(AND(AN$1>='Dados de Entrada'!$B$19+'Dados de Entrada'!$B$18,AN$1<='Dados de Entrada'!$B$21),'Dados de Entrada'!$B$55*'Dados de Entrada'!$B$65*'Dados de Entrada'!$B$38,IF(AN$1<'Dados de Entrada'!$B$19+'Dados de Entrada'!$B$18,0,"")) ->  | AO13: =IF(AND(AO$1>='Dados de Entrada'!$B$19+'Dados de Entrada'!$B$18,AO$1<='Dados de Entrada'!$B$21),'Dados de Entrada'!$B$55*'Dados de Entrada'!$B$65*'Dados de Entrada'!$B$38,IF(AO$1<'Dados de Entrada'!$B$19+'Dados de Entrada'!$B$18,0,"")) -> 
A14: Opex associado a Outros custos operacionais (2.2.1.3) | B14: =IF(AND(B$1>='Dados de Entrada'!$B$19+'Dados de Entrada'!$B$18,B$1<='Dados de Entrada'!$B$21),'Dados de Entrada'!$B$66*'Dados de Entrada'!$B$62,IF(B$1<'Dados de Entrada'!$B$19+'Dados de Entrada'!$B$18,0,"")) -> 0 | C14: =IF(AND(C$1>='Dados de Entrada'!$B$19+'Dados de Entrada'!$B$18,C$1<='Dados de Entrada'!$B$21),'Dados de Entrada'!$B$66*'Dados de Entrada'!$B$62,IF(C$1<'Dados de Entrada'!$B$19+'Dados de Entrada'!$B$18,0,"")) -> 0 | D14: =IF(AND(D$1>='Dados de Entrada'!$B$19+'Dados de Entrada'!$B$18,D$1<='Dados de Entrada'!$B$21),'Dados de Entrada'!$B$66*'Dados de Entrada'!$B$62,IF(D$1<'Dados de Entrada'!$B$19+'Dados de Entrada'!$B$18,0,"")) -> 0 | E14: =IF(AND(E$1>='Dados de Entrada'!$B$19+'Dados de Entrada'!$B$18,E$1<='Dados de Entrada'!$B$21),'Dados de Entrada'!$B$66*'Dados de Entrada'!$B$62,IF(E$1<'Dados de Entrada'!$B$19+'Dados de Entrada'!$B$18,0,"")) -> 0 | F14: =IF(AND(F$1>='Dados de Entrada'!$B$19+'Dados de Entrada'!$B$18,F$1<='Dados de Entrada'!$B$21),'Dados de Entrada'!$B$66*'Dados de Entrada'!$B$62,IF(F$1<'Dados de Entrada'!$B$19+'Dados de Entrada'!$B$18,0,"")) -> 0 | G14: =IF(AND(G$1>='Dados de Entrada'!$B$19+'Dados de Entrada'!$B$18,G$1<='Dados de Entrada'!$B$21),'Dados de Entrada'!$B$66*'Dados de Entrada'!$B$62,IF(G$1<'Dados de Entrada'!$B$19+'Dados de Entrada'!$B$18,0,"")) -> 0 | H14: =IF(AND(H$1>='Dados de Entrada'!$B$19+'Dados de Entrada'!$B$18,H$1<='Dados de Entrada'!$B$21),'Dados de Entrada'!$B$66*'Dados de Entrada'!$B$62,IF(H$1<'Dados de Entrada'!$B$19+'Dados de Entrada'!$B$18,0,"")) -> 0 | I14: =IF(AND(I$1>='Dados de Entrada'!$B$19+'Dados de Entrada'!$B$18,I$1<='Dados de Entrada'!$B$21),'Dados de Entrada'!$B$66*'Dados de Entrada'!$B$62,IF(I$1<'Dados de Entrada'!$B$19+'Dados de Entrada'!$B$18,0,"")) -> 0 | J14: =IF(AND(J$1>='Dados de Entrada'!$B$19+'Dados de Entrada'!$B$18,J$1<='Dados de Entrada'!$B$21),'Dados de Entrada'!$B$66*'Dados de Entrada'!$B$62,IF(J$1<'Dados de Entrada'!$B$19+'Dados de Entrada'!$B$18,0,"")) -> 0 | K14: =IF(AND(K$1>='Dados de Entrada'!$B$19+'Dados de Entrada'!$B$18,K$1<='Dados de Entrada'!$B$21),'Dados de Entrada'!$B$66*'Dados de Entrada'!$B$62,IF(K$1<'Dados de Entrada'!$B$19+'Dados de Entrada'!$B$18,0,"")) -> 0 | L14: =IF(AND(L$1>='Dados de Entrada'!$B$19+'Dados de Entrada'!$B$18,L$1<='Dados de Entrada'!$B$21),'Dados de Entrada'!$B$66*'Dados de Entrada'!$B$62,IF(L$1<'Dados de Entrada'!$B$19+'Dados de Entrada'!$B$18,0,"")) -> 0 | M14: =IF(AND(M$1>='Dados de Entrada'!$B$19+'Dados de Entrada'!$B$18,M$1<='Dados de Entrada'!$B$21),'Dados de Entrada'!$B$66*'Dados de Entrada'!$B$62,IF(M$1<'Dados de Entrada'!$B$19+'Dados de Entrada'!$B$18,0,"")) -> 0 | N14: =IF(AND(N$1>='Dados de Entrada'!$B$19+'Dados de Entrada'!$B$18,N$1<='Dados de Entrada'!$B$21),'Dados de Entrada'!$B$66*'Dados de Entrada'!$B$62,IF(N$1<'Dados de Entrada'!$B$19+'Dados de Entrada'!$B$18,0,"")) -> 0 | O14: =IF(AND(O$1>='Dados de Entrada'!$B$19+'Dados de Entrada'!$B$18,O$1<='Dados de Entrada'!$B$21),'Dados de Entrada'!$B$66*'Dados de Entrada'!$B$62,IF(O$1<'Dados de Entrada'!$B$19+'Dados de Entrada'!$B$18,0,"")) -> 0 | P14: =IF(AND(P$1>='Dados de Entrada'!$B$19+'Dados de Entrada'!$B$18,P$1<='Dados de Entrada'!$B$21),'Dados de Entrada'!$B$66*'Dados de Entrada'!$B$62,IF(P$1<'Dados de Entrada'!$B$19+'Dados de Entrada'!$B$18,0,"")) -> 0 | Q14: =IF(AND(Q$1>='Dados de Entrada'!$B$19+'Dados de Entrada'!$B$18,Q$1<='Dados de Entrada'!$B$21),'Dados de Entrada'!$B$66*'Dados de Entrada'!$B$62,IF(Q$1<'Dados de Entrada'!$B$19+'Dados de Entrada'!$B$18,0,"")) -> 0 | R14: =IF(AND(R$1>='Dados de Entrada'!$B$19+'Dados de Entrada'!$B$18,R$1<='Dados de Entrada'!$B$21),'Dados de Entrada'!$B$66*'Dados de Entrada'!$B$62,IF(R$1<'Dados de Entrada'!$B$19+'Dados de Entrada'!$B$18,0,"")) -> 0 | S14: =IF(AND(S$1>='Dados de Entrada'!$B$19+'Dados de Entrada'!$B$18,S$1<='Dados de Entrada'!$B$21),'Dados de Entrada'!$B$66*'Dados de Entrada'!$B$62,IF(S$1<'Dados de Entrada'!$B$19+'Dados de Entrada'!$B$18,0,"")) -> 0 | T14: =IF(AND(T$1>='Dados de Entrada'!$B$19+'Dados de Entrada'!$B$18,T$1<='Dados de Entrada'!$B$21),'Dados de Entrada'!$B$66*'Dados de Entrada'!$B$62,IF(T$1<'Dados de Entrada'!$B$19+'Dados de Entrada'!$B$18,0,"")) -> 0 | U14: =IF(AND(U$1>='Dados de Entrada'!$B$19+'Dados de Entrada'!$B$18,U$1<='Dados de Entrada'!$B$21),'Dados de Entrada'!$B$66*'Dados de Entrada'!$B$62,IF(U$1<'Dados de Entrada'!$B$19+'Dados de Entrada'!$B$18,0,"")) -> 0 | V14: =IF(AND(V$1>='Dados de Entrada'!$B$19+'Dados de Entrada'!$B$18,V$1<='Dados de Entrada'!$B$21),'Dados de Entrada'!$B$66*'Dados de Entrada'!$B$62,IF(V$1<'Dados de Entrada'!$B$19+'Dados de Entrada'!$B$18,0,"")) -> 0 | W14: =IF(AND(W$1>='Dados de Entrada'!$B$19+'Dados de Entrada'!$B$18,W$1<='Dados de Entrada'!$B$21),'Dados de Entrada'!$B$66*'Dados de Entrada'!$B$62,IF(W$1<'Dados de Entrada'!$B$19+'Dados de Entrada'!$B$18,0,"")) -> 0 | X14: =IF(AND(X$1>='Dados de Entrada'!$B$19+'Dados de Entrada'!$B$18,X$1<='Dados de Entrada'!$B$21),'Dados de Entrada'!$B$66*'Dados de Entrada'!$B$62,IF(X$1<'Dados de Entrada'!$B$19+'Dados de Entrada'!$B$18,0,"")) ->  | Y14: =IF(AND(Y$1>='Dados de Entrada'!$B$19+'Dados de Entrada'!$B$18,Y$1<='Dados de Entrada'!$B$21),'Dados de Entrada'!$B$66*'Dados de Entrada'!$B$62,IF(Y$1<'Dados de Entrada'!$B$19+'Dados de Entrada'!$B$18,0,"")) ->  | Z14: =IF(AND(Z$1>='Dados de Entrada'!$B$19+'Dados de Entrada'!$B$18,Z$1<='Dados de Entrada'!$B$21),'Dados de Entrada'!$B$66*'Dados de Entrada'!$B$62,IF(Z$1<'Dados de Entrada'!$B$19+'Dados de Entrada'!$B$18,0,"")) ->  | AA14: =IF(AND(AA$1>='Dados de Entrada'!$B$19+'Dados de Entrada'!$B$18,AA$1<='Dados de Entrada'!$B$21),'Dados de Entrada'!$B$66*'Dados de Entrada'!$B$62,IF(AA$1<'Dados de Entrada'!$B$19+'Dados de Entrada'!$B$18,0,"")) ->  | AB14: =IF(AND(AB$1>='Dados de Entrada'!$B$19+'Dados de Entrada'!$B$18,AB$1<='Dados de Entrada'!$B$21),'Dados de Entrada'!$B$66*'Dados de Entrada'!$B$62,IF(AB$1<'Dados de Entrada'!$B$19+'Dados de Entrada'!$B$18,0,"")) ->  | AC14: =IF(AND(AC$1>='Dados de Entrada'!$B$19+'Dados de Entrada'!$B$18,AC$1<='Dados de Entrada'!$B$21),'Dados de Entrada'!$B$66*'Dados de Entrada'!$B$62,IF(AC$1<'Dados de Entrada'!$B$19+'Dados de Entrada'!$B$18,0,"")) ->  | AD14: =IF(AND(AD$1>='Dados de Entrada'!$B$19+'Dados de Entrada'!$B$18,AD$1<='Dados de Entrada'!$B$21),'Dados de Entrada'!$B$66*'Dados de Entrada'!$B$62,IF(AD$1<'Dados de Entrada'!$B$19+'Dados de Entrada'!$B$18,0,"")) ->  | AE14: =IF(AND(AE$1>='Dados de Entrada'!$B$19+'Dados de Entrada'!$B$18,AE$1<='Dados de Entrada'!$B$21),'Dados de Entrada'!$B$66*'Dados de Entrada'!$B$62,IF(AE$1<'Dados de Entrada'!$B$19+'Dados de Entrada'!$B$18,0,"")) ->  | AF14: =IF(AND(AF$1>='Dados de Entrada'!$B$19+'Dados de Entrada'!$B$18,AF$1<='Dados de Entrada'!$B$21),'Dados de Entrada'!$B$66*'Dados de Entrada'!$B$62,IF(AF$1<'Dados de Entrada'!$B$19+'Dados de Entrada'!$B$18,0,"")) ->  | AG14: =IF(AND(AG$1>='Dados de Entrada'!$B$19+'Dados de Entrada'!$B$18,AG$1<='Dados de Entrada'!$B$21),'Dados de Entrada'!$B$66*'Dados de Entrada'!$B$62,IF(AG$1<'Dados de Entrada'!$B$19+'Dados de Entrada'!$B$18,0,"")) ->  | AH14: =IF(AND(AH$1>='Dados de Entrada'!$B$19+'Dados de Entrada'!$B$18,AH$1<='Dados de Entrada'!$B$21),'Dados de Entrada'!$B$66*'Dados de Entrada'!$B$62,IF(AH$1<'Dados de Entrada'!$B$19+'Dados de Entrada'!$B$18,0,"")) ->  | AI14: =IF(AND(AI$1>='Dados de Entrada'!$B$19+'Dados de Entrada'!$B$18,AI$1<='Dados de Entrada'!$B$21),'Dados de Entrada'!$B$66*'Dados de Entrada'!$B$62,IF(AI$1<'Dados de Entrada'!$B$19+'Dados de Entrada'!$B$18,0,"")) ->  | AJ14: =IF(AND(AJ$1>='Dados de Entrada'!$B$19+'Dados de Entrada'!$B$18,AJ$1<='Dados de Entrada'!$B$21),'Dados de Entrada'!$B$66*'Dados de Entrada'!$B$62,IF(AJ$1<'Dados de Entrada'!$B$19+'Dados de Entrada'!$B$18,0,"")) ->  | AK14: =IF(AND(AK$1>='Dados de Entrada'!$B$19+'Dados de Entrada'!$B$18,AK$1<='Dados de Entrada'!$B$21),'Dados de Entrada'!$B$66*'Dados de Entrada'!$B$62,IF(AK$1<'Dados de Entrada'!$B$19+'Dados de Entrada'!$B$18,0,"")) ->  | AL14: =IF(AND(AL$1>='Dados de Entrada'!$B$19+'Dados de Entrada'!$B$18,AL$1<='Dados de Entrada'!$B$21),'Dados de Entrada'!$B$66*'Dados de Entrada'!$B$62,IF(AL$1<'Dados de Entrada'!$B$19+'Dados de Entrada'!$B$18,0,"")) ->  | AM14: =IF(AND(AM$1>='Dados de Entrada'!$B$19+'Dados de Entrada'!$B$18,AM$1<='Dados de Entrada'!$B$21),'Dados de Entrada'!$B$66*'Dados de Entrada'!$B$62,IF(AM$1<'Dados de Entrada'!$B$19+'Dados de Entrada'!$B$18,0,"")) ->  | AN14: =IF(AND(AN$1>='Dados de Entrada'!$B$19+'Dados de Entrada'!$B$18,AN$1<='Dados de Entrada'!$B$21),'Dados de Entrada'!$B$66*'Dados de Entrada'!$B$62,IF(AN$1<'Dados de Entrada'!$B$19+'Dados de Entrada'!$B$18,0,"")) ->  | AO14: =IF(AND(AO$1>='Dados de Entrada'!$B$19+'Dados de Entrada'!$B$18,AO$1<='Dados de Entrada'!$B$21),'Dados de Entrada'!$B$66*'Dados de Entrada'!$B$62,IF(AO$1<'Dados de Entrada'!$B$19+'Dados de Entrada'!$B$18,0,"")) -> 
A15: Opex do Transporte de CO2 (2.2.2) = (2.2.2.1) + (2.2.2.2) | B15: =IF(AND(B$1>='Dados de Entrada'!$B$19+'Dados de Entrada'!$B$18,B$1<='Dados de Entrada'!$B$21),SUM(B16:B17),IF(B$1<'Dados de Entrada'!$B$19+'Dados de Entrada'!$B$18,0,"")) -> 0 | C15: =IF(AND(C$1>='Dados de Entrada'!$B$19+'Dados de Entrada'!$B$18,C$1<='Dados de Entrada'!$B$21),SUM(C16:C17),IF(C$1<'Dados de Entrada'!$B$19+'Dados de Entrada'!$B$18,0,"")) -> 0 | D15: =IF(AND(D$1>='Dados de Entrada'!$B$19+'Dados de Entrada'!$B$18,D$1<='Dados de Entrada'!$B$21),SUM(D16:D17),IF(D$1<'Dados de Entrada'!$B$19+'Dados de Entrada'!$B$18,0,"")) -> 0 | E15: =IF(AND(E$1>='Dados de Entrada'!$B$19+'Dados de Entrada'!$B$18,E$1<='Dados de Entrada'!$B$21),SUM(E16:E17),IF(E$1<'Dados de Entrada'!$B$19+'Dados de Entrada'!$B$18,0,"")) -> 0 | F15: =IF(AND(F$1>='Dados de Entrada'!$B$19+'Dados de Entrada'!$B$18,F$1<='Dados de Entrada'!$B$21),SUM(F16:F17),IF(F$1<'Dados de Entrada'!$B$19+'Dados de Entrada'!$B$18,0,"")) -> 0 | G15: =IF(AND(G$1>='Dados de Entrada'!$B$19+'Dados de Entrada'!$B$18,G$1<='Dados de Entrada'!$B$21),SUM(G16:G17),IF(G$1<'Dados de Entrada'!$B$19+'Dados de Entrada'!$B$18,0,"")) -> 0 | H15: =IF(AND(H$1>='Dados de Entrada'!$B$19+'Dados de Entrada'!$B$18,H$1<='Dados de Entrada'!$B$21),SUM(H16:H17),IF(H$1<'Dados de Entrada'!$B$19+'Dados de Entrada'!$B$18,0,"")) -> 0 | I15: =IF(AND(I$1>='Dados de Entrada'!$B$19+'Dados de Entrada'!$B$18,I$1<='Dados de Entrada'!$B$21),SUM(I16:I17),IF(I$1<'Dados de Entrada'!$B$19+'Dados de Entrada'!$B$18,0,"")) -> 0 | J15: =IF(AND(J$1>='Dados de Entrada'!$B$19+'Dados de Entrada'!$B$18,J$1<='Dados de Entrada'!$B$21),SUM(J16:J17),IF(J$1<'Dados de Entrada'!$B$19+'Dados de Entrada'!$B$18,0,"")) -> 0 | K15: =IF(AND(K$1>='Dados de Entrada'!$B$19+'Dados de Entrada'!$B$18,K$1<='Dados de Entrada'!$B$21),SUM(K16:K17),IF(K$1<'Dados de Entrada'!$B$19+'Dados de Entrada'!$B$18,0,"")) -> 0 | L15: =IF(AND(L$1>='Dados de Entrada'!$B$19+'Dados de Entrada'!$B$18,L$1<='Dados de Entrada'!$B$21),SUM(L16:L17),IF(L$1<'Dados de Entrada'!$B$19+'Dados de Entrada'!$B$18,0,"")) -> 0 | M15: =IF(AND(M$1>='Dados de Entrada'!$B$19+'Dados de Entrada'!$B$18,M$1<='Dados de Entrada'!$B$21),SUM(M16:M17),IF(M$1<'Dados de Entrada'!$B$19+'Dados de Entrada'!$B$18,0,"")) -> 0 | N15: =IF(AND(N$1>='Dados de Entrada'!$B$19+'Dados de Entrada'!$B$18,N$1<='Dados de Entrada'!$B$21),SUM(N16:N17),IF(N$1<'Dados de Entrada'!$B$19+'Dados de Entrada'!$B$18,0,"")) -> 0 | O15: =IF(AND(O$1>='Dados de Entrada'!$B$19+'Dados de Entrada'!$B$18,O$1<='Dados de Entrada'!$B$21),SUM(O16:O17),IF(O$1<'Dados de Entrada'!$B$19+'Dados de Entrada'!$B$18,0,"")) -> 0 | P15: =IF(AND(P$1>='Dados de Entrada'!$B$19+'Dados de Entrada'!$B$18,P$1<='Dados de Entrada'!$B$21),SUM(P16:P17),IF(P$1<'Dados de Entrada'!$B$19+'Dados de Entrada'!$B$18,0,"")) -> 0 | Q15: =IF(AND(Q$1>='Dados de Entrada'!$B$19+'Dados de Entrada'!$B$18,Q$1<='Dados de Entrada'!$B$21),SUM(Q16:Q17),IF(Q$1<'Dados de Entrada'!$B$19+'Dados de Entrada'!$B$18,0,"")) -> 0 | R15: =IF(AND(R$1>='Dados de Entrada'!$B$19+'Dados de Entrada'!$B$18,R$1<='Dados de Entrada'!$B$21),SUM(R16:R17),IF(R$1<'Dados de Entrada'!$B$19+'Dados de Entrada'!$B$18,0,"")) -> 0 | S15: =IF(AND(S$1>='Dados de Entrada'!$B$19+'Dados de Entrada'!$B$18,S$1<='Dados de Entrada'!$B$21),SUM(S16:S17),IF(S$1<'Dados de Entrada'!$B$19+'Dados de Entrada'!$B$18,0,"")) -> 0 | T15: =IF(AND(T$1>='Dados de Entrada'!$B$19+'Dados de Entrada'!$B$18,T$1<='Dados de Entrada'!$B$21),SUM(T16:T17),IF(T$1<'Dados de Entrada'!$B$19+'Dados de Entrada'!$B$18,0,"")) -> 0 | U15: =IF(AND(U$1>='Dados de Entrada'!$B$19+'Dados de Entrada'!$B$18,U$1<='Dados de Entrada'!$B$21),SUM(U16:U17),IF(U$1<'Dados de Entrada'!$B$19+'Dados de Entrada'!$B$18,0,"")) -> 0 | V15: =IF(AND(V$1>='Dados de Entrada'!$B$19+'Dados de Entrada'!$B$18,V$1<='Dados de Entrada'!$B$21),SUM(V16:V17),IF(V$1<'Dados de Entrada'!$B$19+'Dados de Entrada'!$B$18,0,"")) -> 0 | W15: =IF(AND(W$1>='Dados de Entrada'!$B$19+'Dados de Entrada'!$B$18,W$1<='Dados de Entrada'!$B$21),SUM(W16:W17),IF(W$1<'Dados de Entrada'!$B$19+'Dados de Entrada'!$B$18,0,"")) -> 0 | X15: =IF(AND(X$1>='Dados de Entrada'!$B$19+'Dados de Entrada'!$B$18,X$1<='Dados de Entrada'!$B$21),SUM(X16:X17),IF(X$1<'Dados de Entrada'!$B$19+'Dados de Entrada'!$B$18,0,"")) ->  | Y15: =IF(AND(Y$1>='Dados de Entrada'!$B$19+'Dados de Entrada'!$B$18,Y$1<='Dados de Entrada'!$B$21),SUM(Y16:Y17),IF(Y$1<'Dados de Entrada'!$B$19+'Dados de Entrada'!$B$18,0,"")) ->  | Z15: =IF(AND(Z$1>='Dados de Entrada'!$B$19+'Dados de Entrada'!$B$18,Z$1<='Dados de Entrada'!$B$21),SUM(Z16:Z17),IF(Z$1<'Dados de Entrada'!$B$19+'Dados de Entrada'!$B$18,0,"")) ->  | AA15: =IF(AND(AA$1>='Dados de Entrada'!$B$19+'Dados de Entrada'!$B$18,AA$1<='Dados de Entrada'!$B$21),SUM(AA16:AA17),IF(AA$1<'Dados de Entrada'!$B$19+'Dados de Entrada'!$B$18,0,"")) ->  | AB15: =IF(AND(AB$1>='Dados de Entrada'!$B$19+'Dados de Entrada'!$B$18,AB$1<='Dados de Entrada'!$B$21),SUM(AB16:AB17),IF(AB$1<'Dados de Entrada'!$B$19+'Dados de Entrada'!$B$18,0,"")) ->  | AC15: =IF(AND(AC$1>='Dados de Entrada'!$B$19+'Dados de Entrada'!$B$18,AC$1<='Dados de Entrada'!$B$21),SUM(AC16:AC17),IF(AC$1<'Dados de Entrada'!$B$19+'Dados de Entrada'!$B$18,0,"")) ->  | AD15: =IF(AND(AD$1>='Dados de Entrada'!$B$19+'Dados de Entrada'!$B$18,AD$1<='Dados de Entrada'!$B$21),SUM(AD16:AD17),IF(AD$1<'Dados de Entrada'!$B$19+'Dados de Entrada'!$B$18,0,"")) ->  | AE15: =IF(AND(AE$1>='Dados de Entrada'!$B$19+'Dados de Entrada'!$B$18,AE$1<='Dados de Entrada'!$B$21),SUM(AE16:AE17),IF(AE$1<'Dados de Entrada'!$B$19+'Dados de Entrada'!$B$18,0,"")) ->  | AF15: =IF(AND(AF$1>='Dados de Entrada'!$B$19+'Dados de Entrada'!$B$18,AF$1<='Dados de Entrada'!$B$21),SUM(AF16:AF17),IF(AF$1<'Dados de Entrada'!$B$19+'Dados de Entrada'!$B$18,0,"")) ->  | AG15: =IF(AND(AG$1>='Dados de Entrada'!$B$19+'Dados de Entrada'!$B$18,AG$1<='Dados de Entrada'!$B$21),SUM(AG16:AG17),IF(AG$1<'Dados de Entrada'!$B$19+'Dados de Entrada'!$B$18,0,"")) ->  | AH15: =IF(AND(AH$1>='Dados de Entrada'!$B$19+'Dados de Entrada'!$B$18,AH$1<='Dados de Entrada'!$B$21),SUM(AH16:AH17),IF(AH$1<'Dados de Entrada'!$B$19+'Dados de Entrada'!$B$18,0,"")) ->  | AI15: =IF(AND(AI$1>='Dados de Entrada'!$B$19+'Dados de Entrada'!$B$18,AI$1<='Dados de Entrada'!$B$21),SUM(AI16:AI17),IF(AI$1<'Dados de Entrada'!$B$19+'Dados de Entrada'!$B$18,0,"")) ->  | AJ15: =IF(AND(AJ$1>='Dados de Entrada'!$B$19+'Dados de Entrada'!$B$18,AJ$1<='Dados de Entrada'!$B$21),SUM(AJ16:AJ17),IF(AJ$1<'Dados de Entrada'!$B$19+'Dados de Entrada'!$B$18,0,"")) ->  | AK15: =IF(AND(AK$1>='Dados de Entrada'!$B$19+'Dados de Entrada'!$B$18,AK$1<='Dados de Entrada'!$B$21),SUM(AK16:AK17),IF(AK$1<'Dados de Entrada'!$B$19+'Dados de Entrada'!$B$18,0,"")) ->  | AL15: =IF(AND(AL$1>='Dados de Entrada'!$B$19+'Dados de Entrada'!$B$18,AL$1<='Dados de Entrada'!$B$21),SUM(AL16:AL17),IF(AL$1<'Dados de Entrada'!$B$19+'Dados de Entrada'!$B$18,0,"")) ->  | AM15: =IF(AND(AM$1>='Dados de Entrada'!$B$19+'Dados de Entrada'!$B$18,AM$1<='Dados de Entrada'!$B$21),SUM(AM16:AM17),IF(AM$1<'Dados de Entrada'!$B$19+'Dados de Entrada'!$B$18,0,"")) ->  | AN15: =IF(AND(AN$1>='Dados de Entrada'!$B$19+'Dados de Entrada'!$B$18,AN$1<='Dados de Entrada'!$B$21),SUM(AN16:AN17),IF(AN$1<'Dados de Entrada'!$B$19+'Dados de Entrada'!$B$18,0,"")) ->  | AO15: =IF(AND(AO$1>='Dados de Entrada'!$B$19+'Dados de Entrada'!$B$18,AO$1<='Dados de Entrada'!$B$21),SUM(AO16:AO17),IF(AO$1<'Dados de Entrada'!$B$19+'Dados de Entrada'!$B$18,0,"")) -> 
A16: Opex associado à Energia Elétrica (2.2.2.1) | B16: =IF(AND(B$1>='Dados de Entrada'!$B$19+'Dados de Entrada'!$B$18,B$1<='Dados de Entrada'!$B$21),'Dados de Entrada'!$B$91,IF(B$1<'Dados de Entrada'!$B$19+'Dados de Entrada'!$B$18,0,"")) -> 0 | C16: =IF(AND(C$1>='Dados de Entrada'!$B$19+'Dados de Entrada'!$B$18,C$1<='Dados de Entrada'!$B$21),'Dados de Entrada'!$B$91,IF(C$1<'Dados de Entrada'!$B$19+'Dados de Entrada'!$B$18,0,"")) -> 0 | D16: =IF(AND(D$1>='Dados de Entrada'!$B$19+'Dados de Entrada'!$B$18,D$1<='Dados de Entrada'!$B$21),'Dados de Entrada'!$B$91,IF(D$1<'Dados de Entrada'!$B$19+'Dados de Entrada'!$B$18,0,"")) -> 0 | E16: =IF(AND(E$1>='Dados de Entrada'!$B$19+'Dados de Entrada'!$B$18,E$1<='Dados de Entrada'!$B$21),'Dados de Entrada'!$B$91,IF(E$1<'Dados de Entrada'!$B$19+'Dados de Entrada'!$B$18,0,"")) -> 0 | F16: =IF(AND(F$1>='Dados de Entrada'!$B$19+'Dados de Entrada'!$B$18,F$1<='Dados de Entrada'!$B$21),'Dados de Entrada'!$B$91,IF(F$1<'Dados de Entrada'!$B$19+'Dados de Entrada'!$B$18,0,"")) -> 0 | G16: =IF(AND(G$1>='Dados de Entrada'!$B$19+'Dados de Entrada'!$B$18,G$1<='Dados de Entrada'!$B$21),'Dados de Entrada'!$B$91,IF(G$1<'Dados de Entrada'!$B$19+'Dados de Entrada'!$B$18,0,"")) -> 0 | H16: =IF(AND(H$1>='Dados de Entrada'!$B$19+'Dados de Entrada'!$B$18,H$1<='Dados de Entrada'!$B$21),'Dados de Entrada'!$B$91,IF(H$1<'Dados de Entrada'!$B$19+'Dados de Entrada'!$B$18,0,"")) -> 0 | I16: =IF(AND(I$1>='Dados de Entrada'!$B$19+'Dados de Entrada'!$B$18,I$1<='Dados de Entrada'!$B$21),'Dados de Entrada'!$B$91,IF(I$1<'Dados de Entrada'!$B$19+'Dados de Entrada'!$B$18,0,"")) -> 0 | J16: =IF(AND(J$1>='Dados de Entrada'!$B$19+'Dados de Entrada'!$B$18,J$1<='Dados de Entrada'!$B$21),'Dados de Entrada'!$B$91,IF(J$1<'Dados de Entrada'!$B$19+'Dados de Entrada'!$B$18,0,"")) -> 0 | K16: =IF(AND(K$1>='Dados de Entrada'!$B$19+'Dados de Entrada'!$B$18,K$1<='Dados de Entrada'!$B$21),'Dados de Entrada'!$B$91,IF(K$1<'Dados de Entrada'!$B$19+'Dados de Entrada'!$B$18,0,"")) -> 0 | L16: =IF(AND(L$1>='Dados de Entrada'!$B$19+'Dados de Entrada'!$B$18,L$1<='Dados de Entrada'!$B$21),'Dados de Entrada'!$B$91,IF(L$1<'Dados de Entrada'!$B$19+'Dados de Entrada'!$B$18,0,"")) -> 0 | M16: =IF(AND(M$1>='Dados de Entrada'!$B$19+'Dados de Entrada'!$B$18,M$1<='Dados de Entrada'!$B$21),'Dados de Entrada'!$B$91,IF(M$1<'Dados de Entrada'!$B$19+'Dados de Entrada'!$B$18,0,"")) -> 0 | N16: =IF(AND(N$1>='Dados de Entrada'!$B$19+'Dados de Entrada'!$B$18,N$1<='Dados de Entrada'!$B$21),'Dados de Entrada'!$B$91,IF(N$1<'Dados de Entrada'!$B$19+'Dados de Entrada'!$B$18,0,"")) -> 0 | O16: =IF(AND(O$1>='Dados de Entrada'!$B$19+'Dados de Entrada'!$B$18,O$1<='Dados de Entrada'!$B$21),'Dados de Entrada'!$B$91,IF(O$1<'Dados de Entrada'!$B$19+'Dados de Entrada'!$B$18,0,"")) -> 0 | P16: =IF(AND(P$1>='Dados de Entrada'!$B$19+'Dados de Entrada'!$B$18,P$1<='Dados de Entrada'!$B$21),'Dados de Entrada'!$B$91,IF(P$1<'Dados de Entrada'!$B$19+'Dados de Entrada'!$B$18,0,"")) -> 0 | Q16: =IF(AND(Q$1>='Dados de Entrada'!$B$19+'Dados de Entrada'!$B$18,Q$1<='Dados de Entrada'!$B$21),'Dados de Entrada'!$B$91,IF(Q$1<'Dados de Entrada'!$B$19+'Dados de Entrada'!$B$18,0,"")) -> 0 | R16: =IF(AND(R$1>='Dados de Entrada'!$B$19+'Dados de Entrada'!$B$18,R$1<='Dados de Entrada'!$B$21),'Dados de Entrada'!$B$91,IF(R$1<'Dados de Entrada'!$B$19+'Dados de Entrada'!$B$18,0,"")) -> 0 | S16: =IF(AND(S$1>='Dados de Entrada'!$B$19+'Dados de Entrada'!$B$18,S$1<='Dados de Entrada'!$B$21),'Dados de Entrada'!$B$91,IF(S$1<'Dados de Entrada'!$B$19+'Dados de Entrada'!$B$18,0,"")) -> 0 | T16: =IF(AND(T$1>='Dados de Entrada'!$B$19+'Dados de Entrada'!$B$18,T$1<='Dados de Entrada'!$B$21),'Dados de Entrada'!$B$91,IF(T$1<'Dados de Entrada'!$B$19+'Dados de Entrada'!$B$18,0,"")) -> 0 | U16: =IF(AND(U$1>='Dados de Entrada'!$B$19+'Dados de Entrada'!$B$18,U$1<='Dados de Entrada'!$B$21),'Dados de Entrada'!$B$91,IF(U$1<'Dados de Entrada'!$B$19+'Dados de Entrada'!$B$18,0,"")) -> 0 | V16: =IF(AND(V$1>='Dados de Entrada'!$B$19+'Dados de Entrada'!$B$18,V$1<='Dados de Entrada'!$B$21),'Dados de Entrada'!$B$91,IF(V$1<'Dados de Entrada'!$B$19+'Dados de Entrada'!$B$18,0,"")) -> 0 | W16: =IF(AND(W$1>='Dados de Entrada'!$B$19+'Dados de Entrada'!$B$18,W$1<='Dados de Entrada'!$B$21),'Dados de Entrada'!$B$91,IF(W$1<'Dados de Entrada'!$B$19+'Dados de Entrada'!$B$18,0,"")) -> 0 | X16: =IF(AND(X$1>='Dados de Entrada'!$B$19+'Dados de Entrada'!$B$18,X$1<='Dados de Entrada'!$B$21),'Dados de Entrada'!$B$91,IF(X$1<'Dados de Entrada'!$B$19+'Dados de Entrada'!$B$18,0,"")) ->  | Y16: =IF(AND(Y$1>='Dados de Entrada'!$B$19+'Dados de Entrada'!$B$18,Y$1<='Dados de Entrada'!$B$21),'Dados de Entrada'!$B$91,IF(Y$1<'Dados de Entrada'!$B$19+'Dados de Entrada'!$B$18,0,"")) ->  | Z16: =IF(AND(Z$1>='Dados de Entrada'!$B$19+'Dados de Entrada'!$B$18,Z$1<='Dados de Entrada'!$B$21),'Dados de Entrada'!$B$91,IF(Z$1<'Dados de Entrada'!$B$19+'Dados de Entrada'!$B$18,0,"")) ->  | AA16: =IF(AND(AA$1>='Dados de Entrada'!$B$19+'Dados de Entrada'!$B$18,AA$1<='Dados de Entrada'!$B$21),'Dados de Entrada'!$B$91,IF(AA$1<'Dados de Entrada'!$B$19+'Dados de Entrada'!$B$18,0,"")) ->  | AB16: =IF(AND(AB$1>='Dados de Entrada'!$B$19+'Dados de Entrada'!$B$18,AB$1<='Dados de Entrada'!$B$21),'Dados de Entrada'!$B$91,IF(AB$1<'Dados de Entrada'!$B$19+'Dados de Entrada'!$B$18,0,"")) ->  | AC16: =IF(AND(AC$1>='Dados de Entrada'!$B$19+'Dados de Entrada'!$B$18,AC$1<='Dados de Entrada'!$B$21),'Dados de Entrada'!$B$91,IF(AC$1<'Dados de Entrada'!$B$19+'Dados de Entrada'!$B$18,0,"")) ->  | AD16: =IF(AND(AD$1>='Dados de Entrada'!$B$19+'Dados de Entrada'!$B$18,AD$1<='Dados de Entrada'!$B$21),'Dados de Entrada'!$B$91,IF(AD$1<'Dados de Entrada'!$B$19+'Dados de Entrada'!$B$18,0,"")) ->  | AE16: =IF(AND(AE$1>='Dados de Entrada'!$B$19+'Dados de Entrada'!$B$18,AE$1<='Dados de Entrada'!$B$21),'Dados de Entrada'!$B$91,IF(AE$1<'Dados de Entrada'!$B$19+'Dados de Entrada'!$B$18,0,"")) ->  | AF16: =IF(AND(AF$1>='Dados de Entrada'!$B$19+'Dados de Entrada'!$B$18,AF$1<='Dados de Entrada'!$B$21),'Dados de Entrada'!$B$91,IF(AF$1<'Dados de Entrada'!$B$19+'Dados de Entrada'!$B$18,0,"")) ->  | AG16: =IF(AND(AG$1>='Dados de Entrada'!$B$19+'Dados de Entrada'!$B$18,AG$1<='Dados de Entrada'!$B$21),'Dados de Entrada'!$B$91,IF(AG$1<'Dados de Entrada'!$B$19+'Dados de Entrada'!$B$18,0,"")) ->  | AH16: =IF(AND(AH$1>='Dados de Entrada'!$B$19+'Dados de Entrada'!$B$18,AH$1<='Dados de Entrada'!$B$21),'Dados de Entrada'!$B$91,IF(AH$1<'Dados de Entrada'!$B$19+'Dados de Entrada'!$B$18,0,"")) ->  | AI16: =IF(AND(AI$1>='Dados de Entrada'!$B$19+'Dados de Entrada'!$B$18,AI$1<='Dados de Entrada'!$B$21),'Dados de Entrada'!$B$91,IF(AI$1<'Dados de Entrada'!$B$19+'Dados de Entrada'!$B$18,0,"")) ->  | AJ16: =IF(AND(AJ$1>='Dados de Entrada'!$B$19+'Dados de Entrada'!$B$18,AJ$1<='Dados de Entrada'!$B$21),'Dados de Entrada'!$B$91,IF(AJ$1<'Dados de Entrada'!$B$19+'Dados de Entrada'!$B$18,0,"")) ->  | AK16: =IF(AND(AK$1>='Dados de Entrada'!$B$19+'Dados de Entrada'!$B$18,AK$1<='Dados de Entrada'!$B$21),'Dados de Entrada'!$B$91,IF(AK$1<'Dados de Entrada'!$B$19+'Dados de Entrada'!$B$18,0,"")) ->  | AL16: =IF(AND(AL$1>='Dados de Entrada'!$B$19+'Dados de Entrada'!$B$18,AL$1<='Dados de Entrada'!$B$21),'Dados de Entrada'!$B$91,IF(AL$1<'Dados de Entrada'!$B$19+'Dados de Entrada'!$B$18,0,"")) ->  | AM16: =IF(AND(AM$1>='Dados de Entrada'!$B$19+'Dados de Entrada'!$B$18,AM$1<='Dados de Entrada'!$B$21),'Dados de Entrada'!$B$91,IF(AM$1<'Dados de Entrada'!$B$19+'Dados de Entrada'!$B$18,0,"")) ->  | AN16: =IF(AND(AN$1>='Dados de Entrada'!$B$19+'Dados de Entrada'!$B$18,AN$1<='Dados de Entrada'!$B$21),'Dados de Entrada'!$B$91,IF(AN$1<'Dados de Entrada'!$B$19+'Dados de Entrada'!$B$18,0,"")) ->  | AO16: =IF(AND(AO$1>='Dados de Entrada'!$B$19+'Dados de Entrada'!$B$18,AO$1<='Dados de Entrada'!$B$21),'Dados de Entrada'!$B$91,IF(AO$1<'Dados de Entrada'!$B$19+'Dados de Entrada'!$B$18,0,"")) -> 
A17: Opex associado a Outros custos operacionais (2.2.2.2) | B17: =IF(AND(B$1>='Dados de Entrada'!$B$19+'Dados de Entrada'!$B$18,B$1<='Dados de Entrada'!$B$21),'Dados de Entrada'!$B$93,IF(B$1<'Dados de Entrada'!$B$19+'Dados de Entrada'!$B$18,0,"")) -> 0 | C17: =IF(AND(C$1>='Dados de Entrada'!$B$19+'Dados de Entrada'!$B$18,C$1<='Dados de Entrada'!$B$21),'Dados de Entrada'!$B$93,IF(C$1<'Dados de Entrada'!$B$19+'Dados de Entrada'!$B$18,0,"")) -> 0 | D17: =IF(AND(D$1>='Dados de Entrada'!$B$19+'Dados de Entrada'!$B$18,D$1<='Dados de Entrada'!$B$21),'Dados de Entrada'!$B$93,IF(D$1<'Dados de Entrada'!$B$19+'Dados de Entrada'!$B$18,0,"")) -> 0 | E17: =IF(AND(E$1>='Dados de Entrada'!$B$19+'Dados de Entrada'!$B$18,E$1<='Dados de Entrada'!$B$21),'Dados de Entrada'!$B$93,IF(E$1<'Dados de Entrada'!$B$19+'Dados de Entrada'!$B$18,0,"")) -> 0 | F17: =IF(AND(F$1>='Dados de Entrada'!$B$19+'Dados de Entrada'!$B$18,F$1<='Dados de Entrada'!$B$21),'Dados de Entrada'!$B$93,IF(F$1<'Dados de Entrada'!$B$19+'Dados de Entrada'!$B$18,0,"")) -> 0 | G17: =IF(AND(G$1>='Dados de Entrada'!$B$19+'Dados de Entrada'!$B$18,G$1<='Dados de Entrada'!$B$21),'Dados de Entrada'!$B$93,IF(G$1<'Dados de Entrada'!$B$19+'Dados de Entrada'!$B$18,0,"")) -> 0 | H17: =IF(AND(H$1>='Dados de Entrada'!$B$19+'Dados de Entrada'!$B$18,H$1<='Dados de Entrada'!$B$21),'Dados de Entrada'!$B$93,IF(H$1<'Dados de Entrada'!$B$19+'Dados de Entrada'!$B$18,0,"")) -> 0 | I17: =IF(AND(I$1>='Dados de Entrada'!$B$19+'Dados de Entrada'!$B$18,I$1<='Dados de Entrada'!$B$21),'Dados de Entrada'!$B$93,IF(I$1<'Dados de Entrada'!$B$19+'Dados de Entrada'!$B$18,0,"")) -> 0 | J17: =IF(AND(J$1>='Dados de Entrada'!$B$19+'Dados de Entrada'!$B$18,J$1<='Dados de Entrada'!$B$21),'Dados de Entrada'!$B$93,IF(J$1<'Dados de Entrada'!$B$19+'Dados de Entrada'!$B$18,0,"")) -> 0 | K17: =IF(AND(K$1>='Dados de Entrada'!$B$19+'Dados de Entrada'!$B$18,K$1<='Dados de Entrada'!$B$21),'Dados de Entrada'!$B$93,IF(K$1<'Dados de Entrada'!$B$19+'Dados de Entrada'!$B$18,0,"")) -> 0 | L17: =IF(AND(L$1>='Dados de Entrada'!$B$19+'Dados de Entrada'!$B$18,L$1<='Dados de Entrada'!$B$21),'Dados de Entrada'!$B$93,IF(L$1<'Dados de Entrada'!$B$19+'Dados de Entrada'!$B$18,0,"")) -> 0 | M17: =IF(AND(M$1>='Dados de Entrada'!$B$19+'Dados de Entrada'!$B$18,M$1<='Dados de Entrada'!$B$21),'Dados de Entrada'!$B$93,IF(M$1<'Dados de Entrada'!$B$19+'Dados de Entrada'!$B$18,0,"")) -> 0 | N17: =IF(AND(N$1>='Dados de Entrada'!$B$19+'Dados de Entrada'!$B$18,N$1<='Dados de Entrada'!$B$21),'Dados de Entrada'!$B$93,IF(N$1<'Dados de Entrada'!$B$19+'Dados de Entrada'!$B$18,0,"")) -> 0 | O17: =IF(AND(O$1>='Dados de Entrada'!$B$19+'Dados de Entrada'!$B$18,O$1<='Dados de Entrada'!$B$21),'Dados de Entrada'!$B$93,IF(O$1<'Dados de Entrada'!$B$19+'Dados de Entrada'!$B$18,0,"")) -> 0 | P17: =IF(AND(P$1>='Dados de Entrada'!$B$19+'Dados de Entrada'!$B$18,P$1<='Dados de Entrada'!$B$21),'Dados de Entrada'!$B$93,IF(P$1<'Dados de Entrada'!$B$19+'Dados de Entrada'!$B$18,0,"")) -> 0 | Q17: =IF(AND(Q$1>='Dados de Entrada'!$B$19+'Dados de Entrada'!$B$18,Q$1<='Dados de Entrada'!$B$21),'Dados de Entrada'!$B$93,IF(Q$1<'Dados de Entrada'!$B$19+'Dados de Entrada'!$B$18,0,"")) -> 0 | R17: =IF(AND(R$1>='Dados de Entrada'!$B$19+'Dados de Entrada'!$B$18,R$1<='Dados de Entrada'!$B$21),'Dados de Entrada'!$B$93,IF(R$1<'Dados de Entrada'!$B$19+'Dados de Entrada'!$B$18,0,"")) -> 0 | S17: =IF(AND(S$1>='Dados de Entrada'!$B$19+'Dados de Entrada'!$B$18,S$1<='Dados de Entrada'!$B$21),'Dados de Entrada'!$B$93,IF(S$1<'Dados de Entrada'!$B$19+'Dados de Entrada'!$B$18,0,"")) -> 0 | T17: =IF(AND(T$1>='Dados de Entrada'!$B$19+'Dados de Entrada'!$B$18,T$1<='Dados de Entrada'!$B$21),'Dados de Entrada'!$B$93,IF(T$1<'Dados de Entrada'!$B$19+'Dados de Entrada'!$B$18,0,"")) -> 0 | U17: =IF(AND(U$1>='Dados de Entrada'!$B$19+'Dados de Entrada'!$B$18,U$1<='Dados de Entrada'!$B$21),'Dados de Entrada'!$B$93,IF(U$1<'Dados de Entrada'!$B$19+'Dados de Entrada'!$B$18,0,"")) -> 0 | V17: =IF(AND(V$1>='Dados de Entrada'!$B$19+'Dados de Entrada'!$B$18,V$1<='Dados de Entrada'!$B$21),'Dados de Entrada'!$B$93,IF(V$1<'Dados de Entrada'!$B$19+'Dados de Entrada'!$B$18,0,"")) -> 0 | W17: =IF(AND(W$1>='Dados de Entrada'!$B$19+'Dados de Entrada'!$B$18,W$1<='Dados de Entrada'!$B$21),'Dados de Entrada'!$B$93,IF(W$1<'Dados de Entrada'!$B$19+'Dados de Entrada'!$B$18,0,"")) -> 0 | X17: =IF(AND(X$1>='Dados de Entrada'!$B$19+'Dados de Entrada'!$B$18,X$1<='Dados de Entrada'!$B$21),'Dados de Entrada'!$B$93,IF(X$1<'Dados de Entrada'!$B$19+'Dados de Entrada'!$B$18,0,"")) ->  | Y17: =IF(AND(Y$1>='Dados de Entrada'!$B$19+'Dados de Entrada'!$B$18,Y$1<='Dados de Entrada'!$B$21),'Dados de Entrada'!$B$93,IF(Y$1<'Dados de Entrada'!$B$19+'Dados de Entrada'!$B$18,0,"")) ->  | Z17: =IF(AND(Z$1>='Dados de Entrada'!$B$19+'Dados de Entrada'!$B$18,Z$1<='Dados de Entrada'!$B$21),'Dados de Entrada'!$B$93,IF(Z$1<'Dados de Entrada'!$B$19+'Dados de Entrada'!$B$18,0,"")) ->  | AA17: =IF(AND(AA$1>='Dados de Entrada'!$B$19+'Dados de Entrada'!$B$18,AA$1<='Dados de Entrada'!$B$21),'Dados de Entrada'!$B$93,IF(AA$1<'Dados de Entrada'!$B$19+'Dados de Entrada'!$B$18,0,"")) ->  | AB17: =IF(AND(AB$1>='Dados de Entrada'!$B$19+'Dados de Entrada'!$B$18,AB$1<='Dados de Entrada'!$B$21),'Dados de Entrada'!$B$93,IF(AB$1<'Dados de Entrada'!$B$19+'Dados de Entrada'!$B$18,0,"")) ->  | AC17: =IF(AND(AC$1>='Dados de Entrada'!$B$19+'Dados de Entrada'!$B$18,AC$1<='Dados de Entrada'!$B$21),'Dados de Entrada'!$B$93,IF(AC$1<'Dados de Entrada'!$B$19+'Dados de Entrada'!$B$18,0,"")) ->  | AD17: =IF(AND(AD$1>='Dados de Entrada'!$B$19+'Dados de Entrada'!$B$18,AD$1<='Dados de Entrada'!$B$21),'Dados de Entrada'!$B$93,IF(AD$1<'Dados de Entrada'!$B$19+'Dados de Entrada'!$B$18,0,"")) ->  | AE17: =IF(AND(AE$1>='Dados de Entrada'!$B$19+'Dados de Entrada'!$B$18,AE$1<='Dados de Entrada'!$B$21),'Dados de Entrada'!$B$93,IF(AE$1<'Dados de Entrada'!$B$19+'Dados de Entrada'!$B$18,0,"")) ->  | AF17: =IF(AND(AF$1>='Dados de Entrada'!$B$19+'Dados de Entrada'!$B$18,AF$1<='Dados de Entrada'!$B$21),'Dados de Entrada'!$B$93,IF(AF$1<'Dados de Entrada'!$B$19+'Dados de Entrada'!$B$18,0,"")) ->  | AG17: =IF(AND(AG$1>='Dados de Entrada'!$B$19+'Dados de Entrada'!$B$18,AG$1<='Dados de Entrada'!$B$21),'Dados de Entrada'!$B$93,IF(AG$1<'Dados de Entrada'!$B$19+'Dados de Entrada'!$B$18,0,"")) ->  | AH17: =IF(AND(AH$1>='Dados de Entrada'!$B$19+'Dados de Entrada'!$B$18,AH$1<='Dados de Entrada'!$B$21),'Dados de Entrada'!$B$93,IF(AH$1<'Dados de Entrada'!$B$19+'Dados de Entrada'!$B$18,0,"")) ->  | AI17: =IF(AND(AI$1>='Dados de Entrada'!$B$19+'Dados de Entrada'!$B$18,AI$1<='Dados de Entrada'!$B$21),'Dados de Entrada'!$B$93,IF(AI$1<'Dados de Entrada'!$B$19+'Dados de Entrada'!$B$18,0,"")) ->  | AJ17: =IF(AND(AJ$1>='Dados de Entrada'!$B$19+'Dados de Entrada'!$B$18,AJ$1<='Dados de Entrada'!$B$21),'Dados de Entrada'!$B$93,IF(AJ$1<'Dados de Entrada'!$B$19+'Dados de Entrada'!$B$18,0,"")) ->  | AK17: =IF(AND(AK$1>='Dados de Entrada'!$B$19+'Dados de Entrada'!$B$18,AK$1<='Dados de Entrada'!$B$21),'Dados de Entrada'!$B$93,IF(AK$1<'Dados de Entrada'!$B$19+'Dados de Entrada'!$B$18,0,"")) ->  | AL17: =IF(AND(AL$1>='Dados de Entrada'!$B$19+'Dados de Entrada'!$B$18,AL$1<='Dados de Entrada'!$B$21),'Dados de Entrada'!$B$93,IF(AL$1<'Dados de Entrada'!$B$19+'Dados de Entrada'!$B$18,0,"")) ->  | AM17: =IF(AND(AM$1>='Dados de Entrada'!$B$19+'Dados de Entrada'!$B$18,AM$1<='Dados de Entrada'!$B$21),'Dados de Entrada'!$B$93,IF(AM$1<'Dados de Entrada'!$B$19+'Dados de Entrada'!$B$18,0,"")) ->  | AN17: =IF(AND(AN$1>='Dados de Entrada'!$B$19+'Dados de Entrada'!$B$18,AN$1<='Dados de Entrada'!$B$21),'Dados de Entrada'!$B$93,IF(AN$1<'Dados de Entrada'!$B$19+'Dados de Entrada'!$B$18,0,"")) ->  | AO17: =IF(AND(AO$1>='Dados de Entrada'!$B$19+'Dados de Entrada'!$B$18,AO$1<='Dados de Entrada'!$B$21),'Dados de Entrada'!$B$93,IF(AO$1<'Dados de Entrada'!$B$19+'Dados de Entrada'!$B$18,0,"")) -> 
A18: EBITDA (3) = (1) - (2) | B18: =IFERROR(B3-B4,"") -> 0 | C18: 0 | D18: 858096.3303 | E18: 858096.3303 | F18: 858096.3303 | G18: 858096.3303 | H18: 858096.3303 | I18: 858096.3303 | J18: 858096.3303 | K18: 858096.3303 | L18: 858096.3303 | M18: 858096.3303 | N18: 858096.3303 | O18: 858096.3303 | P18: 858096.3303 | Q18: 858096.3303 | R18: 858096.3303 | S18: 858096.3303 | T18: 858096.3303 | U18: 858096.3303 | V18: 858096.3303 | W18: 858096.3303
A19: Depreciação Total (4) = (4.1) + (4.2) | B19: =IF(AND(B$1>='Dados de Entrada'!$B$19+'Dados de Entrada'!$B$18,B$1<='Dados de Entrada'!$B$21),SUM(B20:B21),IF(B$1<'Dados de Entrada'!$B$19+'Dados de Entrada'!$B$18,0,"")) -> 0 | C19: =IF(AND(C$1>='Dados de Entrada'!$B$19+'Dados de Entrada'!$B$18,C$1<='Dados de Entrada'!$B$21),SUM(C20:C21),IF(C$1<'Dados de Entrada'!$B$19+'Dados de Entrada'!$B$18,0,"")) -> 0 | D19: =IF(AND(D$1>='Dados de Entrada'!$B$19+'Dados de Entrada'!$B$18,D$1<='Dados de Entrada'!$B$21),SUM(D20:D21),IF(D$1<'Dados de Entrada'!$B$19+'Dados de Entrada'!$B$18,0,"")) -> 355299.7468 | E19: =IF(AND(E$1>='Dados de Entrada'!$B$19+'Dados de Entrada'!$B$18,E$1<='Dados de Entrada'!$B$21),SUM(E20:E21),IF(E$1<'Dados de Entrada'!$B$19+'Dados de Entrada'!$B$18,0,"")) -> 355299.7468 | F19: =IF(AND(F$1>='Dados de Entrada'!$B$19+'Dados de Entrada'!$B$18,F$1<='Dados de Entrada'!$B$21),SUM(F20:F21),IF(F$1<'Dados de Entrada'!$B$19+'Dados de Entrada'!$B$18,0,"")) -> 355299.7468 | G19: =IF(AND(G$1>='Dados de Entrada'!$B$19+'Dados de Entrada'!$B$18,G$1<='Dados de Entrada'!$B$21),SUM(G20:G21),IF(G$1<'Dados de Entrada'!$B$19+'Dados de Entrada'!$B$18,0,"")) -> 355299.7468 | H19: =IF(AND(H$1>='Dados de Entrada'!$B$19+'Dados de Entrada'!$B$18,H$1<='Dados de Entrada'!$B$21),SUM(H20:H21),IF(H$1<'Dados de Entrada'!$B$19+'Dados de Entrada'!$B$18,0,"")) -> 355299.7468 | I19: =IF(AND(I$1>='Dados de Entrada'!$B$19+'Dados de Entrada'!$B$18,I$1<='Dados de Entrada'!$B$21),SUM(I20:I21),IF(I$1<'Dados de Entrada'!$B$19+'Dados de Entrada'!$B$18,0,"")) -> 355299.7468 | J19: =IF(AND(J$1>='Dados de Entrada'!$B$19+'Dados de Entrada'!$B$18,J$1<='Dados de Entrada'!$B$21),SUM(J20:J21),IF(J$1<'Dados de Entrada'!$B$19+'Dados de Entrada'!$B$18,0,"")) -> 355299.7468 | K19: =IF(AND(K$1>='Dados de Entrada'!$B$19+'Dados de Entrada'!$B$18,K$1<='Dados de Entrada'!$B$21),SUM(K20:K21),IF(K$1<'Dados de Entrada'!$B$19+'Dados de Entrada'!$B$18,0,"")) -> 355299.7468 | L19: =IF(AND(L$1>='Dados de Entrada'!$B$19+'Dados de Entrada'!$B$18,L$1<='Dados de Entrada'!$B$21),SUM(L20:L21),IF(L$1<'Dados de Entrada'!$B$19+'Dados de Entrada'!$B$18,0,"")) -> 355299.7468 | M19: =IF(AND(M$1>='Dados de Entrada'!$B$19+'Dados de Entrada'!$B$18,M$1<='Dados de Entrada'!$B$21),SUM(M20:M21),IF(M$1<'Dados de Entrada'!$B$19+'Dados de Entrada'!$B$18,0,"")) -> 355299.7468 | N19: =IF(AND(N$1>='Dados de Entrada'!$B$19+'Dados de Entrada'!$B$18,N$1<='Dados de Entrada'!$B$21),SUM(N20:N21),IF(N$1<'Dados de Entrada'!$B$19+'Dados de Entrada'!$B$18,0,"")) -> 355299.7468 | O19: =IF(AND(O$1>='Dados de Entrada'!$B$19+'Dados de Entrada'!$B$18,O$1<='Dados de Entrada'!$B$21),SUM(O20:O21),IF(O$1<'Dados de Entrada'!$B$19+'Dados de Entrada'!$B$18,0,"")) -> 355299.7468 | P19: =IF(AND(P$1>='Dados de Entrada'!$B$19+'Dados de Entrada'!$B$18,P$1<='Dados de Entrada'!$B$21),SUM(P20:P21),IF(P$1<'Dados de Entrada'!$B$19+'Dados de Entrada'!$B$18,0,"")) -> 355299.7468 | Q19: =IF(AND(Q$1>='Dados de Entrada'!$B$19+'Dados de Entrada'!$B$18,Q$1<='Dados de Entrada'!$B$21),SUM(Q20:Q21),IF(Q$1<'Dados de Entrada'!$B$19+'Dados de Entrada'!$B$18,0,"")) -> 355299.7468 | R19: =IF(AND(R$1>='Dados de Entrada'!$B$19+'Dados de Entrada'!$B$18,R$1<='Dados de Entrada'!$B$21),SUM(R20:R21),IF(R$1<'Dados de Entrada'!$B$19+'Dados de Entrada'!$B$18,0,"")) -> 355299.7468 | S19: =IF(AND(S$1>='Dados de Entrada'!$B$19+'Dados de Entrada'!$B$18,S$1<='Dados de Entrada'!$B$21),SUM(S20:S21),IF(S$1<'Dados de Entrada'!$B$19+'Dados de Entrada'!$B$18,0,"")) -> 355299.7468 | T19: =IF(AND(T$1>='Dados de Entrada'!$B$19+'Dados de Entrada'!$B$18,T$1<='Dados de Entrada'!$B$21),SUM(T20:T21),IF(T$1<'Dados de Entrada'!$B$19+'Dados de Entrada'!$B$18,0,"")) -> 355299.7468 | U19: =IF(AND(U$1>='Dados de Entrada'!$B$19+'Dados de Entrada'!$B$18,U$1<='Dados de Entrada'!$B$21),SUM(U20:U21),IF(U$1<'Dados de Entrada'!$B$19+'Dados de Entrada'!$B$18,0,"")) -> 355299.7468 | V19: =IF(AND(V$1>='Dados de Entrada'!$B$19+'Dados de Entrada'!$B$18,V$1<='Dados de Entrada'!$B$21),SUM(V20:V21),IF(V$1<'Dados de Entrada'!$B$19+'Dados de Entrada'!$B$18,0,"")) -> 355299.7468 | W19: =IF(AND(W$1>='Dados de Entrada'!$B$19+'Dados de Entrada'!$B$18,W$1<='Dados de Entrada'!$B$21),SUM(W20:W21),IF(W$1<'Dados de Entrada'!$B$19+'Dados de Entrada'!$B$18,0,"")) -> 355299.7468 | X19: =IF(AND(X$1>='Dados de Entrada'!$B$19+'Dados de Entrada'!$B$18,X$1<='Dados de Entrada'!$B$21),SUM(X20:X21),IF(X$1<'Dados de Entrada'!$B$19+'Dados de Entrada'!$B$18,0,"")) ->  | Y19: =IF(AND(Y$1>='Dados de Entrada'!$B$19+'Dados de Entrada'!$B$18,Y$1<='Dados de Entrada'!$B$21),SUM(Y20:Y21),IF(Y$1<'Dados de Entrada'!$B$19+'Dados de Entrada'!$B$18,0,"")) ->  | Z19: =IF(AND(Z$1>='Dados de Entrada'!$B$19+'Dados de Entrada'!$B$18,Z$1<='Dados de Entrada'!$B$21),SUM(Z20:Z21),IF(Z$1<'Dados de Entrada'!$B$19+'Dados de Entrada'!$B$18,0,"")) ->  | AA19: =IF(AND(AA$1>='Dados de Entrada'!$B$19+'Dados de Entrada'!$B$18,AA$1<='Dados de Entrada'!$B$21),SUM(AA20:AA21),IF(AA$1<'Dados de Entrada'!$B$19+'Dados de Entrada'!$B$18,0,"")) ->  | AB19: =IF(AND(AB$1>='Dados de Entrada'!$B$19+'Dados de Entrada'!$B$18,AB$1<='Dados de Entrada'!$B$21),SUM(AB20:AB21),IF(AB$1<'Dados de Entrada'!$B$19+'Dados de Entrada'!$B$18,0,"")) ->  | AC19: =IF(AND(AC$1>='Dados de Entrada'!$B$19+'Dados de Entrada'!$B$18,AC$1<='Dados de Entrada'!$B$21),SUM(AC20:AC21),IF(AC$1<'Dados de Entrada'!$B$19+'Dados de Entrada'!$B$18,0,"")) ->  | AD19: =IF(AND(AD$1>='Dados de Entrada'!$B$19+'Dados de Entrada'!$B$18,AD$1<='Dados de Entrada'!$B$21),SUM(AD20:AD21),IF(AD$1<'Dados de Entrada'!$B$19+'Dados de Entrada'!$B$18,0,"")) ->  | AE19: =IF(AND(AE$1>='Dados de Entrada'!$B$19+'Dados de Entrada'!$B$18,AE$1<='Dados de Entrada'!$B$21),SUM(AE20:AE21),IF(AE$1<'Dados de Entrada'!$B$19+'Dados de Entrada'!$B$18,0,"")) ->  | AF19: =IF(AND(AF$1>='Dados de Entrada'!$B$19+'Dados de Entrada'!$B$18,AF$1<='Dados de Entrada'!$B$21),SUM(AF20:AF21),IF(AF$1<'Dados de Entrada'!$B$19+'Dados de Entrada'!$B$18,0,"")) ->  | AG19: =IF(AND(AG$1>='Dados de Entrada'!$B$19+'Dados de Entrada'!$B$18,AG$1<='Dados de Entrada'!$B$21),SUM(AG20:AG21),IF(AG$1<'Dados de Entrada'!$B$19+'Dados de Entrada'!$B$18,0,"")) ->  | AH19: =IF(AND(AH$1>='Dados de Entrada'!$B$19+'Dados de Entrada'!$B$18,AH$1<='Dados de Entrada'!$B$21),SUM(AH20:AH21),IF(AH$1<'Dados de Entrada'!$B$19+'Dados de Entrada'!$B$18,0,"")) ->  | AI19: =IF(AND(AI$1>='Dados de Entrada'!$B$19+'Dados de Entrada'!$B$18,AI$1<='Dados de Entrada'!$B$21),SUM(AI20:AI21),IF(AI$1<'Dados de Entrada'!$B$19+'Dados de Entrada'!$B$18,0,"")) ->  | AJ19: =IF(AND(AJ$1>='Dados de Entrada'!$B$19+'Dados de Entrada'!$B$18,AJ$1<='Dados de Entrada'!$B$21),SUM(AJ20:AJ21),IF(AJ$1<'Dados de Entrada'!$B$19+'Dados de Entrada'!$B$18,0,"")) ->  | AK19: =IF(AND(AK$1>='Dados de Entrada'!$B$19+'Dados de Entrada'!$B$18,AK$1<='Dados de Entrada'!$B$21),SUM(AK20:AK21),IF(AK$1<'Dados de Entrada'!$B$19+'Dados de Entrada'!$B$18,0,"")) ->  | AL19: =IF(AND(AL$1>='Dados de Entrada'!$B$19+'Dados de Entrada'!$B$18,AL$1<='Dados de Entrada'!$B$21),SUM(AL20:AL21),IF(AL$1<'Dados de Entrada'!$B$19+'Dados de Entrada'!$B$18,0,"")) ->  | AM19: =IF(AND(AM$1>='Dados de Entrada'!$B$19+'Dados de Entrada'!$B$18,AM$1<='Dados de Entrada'!$B$21),SUM(AM20:AM21),IF(AM$1<'Dados de Entrada'!$B$19+'Dados de Entrada'!$B$18,0,"")) ->  | AN19: =IF(AND(AN$1>='Dados de Entrada'!$B$19+'Dados de Entrada'!$B$18,AN$1<='Dados de Entrada'!$B$21),SUM(AN20:AN21),IF(AN$1<'Dados de Entrada'!$B$19+'Dados de Entrada'!$B$18,0,"")) ->  | AO19: =IF(AND(AO$1>='Dados de Entrada'!$B$19+'Dados de Entrada'!$B$18,AO$1<='Dados de Entrada'!$B$21),SUM(AO20:AO21),IF(AO$1<'Dados de Entrada'!$B$19+'Dados de Entrada'!$B$18,0,"")) -> 
A20: Depreciação do Capex da Produção (4.1) | B20: =IF(AND(B$1>='Dados de Entrada'!$B$19+'Dados de Entrada'!$B$18,B$1<='Dados de Entrada'!$B$21),'Dados de Entrada'!$B$35/'Dados de Entrada'!$B$20,IF(B$1<'Dados de Entrada'!$B$19+'Dados de Entrada'!$B$18,0,"")) -> 0 | C20: =IF(AND(C$1>='Dados de Entrada'!$B$19+'Dados de Entrada'!$B$18,C$1<='Dados de Entrada'!$B$21),'Dados de Entrada'!$B$35/'Dados de Entrada'!$B$20,IF(C$1<'Dados de Entrada'!$B$19+'Dados de Entrada'!$B$18,0,"")) -> 0 | D20: =IF(AND(D$1>='Dados de Entrada'!$B$19+'Dados de Entrada'!$B$18,D$1<='Dados de Entrada'!$B$21),'Dados de Entrada'!$B$35/'Dados de Entrada'!$B$20,IF(D$1<'Dados de Entrada'!$B$19+'Dados de Entrada'!$B$18,0,"")) -> 355299.7468 | E20: =IF(AND(E$1>='Dados de Entrada'!$B$19+'Dados de Entrada'!$B$18,E$1<='Dados de Entrada'!$B$21),'Dados de Entrada'!$B$35/'Dados de Entrada'!$B$20,IF(E$1<'Dados de Entrada'!$B$19+'Dados de Entrada'!$B$18,0,"")) -> 355299.7468 | F20: =IF(AND(F$1>='Dados de Entrada'!$B$19+'Dados de Entrada'!$B$18,F$1<='Dados de Entrada'!$B$21),'Dados de Entrada'!$B$35/'Dados de Entrada'!$B$20,IF(F$1<'Dados de Entrada'!$B$19+'Dados de Entrada'!$B$18,0,"")) -> 355299.7468 | G20: =IF(AND(G$1>='Dados de Entrada'!$B$19+'Dados de Entrada'!$B$18,G$1<='Dados de Entrada'!$B$21),'Dados de Entrada'!$B$35/'Dados de Entrada'!$B$20,IF(G$1<'Dados de Entrada'!$B$19+'Dados de Entrada'!$B$18,0,"")) -> 355299.7468 | H20: =IF(AND(H$1>='Dados de Entrada'!$B$19+'Dados de Entrada'!$B$18,H$1<='Dados de Entrada'!$B$21),'Dados de Entrada'!$B$35/'Dados de Entrada'!$B$20,IF(H$1<'Dados de Entrada'!$B$19+'Dados de Entrada'!$B$18,0,"")) -> 355299.7468 | I20: =IF(AND(I$1>='Dados de Entrada'!$B$19+'Dados de Entrada'!$B$18,I$1<='Dados de Entrada'!$B$21),'Dados de Entrada'!$B$35/'Dados de Entrada'!$B$20,IF(I$1<'Dados de Entrada'!$B$19+'Dados de Entrada'!$B$18,0,"")) -> 355299.7468 | J20: =IF(AND(J$1>='Dados de Entrada'!$B$19+'Dados de Entrada'!$B$18,J$1<='Dados de Entrada'!$B$21),'Dados de Entrada'!$B$35/'Dados de Entrada'!$B$20,IF(J$1<'Dados de Entrada'!$B$19+'Dados de Entrada'!$B$18,0,"")) -> 355299.7468 | K20: =IF(AND(K$1>='Dados de Entrada'!$B$19+'Dados de Entrada'!$B$18,K$1<='Dados de Entrada'!$B$21),'Dados de Entrada'!$B$35/'Dados de Entrada'!$B$20,IF(K$1<'Dados de Entrada'!$B$19+'Dados de Entrada'!$B$18,0,"")) -> 355299.7468 | L20: =IF(AND(L$1>='Dados de Entrada'!$B$19+'Dados de Entrada'!$B$18,L$1<='Dados de Entrada'!$B$21),'Dados de Entrada'!$B$35/'Dados de Entrada'!$B$20,IF(L$1<'Dados de Entrada'!$B$19+'Dados de Entrada'!$B$18,0,"")) -> 355299.7468 | M20: =IF(AND(M$1>='Dados de Entrada'!$B$19+'Dados de Entrada'!$B$18,M$1<='Dados de Entrada'!$B$21),'Dados de Entrada'!$B$35/'Dados de Entrada'!$B$20,IF(M$1<'Dados de Entrada'!$B$19+'Dados de Entrada'!$B$18,0,"")) -> 355299.7468 | N20: =IF(AND(N$1>='Dados de Entrada'!$B$19+'Dados de Entrada'!$B$18,N$1<='Dados de Entrada'!$B$21),'Dados de Entrada'!$B$35/'Dados de Entrada'!$B$20,IF(N$1<'Dados de Entrada'!$B$19+'Dados de Entrada'!$B$18,0,"")) -> 355299.7468 | O20: =IF(AND(O$1>='Dados de Entrada'!$B$19+'Dados de Entrada'!$B$18,O$1<='Dados de Entrada'!$B$21),'Dados de Entrada'!$B$35/'Dados de Entrada'!$B$20,IF(O$1<'Dados de Entrada'!$B$19+'Dados de Entrada'!$B$18,0,"")) -> 355299.7468 | P20: =IF(AND(P$1>='Dados de Entrada'!$B$19+'Dados de Entrada'!$B$18,P$1<='Dados de Entrada'!$B$21),'Dados de Entrada'!$B$35/'Dados de Entrada'!$B$20,IF(P$1<'Dados de Entrada'!$B$19+'Dados de Entrada'!$B$18,0,"")) -> 355299.7468 | Q20: =IF(AND(Q$1>='Dados de Entrada'!$B$19+'Dados de Entrada'!$B$18,Q$1<='Dados de Entrada'!$B$21),'Dados de Entrada'!$B$35/'Dados de Entrada'!$B$20,IF(Q$1<'Dados de Entrada'!$B$19+'Dados de Entrada'!$B$18,0,"")) -> 355299.7468 | R20: =IF(AND(R$1>='Dados de Entrada'!$B$19+'Dados de Entrada'!$B$18,R$1<='Dados de Entrada'!$B$21),'Dados de Entrada'!$B$35/'Dados de Entrada'!$B$20,IF(R$1<'Dados de Entrada'!$B$19+'Dados de Entrada'!$B$18,0,"")) -> 355299.7468 | S20: =IF(AND(S$1>='Dados de Entrada'!$B$19+'Dados de Entrada'!$B$18,S$1<='Dados de Entrada'!$B$21),'Dados de Entrada'!$B$35/'Dados de Entrada'!$B$20,IF(S$1<'Dados de Entrada'!$B$19+'Dados de Entrada'!$B$18,0,"")) -> 355299.7468 | T20: =IF(AND(T$1>='Dados de Entrada'!$B$19+'Dados de Entrada'!$B$18,T$1<='Dados de Entrada'!$B$21),'Dados de Entrada'!$B$35/'Dados de Entrada'!$B$20,IF(T$1<'Dados de Entrada'!$B$19+'Dados de Entrada'!$B$18,0,"")) -> 355299.7468 | U20: =IF(AND(U$1>='Dados de Entrada'!$B$19+'Dados de Entrada'!$B$18,U$1<='Dados de Entrada'!$B$21),'Dados de Entrada'!$B$35/'Dados de Entrada'!$B$20,IF(U$1<'Dados de Entrada'!$B$19+'Dados de Entrada'!$B$18,0,"")) -> 355299.7468 | V20: =IF(AND(V$1>='Dados de Entrada'!$B$19+'Dados de Entrada'!$B$18,V$1<='Dados de Entrada'!$B$21),'Dados de Entrada'!$B$35/'Dados de Entrada'!$B$20,IF(V$1<'Dados de Entrada'!$B$19+'Dados de Entrada'!$B$18,0,"")) -> 355299.7468 | W20: =IF(AND(W$1>='Dados de Entrada'!$B$19+'Dados de Entrada'!$B$18,W$1<='Dados de Entrada'!$B$21),'Dados de Entrada'!$B$35/'Dados de Entrada'!$B$20,IF(W$1<'Dados de Entrada'!$B$19+'Dados de Entrada'!$B$18,0,"")) -> 355299.7468 | X20: =IF(AND(X$1>='Dados de Entrada'!$B$19+'Dados de Entrada'!$B$18,X$1<='Dados de Entrada'!$B$21),'Dados de Entrada'!$B$35/'Dados de Entrada'!$B$20,IF(X$1<'Dados de Entrada'!$B$19+'Dados de Entrada'!$B$18,0,"")) ->  | Y20: =IF(AND(Y$1>='Dados de Entrada'!$B$19+'Dados de Entrada'!$B$18,Y$1<='Dados de Entrada'!$B$21),'Dados de Entrada'!$B$35/'Dados de Entrada'!$B$20,IF(Y$1<'Dados de Entrada'!$B$19+'Dados de Entrada'!$B$18,0,"")) ->  | Z20: =IF(AND(Z$1>='Dados de Entrada'!$B$19+'Dados de Entrada'!$B$18,Z$1<='Dados de Entrada'!$B$21),'Dados de Entrada'!$B$35/'Dados de Entrada'!$B$20,IF(Z$1<'Dados de Entrada'!$B$19+'Dados de Entrada'!$B$18,0,"")) ->  | AA20: =IF(AND(AA$1>='Dados de Entrada'!$B$19+'Dados de Entrada'!$B$18,AA$1<='Dados de Entrada'!$B$21),'Dados de Entrada'!$B$35/'Dados de Entrada'!$B$20,IF(AA$1<'Dados de Entrada'!$B$19+'Dados de Entrada'!$B$18,0,"")) ->  | AB20: =IF(AND(AB$1>='Dados de Entrada'!$B$19+'Dados de Entrada'!$B$18,AB$1<='Dados de Entrada'!$B$21),'Dados de Entrada'!$B$35/'Dados de Entrada'!$B$20,IF(AB$1<'Dados de Entrada'!$B$19+'Dados de Entrada'!$B$18,0,"")) ->  | AC20: =IF(AND(AC$1>='Dados de Entrada'!$B$19+'Dados de Entrada'!$B$18,AC$1<='Dados de Entrada'!$B$21),'Dados de Entrada'!$B$35/'Dados de Entrada'!$B$20,IF(AC$1<'Dados de Entrada'!$B$19+'Dados de Entrada'!$B$18,0,"")) ->  | AD20: =IF(AND(AD$1>='Dados de Entrada'!$B$19+'Dados de Entrada'!$B$18,AD$1<='Dados de Entrada'!$B$21),'Dados de Entrada'!$B$35/'Dados de Entrada'!$B$20,IF(AD$1<'Dados de Entrada'!$B$19+'Dados de Entrada'!$B$18,0,"")) ->  | AE20: =IF(AND(AE$1>='Dados de Entrada'!$B$19+'Dados de Entrada'!$B$18,AE$1<='Dados de Entrada'!$B$21),'Dados de Entrada'!$B$35/'Dados de Entrada'!$B$20,IF(AE$1<'Dados de Entrada'!$B$19+'Dados de Entrada'!$B$18,0,"")) ->  | AF20: =IF(AND(AF$1>='Dados de Entrada'!$B$19+'Dados de Entrada'!$B$18,AF$1<='Dados de Entrada'!$B$21),'Dados de Entrada'!$B$35/'Dados de Entrada'!$B$20,IF(AF$1<'Dados de Entrada'!$B$19+'Dados de Entrada'!$B$18,0,"")) ->  | AG20: =IF(AND(AG$1>='Dados de Entrada'!$B$19+'Dados de Entrada'!$B$18,AG$1<='Dados de Entrada'!$B$21),'Dados de Entrada'!$B$35/'Dados de Entrada'!$B$20,IF(AG$1<'Dados de Entrada'!$B$19+'Dados de Entrada'!$B$18,0,"")) ->  | AH20: =IF(AND(AH$1>='Dados de Entrada'!$B$19+'Dados de Entrada'!$B$18,AH$1<='Dados de Entrada'!$B$21),'Dados de Entrada'!$B$35/'Dados de Entrada'!$B$20,IF(AH$1<'Dados de Entrada'!$B$19+'Dados de Entrada'!$B$18,0,"")) ->  | AI20: =IF(AND(AI$1>='Dados de Entrada'!$B$19+'Dados de Entrada'!$B$18,AI$1<='Dados de Entrada'!$B$21),'Dados de Entrada'!$B$35/'Dados de Entrada'!$B$20,IF(AI$1<'Dados de Entrada'!$B$19+'Dados de Entrada'!$B$18,0,"")) ->  | AJ20: =IF(AND(AJ$1>='Dados de Entrada'!$B$19+'Dados de Entrada'!$B$18,AJ$1<='Dados de Entrada'!$B$21),'Dados de Entrada'!$B$35/'Dados de Entrada'!$B$20,IF(AJ$1<'Dados de Entrada'!$B$19+'Dados de Entrada'!$B$18,0,"")) ->  | AK20: =IF(AND(AK$1>='Dados de Entrada'!$B$19+'Dados de Entrada'!$B$18,AK$1<='Dados de Entrada'!$B$21),'Dados de Entrada'!$B$35/'Dados de Entrada'!$B$20,IF(AK$1<'Dados de Entrada'!$B$19+'Dados de Entrada'!$B$18,0,"")) ->  | AL20: =IF(AND(AL$1>='Dados de Entrada'!$B$19+'Dados de Entrada'!$B$18,AL$1<='Dados de Entrada'!$B$21),'Dados de Entrada'!$B$35/'Dados de Entrada'!$B$20,IF(AL$1<'Dados de Entrada'!$B$19+'Dados de Entrada'!$B$18,0,"")) ->  | AM20: =IF(AND(AM$1>='Dados de Entrada'!$B$19+'Dados de Entrada'!$B$18,AM$1<='Dados de Entrada'!$B$21),'Dados de Entrada'!$B$35/'Dados de Entrada'!$B$20,IF(AM$1<'Dados de Entrada'!$B$19+'Dados de Entrada'!$B$18,0,"")) ->  | AN20: =IF(AND(AN$1>='Dados de Entrada'!$B$19+'Dados de Entrada'!$B$18,AN$1<='Dados de Entrada'!$B$21),'Dados de Entrada'!$B$35/'Dados de Entrada'!$B$20,IF(AN$1<'Dados de Entrada'!$B$19+'Dados de Entrada'!$B$18,0,"")) ->  | AO20: =IF(AND(AO$1>='Dados de Entrada'!$B$19+'Dados de Entrada'!$B$18,AO$1<='Dados de Entrada'!$B$21),'Dados de Entrada'!$B$35/'Dados de Entrada'!$B$20,IF(AO$1<'Dados de Entrada'!$B$19+'Dados de Entrada'!$B$18,0,"")) -> 
A21: Depreciação do Capex do CCS (4.2) | B21: =IF(AND(B$1>='Dados de Entrada'!$B$19+'Dados de Entrada'!$B$18,B$1<='Dados de Entrada'!$B$21),('Dados de Entrada'!$B$62+'Dados de Entrada'!$B$85)/'Dados de Entrada'!$B$20,IF(B$1<'Dados de Entrada'!$B$19+'Dados de Entrada'!$B$18,0,"")) -> 0 | C21: =IF(AND(C$1>='Dados de Entrada'!$B$19+'Dados de Entrada'!$B$18,C$1<='Dados de Entrada'!$B$21),('Dados de Entrada'!$B$62+'Dados de Entrada'!$B$85)/'Dados de Entrada'!$B$20,IF(C$1<'Dados de Entrada'!$B$19+'Dados de Entrada'!$B$18,0,"")) -> 0 | D21: =IF(AND(D$1>='Dados de Entrada'!$B$19+'Dados de Entrada'!$B$18,D$1<='Dados de Entrada'!$B$21),('Dados de Entrada'!$B$62+'Dados de Entrada'!$B$85)/'Dados de Entrada'!$B$20,IF(D$1<'Dados de Entrada'!$B$19+'Dados de Entrada'!$B$18,0,"")) -> 0 | E21: =IF(AND(E$1>='Dados de Entrada'!$B$19+'Dados de Entrada'!$B$18,E$1<='Dados de Entrada'!$B$21),('Dados de Entrada'!$B$62+'Dados de Entrada'!$B$85)/'Dados de Entrada'!$B$20,IF(E$1<'Dados de Entrada'!$B$19+'Dados de Entrada'!$B$18,0,"")) -> 0 | F21: =IF(AND(F$1>='Dados de Entrada'!$B$19+'Dados de Entrada'!$B$18,F$1<='Dados de Entrada'!$B$21),('Dados de Entrada'!$B$62+'Dados de Entrada'!$B$85)/'Dados de Entrada'!$B$20,IF(F$1<'Dados de Entrada'!$B$19+'Dados de Entrada'!$B$18,0,"")) -> 0 | G21: =IF(AND(G$1>='Dados de Entrada'!$B$19+'Dados de Entrada'!$B$18,G$1<='Dados de Entrada'!$B$21),('Dados de Entrada'!$B$62+'Dados de Entrada'!$B$85)/'Dados de Entrada'!$B$20,IF(G$1<'Dados de Entrada'!$B$19+'Dados de Entrada'!$B$18,0,"")) -> 0 | H21: =IF(AND(H$1>='Dados de Entrada'!$B$19+'Dados de Entrada'!$B$18,H$1<='Dados de Entrada'!$B$21),('Dados de Entrada'!$B$62+'Dados de Entrada'!$B$85)/'Dados de Entrada'!$B$20,IF(H$1<'Dados de Entrada'!$B$19+'Dados de Entrada'!$B$18,0,"")) -> 0 | I21: =IF(AND(I$1>='Dados de Entrada'!$B$19+'Dados de Entrada'!$B$18,I$1<='Dados de Entrada'!$B$21),('Dados de Entrada'!$B$62+'Dados de Entrada'!$B$85)/'Dados de Entrada'!$B$20,IF(I$1<'Dados de Entrada'!$B$19+'Dados de Entrada'!$B$18,0,"")) -> 0 | J21: =IF(AND(J$1>='Dados de Entrada'!$B$19+'Dados de Entrada'!$B$18,J$1<='Dados de Entrada'!$B$21),('Dados de Entrada'!$B$62+'Dados de Entrada'!$B$85)/'Dados de Entrada'!$B$20,IF(J$1<'Dados de Entrada'!$B$19+'Dados de Entrada'!$B$18,0,"")) -> 0 | K21: =IF(AND(K$1>='Dados de Entrada'!$B$19+'Dados de Entrada'!$B$18,K$1<='Dados de Entrada'!$B$21),('Dados de Entrada'!$B$62+'Dados de Entrada'!$B$85)/'Dados de Entrada'!$B$20,IF(K$1<'Dados de Entrada'!$B$19+'Dados de Entrada'!$B$18,0,"")) -> 0 | L21: =IF(AND(L$1>='Dados de Entrada'!$B$19+'Dados de Entrada'!$B$18,L$1<='Dados de Entrada'!$B$21),('Dados de Entrada'!$B$62+'Dados de Entrada'!$B$85)/'Dados de Entrada'!$B$20,IF(L$1<'Dados de Entrada'!$B$19+'Dados de Entrada'!$B$18,0,"")) -> 0 | M21: =IF(AND(M$1>='Dados de Entrada'!$B$19+'Dados de Entrada'!$B$18,M$1<='Dados de Entrada'!$B$21),('Dados de Entrada'!$B$62+'Dados de Entrada'!$B$85)/'Dados de Entrada'!$B$20,IF(M$1<'Dados de Entrada'!$B$19+'Dados de Entrada'!$B$18,0,"")) -> 0 | N21: =IF(AND(N$1>='Dados de Entrada'!$B$19+'Dados de Entrada'!$B$18,N$1<='Dados de Entrada'!$B$21),('Dados de Entrada'!$B$62+'Dados de Entrada'!$B$85)/'Dados de Entrada'!$B$20,IF(N$1<'Dados de Entrada'!$B$19+'Dados de Entrada'!$B$18,0,"")) -> 0 | O21: =IF(AND(O$1>='Dados de Entrada'!$B$19+'Dados de Entrada'!$B$18,O$1<='Dados de Entrada'!$B$21),('Dados de Entrada'!$B$62+'Dados de Entrada'!$B$85)/'Dados de Entrada'!$B$20,IF(O$1<'Dados de Entrada'!$B$19+'Dados de Entrada'!$B$18,0,"")) -> 0 | P21: =IF(AND(P$1>='Dados de Entrada'!$B$19+'Dados de Entrada'!$B$18,P$1<='Dados de Entrada'!$B$21),('Dados de Entrada'!$B$62+'Dados de Entrada'!$B$85)/'Dados de Entrada'!$B$20,IF(P$1<'Dados de Entrada'!$B$19+'Dados de Entrada'!$B$18,0,"")) -> 0 | Q21: =IF(AND(Q$1>='Dados de Entrada'!$B$19+'Dados de Entrada'!$B$18,Q$1<='Dados de Entrada'!$B$21),('Dados de Entrada'!$B$62+'Dados de Entrada'!$B$85)/'Dados de Entrada'!$B$20,IF(Q$1<'Dados de Entrada'!$B$19+'Dados de Entrada'!$B$18,0,"")) -> 0 | R21: =IF(AND(R$1>='Dados de Entrada'!$B$19+'Dados de Entrada'!$B$18,R$1<='Dados de Entrada'!$B$21),('Dados de Entrada'!$B$62+'Dados de Entrada'!$B$85)/'Dados de Entrada'!$B$20,IF(R$1<'Dados de Entrada'!$B$19+'Dados de Entrada'!$B$18,0,"")) -> 0 | S21: =IF(AND(S$1>='Dados de Entrada'!$B$19+'Dados de Entrada'!$B$18,S$1<='Dados de Entrada'!$B$21),('Dados de Entrada'!$B$62+'Dados de Entrada'!$B$85)/'Dados de Entrada'!$B$20,IF(S$1<'Dados de Entrada'!$B$19+'Dados de Entrada'!$B$18,0,"")) -> 0 | T21: =IF(AND(T$1>='Dados de Entrada'!$B$19+'Dados de Entrada'!$B$18,T$1<='Dados de Entrada'!$B$21),('Dados de Entrada'!$B$62+'Dados de Entrada'!$B$85)/'Dados de Entrada'!$B$20,IF(T$1<'Dados de Entrada'!$B$19+'Dados de Entrada'!$B$18,0,"")) -> 0 | U21: =IF(AND(U$1>='Dados de Entrada'!$B$19+'Dados de Entrada'!$B$18,U$1<='Dados de Entrada'!$B$21),('Dados de Entrada'!$B$62+'Dados de Entrada'!$B$85)/'Dados de Entrada'!$B$20,IF(U$1<'Dados de Entrada'!$B$19+'Dados de Entrada'!$B$18,0,"")) -> 0 | V21: =IF(AND(V$1>='Dados de Entrada'!$B$19+'Dados de Entrada'!$B$18,V$1<='Dados de Entrada'!$B$21),('Dados de Entrada'!$B$62+'Dados de Entrada'!$B$85)/'Dados de Entrada'!$B$20,IF(V$1<'Dados de Entrada'!$B$19+'Dados de Entrada'!$B$18,0,"")) -> 0 | W21: =IF(AND(W$1>='Dados de Entrada'!$B$19+'Dados de Entrada'!$B$18,W$1<='Dados de Entrada'!$B$21),('Dados de Entrada'!$B$62+'Dados de Entrada'!$B$85)/'Dados de Entrada'!$B$20,IF(W$1<'Dados de Entrada'!$B$19+'Dados de Entrada'!$B$18,0,"")) -> 0 | X21: =IF(AND(X$1>='Dados de Entrada'!$B$19+'Dados de Entrada'!$B$18,X$1<='Dados de Entrada'!$B$21),('Dados de Entrada'!$B$62+'Dados de Entrada'!$B$85)/'Dados de Entrada'!$B$20,IF(X$1<'Dados de Entrada'!$B$19+'Dados de Entrada'!$B$18,0,"")) ->  | Y21: =IF(AND(Y$1>='Dados de Entrada'!$B$19+'Dados de Entrada'!$B$18,Y$1<='Dados de Entrada'!$B$21),('Dados de Entrada'!$B$62+'Dados de Entrada'!$B$85)/'Dados de Entrada'!$B$20,IF(Y$1<'Dados de Entrada'!$B$19+'Dados de Entrada'!$B$18,0,"")) ->  | Z21: =IF(AND(Z$1>='Dados de Entrada'!$B$19+'Dados de Entrada'!$B$18,Z$1<='Dados de Entrada'!$B$21),('Dados de Entrada'!$B$62+'Dados de Entrada'!$B$85)/'Dados de Entrada'!$B$20,IF(Z$1<'Dados de Entrada'!$B$19+'Dados de Entrada'!$B$18,0,"")) ->  | AA21: =IF(AND(AA$1>='Dados de Entrada'!$B$19+'Dados de Entrada'!$B$18,AA$1<='Dados de Entrada'!$B$21),('Dados de Entrada'!$B$62+'Dados de Entrada'!$B$85)/'Dados de Entrada'!$B$20,IF(AA$1<'Dados de Entrada'!$B$19+'Dados de Entrada'!$B$18,0,"")) ->  | AB21: =IF(AND(AB$1>='Dados de Entrada'!$B$19+'Dados de Entrada'!$B$18,AB$1<='Dados de Entrada'!$B$21),('Dados de Entrada'!$B$62+'Dados de Entrada'!$B$85)/'Dados de Entrada'!$B$20,IF(AB$1<'Dados de Entrada'!$B$19+'Dados de Entrada'!$B$18,0,"")) ->  | AC21: =IF(AND(AC$1>='Dados de Entrada'!$B$19+'Dados de Entrada'!$B$18,AC$1<='Dados de Entrada'!$B$21),('Dados de Entrada'!$B$62+'Dados de Entrada'!$B$85)/'Dados de Entrada'!$B$20,IF(AC$1<'Dados de Entrada'!$B$19+'Dados de Entrada'!$B$18,0,"")) ->  | AD21: =IF(AND(AD$1>='Dados de Entrada'!$B$19+'Dados de Entrada'!$B$18,AD$1<='Dados de Entrada'!$B$21),('Dados de Entrada'!$B$62+'Dados de Entrada'!$B$85)/'Dados de Entrada'!$B$20,IF(AD$1<'Dados de Entrada'!$B$19+'Dados de Entrada'!$B$18,0,"")) ->  | AE21: =IF(AND(AE$1>='Dados de Entrada'!$B$19+'Dados de Entrada'!$B$18,AE$1<='Dados de Entrada'!$B$21),('Dados de Entrada'!$B$62+'Dados de Entrada'!$B$85)/'Dados de Entrada'!$B$20,IF(AE$1<'Dados de Entrada'!$B$19+'Dados de Entrada'!$B$18,0,"")) ->  | AF21: =IF(AND(AF$1>='Dados de Entrada'!$B$19+'Dados de Entrada'!$B$18,AF$1<='Dados de Entrada'!$B$21),('Dados de Entrada'!$B$62+'Dados de Entrada'!$B$85)/'Dados de Entrada'!$B$20,IF(AF$1<'Dados de Entrada'!$B$19+'Dados de Entrada'!$B$18,0,"")) ->  | AG21: =IF(AND(AG$1>='Dados de Entrada'!$B$19+'Dados de Entrada'!$B$18,AG$1<='Dados de Entrada'!$B$21),('Dados de Entrada'!$B$62+'Dados de Entrada'!$B$85)/'Dados de Entrada'!$B$20,IF(AG$1<'Dados de Entrada'!$B$19+'Dados de Entrada'!$B$18,0,"")) ->  | AH21: =IF(AND(AH$1>='Dados de Entrada'!$B$19+'Dados de Entrada'!$B$18,AH$1<='Dados de Entrada'!$B$21),('Dados de Entrada'!$B$62+'Dados de Entrada'!$B$85)/'Dados de Entrada'!$B$20,IF(AH$1<'Dados de Entrada'!$B$19+'Dados de Entrada'!$B$18,0,"")) ->  | AI21: =IF(AND(AI$1>='Dados de Entrada'!$B$19+'Dados de Entrada'!$B$18,AI$1<='Dados de Entrada'!$B$21),('Dados de Entrada'!$B$62+'Dados de Entrada'!$B$85)/'Dados de Entrada'!$B$20,IF(AI$1<'Dados de Entrada'!$B$19+'Dados de Entrada'!$B$18,0,"")) ->  | AJ21: =IF(AND(AJ$1>='Dados de Entrada'!$B$19+'Dados de Entrada'!$B$18,AJ$1<='Dados de Entrada'!$B$21),('Dados de Entrada'!$B$62+'Dados de Entrada'!$B$85)/'Dados de Entrada'!$B$20,IF(AJ$1<'Dados de Entrada'!$B$19+'Dados de Entrada'!$B$18,0,"")) ->  | AK21: =IF(AND(AK$1>='Dados de Entrada'!$B$19+'Dados de Entrada'!$B$18,AK$1<='Dados de Entrada'!$B$21),('Dados de Entrada'!$B$62+'Dados de Entrada'!$B$85)/'Dados de Entrada'!$B$20,IF(AK$1<'Dados de Entrada'!$B$19+'Dados de Entrada'!$B$18,0,"")) ->  | AL21: =IF(AND(AL$1>='Dados de Entrada'!$B$19+'Dados de Entrada'!$B$18,AL$1<='Dados de Entrada'!$B$21),('Dados de Entrada'!$B$62+'Dados de Entrada'!$B$85)/'Dados de Entrada'!$B$20,IF(AL$1<'Dados de Entrada'!$B$19+'Dados de Entrada'!$B$18,0,"")) ->  | AM21: =IF(AND(AM$1>='Dados de Entrada'!$B$19+'Dados de Entrada'!$B$18,AM$1<='Dados de Entrada'!$B$21),('Dados de Entrada'!$B$62+'Dados de Entrada'!$B$85)/'Dados de Entrada'!$B$20,IF(AM$1<'Dados de Entrada'!$B$19+'Dados de Entrada'!$B$18,0,"")) ->  | AN21: =IF(AND(AN$1>='Dados de Entrada'!$B$19+'Dados de Entrada'!$B$18,AN$1<='Dados de Entrada'!$B$21),('Dados de Entrada'!$B$62+'Dados de Entrada'!$B$85)/'Dados de Entrada'!$B$20,IF(AN$1<'Dados de Entrada'!$B$19+'Dados de Entrada'!$B$18,0,"")) ->  | AO21: =IF(AND(AO$1>='Dados de Entrada'!$B$19+'Dados de Entrada'!$B$18,AO$1<='Dados de Entrada'!$B$21),('Dados de Entrada'!$B$62+'Dados de Entrada'!$B$85)/'Dados de Entrada'!$B$20,IF(AO$1<'Dados de Entrada'!$B$19+'Dados de Entrada'!$B$18,0,"")) -> 
A22: EBIT (5) = (3) - (4) | B22: =IFERROR(B18-B19,"") -> 0 | C22: =IFERROR(C18-C19,"") -> 0 | D22: 502796.5835 | E22: =IFERROR(E18-E19,"") -> 502796.5835 | F22: 502796.5835 | G22: 502796.5835 | H22: 502796.5835 | I22: 502796.5835 | J22: 502796.5835 | K22: 502796.5835 | L22: 502796.5835 | M22: 502796.5835 | N22: 502796.5835 | O22: 502796.5835 | P22: 502796.5835 | Q22: 502796.5835 | R22: 502796.5835 | S22: 502796.5835 | T22: 502796.5835 | U22: 502796.5835 | V22: 502796.5835 | W22: 502796.5835
A23: Imposto de Renda (CSLL + IRPJ) (6) = (5) * i | B23: =IF(AND(B$1>='Dados de Entrada'!$B$19+'Dados de Entrada'!$B$18,B$1<='Dados de Entrada'!$B$21),IF(B22>0,B22*SUM('Dados de Entrada'!$B$23:$B$24),0),IF(B$1<'Dados de Entrada'!$B$19+'Dados de Entrada'!$B$18,0,"")) -> 0 | C23: =IF(AND(C$1>='Dados de Entrada'!$B$19+'Dados de Entrada'!$B$18,C$1<='Dados de Entrada'!$B$21),IF(C22>0,C22*SUM('Dados de Entrada'!$B$23:$B$24),0),IF(C$1<'Dados de Entrada'!$B$19+'Dados de Entrada'!$B$18,0,"")) -> 0 | D23: =IF(AND(D$1>='Dados de Entrada'!$B$19+'Dados de Entrada'!$B$18,D$1<='Dados de Entrada'!$B$21),IF(D22>0,D22*SUM('Dados de Entrada'!$B$23:$B$24),0),IF(D$1<'Dados de Entrada'!$B$19+'Dados de Entrada'!$B$18,0,"")) -> 0 | E23: =IF(AND(E$1>='Dados de Entrada'!$B$19+'Dados de Entrada'!$B$18,E$1<='Dados de Entrada'!$B$21),IF(E22>0,E22*SUM('Dados de Entrada'!$B$23:$B$24),0),IF(E$1<'Dados de Entrada'!$B$19+'Dados de Entrada'!$B$18,0,"")) -> 0 | F23: =IF(AND(F$1>='Dados de Entrada'!$B$19+'Dados de Entrada'!$B$18,F$1<='Dados de Entrada'!$B$21),IF(F22>0,F22*SUM('Dados de Entrada'!$B$23:$B$24),0),IF(F$1<'Dados de Entrada'!$B$19+'Dados de Entrada'!$B$18,0,"")) -> 0 | G23: =IF(AND(G$1>='Dados de Entrada'!$B$19+'Dados de Entrada'!$B$18,G$1<='Dados de Entrada'!$B$21),IF(G22>0,G22*SUM('Dados de Entrada'!$B$23:$B$24),0),IF(G$1<'Dados de Entrada'!$B$19+'Dados de Entrada'!$B$18,0,"")) -> 0 | H23: =IF(AND(H$1>='Dados de Entrada'!$B$19+'Dados de Entrada'!$B$18,H$1<='Dados de Entrada'!$B$21),IF(H22>0,H22*SUM('Dados de Entrada'!$B$23:$B$24),0),IF(H$1<'Dados de Entrada'!$B$19+'Dados de Entrada'!$B$18,0,"")) -> 0 | I23: =IF(AND(I$1>='Dados de Entrada'!$B$19+'Dados de Entrada'!$B$18,I$1<='Dados de Entrada'!$B$21),IF(I22>0,I22*SUM('Dados de Entrada'!$B$23:$B$24),0),IF(I$1<'Dados de Entrada'!$B$19+'Dados de Entrada'!$B$18,0,"")) -> 0 | J23: =IF(AND(J$1>='Dados de Entrada'!$B$19+'Dados de Entrada'!$B$18,J$1<='Dados de Entrada'!$B$21),IF(J22>0,J22*SUM('Dados de Entrada'!$B$23:$B$24),0),IF(J$1<'Dados de Entrada'!$B$19+'Dados de Entrada'!$B$18,0,"")) -> 0 | K23: =IF(AND(K$1>='Dados de Entrada'!$B$19+'Dados de Entrada'!$B$18,K$1<='Dados de Entrada'!$B$21),IF(K22>0,K22*SUM('Dados de Entrada'!$B$23:$B$24),0),IF(K$1<'Dados de Entrada'!$B$19+'Dados de Entrada'!$B$18,0,"")) -> 0 | L23: =IF(AND(L$1>='Dados de Entrada'!$B$19+'Dados de Entrada'!$B$18,L$1<='Dados de Entrada'!$B$21),IF(L22>0,L22*SUM('Dados de Entrada'!$B$23:$B$24),0),IF(L$1<'Dados de Entrada'!$B$19+'Dados de Entrada'!$B$18,0,"")) -> 0 | M23: =IF(AND(M$1>='Dados de Entrada'!$B$19+'Dados de Entrada'!$B$18,M$1<='Dados de Entrada'!$B$21),IF(M22>0,M22*SUM('Dados de Entrada'!$B$23:$B$24),0),IF(M$1<'Dados de Entrada'!$B$19+'Dados de Entrada'!$B$18,0,"")) -> 0 | N23: =IF(AND(N$1>='Dados de Entrada'!$B$19+'Dados de Entrada'!$B$18,N$1<='Dados de Entrada'!$B$21),IF(N22>0,N22*SUM('Dados de Entrada'!$B$23:$B$24),0),IF(N$1<'Dados de Entrada'!$B$19+'Dados de Entrada'!$B$18,0,"")) -> 0 | O23: =IF(AND(O$1>='Dados de Entrada'!$B$19+'Dados de Entrada'!$B$18,O$1<='Dados de Entrada'!$B$21),IF(O22>0,O22*SUM('Dados de Entrada'!$B$23:$B$24),0),IF(O$1<'Dados de Entrada'!$B$19+'Dados de Entrada'!$B$18,0,"")) -> 0 | P23: =IF(AND(P$1>='Dados de Entrada'!$B$19+'Dados de Entrada'!$B$18,P$1<='Dados de Entrada'!$B$21),IF(P22>0,P22*SUM('Dados de Entrada'!$B$23:$B$24),0),IF(P$1<'Dados de Entrada'!$B$19+'Dados de Entrada'!$B$18,0,"")) -> 0 | Q23: =IF(AND(Q$1>='Dados de Entrada'!$B$19+'Dados de Entrada'!$B$18,Q$1<='Dados de Entrada'!$B$21),IF(Q22>0,Q22*SUM('Dados de Entrada'!$B$23:$B$24),0),IF(Q$1<'Dados de Entrada'!$B$19+'Dados de Entrada'!$B$18,0,"")) -> 0 | R23: =IF(AND(R$1>='Dados de Entrada'!$B$19+'Dados de Entrada'!$B$18,R$1<='Dados de Entrada'!$B$21),IF(R22>0,R22*SUM('Dados de Entrada'!$B$23:$B$24),0),IF(R$1<'Dados de Entrada'!$B$19+'Dados de Entrada'!$B$18,0,"")) -> 0 | S23: =IF(AND(S$1>='Dados de Entrada'!$B$19+'Dados de Entrada'!$B$18,S$1<='Dados de Entrada'!$B$21),IF(S22>0,S22*SUM('Dados de Entrada'!$B$23:$B$24),0),IF(S$1<'Dados de Entrada'!$B$19+'Dados de Entrada'!$B$18,0,"")) -> 0 | T23: =IF(AND(T$1>='Dados de Entrada'!$B$19+'Dados de Entrada'!$B$18,T$1<='Dados de Entrada'!$B$21),IF(T22>0,T22*SUM('Dados de Entrada'!$B$23:$B$24),0),IF(T$1<'Dados de Entrada'!$B$19+'Dados de Entrada'!$B$18,0,"")) -> 0 | U23: =IF(AND(U$1>='Dados de Entrada'!$B$19+'Dados de Entrada'!$B$18,U$1<='Dados de Entrada'!$B$21),IF(U22>0,U22*SUM('Dados de Entrada'!$B$23:$B$24),0),IF(U$1<'Dados de Entrada'!$B$19+'Dados de Entrada'!$B$18,0,"")) -> 0 | V23: =IF(AND(V$1>='Dados de Entrada'!$B$19+'Dados de Entrada'!$B$18,V$1<='Dados de Entrada'!$B$21),IF(V22>0,V22*SUM('Dados de Entrada'!$B$23:$B$24),0),IF(V$1<'Dados de Entrada'!$B$19+'Dados de Entrada'!$B$18,0,"")) -> 0 | W23: =IF(AND(W$1>='Dados de Entrada'!$B$19+'Dados de Entrada'!$B$18,W$1<='Dados de Entrada'!$B$21),IF(W22>0,W22*SUM('Dados de Entrada'!$B$23:$B$24),0),IF(W$1<'Dados de Entrada'!$B$19+'Dados de Entrada'!$B$18,0,"")) -> 0 | X23: =IF(AND(X$1>='Dados de Entrada'!$B$19+'Dados de Entrada'!$B$18,X$1<='Dados de Entrada'!$B$21),IF(X22>0,X22*SUM('Dados de Entrada'!$B$23:$B$24),0),IF(X$1<'Dados de Entrada'!$B$19+'Dados de Entrada'!$B$18,0,"")) ->  | Y23: =IF(AND(Y$1>='Dados de Entrada'!$B$19+'Dados de Entrada'!$B$18,Y$1<='Dados de Entrada'!$B$21),IF(Y22>0,Y22*SUM('Dados de Entrada'!$B$23:$B$24),0),IF(Y$1<'Dados de Entrada'!$B$19+'Dados de Entrada'!$B$18,0,"")) ->  | Z23: =IF(AND(Z$1>='Dados de Entrada'!$B$19+'Dados de Entrada'!$B$18,Z$1<='Dados de Entrada'!$B$21),IF(Z22>0,Z22*SUM('Dados de Entrada'!$B$23:$B$24),0),IF(Z$1<'Dados de Entrada'!$B$19+'Dados de Entrada'!$B$18,0,"")) ->  | AA23: =IF(AND(AA$1>='Dados de Entrada'!$B$19+'Dados de Entrada'!$B$18,AA$1<='Dados de Entrada'!$B$21),IF(AA22>0,AA22*SUM('Dados de Entrada'!$B$23:$B$24),0),IF(AA$1<'Dados de Entrada'!$B$19+'Dados de Entrada'!$B$18,0,"")) ->  | AB23: =IF(AND(AB$1>='Dados de Entrada'!$B$19+'Dados de Entrada'!$B$18,AB$1<='Dados de Entrada'!$B$21),IF(AB22>0,AB22*SUM('Dados de Entrada'!$B$23:$B$24),0),IF(AB$1<'Dados de Entrada'!$B$19+'Dados de Entrada'!$B$18,0,"")) ->  | AC23: =IF(AND(AC$1>='Dados de Entrada'!$B$19+'Dados de Entrada'!$B$18,AC$1<='Dados de Entrada'!$B$21),IF(AC22>0,AC22*SUM('Dados de Entrada'!$B$23:$B$24),0),IF(AC$1<'Dados de Entrada'!$B$19+'Dados de Entrada'!$B$18,0,"")) ->  | AD23: =IF(AND(AD$1>='Dados de Entrada'!$B$19+'Dados de Entrada'!$B$18,AD$1<='Dados de Entrada'!$B$21),IF(AD22>0,AD22*SUM('Dados de Entrada'!$B$23:$B$24),0),IF(AD$1<'Dados de Entrada'!$B$19+'Dados de Entrada'!$B$18,0,"")) ->  | AE23: =IF(AND(AE$1>='Dados de Entrada'!$B$19+'Dados de Entrada'!$B$18,AE$1<='Dados de Entrada'!$B$21),IF(AE22>0,AE22*SUM('Dados de Entrada'!$B$23:$B$24),0),IF(AE$1<'Dados de Entrada'!$B$19+'Dados de Entrada'!$B$18,0,"")) ->  | AF23: =IF(AND(AF$1>='Dados de Entrada'!$B$19+'Dados de Entrada'!$B$18,AF$1<='Dados de Entrada'!$B$21),IF(AF22>0,AF22*SUM('Dados de Entrada'!$B$23:$B$24),0),IF(AF$1<'Dados de Entrada'!$B$19+'Dados de Entrada'!$B$18,0,"")) ->  | AG23: =IF(AND(AG$1>='Dados de Entrada'!$B$19+'Dados de Entrada'!$B$18,AG$1<='Dados de Entrada'!$B$21),IF(AG22>0,AG22*SUM('Dados de Entrada'!$B$23:$B$24),0),IF(AG$1<'Dados de Entrada'!$B$19+'Dados de Entrada'!$B$18,0,"")) ->  | AH23: =IF(AND(AH$1>='Dados de Entrada'!$B$19+'Dados de Entrada'!$B$18,AH$1<='Dados de Entrada'!$B$21),IF(AH22>0,AH22*SUM('Dados de Entrada'!$B$23:$B$24),0),IF(AH$1<'Dados de Entrada'!$B$19+'Dados de Entrada'!$B$18,0,"")) ->  | AI23: =IF(AND(AI$1>='Dados de Entrada'!$B$19+'Dados de Entrada'!$B$18,AI$1<='Dados de Entrada'!$B$21),IF(AI22>0,AI22*SUM('Dados de Entrada'!$B$23:$B$24),0),IF(AI$1<'Dados de Entrada'!$B$19+'Dados de Entrada'!$B$18,0,"")) ->  | AJ23: =IF(AND(AJ$1>='Dados de Entrada'!$B$19+'Dados de Entrada'!$B$18,AJ$1<='Dados de Entrada'!$B$21),IF(AJ22>0,AJ22*SUM('Dados de Entrada'!$B$23:$B$24),0),IF(AJ$1<'Dados de Entrada'!$B$19+'Dados de Entrada'!$B$18,0,"")) ->  | AK23: =IF(AND(AK$1>='Dados de Entrada'!$B$19+'Dados de Entrada'!$B$18,AK$1<='Dados de Entrada'!$B$21),IF(AK22>0,AK22*SUM('Dados de Entrada'!$B$23:$B$24),0),IF(AK$1<'Dados de Entrada'!$B$19+'Dados de Entrada'!$B$18,0,"")) ->  | AL23: =IF(AND(AL$1>='Dados de Entrada'!$B$19+'Dados de Entrada'!$B$18,AL$1<='Dados de Entrada'!$B$21),IF(AL22>0,AL22*SUM('Dados de Entrada'!$B$23:$B$24),0),IF(AL$1<'Dados de Entrada'!$B$19+'Dados de Entrada'!$B$18,0,"")) ->  | AM23: =IF(AND(AM$1>='Dados de Entrada'!$B$19+'Dados de Entrada'!$B$18,AM$1<='Dados de Entrada'!$B$21),IF(AM22>0,AM22*SUM('Dados de Entrada'!$B$23:$B$24),0),IF(AM$1<'Dados de Entrada'!$B$19+'Dados de Entrada'!$B$18,0,"")) ->  | AN23: =IF(AND(AN$1>='Dados de Entrada'!$B$19+'Dados de Entrada'!$B$18,AN$1<='Dados de Entrada'!$B$21),IF(AN22>0,AN22*SUM('Dados de Entrada'!$B$23:$B$24),0),IF(AN$1<'Dados de Entrada'!$B$19+'Dados de Entrada'!$B$18,0,"")) ->  | AO23: =IF(AND(AO$1>='Dados de Entrada'!$B$19+'Dados de Entrada'!$B$18,AO$1<='Dados de Entrada'!$B$21),IF(AO22>0,AO22*SUM('Dados de Entrada'!$B$23:$B$24),0),IF(AO$1<'Dados de Entrada'!$B$19+'Dados de Entrada'!$B$18,0,"")) -> 
A24: Receita líquida (7) = (5) - (6) | B24: =IFERROR(B22-B23,"") -> 0 | C24: =IFERROR(C22-C23,"") -> 0 | D24: 502796.5835 | E24: 502796.5835 | F24: 502796.5835 | G24: 502796.5835 | H24: 502796.5835 | I24: 502796.5835 | J24: 502796.5835 | K24: 502796.5835 | L24: 502796.5835 | M24: 502796.5835 | N24: 502796.5835 | O24: 502796.5835 | P24: 502796.5835 | Q24: 502796.5835 | R24: 502796.5835 | S24: 502796.5835 | T24: 502796.5835 | U24: 502796.5835 | V24: 502796.5835 | W24: 502796.5835
A25: Receitas com a venda de créditos de Carbono (8) = (8.1) + (8.2) | B25: =IF(AND(B$1>='Dados de Entrada'!$B$19+'Dados de Entrada'!$B$18,B$1<='Dados de Entrada'!$B$21),'Dados de Entrada'!$B$51,IF(B$1<'Dados de Entrada'!$B$19+'Dados de Entrada'!$B$18,0,"")) -> 0 | C25: =IF(AND(C$1>='Dados de Entrada'!$B$19+'Dados de Entrada'!$B$18,C$1<='Dados de Entrada'!$B$21),'Dados de Entrada'!$B$51,IF(C$1<'Dados de Entrada'!$B$19+'Dados de Entrada'!$B$18,0,"")) -> 0 | D25: =IF(AND(D$1>='Dados de Entrada'!$B$19+'Dados de Entrada'!$B$18,D$1<='Dados de Entrada'!$B$21),'Dados de Entrada'!$B$51,IF(D$1<'Dados de Entrada'!$B$19+'Dados de Entrada'!$B$18,0,"")) -> 21534.75698 | E25: =IF(AND(E$1>='Dados de Entrada'!$B$19+'Dados de Entrada'!$B$18,E$1<='Dados de Entrada'!$B$21),'Dados de Entrada'!$B$51,IF(E$1<'Dados de Entrada'!$B$19+'Dados de Entrada'!$B$18,0,"")) -> 21534.75698 | F25: =IF(AND(F$1>='Dados de Entrada'!$B$19+'Dados de Entrada'!$B$18,F$1<='Dados de Entrada'!$B$21),'Dados de Entrada'!$B$51,IF(F$1<'Dados de Entrada'!$B$19+'Dados de Entrada'!$B$18,0,"")) -> 21534.75698 | G25: =IF(AND(G$1>='Dados de Entrada'!$B$19+'Dados de Entrada'!$B$18,G$1<='Dados de Entrada'!$B$21),'Dados de Entrada'!$B$51,IF(G$1<'Dados de Entrada'!$B$19+'Dados de Entrada'!$B$18,0,"")) -> 21534.75698 | H25: =IF(AND(H$1>='Dados de Entrada'!$B$19+'Dados de Entrada'!$B$18,H$1<='Dados de Entrada'!$B$21),'Dados de Entrada'!$B$51,IF(H$1<'Dados de Entrada'!$B$19+'Dados de Entrada'!$B$18,0,"")) -> 21534.75698 | I25: =IF(AND(I$1>='Dados de Entrada'!$B$19+'Dados de Entrada'!$B$18,I$1<='Dados de Entrada'!$B$21),'Dados de Entrada'!$B$51,IF(I$1<'Dados de Entrada'!$B$19+'Dados de Entrada'!$B$18,0,"")) -> 21534.75698 | J25: =IF(AND(J$1>='Dados de Entrada'!$B$19+'Dados de Entrada'!$B$18,J$1<='Dados de Entrada'!$B$21),'Dados de Entrada'!$B$51,IF(J$1<'Dados de Entrada'!$B$19+'Dados de Entrada'!$B$18,0,"")) -> 21534.75698 | K25: =IF(AND(K$1>='Dados de Entrada'!$B$19+'Dados de Entrada'!$B$18,K$1<='Dados de Entrada'!$B$21),'Dados de Entrada'!$B$51,IF(K$1<'Dados de Entrada'!$B$19+'Dados de Entrada'!$B$18,0,"")) -> 21534.75698 | L25: =IF(AND(L$1>='Dados de Entrada'!$B$19+'Dados de Entrada'!$B$18,L$1<='Dados de Entrada'!$B$21),'Dados de Entrada'!$B$51,IF(L$1<'Dados de Entrada'!$B$19+'Dados de Entrada'!$B$18,0,"")) -> 21534.75698 | M25: =IF(AND(M$1>='Dados de Entrada'!$B$19+'Dados de Entrada'!$B$18,M$1<='Dados de Entrada'!$B$21),'Dados de Entrada'!$B$51,IF(M$1<'Dados de Entrada'!$B$19+'Dados de Entrada'!$B$18,0,"")) -> 21534.75698 | N25: =IF(AND(N$1>='Dados de Entrada'!$B$19+'Dados de Entrada'!$B$18,N$1<='Dados de Entrada'!$B$21),'Dados de Entrada'!$B$51,IF(N$1<'Dados de Entrada'!$B$19+'Dados de Entrada'!$B$18,0,"")) -> 21534.75698 | O25: =IF(AND(O$1>='Dados de Entrada'!$B$19+'Dados de Entrada'!$B$18,O$1<='Dados de Entrada'!$B$21),'Dados de Entrada'!$B$51,IF(O$1<'Dados de Entrada'!$B$19+'Dados de Entrada'!$B$18,0,"")) -> 21534.75698 | P25: =IF(AND(P$1>='Dados de Entrada'!$B$19+'Dados de Entrada'!$B$18,P$1<='Dados de Entrada'!$B$21),'Dados de Entrada'!$B$51,IF(P$1<'Dados de Entrada'!$B$19+'Dados de Entrada'!$B$18,0,"")) -> 21534.75698 | Q25: =IF(AND(Q$1>='Dados de Entrada'!$B$19+'Dados de Entrada'!$B$18,Q$1<='Dados de Entrada'!$B$21),'Dados de Entrada'!$B$51,IF(Q$1<'Dados de Entrada'!$B$19+'Dados de Entrada'!$B$18,0,"")) -> 21534.75698 | R25: =IF(AND(R$1>='Dados de Entrada'!$B$19+'Dados de Entrada'!$B$18,R$1<='Dados de Entrada'!$B$21),'Dados de Entrada'!$B$51,IF(R$1<'Dados de Entrada'!$B$19+'Dados de Entrada'!$B$18,0,"")) -> 21534.75698 | S25: =IF(AND(S$1>='Dados de Entrada'!$B$19+'Dados de Entrada'!$B$18,S$1<='Dados de Entrada'!$B$21),'Dados de Entrada'!$B$51,IF(S$1<'Dados de Entrada'!$B$19+'Dados de Entrada'!$B$18,0,"")) -> 21534.75698 | T25: =IF(AND(T$1>='Dados de Entrada'!$B$19+'Dados de Entrada'!$B$18,T$1<='Dados de Entrada'!$B$21),'Dados de Entrada'!$B$51,IF(T$1<'Dados de Entrada'!$B$19+'Dados de Entrada'!$B$18,0,"")) -> 21534.75698 | U25: =IF(AND(U$1>='Dados de Entrada'!$B$19+'Dados de Entrada'!$B$18,U$1<='Dados de Entrada'!$B$21),'Dados de Entrada'!$B$51,IF(U$1<'Dados de Entrada'!$B$19+'Dados de Entrada'!$B$18,0,"")) -> 21534.75698 | V25: =IF(AND(V$1>='Dados de Entrada'!$B$19+'Dados de Entrada'!$B$18,V$1<='Dados de Entrada'!$B$21),'Dados de Entrada'!$B$51,IF(V$1<'Dados de Entrada'!$B$19+'Dados de Entrada'!$B$18,0,"")) -> 21534.75698 | W25: =IF(AND(W$1>='Dados de Entrada'!$B$19+'Dados de Entrada'!$B$18,W$1<='Dados de Entrada'!$B$21),'Dados de Entrada'!$B$51,IF(W$1<'Dados de Entrada'!$B$19+'Dados de Entrada'!$B$18,0,"")) -> 21534.75698 | X25: =IF(AND(X$1>='Dados de Entrada'!$B$19+'Dados de Entrada'!$B$18,X$1<='Dados de Entrada'!$B$21),'Dados de Entrada'!$B$51,IF(X$1<'Dados de Entrada'!$B$19+'Dados de Entrada'!$B$18,0,"")) ->  | Y25: =IF(AND(Y$1>='Dados de Entrada'!$B$19+'Dados de Entrada'!$B$18,Y$1<='Dados de Entrada'!$B$21),'Dados de Entrada'!$B$51,IF(Y$1<'Dados de Entrada'!$B$19+'Dados de Entrada'!$B$18,0,"")) ->  | Z25: =IF(AND(Z$1>='Dados de Entrada'!$B$19+'Dados de Entrada'!$B$18,Z$1<='Dados de Entrada'!$B$21),'Dados de Entrada'!$B$51,IF(Z$1<'Dados de Entrada'!$B$19+'Dados de Entrada'!$B$18,0,"")) ->  | AA25: =IF(AND(AA$1>='Dados de Entrada'!$B$19+'Dados de Entrada'!$B$18,AA$1<='Dados de Entrada'!$B$21),'Dados de Entrada'!$B$51,IF(AA$1<'Dados de Entrada'!$B$19+'Dados de Entrada'!$B$18,0,"")) ->  | AB25: =IF(AND(AB$1>='Dados de Entrada'!$B$19+'Dados de Entrada'!$B$18,AB$1<='Dados de Entrada'!$B$21),'Dados de Entrada'!$B$51,IF(AB$1<'Dados de Entrada'!$B$19+'Dados de Entrada'!$B$18,0,"")) ->  | AC25: =IF(AND(AC$1>='Dados de Entrada'!$B$19+'Dados de Entrada'!$B$18,AC$1<='Dados de Entrada'!$B$21),'Dados de Entrada'!$B$51,IF(AC$1<'Dados de Entrada'!$B$19+'Dados de Entrada'!$B$18,0,"")) ->  | AD25: =IF(AND(AD$1>='Dados de Entrada'!$B$19+'Dados de Entrada'!$B$18,AD$1<='Dados de Entrada'!$B$21),'Dados de Entrada'!$B$51,IF(AD$1<'Dados de Entrada'!$B$19+'Dados de Entrada'!$B$18,0,"")) ->  | AE25: =IF(AND(AE$1>='Dados de Entrada'!$B$19+'Dados de Entrada'!$B$18,AE$1<='Dados de Entrada'!$B$21),'Dados de Entrada'!$B$51,IF(AE$1<'Dados de Entrada'!$B$19+'Dados de Entrada'!$B$18,0,"")) ->  | AF25: =IF(AND(AF$1>='Dados de Entrada'!$B$19+'Dados de Entrada'!$B$18,AF$1<='Dados de Entrada'!$B$21),'Dados de Entrada'!$B$51,IF(AF$1<'Dados de Entrada'!$B$19+'Dados de Entrada'!$B$18,0,"")) ->  | AG25: =IF(AND(AG$1>='Dados de Entrada'!$B$19+'Dados de Entrada'!$B$18,AG$1<='Dados de Entrada'!$B$21),'Dados de Entrada'!$B$51,IF(AG$1<'Dados de Entrada'!$B$19+'Dados de Entrada'!$B$18,0,"")) ->  | AH25: =IF(AND(AH$1>='Dados de Entrada'!$B$19+'Dados de Entrada'!$B$18,AH$1<='Dados de Entrada'!$B$21),'Dados de Entrada'!$B$51,IF(AH$1<'Dados de Entrada'!$B$19+'Dados de Entrada'!$B$18,0,"")) ->  | AI25: =IF(AND(AI$1>='Dados de Entrada'!$B$19+'Dados de Entrada'!$B$18,AI$1<='Dados de Entrada'!$B$21),'Dados de Entrada'!$B$51,IF(AI$1<'Dados de Entrada'!$B$19+'Dados de Entrada'!$B$18,0,"")) ->  | AJ25: =IF(AND(AJ$1>='Dados de Entrada'!$B$19+'Dados de Entrada'!$B$18,AJ$1<='Dados de Entrada'!$B$21),'Dados de Entrada'!$B$51,IF(AJ$1<'Dados de Entrada'!$B$19+'Dados de Entrada'!$B$18,0,"")) ->  | AK25: =IF(AND(AK$1>='Dados de Entrada'!$B$19+'Dados de Entrada'!$B$18,AK$1<='Dados de Entrada'!$B$21),'Dados de Entrada'!$B$51,IF(AK$1<'Dados de Entrada'!$B$19+'Dados de Entrada'!$B$18,0,"")) ->  | AL25: =IF(AND(AL$1>='Dados de Entrada'!$B$19+'Dados de Entrada'!$B$18,AL$1<='Dados de Entrada'!$B$21),'Dados de Entrada'!$B$51,IF(AL$1<'Dados de Entrada'!$B$19+'Dados de Entrada'!$B$18,0,"")) ->  | AM25: =IF(AND(AM$1>='Dados de Entrada'!$B$19+'Dados de Entrada'!$B$18,AM$1<='Dados de Entrada'!$B$21),'Dados de Entrada'!$B$51,IF(AM$1<'Dados de Entrada'!$B$19+'Dados de Entrada'!$B$18,0,"")) ->  | AN25: =IF(AND(AN$1>='Dados de Entrada'!$B$19+'Dados de Entrada'!$B$18,AN$1<='Dados de Entrada'!$B$21),'Dados de Entrada'!$B$51,IF(AN$1<'Dados de Entrada'!$B$19+'Dados de Entrada'!$B$18,0,"")) ->  | AO25: =IF(AND(AO$1>='Dados de Entrada'!$B$19+'Dados de Entrada'!$B$18,AO$1<='Dados de Entrada'!$B$21),'Dados de Entrada'!$B$51,IF(AO$1<'Dados de Entrada'!$B$19+'Dados de Entrada'!$B$18,0,"")) -> 
A26: Imposto de Renda sobre a receita de créditos de Carbono (9) = (8) * ivc | B26: =IF(AND(B$1>='Dados de Entrada'!$B$19+'Dados de Entrada'!$B$18,B$1<='Dados de Entrada'!$B$21),IF(B25>0,B25*'Dados de Entrada'!$B$50,0),IF(B$1<'Dados de Entrada'!$B$19+'Dados de Entrada'!$B$18,0,"")) -> 0 | C26: =IF(AND(C$1>='Dados de Entrada'!$B$19+'Dados de Entrada'!$B$18,C$1<='Dados de Entrada'!$B$21),IF(C25>0,C25*'Dados de Entrada'!$B$50,0),IF(C$1<'Dados de Entrada'!$B$19+'Dados de Entrada'!$B$18,0,"")) -> 0 | D26: =IF(AND(D$1>='Dados de Entrada'!$B$19+'Dados de Entrada'!$B$18,D$1<='Dados de Entrada'!$B$21),IF(D25>0,D25*'Dados de Entrada'!$B$50,0),IF(D$1<'Dados de Entrada'!$B$19+'Dados de Entrada'!$B$18,0,"")) -> 3230.213547 | E26: =IF(AND(E$1>='Dados de Entrada'!$B$19+'Dados de Entrada'!$B$18,E$1<='Dados de Entrada'!$B$21),IF(E25>0,E25*'Dados de Entrada'!$B$50,0),IF(E$1<'Dados de Entrada'!$B$19+'Dados de Entrada'!$B$18,0,"")) -> 3230.213547 | F26: =IF(AND(F$1>='Dados de Entrada'!$B$19+'Dados de Entrada'!$B$18,F$1<='Dados de Entrada'!$B$21),IF(F25>0,F25*'Dados de Entrada'!$B$50,0),IF(F$1<'Dados de Entrada'!$B$19+'Dados de Entrada'!$B$18,0,"")) -> 3230.213547 | G26: =IF(AND(G$1>='Dados de Entrada'!$B$19+'Dados de Entrada'!$B$18,G$1<='Dados de Entrada'!$B$21),IF(G25>0,G25*'Dados de Entrada'!$B$50,0),IF(G$1<'Dados de Entrada'!$B$19+'Dados de Entrada'!$B$18,0,"")) -> 3230.213547 | H26: =IF(AND(H$1>='Dados de Entrada'!$B$19+'Dados de Entrada'!$B$18,H$1<='Dados de Entrada'!$B$21),IF(H25>0,H25*'Dados de Entrada'!$B$50,0),IF(H$1<'Dados de Entrada'!$B$19+'Dados de Entrada'!$B$18,0,"")) -> 3230.213547 | I26: =IF(AND(I$1>='Dados de Entrada'!$B$19+'Dados de Entrada'!$B$18,I$1<='Dados de Entrada'!$B$21),IF(I25>0,I25*'Dados de Entrada'!$B$50,0),IF(I$1<'Dados de Entrada'!$B$19+'Dados de Entrada'!$B$18,0,"")) -> 3230.213547 | J26: =IF(AND(J$1>='Dados de Entrada'!$B$19+'Dados de Entrada'!$B$18,J$1<='Dados de Entrada'!$B$21),IF(J25>0,J25*'Dados de Entrada'!$B$50,0),IF(J$1<'Dados de Entrada'!$B$19+'Dados de Entrada'!$B$18,0,"")) -> 3230.213547 | K26: =IF(AND(K$1>='Dados de Entrada'!$B$19+'Dados de Entrada'!$B$18,K$1<='Dados de Entrada'!$B$21),IF(K25>0,K25*'Dados de Entrada'!$B$50,0),IF(K$1<'Dados de Entrada'!$B$19+'Dados de Entrada'!$B$18,0,"")) -> 3230.213547 | L26: =IF(AND(L$1>='Dados de Entrada'!$B$19+'Dados de Entrada'!$B$18,L$1<='Dados de Entrada'!$B$21),IF(L25>0,L25*'Dados de Entrada'!$B$50,0),IF(L$1<'Dados de Entrada'!$B$19+'Dados de Entrada'!$B$18,0,"")) -> 3230.213547 | M26: =IF(AND(M$1>='Dados de Entrada'!$B$19+'Dados de Entrada'!$B$18,M$1<='Dados de Entrada'!$B$21),IF(M25>0,M25*'Dados de Entrada'!$B$50,0),IF(M$1<'Dados de Entrada'!$B$19+'Dados de Entrada'!$B$18,0,"")) -> 3230.213547 | N26: =IF(AND(N$1>='Dados de Entrada'!$B$19+'Dados de Entrada'!$B$18,N$1<='Dados de Entrada'!$B$21),IF(N25>0,N25*'Dados de Entrada'!$B$50,0),IF(N$1<'Dados de Entrada'!$B$19+'Dados de Entrada'!$B$18,0,"")) -> 3230.213547 | O26: =IF(AND(O$1>='Dados de Entrada'!$B$19+'Dados de Entrada'!$B$18,O$1<='Dados de Entrada'!$B$21),IF(O25>0,O25*'Dados de Entrada'!$B$50,0),IF(O$1<'Dados de Entrada'!$B$19+'Dados de Entrada'!$B$18,0,"")) -> 3230.213547 | P26: =IF(AND(P$1>='Dados de Entrada'!$B$19+'Dados de Entrada'!$B$18,P$1<='Dados de Entrada'!$B$21),IF(P25>0,P25*'Dados de Entrada'!$B$50,0),IF(P$1<'Dados de Entrada'!$B$19+'Dados de Entrada'!$B$18,0,"")) -> 3230.213547 | Q26: =IF(AND(Q$1>='Dados de Entrada'!$B$19+'Dados de Entrada'!$B$18,Q$1<='Dados de Entrada'!$B$21),IF(Q25>0,Q25*'Dados de Entrada'!$B$50,0),IF(Q$1<'Dados de Entrada'!$B$19+'Dados de Entrada'!$B$18,0,"")) -> 3230.213547 | R26: =IF(AND(R$1>='Dados de Entrada'!$B$19+'Dados de Entrada'!$B$18,R$1<='Dados de Entrada'!$B$21),IF(R25>0,R25*'Dados de Entrada'!$B$50,0),IF(R$1<'Dados de Entrada'!$B$19+'Dados de Entrada'!$B$18,0,"")) -> 3230.213547 | S26: =IF(AND(S$1>='Dados de Entrada'!$B$19+'Dados de Entrada'!$B$18,S$1<='Dados de Entrada'!$B$21),IF(S25>0,S25*'Dados de Entrada'!$B$50,0),IF(S$1<'Dados de Entrada'!$B$19+'Dados de Entrada'!$B$18,0,"")) -> 3230.213547 | T26: =IF(AND(T$1>='Dados de Entrada'!$B$19+'Dados de Entrada'!$B$18,T$1<='Dados de Entrada'!$B$21),IF(T25>0,T25*'Dados de Entrada'!$B$50,0),IF(T$1<'Dados de Entrada'!$B$19+'Dados de Entrada'!$B$18,0,"")) -> 3230.213547 | U26: =IF(AND(U$1>='Dados de Entrada'!$B$19+'Dados de Entrada'!$B$18,U$1<='Dados de Entrada'!$B$21),IF(U25>0,U25*'Dados de Entrada'!$B$50,0),IF(U$1<'Dados de Entrada'!$B$19+'Dados de Entrada'!$B$18,0,"")) -> 3230.213547 | V26: =IF(AND(V$1>='Dados de Entrada'!$B$19+'Dados de Entrada'!$B$18,V$1<='Dados de Entrada'!$B$21),IF(V25>0,V25*'Dados de Entrada'!$B$50,0),IF(V$1<'Dados de Entrada'!$B$19+'Dados de Entrada'!$B$18,0,"")) -> 3230.213547 | W26: =IF(AND(W$1>='Dados de Entrada'!$B$19+'Dados de Entrada'!$B$18,W$1<='Dados de Entrada'!$B$21),IF(W25>0,W25*'Dados de Entrada'!$B$50,0),IF(W$1<'Dados de Entrada'!$B$19+'Dados de Entrada'!$B$18,0,"")) -> 3230.213547 | X26: =IF(AND(X$1>='Dados de Entrada'!$B$19+'Dados de Entrada'!$B$18,X$1<='Dados de Entrada'!$B$21),IF(X25>0,X25*'Dados de Entrada'!$B$50,0),IF(X$1<'Dados de Entrada'!$B$19+'Dados de Entrada'!$B$18,0,"")) ->  | Y26: =IF(AND(Y$1>='Dados de Entrada'!$B$19+'Dados de Entrada'!$B$18,Y$1<='Dados de Entrada'!$B$21),IF(Y25>0,Y25*'Dados de Entrada'!$B$50,0),IF(Y$1<'Dados de Entrada'!$B$19+'Dados de Entrada'!$B$18,0,"")) ->  | Z26: =IF(AND(Z$1>='Dados de Entrada'!$B$19+'Dados de Entrada'!$B$18,Z$1<='Dados de Entrada'!$B$21),IF(Z25>0,Z25*'Dados de Entrada'!$B$50,0),IF(Z$1<'Dados de Entrada'!$B$19+'Dados de Entrada'!$B$18,0,"")) ->  | AA26: =IF(AND(AA$1>='Dados de Entrada'!$B$19+'Dados de Entrada'!$B$18,AA$1<='Dados de Entrada'!$B$21),IF(AA25>0,AA25*'Dados de Entrada'!$B$50,0),IF(AA$1<'Dados de Entrada'!$B$19+'Dados de Entrada'!$B$18,0,"")) ->  | AB26: =IF(AND(AB$1>='Dados de Entrada'!$B$19+'Dados de Entrada'!$B$18,AB$1<='Dados de Entrada'!$B$21),IF(AB25>0,AB25*'Dados de Entrada'!$B$50,0),IF(AB$1<'Dados de Entrada'!$B$19+'Dados de Entrada'!$B$18,0,"")) ->  | AC26: =IF(AND(AC$1>='Dados de Entrada'!$B$19+'Dados de Entrada'!$B$18,AC$1<='Dados de Entrada'!$B$21),IF(AC25>0,AC25*'Dados de Entrada'!$B$50,0),IF(AC$1<'Dados de Entrada'!$B$19+'Dados de Entrada'!$B$18,0,"")) ->  | AD26: =IF(AND(AD$1>='Dados de Entrada'!$B$19+'Dados de Entrada'!$B$18,AD$1<='Dados de Entrada'!$B$21),IF(AD25>0,AD25*'Dados de Entrada'!$B$50,0),IF(AD$1<'Dados de Entrada'!$B$19+'Dados de Entrada'!$B$18,0,"")) ->  | AE26: =IF(AND(AE$1>='Dados de Entrada'!$B$19+'Dados de Entrada'!$B$18,AE$1<='Dados de Entrada'!$B$21),IF(AE25>0,AE25*'Dados de Entrada'!$B$50,0),IF(AE$1<'Dados de Entrada'!$B$19+'Dados de Entrada'!$B$18,0,"")) ->  | AF26: =IF(AND(AF$1>='Dados de Entrada'!$B$19+'Dados de Entrada'!$B$18,AF$1<='Dados de Entrada'!$B$21),IF(AF25>0,AF25*'Dados de Entrada'!$B$50,0),IF(AF$1<'Dados de Entrada'!$B$19+'Dados de Entrada'!$B$18,0,"")) ->  | AG26: =IF(AND(AG$1>='Dados de Entrada'!$B$19+'Dados de Entrada'!$B$18,AG$1<='Dados de Entrada'!$B$21),IF(AG25>0,AG25*'Dados de Entrada'!$B$50,0),IF(AG$1<'Dados de Entrada'!$B$19+'Dados de Entrada'!$B$18,0,"")) ->  | AH26: =IF(AND(AH$1>='Dados de Entrada'!$B$19+'Dados de Entrada'!$B$18,AH$1<='Dados de Entrada'!$B$21),IF(AH25>0,AH25*'Dados de Entrada'!$B$50,0),IF(AH$1<'Dados de Entrada'!$B$19+'Dados de Entrada'!$B$18,0,"")) ->  | AI26: =IF(AND(AI$1>='Dados de Entrada'!$B$19+'Dados de Entrada'!$B$18,AI$1<='Dados de Entrada'!$B$21),IF(AI25>0,AI25*'Dados de Entrada'!$B$50,0),IF(AI$1<'Dados de Entrada'!$B$19+'Dados de Entrada'!$B$18,0,"")) ->  | AJ26: =IF(AND(AJ$1>='Dados de Entrada'!$B$19+'Dados de Entrada'!$B$18,AJ$1<='Dados de Entrada'!$B$21),IF(AJ25>0,AJ25*'Dados de Entrada'!$B$50,0),IF(AJ$1<'Dados de Entrada'!$B$19+'Dados de Entrada'!$B$18,0,"")) ->  | AK26: =IF(AND(AK$1>='Dados de Entrada'!$B$19+'Dados de Entrada'!$B$18,AK$1<='Dados de Entrada'!$B$21),IF(AK25>0,AK25*'Dados de Entrada'!$B$50,0),IF(AK$1<'Dados de Entrada'!$B$19+'Dados de Entrada'!$B$18,0,"")) ->  | AL26: =IF(AND(AL$1>='Dados de Entrada'!$B$19+'Dados de Entrada'!$B$18,AL$1<='Dados de Entrada'!$B$21),IF(AL25>0,AL25*'Dados de Entrada'!$B$50,0),IF(AL$1<'Dados de Entrada'!$B$19+'Dados de Entrada'!$B$18,0,"")) ->  | AM26: =IF(AND(AM$1>='Dados de Entrada'!$B$19+'Dados de Entrada'!$B$18,AM$1<='Dados de Entrada'!$B$21),IF(AM25>0,AM25*'Dados de Entrada'!$B$50,0),IF(AM$1<'Dados de Entrada'!$B$19+'Dados de Entrada'!$B$18,0,"")) ->  | AN26: =IF(AND(AN$1>='Dados de Entrada'!$B$19+'Dados de Entrada'!$B$18,AN$1<='Dados de Entrada'!$B$21),IF(AN25>0,AN25*'Dados de Entrada'!$B$50,0),IF(AN$1<'Dados de Entrada'!$B$19+'Dados de Entrada'!$B$18,0,"")) ->  | AO26: =IF(AND(AO$1>='Dados de Entrada'!$B$19+'Dados de Entrada'!$B$18,AO$1<='Dados de Entrada'!$B$21),IF(AO25>0,AO25*'Dados de Entrada'!$B$50,0),IF(AO$1<'Dados de Entrada'!$B$19+'Dados de Entrada'!$B$18,0,"")) -> 
A27: Receita líquida com a venda de créditos de Carbono (10) = (8) - (9) | B27: =IFERROR(B25-B26,"") -> 0 | C27: =IFERROR(C25-C26,"") -> 0 | D27: 18304.54343 | E27: 18304.54343 | F27: 18304.54343 | G27: 18304.54343 | H27: 18304.54343 | I27: 18304.54343 | J27: 18304.54343 | K27: 18304.54343 | L27: 18304.54343 | M27: 18304.54343 | N27: 18304.54343 | O27: 18304.54343 | P27: 18304.54343 | Q27: 18304.54343 | R27: 18304.54343 | S27: 18304.54343 | T27: 18304.54343 | U27: 18304.54343 | V27: 18304.54343 | W27: 18304.54343
A28: Capex Total (11) = (11.1) + (11.2) | B28: =IFERROR(B29+B30,"") -> 3552997.468 | C28: =IFERROR(C29+C30,"") -> 3552997.468 | D28: 0 | E28: 0 | F28: 0 | G28: 0 | H28: 0 | I28: 0 | J28: 0 | K28: 0 | L28: 0 | M28: 0 | N28: 0 | O28: 0 | P28: 0 | Q28: 0 | R28: 0 | S28: 0 | T28: 0 | U28: 0 | V28: 0 | W28: 0
A29: Capex da Produção (11.1) | B29: =_xlfn.IFS(B$1<'Dados de Entrada'!$B$18+'Dados de Entrada'!$B$19,'Dados de Entrada'!$B$35/'Dados de Entrada'!$B$19,B$1<='Dados de Entrada'!$B$21,0,B$1>'Dados de Entrada'!$B$21,"") -> 3552997.468 | C29: =_xlfn.IFS(C$1<'Dados de Entrada'!$B$18+'Dados de Entrada'!$B$19,'Dados de Entrada'!$B$35/'Dados de Entrada'!$B$19,C$1<='Dados de Entrada'!$B$21,0,C$1>'Dados de Entrada'!$B$21,"") -> 3552997.468 | D29: =_xlfn.IFS(D$1<'Dados de Entrada'!$B$18+'Dados de Entrada'!$B$19,'Dados de Entrada'!$B$35/'Dados de Entrada'!$B$19,D$1<='Dados de Entrada'!$B$21,0,D$1>'Dados de Entrada'!$B$21,"") -> 0 | E29: =_xlfn.IFS(E$1<'Dados de Entrada'!$B$18+'Dados de Entrada'!$B$19,'Dados de Entrada'!$B$35/'Dados de Entrada'!$B$19,E$1<='Dados de Entrada'!$B$21,0,E$1>'Dados de Entrada'!$B$21,"") -> 0 | F29: =_xlfn.IFS(F$1<'Dados de Entrada'!$B$18+'Dados de Entrada'!$B$19,'Dados de Entrada'!$B$35/'Dados de Entrada'!$B$19,F$1<='Dados de Entrada'!$B$21,0,F$1>'Dados de Entrada'!$B$21,"") -> 0 | G29: =_xlfn.IFS(G$1<'Dados de Entrada'!$B$18+'Dados de Entrada'!$B$19,'Dados de Entrada'!$B$35/'Dados de Entrada'!$B$19,G$1<='Dados de Entrada'!$B$21,0,G$1>'Dados de Entrada'!$B$21,"") -> 0 | H29: =_xlfn.IFS(H$1<'Dados de Entrada'!$B$18+'Dados de Entrada'!$B$19,'Dados de Entrada'!$B$35/'Dados de Entrada'!$B$19,H$1<='Dados de Entrada'!$B$21,0,H$1>'Dados de Entrada'!$B$21,"") -> 0 | I29: =_xlfn.IFS(I$1<'Dados de Entrada'!$B$18+'Dados de Entrada'!$B$19,'Dados de Entrada'!$B$35/'Dados de Entrada'!$B$19,I$1<='Dados de Entrada'!$B$21,0,I$1>'Dados de Entrada'!$B$21,"") -> 0 | J29: =_xlfn.IFS(J$1<'Dados de Entrada'!$B$18+'Dados de Entrada'!$B$19,'Dados de Entrada'!$B$35/'Dados de Entrada'!$B$19,J$1<='Dados de Entrada'!$B$21,0,J$1>'Dados de Entrada'!$B$21,"") -> 0 | K29: =_xlfn.IFS(K$1<'Dados de Entrada'!$B$18+'Dados de Entrada'!$B$19,'Dados de Entrada'!$B$35/'Dados de Entrada'!$B$19,K$1<='Dados de Entrada'!$B$21,0,K$1>'Dados de Entrada'!$B$21,"") -> 0 | L29: =_xlfn.IFS(L$1<'Dados de Entrada'!$B$18+'Dados de Entrada'!$B$19,'Dados de Entrada'!$B$35/'Dados de Entrada'!$B$19,L$1<='Dados de Entrada'!$B$21,0,L$1>'Dados de Entrada'!$B$21,"") -> 0 | M29: =_xlfn.IFS(M$1<'Dados de Entrada'!$B$18+'Dados de Entrada'!$B$19,'Dados de Entrada'!$B$35/'Dados de Entrada'!$B$19,M$1<='Dados de Entrada'!$B$21,0,M$1>'Dados de Entrada'!$B$21,"") -> 0 | N29: =_xlfn.IFS(N$1<'Dados de Entrada'!$B$18+'Dados de Entrada'!$B$19,'Dados de Entrada'!$B$35/'Dados de Entrada'!$B$19,N$1<='Dados de Entrada'!$B$21,0,N$1>'Dados de Entrada'!$B$21,"") -> 0 | O29: =_xlfn.IFS(O$1<'Dados de Entrada'!$B$18+'Dados de Entrada'!$B$19,'Dados de Entrada'!$B$35/'Dados de Entrada'!$B$19,O$1<='Dados de Entrada'!$B$21,0,O$1>'Dados de Entrada'!$B$21,"") -> 0 | P29: =_xlfn.IFS(P$1<'Dados de Entrada'!$B$18+'Dados de Entrada'!$B$19,'Dados de Entrada'!$B$35/'Dados de Entrada'!$B$19,P$1<='Dados de Entrada'!$B$21,0,P$1>'Dados de Entrada'!$B$21,"") -> 0 | Q29: =_xlfn.IFS(Q$1<'Dados de Entrada'!$B$18+'Dados de Entrada'!$B$19,'Dados de Entrada'!$B$35/'Dados de Entrada'!$B$19,Q$1<='Dados de Entrada'!$B$21,0,Q$1>'Dados de Entrada'!$B$21,"") -> 0 | R29: =_xlfn.IFS(R$1<'Dados de Entrada'!$B$18+'Dados de Entrada'!$B$19,'Dados de Entrada'!$B$35/'Dados de Entrada'!$B$19,R$1<='Dados de Entrada'!$B$21,0,R$1>'Dados de Entrada'!$B$21,"") -> 0 | S29: =_xlfn.IFS(S$1<'Dados de Entrada'!$B$18+'Dados de Entrada'!$B$19,'Dados de Entrada'!$B$35/'Dados de Entrada'!$B$19,S$1<='Dados de Entrada'!$B$21,0,S$1>'Dados de Entrada'!$B$21,"") -> 0 | T29: =_xlfn.IFS(T$1<'Dados de Entrada'!$B$18+'Dados de Entrada'!$B$19,'Dados de Entrada'!$B$35/'Dados de Entrada'!$B$19,T$1<='Dados de Entrada'!$B$21,0,T$1>'Dados de Entrada'!$B$21,"") -> 0 | U29: =_xlfn.IFS(U$1<'Dados de Entrada'!$B$18+'Dados de Entrada'!$B$19,'Dados de Entrada'!$B$35/'Dados de Entrada'!$B$19,U$1<='Dados de Entrada'!$B$21,0,U$1>'Dados de Entrada'!$B$21,"") -> 0 | V29: =_xlfn.IFS(V$1<'Dados de Entrada'!$B$18+'Dados de Entrada'!$B$19,'Dados de Entrada'!$B$35/'Dados de Entrada'!$B$19,V$1<='Dados de Entrada'!$B$21,0,V$1>'Dados de Entrada'!$B$21,"") -> 0 | W29: =_xlfn.IFS(W$1<'Dados de Entrada'!$B$18+'Dados de Entrada'!$B$19,'Dados de Entrada'!$B$35/'Dados de Entrada'!$B$19,W$1<='Dados de Entrada'!$B$21,0,W$1>'Dados de Entrada'!$B$21,"") -> 0 | X29: =_xlfn.IFS(X$1<'Dados de Entrada'!$B$18+'Dados de Entrada'!$B$19,'Dados de Entrada'!$B$35/'Dados de Entrada'!$B$19,X$1<='Dados de Entrada'!$B$21,0,X$1>'Dados de Entrada'!$B$21,"") ->  | Y29: =_xlfn.IFS(Y$1<'Dados de Entrada'!$B$18+'Dados de Entrada'!$B$19,'Dados de Entrada'!$B$35/'Dados de Entrada'!$B$19,Y$1<='Dados de Entrada'!$B$21,0,Y$1>'Dados de Entrada'!$B$21,"") ->  | Z29: =_xlfn.IFS(Z$1<'Dados de Entrada'!$B$18+'Dados de Entrada'!$B$19,'Dados de Entrada'!$B$35/'Dados de Entrada'!$B$19,Z$1<='Dados de Entrada'!$B$21,0,Z$1>'Dados de Entrada'!$B$21,"") ->  | AA29: =_xlfn.IFS(AA$1<'Dados de Entrada'!$B$18+'Dados de Entrada'!$B$19,'Dados de Entrada'!$B$35/'Dados de Entrada'!$B$19,AA$1<='Dados de Entrada'!$B$21,0,AA$1>'Dados de Entrada'!$B$21,"") ->  | AB29: =_xlfn.IFS(AB$1<'Dados de Entrada'!$B$18+'Dados de Entrada'!$B$19,'Dados de Entrada'!$B$35/'Dados de Entrada'!$B$19,AB$1<='Dados de Entrada'!$B$21,0,AB$1>'Dados de Entrada'!$B$21,"") ->  | AC29: =_xlfn.IFS(AC$1<'Dados de Entrada'!$B$18+'Dados de Entrada'!$B$19,'Dados de Entrada'!$B$35/'Dados de Entrada'!$B$19,AC$1<='Dados de Entrada'!$B$21,0,AC$1>'Dados de Entrada'!$B$21,"") ->  | AD29: =_xlfn.IFS(AD$1<'Dados de Entrada'!$B$18+'Dados de Entrada'!$B$19,'Dados de Entrada'!$B$35/'Dados de Entrada'!$B$19,AD$1<='Dados de Entrada'!$B$21,0,AD$1>'Dados de Entrada'!$B$21,"") ->  | AE29: =_xlfn.IFS(AE$1<'Dados de Entrada'!$B$18+'Dados de Entrada'!$B$19,'Dados de Entrada'!$B$35/'Dados de Entrada'!$B$19,AE$1<='Dados de Entrada'!$B$21,0,AE$1>'Dados de Entrada'!$B$21,"") ->  | AF29: =_xlfn.IFS(AF$1<'Dados de Entrada'!$B$18+'Dados de Entrada'!$B$19,'Dados de Entrada'!$B$35/'Dados de Entrada'!$B$19,AF$1<='Dados de Entrada'!$B$21,0,AF$1>'Dados de Entrada'!$B$21,"") ->  | AG29: =_xlfn.IFS(AG$1<'Dados de Entrada'!$B$18+'Dados de Entrada'!$B$19,'Dados de Entrada'!$B$35/'Dados de Entrada'!$B$19,AG$1<='Dados de Entrada'!$B$21,0,AG$1>'Dados de Entrada'!$B$21,"") ->  | AH29: =_xlfn.IFS(AH$1<'Dados de Entrada'!$B$18+'Dados de Entrada'!$B$19,'Dados de Entrada'!$B$35/'Dados de Entrada'!$B$19,AH$1<='Dados de Entrada'!$B$21,0,AH$1>'Dados de Entrada'!$B$21,"") ->  | AI29: =_xlfn.IFS(AI$1<'Dados de Entrada'!$B$18+'Dados de Entrada'!$B$19,'Dados de Entrada'!$B$35/'Dados de Entrada'!$B$19,AI$1<='Dados de Entrada'!$B$21,0,AI$1>'Dados de Entrada'!$B$21,"") ->  | AJ29: =_xlfn.IFS(AJ$1<'Dados de Entrada'!$B$18+'Dados de Entrada'!$B$19,'Dados de Entrada'!$B$35/'Dados de Entrada'!$B$19,AJ$1<='Dados de Entrada'!$B$21,0,AJ$1>'Dados de Entrada'!$B$21,"") ->  | AK29: =_xlfn.IFS(AK$1<'Dados de Entrada'!$B$18+'Dados de Entrada'!$B$19,'Dados de Entrada'!$B$35/'Dados de Entrada'!$B$19,AK$1<='Dados de Entrada'!$B$21,0,AK$1>'Dados de Entrada'!$B$21,"") ->  | AL29: =_xlfn.IFS(AL$1<'Dados de Entrada'!$B$18+'Dados de Entrada'!$B$19,'Dados de Entrada'!$B$35/'Dados de Entrada'!$B$19,AL$1<='Dados de Entrada'!$B$21,0,AL$1>'Dados de Entrada'!$B$21,"") ->  | AM29: =_xlfn.IFS(AM$1<'Dados de Entrada'!$B$18+'Dados de Entrada'!$B$19,'Dados de Entrada'!$B$35/'Dados de Entrada'!$B$19,AM$1<='Dados de Entrada'!$B$21,0,AM$1>'Dados de Entrada'!$B$21,"") ->  | AN29: =_xlfn.IFS(AN$1<'Dados de Entrada'!$B$18+'Dados de Entrada'!$B$19,'Dados de Entrada'!$B$35/'Dados de Entrada'!$B$19,AN$1<='Dados de Entrada'!$B$21,0,AN$1>'Dados de Entrada'!$B$21,"") ->  | AO29: =_xlfn.IFS(AO$1<'Dados de Entrada'!$B$18+'Dados de Entrada'!$B$19,'Dados de Entrada'!$B$35/'Dados de Entrada'!$B$19,AO$1<='Dados de Entrada'!$B$21,0,AO$1>'Dados de Entrada'!$B$21,"") -> 
A30: Capex do CCS (11.2) = (11.2.1) + (11.2.2) | B30: =_xlfn.IFS(B$1<'Dados de Entrada'!$B$18+'Dados de Entrada'!$B$19,SUM(B31:B32),B$1<='Dados de Entrada'!$B$21,0,B$1>'Dados de Entrada'!$B$21,"") -> 0 | C30: =_xlfn.IFS(C$1<'Dados de Entrada'!$B$18+'Dados de Entrada'!$B$19,SUM(C31:C32),C$1<='Dados de Entrada'!$B$21,0,C$1>'Dados de Entrada'!$B$21,"") -> 0 | D30: =_xlfn.IFS(D$1<'Dados de Entrada'!$B$18+'Dados de Entrada'!$B$19,SUM(D31:D32),D$1<='Dados de Entrada'!$B$21,0,D$1>'Dados de Entrada'!$B$21,"") -> 0 | E30: =_xlfn.IFS(E$1<'Dados de Entrada'!$B$18+'Dados de Entrada'!$B$19,SUM(E31:E32),E$1<='Dados de Entrada'!$B$21,0,E$1>'Dados de Entrada'!$B$21,"") -> 0 | F30: =_xlfn.IFS(F$1<'Dados de Entrada'!$B$18+'Dados de Entrada'!$B$19,SUM(F31:F32),F$1<='Dados de Entrada'!$B$21,0,F$1>'Dados de Entrada'!$B$21,"") -> 0 | G30: =_xlfn.IFS(G$1<'Dados de Entrada'!$B$18+'Dados de Entrada'!$B$19,SUM(G31:G32),G$1<='Dados de Entrada'!$B$21,0,G$1>'Dados de Entrada'!$B$21,"") -> 0 | H30: =_xlfn.IFS(H$1<'Dados de Entrada'!$B$18+'Dados de Entrada'!$B$19,SUM(H31:H32),H$1<='Dados de Entrada'!$B$21,0,H$1>'Dados de Entrada'!$B$21,"") -> 0 | I30: =_xlfn.IFS(I$1<'Dados de Entrada'!$B$18+'Dados de Entrada'!$B$19,SUM(I31:I32),I$1<='Dados de Entrada'!$B$21,0,I$1>'Dados de Entrada'!$B$21,"") -> 0 | J30: =_xlfn.IFS(J$1<'Dados de Entrada'!$B$18+'Dados de Entrada'!$B$19,SUM(J31:J32),J$1<='Dados de Entrada'!$B$21,0,J$1>'Dados de Entrada'!$B$21,"") -> 0 | K30: =_xlfn.IFS(K$1<'Dados de Entrada'!$B$18+'Dados de Entrada'!$B$19,SUM(K31:K32),K$1<='Dados de Entrada'!$B$21,0,K$1>'Dados de Entrada'!$B$21,"") -> 0 | L30: =_xlfn.IFS(L$1<'Dados de Entrada'!$B$18+'Dados de Entrada'!$B$19,SUM(L31:L32),L$1<='Dados de Entrada'!$B$21,0,L$1>'Dados de Entrada'!$B$21,"") -> 0 | M30: =_xlfn.IFS(M$1<'Dados de Entrada'!$B$18+'Dados de Entrada'!$B$19,SUM(M31:M32),M$1<='Dados de Entrada'!$B$21,0,M$1>'Dados de Entrada'!$B$21,"") -> 0 | N30: =_xlfn.IFS(N$1<'Dados de Entrada'!$B$18+'Dados de Entrada'!$B$19,SUM(N31:N32),N$1<='Dados de Entrada'!$B$21,0,N$1>'Dados de Entrada'!$B$21,"") -> 0 | O30: =_xlfn.IFS(O$1<'Dados de Entrada'!$B$18+'Dados de Entrada'!$B$19,SUM(O31:O32),O$1<='Dados de Entrada'!$B$21,0,O$1>'Dados de Entrada'!$B$21,"") -> 0 | P30: =_xlfn.IFS(P$1<'Dados de Entrada'!$B$18+'Dados de Entrada'!$B$19,SUM(P31:P32),P$1<='Dados de Entrada'!$B$21,0,P$1>'Dados de Entrada'!$B$21,"") -> 0 | Q30: =_xlfn.IFS(Q$1<'Dados de Entrada'!$B$18+'Dados de Entrada'!$B$19,SUM(Q31:Q32),Q$1<='Dados de Entrada'!$B$21,0,Q$1>'Dados de Entrada'!$B$21,"") -> 0 | R30: =_xlfn.IFS(R$1<'Dados de Entrada'!$B$18+'Dados de Entrada'!$B$19,SUM(R31:R32),R$1<='Dados de Entrada'!$B$21,0,R$1>'Dados de Entrada'!$B$21,"") -> 0 | S30: =_xlfn.IFS(S$1<'Dados de Entrada'!$B$18+'Dados de Entrada'!$B$19,SUM(S31:S32),S$1<='Dados de Entrada'!$B$21,0,S$1>'Dados de Entrada'!$B$21,"") -> 0 | T30: =_xlfn.IFS(T$1<'Dados de Entrada'!$B$18+'Dados de Entrada'!$B$19,SUM(T31:T32),T$1<='Dados de Entrada'!$B$21,0,T$1>'Dados de Entrada'!$B$21,"") -> 0 | U30: =_xlfn.IFS(U$1<'Dados de Entrada'!$B$18+'Dados de Entrada'!$B$19,SUM(U31:U32),U$1<='Dados de Entrada'!$B$21,0,U$1>'Dados de Entrada'!$B$21,"") -> 0 | V30: =_xlfn.IFS(V$1<'Dados de Entrada'!$B$18+'Dados de Entrada'!$B$19,SUM(V31:V32),V$1<='Dados de Entrada'!$B$21,0,V$1>'Dados de Entrada'!$B$21,"") -> 0 | W30: =_xlfn.IFS(W$1<'Dados de Entrada'!$B$18+'Dados de Entrada'!$B$19,SUM(W31:W32),W$1<='Dados de Entrada'!$B$21,0,W$1>'Dados de Entrada'!$B$21,"") -> 0 | X30: =_xlfn.IFS(X$1<'Dados de Entrada'!$B$18+'Dados de Entrada'!$B$19,SUM(X31:X32),X$1<='Dados de Entrada'!$B$21,0,X$1>'Dados de Entrada'!$B$21,"") ->  | Y30: =_xlfn.IFS(Y$1<'Dados de Entrada'!$B$18+'Dados de Entrada'!$B$19,SUM(Y31:Y32),Y$1<='Dados de Entrada'!$B$21,0,Y$1>'Dados de Entrada'!$B$21,"") ->  | Z30: =_xlfn.IFS(Z$1<'Dados de Entrada'!$B$18+'Dados de Entrada'!$B$19,SUM(Z31:Z32),Z$1<='Dados de Entrada'!$B$21,0,Z$1>'Dados de Entrada'!$B$21,"") ->  | AA30: =_xlfn.IFS(AA$1<'Dados de Entrada'!$B$18+'Dados de Entrada'!$B$19,SUM(AA31:AA32),AA$1<='Dados de Entrada'!$B$21,0,AA$1>'Dados de Entrada'!$B$21,"") ->  | AB30: =_xlfn.IFS(AB$1<'Dados de Entrada'!$B$18+'Dados de Entrada'!$B$19,SUM(AB31:AB32),AB$1<='Dados de Entrada'!$B$21,0,AB$1>'Dados de Entrada'!$B$21,"") ->  | AC30: =_xlfn.IFS(AC$1<'Dados de Entrada'!$B$18+'Dados de Entrada'!$B$19,SUM(AC31:AC32),AC$1<='Dados de Entrada'!$B$21,0,AC$1>'Dados de Entrada'!$B$21,"") ->  | AD30: =_xlfn.IFS(AD$1<'Dados de Entrada'!$B$18+'Dados de Entrada'!$B$19,SUM(AD31:AD32),AD$1<='Dados de Entrada'!$B$21,0,AD$1>'Dados de Entrada'!$B$21,"") ->  | AE30: =_xlfn.IFS(AE$1<'Dados de Entrada'!$B$18+'Dados de Entrada'!$B$19,SUM(AE31:AE32),AE$1<='Dados de Entrada'!$B$21,0,AE$1>'Dados de Entrada'!$B$21,"") ->  | AF30: =_xlfn.IFS(AF$1<'Dados de Entrada'!$B$18+'Dados de Entrada'!$B$19,SUM(AF31:AF32),AF$1<='Dados de Entrada'!$B$21,0,AF$1>'Dados de Entrada'!$B$21,"") ->  | AG30: =_xlfn.IFS(AG$1<'Dados de Entrada'!$B$18+'Dados de Entrada'!$B$19,SUM(AG31:AG32),AG$1<='Dados de Entrada'!$B$21,0,AG$1>'Dados de Entrada'!$B$21,"") ->  | AH30: =_xlfn.IFS(AH$1<'Dados de Entrada'!$B$18+'Dados de Entrada'!$B$19,SUM(AH31:AH32),AH$1<='Dados de Entrada'!$B$21,0,AH$1>'Dados de Entrada'!$B$21,"") ->  | AI30: =_xlfn.IFS(AI$1<'Dados de Entrada'!$B$18+'Dados de Entrada'!$B$19,SUM(AI31:AI32),AI$1<='Dados de Entrada'!$B$21,0,AI$1>'Dados de Entrada'!$B$21,"") ->  | AJ30: =_xlfn.IFS(AJ$1<'Dados de Entrada'!$B$18+'Dados de Entrada'!$B$19,SUM(AJ31:AJ32),AJ$1<='Dados de Entrada'!$B$21,0,AJ$1>'Dados de Entrada'!$B$21,"") ->  | AK30: =_xlfn.IFS(AK$1<'Dados de Entrada'!$B$18+'Dados de Entrada'!$B$19,SUM(AK31:AK32),AK$1<='Dados de Entrada'!$B$21,0,AK$1>'Dados de Entrada'!$B$21,"") ->  | AL30: =_xlfn.IFS(AL$1<'Dados de Entrada'!$B$18+'Dados de Entrada'!$B$19,SUM(AL31:AL32),AL$1<='Dados de Entrada'!$B$21,0,AL$1>'Dados de Entrada'!$B$21,"") ->  | AM30: =_xlfn.IFS(AM$1<'Dados de Entrada'!$B$18+'Dados de Entrada'!$B$19,SUM(AM31:AM32),AM$1<='Dados de Entrada'!$B$21,0,AM$1>'Dados de Entrada'!$B$21,"") ->  | AN30: =_xlfn.IFS(AN$1<'Dados de Entrada'!$B$18+'Dados de Entrada'!$B$19,SUM(AN31:AN32),AN$1<='Dados de Entrada'!$B$21,0,AN$1>'Dados de Entrada'!$B$21,"") ->  | AO30: =_xlfn.IFS(AO$1<'Dados de Entrada'!$B$18+'Dados de Entrada'!$B$19,SUM(AO31:AO32),AO$1<='Dados de Entrada'!$B$21,0,AO$1>'Dados de Entrada'!$B$21,"") -> 
A31: Capex da Captura do CO2 (11.2.1) | B31: =_xlfn.IFS(B$1<'Dados de Entrada'!$B$18+'Dados de Entrada'!$B$19,'Dados de Entrada'!$B$62/'Dados de Entrada'!$B$19,B$1<='Dados de Entrada'!$B$21,0,B$1>'Dados de Entrada'!$B$21,"") -> 0 | C31: =_xlfn.IFS(C$1<'Dados de Entrada'!$B$18+'Dados de Entrada'!$B$19,'Dados de Entrada'!$B$62/'Dados de Entrada'!$B$19,C$1<='Dados de Entrada'!$B$21,0,C$1>'Dados de Entrada'!$B$21,"") -> 0 | D31: =_xlfn.IFS(D$1<'Dados de Entrada'!$B$18+'Dados de Entrada'!$B$19,'Dados de Entrada'!$B$62/'Dados de Entrada'!$B$19,D$1<='Dados de Entrada'!$B$21,0,D$1>'Dados de Entrada'!$B$21,"") -> 0 | E31: =_xlfn.IFS(E$1<'Dados de Entrada'!$B$18+'Dados de Entrada'!$B$19,'Dados de Entrada'!$B$62/'Dados de Entrada'!$B$19,E$1<='Dados de Entrada'!$B$21,0,E$1>'Dados de Entrada'!$B$21,"") -> 0 | F31: =_xlfn.IFS(F$1<'Dados de Entrada'!$B$18+'Dados de Entrada'!$B$19,'Dados de Entrada'!$B$62/'Dados de Entrada'!$B$19,F$1<='Dados de Entrada'!$B$21,0,F$1>'Dados de Entrada'!$B$21,"") -> 0 | G31: =_xlfn.IFS(G$1<'Dados de Entrada'!$B$18+'Dados de Entrada'!$B$19,'Dados de Entrada'!$B$62/'Dados de Entrada'!$B$19,G$1<='Dados de Entrada'!$B$21,0,G$1>'Dados de Entrada'!$B$21,"") -> 0 | H31: =_xlfn.IFS(H$1<'Dados de Entrada'!$B$18+'Dados de Entrada'!$B$19,'Dados de Entrada'!$B$62/'Dados de Entrada'!$B$19,H$1<='Dados de Entrada'!$B$21,0,H$1>'Dados de Entrada'!$B$21,"") -> 0 | I31: =_xlfn.IFS(I$1<'Dados de Entrada'!$B$18+'Dados de Entrada'!$B$19,'Dados de Entrada'!$B$62/'Dados de Entrada'!$B$19,I$1<='Dados de Entrada'!$B$21,0,I$1>'Dados de Entrada'!$B$21,"") -> 0 | J31: =_xlfn.IFS(J$1<'Dados de Entrada'!$B$18+'Dados de Entrada'!$B$19,'Dados de Entrada'!$B$62/'Dados de Entrada'!$B$19,J$1<='Dados de Entrada'!$B$21,0,J$1>'Dados de Entrada'!$B$21,"") -> 0 | K31: =_xlfn.IFS(K$1<'Dados de Entrada'!$B$18+'Dados de Entrada'!$B$19,'Dados de Entrada'!$B$62/'Dados de Entrada'!$B$19,K$1<='Dados de Entrada'!$B$21,0,K$1>'Dados de Entrada'!$B$21,"") -> 0 | L31: =_xlfn.IFS(L$1<'Dados de Entrada'!$B$18+'Dados de Entrada'!$B$19,'Dados de Entrada'!$B$62/'Dados de Entrada'!$B$19,L$1<='Dados de Entrada'!$B$21,0,L$1>'Dados de Entrada'!$B$21,"") -> 0 | M31: =_xlfn.IFS(M$1<'Dados de Entrada'!$B$18+'Dados de Entrada'!$B$19,'Dados de Entrada'!$B$62/'Dados de Entrada'!$B$19,M$1<='Dados de Entrada'!$B$21,0,M$1>'Dados de Entrada'!$B$21,"") -> 0 | N31: =_xlfn.IFS(N$1<'Dados de Entrada'!$B$18+'Dados de Entrada'!$B$19,'Dados de Entrada'!$B$62/'Dados de Entrada'!$B$19,N$1<='Dados de Entrada'!$B$21,0,N$1>'Dados de Entrada'!$B$21,"") -> 0 | O31: =_xlfn.IFS(O$1<'Dados de Entrada'!$B$18+'Dados de Entrada'!$B$19,'Dados de Entrada'!$B$62/'Dados de Entrada'!$B$19,O$1<='Dados de Entrada'!$B$21,0,O$1>'Dados de Entrada'!$B$21,"") -> 0 | P31: =_xlfn.IFS(P$1<'Dados de Entrada'!$B$18+'Dados de Entrada'!$B$19,'Dados de Entrada'!$B$62/'Dados de Entrada'!$B$19,P$1<='Dados de Entrada'!$B$21,0,P$1>'Dados de Entrada'!$B$21,"") -> 0 | Q31: =_xlfn.IFS(Q$1<'Dados de Entrada'!$B$18+'Dados de Entrada'!$B$19,'Dados de Entrada'!$B$62/'Dados de Entrada'!$B$19,Q$1<='Dados de Entrada'!$B$21,0,Q$1>'Dados de Entrada'!$B$21,"") -> 0 | R31: =_xlfn.IFS(R$1<'Dados de Entrada'!$B$18+'Dados de Entrada'!$B$19,'Dados de Entrada'!$B$62/'Dados de Entrada'!$B$19,R$1<='Dados de Entrada'!$B$21,0,R$1>'Dados de Entrada'!$B$21,"") -> 0 | S31: =_xlfn.IFS(S$1<'Dados de Entrada'!$B$18+'Dados de Entrada'!$B$19,'Dados de Entrada'!$B$62/'Dados de Entrada'!$B$19,S$1<='Dados de Entrada'!$B$21,0,S$1>'Dados de Entrada'!$B$21,"") -> 0 | T31: =_xlfn.IFS(T$1<'Dados de Entrada'!$B$18+'Dados de Entrada'!$B$19,'Dados de Entrada'!$B$62/'Dados de Entrada'!$B$19,T$1<='Dados de Entrada'!$B$21,0,T$1>'Dados de Entrada'!$B$21,"") -> 0 | U31: =_xlfn.IFS(U$1<'Dados de Entrada'!$B$18+'Dados de Entrada'!$B$19,'Dados de Entrada'!$B$62/'Dados de Entrada'!$B$19,U$1<='Dados de Entrada'!$B$21,0,U$1>'Dados de Entrada'!$B$21,"") -> 0 | V31: =_xlfn.IFS(V$1<'Dados de Entrada'!$B$18+'Dados de Entrada'!$B$19,'Dados de Entrada'!$B$62/'Dados de Entrada'!$B$19,V$1<='Dados de Entrada'!$B$21,0,V$1>'Dados de Entrada'!$B$21,"") -> 0 | W31: =_xlfn.IFS(W$1<'Dados de Entrada'!$B$18+'Dados de Entrada'!$B$19,'Dados de Entrada'!$B$62/'Dados de Entrada'!$B$19,W$1<='Dados de Entrada'!$B$21,0,W$1>'Dados de Entrada'!$B$21,"") -> 0 | X31: =_xlfn.IFS(X$1<'Dados de Entrada'!$B$18+'Dados de Entrada'!$B$19,'Dados de Entrada'!$B$62/'Dados de Entrada'!$B$19,X$1<='Dados de Entrada'!$B$21,0,X$1>'Dados de Entrada'!$B$21,"") ->  | Y31: =_xlfn.IFS(Y$1<'Dados de Entrada'!$B$18+'Dados de Entrada'!$B$19,'Dados de Entrada'!$B$62/'Dados de Entrada'!$B$19,Y$1<='Dados de Entrada'!$B$21,0,Y$1>'Dados de Entrada'!$B$21,"") ->  | Z31: =_xlfn.IFS(Z$1<'Dados de Entrada'!$B$18+'Dados de Entrada'!$B$19,'Dados de Entrada'!$B$62/'Dados de Entrada'!$B$19,Z$1<='Dados de Entrada'!$B$21,0,Z$1>'Dados de Entrada'!$B$21,"") ->  | AA31: =_xlfn.IFS(AA$1<'Dados de Entrada'!$B$18+'Dados de Entrada'!$B$19,'Dados de Entrada'!$B$62/'Dados de Entrada'!$B$19,AA$1<='Dados de Entrada'!$B$21,0,AA$1>'Dados de Entrada'!$B$21,"") ->  | AB31: =_xlfn.IFS(AB$1<'Dados de Entrada'!$B$18+'Dados de Entrada'!$B$19,'Dados de Entrada'!$B$62/'Dados de Entrada'!$B$19,AB$1<='Dados de Entrada'!$B$21,0,AB$1>'Dados de Entrada'!$B$21,"") ->  | AC31: =_xlfn.IFS(AC$1<'Dados de Entrada'!$B$18+'Dados de Entrada'!$B$19,'Dados de Entrada'!$B$62/'Dados de Entrada'!$B$19,AC$1<='Dados de Entrada'!$B$21,0,AC$1>'Dados de Entrada'!$B$21,"") ->  | AD31: =_xlfn.IFS(AD$1<'Dados de Entrada'!$B$18+'Dados de Entrada'!$B$19,'Dados de Entrada'!$B$62/'Dados de Entrada'!$B$19,AD$1<='Dados de Entrada'!$B$21,0,AD$1>'Dados de Entrada'!$B$21,"") ->  | AE31: =_xlfn.IFS(AE$1<'Dados de Entrada'!$B$18+'Dados de Entrada'!$B$19,'Dados de Entrada'!$B$62/'Dados de Entrada'!$B$19,AE$1<='Dados de Entrada'!$B$21,0,AE$1>'Dados de Entrada'!$B$21,"") ->  | AF31: =_xlfn.IFS(AF$1<'Dados de Entrada'!$B$18+'Dados de Entrada'!$B$19,'Dados de Entrada'!$B$62/'Dados de Entrada'!$B$19,AF$1<='Dados de Entrada'!$B$21,0,AF$1>'Dados de Entrada'!$B$21,"") ->  | AG31: =_xlfn.IFS(AG$1<'Dados de Entrada'!$B$18+'Dados de Entrada'!$B$19,'Dados de Entrada'!$B$62/'Dados de Entrada'!$B$19,AG$1<='Dados de Entrada'!$B$21,0,AG$1>'Dados de Entrada'!$B$21,"") ->  | AH31: =_xlfn.IFS(AH$1<'Dados de Entrada'!$B$18+'Dados de Entrada'!$B$19,'Dados de Entrada'!$B$62/'Dados de Entrada'!$B$19,AH$1<='Dados de Entrada'!$B$21,0,AH$1>'Dados de Entrada'!$B$21,"") ->  | AI31: =_xlfn.IFS(AI$1<'Dados de Entrada'!$B$18+'Dados de Entrada'!$B$19,'Dados de Entrada'!$B$62/'Dados de Entrada'!$B$19,AI$1<='Dados de Entrada'!$B$21,0,AI$1>'Dados de Entrada'!$B$21,"") ->  | AJ31: =_xlfn.IFS(AJ$1<'Dados de Entrada'!$B$18+'Dados de Entrada'!$B$19,'Dados de Entrada'!$B$62/'Dados de Entrada'!$B$19,AJ$1<='Dados de Entrada'!$B$21,0,AJ$1>'Dados de Entrada'!$B$21,"") ->  | AK31: =_xlfn.IFS(AK$1<'Dados de Entrada'!$B$18+'Dados de Entrada'!$B$19,'Dados de Entrada'!$B$62/'Dados de Entrada'!$B$19,AK$1<='Dados de Entrada'!$B$21,0,AK$1>'Dados de Entrada'!$B$21,"") ->  | AL31: =_xlfn.IFS(AL$1<'Dados de Entrada'!$B$18+'Dados de Entrada'!$B$19,'Dados de Entrada'!$B$62/'Dados de Entrada'!$B$19,AL$1<='Dados de Entrada'!$B$21,0,AL$1>'Dados de Entrada'!$B$21,"") ->  | AM31: =_xlfn.IFS(AM$1<'Dados de Entrada'!$B$18+'Dados de Entrada'!$B$19,'Dados de Entrada'!$B$62/'Dados de Entrada'!$B$19,AM$1<='Dados de Entrada'!$B$21,0,AM$1>'Dados de Entrada'!$B$21,"") ->  | AN31: =_xlfn.IFS(AN$1<'Dados de Entrada'!$B$18+'Dados de Entrada'!$B$19,'Dados de Entrada'!$B$62/'Dados de Entrada'!$B$19,AN$1<='Dados de Entrada'!$B$21,0,AN$1>'Dados de Entrada'!$B$21,"") ->  | AO31: =_xlfn.IFS(AO$1<'Dados de Entrada'!$B$18+'Dados de Entrada'!$B$19,'Dados de Entrada'!$B$62/'Dados de Entrada'!$B$19,AO$1<='Dados de Entrada'!$B$21,0,AO$1>'Dados de Entrada'!$B$21,"") -> 
A32: Capex do Transporte de CO2 (11.2.2) | B32: =_xlfn.IFS(B$1<'Dados de Entrada'!$B$18+'Dados de Entrada'!$B$19,'Dados de Entrada'!$B$85/'Dados de Entrada'!$B$19,B$1<='Dados de Entrada'!$B$21,0,B$1>'Dados de Entrada'!$B$21,"") -> 0 | C32: =_xlfn.IFS(C$1<'Dados de Entrada'!$B$18+'Dados de Entrada'!$B$19,'Dados de Entrada'!$B$85/'Dados de Entrada'!$B$19,C$1<='Dados de Entrada'!$B$21,0,C$1>'Dados de Entrada'!$B$21,"") -> 0 | D32: =_xlfn.IFS(D$1<'Dados de Entrada'!$B$18+'Dados de Entrada'!$B$19,'Dados de Entrada'!$B$85/'Dados de Entrada'!$B$19,D$1<='Dados de Entrada'!$B$21,0,D$1>'Dados de Entrada'!$B$21,"") -> 0 | E32: =_xlfn.IFS(E$1<'Dados de Entrada'!$B$18+'Dados de Entrada'!$B$19,'Dados de Entrada'!$B$85/'Dados de Entrada'!$B$19,E$1<='Dados de Entrada'!$B$21,0,E$1>'Dados de Entrada'!$B$21,"") -> 0 | F32: =_xlfn.IFS(F$1<'Dados de Entrada'!$B$18+'Dados de Entrada'!$B$19,'Dados de Entrada'!$B$85/'Dados de Entrada'!$B$19,F$1<='Dados de Entrada'!$B$21,0,F$1>'Dados de Entrada'!$B$21,"") -> 0 | G32: =_xlfn.IFS(G$1<'Dados de Entrada'!$B$18+'Dados de Entrada'!$B$19,'Dados de Entrada'!$B$85/'Dados de Entrada'!$B$19,G$1<='Dados de Entrada'!$B$21,0,G$1>'Dados de Entrada'!$B$21,"") -> 0 | H32: =_xlfn.IFS(H$1<'Dados de Entrada'!$B$18+'Dados de Entrada'!$B$19,'Dados de Entrada'!$B$85/'Dados de Entrada'!$B$19,H$1<='Dados de Entrada'!$B$21,0,H$1>'Dados de Entrada'!$B$21,"") -> 0 | I32: =_xlfn.IFS(I$1<'Dados de Entrada'!$B$18+'Dados de Entrada'!$B$19,'Dados de Entrada'!$B$85/'Dados de Entrada'!$B$19,I$1<='Dados de Entrada'!$B$21,0,I$1>'Dados de Entrada'!$B$21,"") -> 0 | J32: =_xlfn.IFS(J$1<'Dados de Entrada'!$B$18+'Dados de Entrada'!$B$19,'Dados de Entrada'!$B$85/'Dados de Entrada'!$B$19,J$1<='Dados de Entrada'!$B$21,0,J$1>'Dados de Entrada'!$B$21,"") -> 0 | K32: =_xlfn.IFS(K$1<'Dados de Entrada'!$B$18+'Dados de Entrada'!$B$19,'Dados de Entrada'!$B$85/'Dados de Entrada'!$B$19,K$1<='Dados de Entrada'!$B$21,0,K$1>'Dados de Entrada'!$B$21,"") -> 0 | L32: =_xlfn.IFS(L$1<'Dados de Entrada'!$B$18+'Dados de Entrada'!$B$19,'Dados de Entrada'!$B$85/'Dados de Entrada'!$B$19,L$1<='Dados de Entrada'!$B$21,0,L$1>'Dados de Entrada'!$B$21,"") -> 0 | M32: =_xlfn.IFS(M$1<'Dados de Entrada'!$B$18+'Dados de Entrada'!$B$19,'Dados de Entrada'!$B$85/'Dados de Entrada'!$B$19,M$1<='Dados de Entrada'!$B$21,0,M$1>'Dados de Entrada'!$B$21,"") -> 0 | N32: =_xlfn.IFS(N$1<'Dados de Entrada'!$B$18+'Dados de Entrada'!$B$19,'Dados de Entrada'!$B$85/'Dados de Entrada'!$B$19,N$1<='Dados de Entrada'!$B$21,0,N$1>'Dados de Entrada'!$B$21,"") -> 0 | O32: =_xlfn.IFS(O$1<'Dados de Entrada'!$B$18+'Dados de Entrada'!$B$19,'Dados de Entrada'!$B$85/'Dados de Entrada'!$B$19,O$1<='Dados de Entrada'!$B$21,0,O$1>'Dados de Entrada'!$B$21,"") -> 0 | P32: =_xlfn.IFS(P$1<'Dados de Entrada'!$B$18+'Dados de Entrada'!$B$19,'Dados de Entrada'!$B$85/'Dados de Entrada'!$B$19,P$1<='Dados de Entrada'!$B$21,0,P$1>'Dados de Entrada'!$B$21,"") -> 0 | Q32: =_xlfn.IFS(Q$1<'Dados de Entrada'!$B$18+'Dados de Entrada'!$B$19,'Dados de Entrada'!$B$85/'Dados de Entrada'!$B$19,Q$1<='Dados de Entrada'!$B$21,0,Q$1>'Dados de Entrada'!$B$21,"") -> 0 | R32: =_xlfn.IFS(R$1<'Dados de Entrada'!$B$18+'Dados de Entrada'!$B$19,'Dados de Entrada'!$B$85/'Dados de Entrada'!$B$19,R$1<='Dados de Entrada'!$B$21,0,R$1>'Dados de Entrada'!$B$21,"") -> 0 | S32: =_xlfn.IFS(S$1<'Dados de Entrada'!$B$18+'Dados de Entrada'!$B$19,'Dados de Entrada'!$B$85/'Dados de Entrada'!$B$19,S$1<='Dados de Entrada'!$B$21,0,S$1>'Dados de Entrada'!$B$21,"") -> 0 | T32: =_xlfn.IFS(T$1<'Dados de Entrada'!$B$18+'Dados de Entrada'!$B$19,'Dados de Entrada'!$B$85/'Dados de Entrada'!$B$19,T$1<='Dados de Entrada'!$B$21,0,T$1>'Dados de Entrada'!$B$21,"") -> 0 | U32: =_xlfn.IFS(U$1<'Dados de Entrada'!$B$18+'Dados de Entrada'!$B$19,'Dados de Entrada'!$B$85/'Dados de Entrada'!$B$19,U$1<='Dados de Entrada'!$B$21,0,U$1>'Dados de Entrada'!$B$21,"") -> 0 | V32: =_xlfn.IFS(V$1<'Dados de Entrada'!$B$18+'Dados de Entrada'!$B$19,'Dados de Entrada'!$B$85/'Dados de Entrada'!$B$19,V$1<='Dados de Entrada'!$B$21,0,V$1>'Dados de Entrada'!$B$21,"") -> 0 | W32: =_xlfn.IFS(W$1<'Dados de Entrada'!$B$18+'Dados de Entrada'!$B$19,'Dados de Entrada'!$B$85/'Dados de Entrada'!$B$19,W$1<='Dados de Entrada'!$B$21,0,W$1>'Dados de Entrada'!$B$21,"") -> 0 | X32: =_xlfn.IFS(X$1<'Dados de Entrada'!$B$18+'Dados de Entrada'!$B$19,'Dados de Entrada'!$B$85/'Dados de Entrada'!$B$19,X$1<='Dados de Entrada'!$B$21,0,X$1>'Dados de Entrada'!$B$21,"") ->  | Y32: =_xlfn.IFS(Y$1<'Dados de Entrada'!$B$18+'Dados de Entrada'!$B$19,'Dados de Entrada'!$B$85/'Dados de Entrada'!$B$19,Y$1<='Dados de Entrada'!$B$21,0,Y$1>'Dados de Entrada'!$B$21,"") ->  | Z32: =_xlfn.IFS(Z$1<'Dados de Entrada'!$B$18+'Dados de Entrada'!$B$19,'Dados de Entrada'!$B$85/'Dados de Entrada'!$B$19,Z$1<='Dados de Entrada'!$B$21,0,Z$1>'Dados de Entrada'!$B$21,"") ->  | AA32: =_xlfn.IFS(AA$1<'Dados de Entrada'!$B$18+'Dados de Entrada'!$B$19,'Dados de Entrada'!$B$85/'Dados de Entrada'!$B$19,AA$1<='Dados de Entrada'!$B$21,0,AA$1>'Dados de Entrada'!$B$21,"") ->  | AB32: =_xlfn.IFS(AB$1<'Dados de Entrada'!$B$18+'Dados de Entrada'!$B$19,'Dados de Entrada'!$B$85/'Dados de Entrada'!$B$19,AB$1<='Dados de Entrada'!$B$21,0,AB$1>'Dados de Entrada'!$B$21,"") ->  | AC32: =_xlfn.IFS(AC$1<'Dados de Entrada'!$B$18+'Dados de Entrada'!$B$19,'Dados de Entrada'!$B$85/'Dados de Entrada'!$B$19,AC$1<='Dados de Entrada'!$B$21,0,AC$1>'Dados de Entrada'!$B$21,"") ->  | AD32: =_xlfn.IFS(AD$1<'Dados de Entrada'!$B$18+'Dados de Entrada'!$B$19,'Dados de Entrada'!$B$85/'Dados de Entrada'!$B$19,AD$1<='Dados de Entrada'!$B$21,0,AD$1>'Dados de Entrada'!$B$21,"") ->  | AE32: =_xlfn.IFS(AE$1<'Dados de Entrada'!$B$18+'Dados de Entrada'!$B$19,'Dados de Entrada'!$B$85/'Dados de Entrada'!$B$19,AE$1<='Dados de Entrada'!$B$21,0,AE$1>'Dados de Entrada'!$B$21,"") ->  | AF32: =_xlfn.IFS(AF$1<'Dados de Entrada'!$B$18+'Dados de Entrada'!$B$19,'Dados de Entrada'!$B$85/'Dados de Entrada'!$B$19,AF$1<='Dados de Entrada'!$B$21,0,AF$1>'Dados de Entrada'!$B$21,"") ->  | AG32: =_xlfn.IFS(AG$1<'Dados de Entrada'!$B$18+'Dados de Entrada'!$B$19,'Dados de Entrada'!$B$85/'Dados de Entrada'!$B$19,AG$1<='Dados de Entrada'!$B$21,0,AG$1>'Dados de Entrada'!$B$21,"") ->  | AH32: =_xlfn.IFS(AH$1<'Dados de Entrada'!$B$18+'Dados de Entrada'!$B$19,'Dados de Entrada'!$B$85/'Dados de Entrada'!$B$19,AH$1<='Dados de Entrada'!$B$21,0,AH$1>'Dados de Entrada'!$B$21,"") ->  | AI32: =_xlfn.IFS(AI$1<'Dados de Entrada'!$B$18+'Dados de Entrada'!$B$19,'Dados de Entrada'!$B$85/'Dados de Entrada'!$B$19,AI$1<='Dados de Entrada'!$B$21,0,AI$1>'Dados de Entrada'!$B$21,"") ->  | AJ32: =_xlfn.IFS(AJ$1<'Dados de Entrada'!$B$18+'Dados de Entrada'!$B$19,'Dados de Entrada'!$B$85/'Dados de Entrada'!$B$19,AJ$1<='Dados de Entrada'!$B$21,0,AJ$1>'Dados de Entrada'!$B$21,"") ->  | AK32: =_xlfn.IFS(AK$1<'Dados de Entrada'!$B$18+'Dados de Entrada'!$B$19,'Dados de Entrada'!$B$85/'Dados de Entrada'!$B$19,AK$1<='Dados de Entrada'!$B$21,0,AK$1>'Dados de Entrada'!$B$21,"") ->  | AL32: =_xlfn.IFS(AL$1<'Dados de Entrada'!$B$18+'Dados de Entrada'!$B$19,'Dados de Entrada'!$B$85/'Dados de Entrada'!$B$19,AL$1<='Dados de Entrada'!$B$21,0,AL$1>'Dados de Entrada'!$B$21,"") ->  | AM32: =_xlfn.IFS(AM$1<'Dados de Entrada'!$B$18+'Dados de Entrada'!$B$19,'Dados de Entrada'!$B$85/'Dados de Entrada'!$B$19,AM$1<='Dados de Entrada'!$B$21,0,AM$1>'Dados de Entrada'!$B$21,"") ->  | AN32: =_xlfn.IFS(AN$1<'Dados de Entrada'!$B$18+'Dados de Entrada'!$B$19,'Dados de Entrada'!$B$85/'Dados de Entrada'!$B$19,AN$1<='Dados de Entrada'!$B$21,0,AN$1>'Dados de Entrada'!$B$21,"") ->  | AO32: =_xlfn.IFS(AO$1<'Dados de Entrada'!$B$18+'Dados de Entrada'!$B$19,'Dados de Entrada'!$B$85/'Dados de Entrada'!$B$19,AO$1<='Dados de Entrada'!$B$21,0,AO$1>'Dados de Entrada'!$B$21,"") -> 
A33: Fluxo de Caixa (12) = (4) + (7) + (10) - (11) | B33: =IFERROR(B19+B24+B27-B28,"") -> -3552997.468 | C33: -3552997.468 | D33: 876400.8737 | E33: 876400.8737 | F33: 876400.8737 | G33: 876400.8737 | H33: 876400.8737 | I33: 876400.8737 | J33: 876400.8737 | K33: 876400.8737 | L33: 876400.8737 | M33: 876400.8737 | N33: 876400.8737 | O33: 876400.8737 | P33: 876400.8737 | Q33: 876400.8737 | R33: 876400.8737 | S33: 876400.8737 | T33: 876400.8737 | U33: 876400.8737 | V33: 876400.8737 | W33: 876400.8737
A35: IRR | B35: =IRR(B33:AO33) -> 0.1
A36: WACC | B36: ='Dados de Entrada'!$B$26 -> 0.1
A37: VPL | B37: =NPV($B$36,B33:AO33) -> 5.238689482e-09
B39: Decomposição (US$/kg)
A40: Preço de Break-even do Hidrogênio (sem estocagem de CO2) | B40: 5.758291516
A41: Preço de Break-even do Hidrogênio | B41: =B40+B63 -> 5.758291516
A42: Opex Total | B42: =NPV($B$36,$B4:$AO4)/NPV($B$36,$B$2:$AO$2) -> 4.69891333
A43: Opex da Produção | B43: 4.69891333
A44: Opex associado ao Etanol | B44: 4.2381
A45: Opex associado à Energia Elétrica | B45: 0.0799
A46: Opex associado à Água | B46: 0.03
A47: Opex associado a Outros custos operacionais | B47: 0.3509133302
A48: Opex do CCS | B48: 0
A49: Opex da Captura de CO2 | B49: 0
A50: Opex associado ao Gás Natural | B50: 0
A51: Opex associado à Energia Elétrica | B51: 0
A52: Opex associado a Outros custos operacionais | B52: 0
A53: Opex do Transporte de CO2 | B53: 0
A54: Opex associado à Energia Elétrica | B54: 0
A55: Opex associado a Outros custos operacionais | B55: 0
A56: Imposto de Renda (CSLL + IRPJ) | B56: =NPV($B$36,$B23:$AO23)/NPV($B$36,$B$2:$AO$2) -> 0
A57: =IF(B57>0,"Despesas com a compra de créditos de Carbono ","Receita com a venda de créditos de Carbono ") -> Receita com a venda de créditos de Carbono | B57: =-NPV($B$36,$B27:$AO27)/NPV($B$36,$B$2:$AO$2) -> -0.02259820177
A58: Capex Total | B58: =NPV($B$36,$B28:$AO28)/NPV($B$36,$B$2:$AO$2) -> 1.081976387
A59: Capex da Produção | B59: =NPV($B$36,$B29:$AO29)/NPV($B$36,$B$2:$AO$2) -> 1.081976387
A60: Capex do CCS | B60: =NPV($B$36,$B30:$AO30)/NPV($B$36,$B$2:$AO$2) -> 0
A61: Capex da Captura do CO2 | B61: =NPV($B$36,$B31:$AO31)/NPV($B$36,$B$2:$AO$2) -> 0
A62: Capex do Transporte de CO2 | B62: =NPV($B$36,$B32:$AO32)/NPV($B$36,$B$2:$AO$2) -> 0
A63: Estocagem de CO2 | B63: ='Dados de Entrada'!B100 -> 0
A64: Custo Total do CCS por Toneleda de CO2eq capturado | B64: =IFERROR((B63+B60+B48)/('Dados de Entrada'!$B$57/('Dados de Entrada'!$B$30*10^3)),0) -> 0

Sheet Resultados
A1: Preço de Break-even do Hidrogênio (Dólares por kg)
C2: Decomposição (Dólares por kg)
B3: Preço de Break-even do Hidrogênio | C3: 5.758291516
B4: Opex Total | C4: 4.69891333
B5: Opex da Produção | C5: 4.69891333
B6: Opex associado ao Etanol | C6: 4.2381
B7: Opex associado à Energia Elétrica | C7: 0.0799
B8: Opex associado à Água | C8: 0.03
B9: Opex associado a Outros custos operacionais | C9: 0.3509133302
B10: Opex do CCS | C10: 0
B11: Opex da Captura de CO2 | C11: 0
B12: Opex associado ao Gás Natural | C12: 0
B13: Opex associado à Energia Elétrica | C13: 0
B14: Opex associado a Outros custos operacionais | C14: 0
B15: Opex do Transporte de CO2 | C15: 0
B16: Opex associado à Energia Elétrica | C16: 0
B17: Opex associado a Outros custos operacionais | C17: 0
B18: Imposto de Renda (CSLL + IRPJ) | C18: 0
B19: Receita com a venda de créditos de Carbono | C19: -0.02259820177
B20: Capex Total | C20: 1.081976387
B21: Capex da Produção | C21: 1.081976387
B22: Capex do CCS | C22: 0
B23: Capex da Captura do CO2 | C23: 0
B24: Capex do Transporte de CO2 | C24: 0
B25: Estocagem de CO2 | C25: 0
B27: Custo Total do CCS por Toneleda de CO2eq capturado | C27: 0
